Workbook

Sheet For Bill Impact(HideBeforeFile) (hidden)
A1: Summary of Rates and Rate Riders
C3: Current Rates
C5: Rate Group | D5: Commodity | E5: System Gas | F5: REDA | G5: PGTVA | H5: ADVADA | I5: LDMDA | J5: SICDA | K5: ='C1.1 Current Rate Riders'!K12 -> FCCVA | L5: ='C1.1 Current Rate Riders'!L12 -> GGEADA | M5: Federal Carbon | N5: Facility Carbon | O5: Dist. Customer Rate | P5: Dist. Vol. Rate Tier 1 | Q5: Dist. Vol. Rate Tier 2 | R5: Dist. Vol. Rate Tier 3 | S5: Dist. Capacity Rate
C6: ='B1.1 Current Distribution Rates'!C16 -> RATE 1 - General Service Rate - Residential | D6: =35.5227-5.3165 -> 30.2062 | E6: ='B1.1 Current Distribution Rates'!L16 -> 0.0435 | F6: ='C1.1 Current Rate Riders'!E16 -> 0.33 | G6: ='C1.1 Current Rate Riders'!F16 -> 0.3195 | H6: ='C1.1 Current Rate Riders'!H16 -> 0 | I6: ='C1.1 Current Rate Riders'!I16 -> 1.35 | J6: ='C1.1 Current Rate Riders'!J16 -> 0.2683 | K6: ='C1.1 Current Rate Riders'!K16 -> 0.03 | L6: ='C1.1 Current Rate Riders'!L16 -> 0.03 | M6: 9.79 | N6: 0.0034 | O6: ='B1.1 Current Distribution Rates'!E16 -> 18.5 | P6: ='B1.1 Current Distribution Rates'!F16 -> 13.7196 | Q6: ='B1.1 Current Distribution Rates'!G16 -> 11.0264 | R6: ="" ->  | S6: ="" -> 
C7: ='B1.1 Current Distribution Rates'!C17 -> RATE 1 - General Service Rate - Commercial | D7: =D6 -> 30.2062 | E7: ='B1.1 Current Distribution Rates'!L17 -> 0.0435 | F7: ='C1.1 Current Rate Riders'!E17 -> 0.33 | G7: ='C1.1 Current Rate Riders'!F17 -> 0.3195 | H7: ='C1.1 Current Rate Riders'!H17 -> 0 | I7: ='C1.1 Current Rate Riders'!I17 -> 1.35 | J7: ='C1.1 Current Rate Riders'!J17 -> 0.2683 | K7: ='C1.1 Current Rate Riders'!K17 -> 0.03 | L7: ='C1.1 Current Rate Riders'!L17 -> 0.03 | M7: =M$6 -> 9.79 | N7: =N$6 -> 0.0034 | O7: ='B1.1 Current Distribution Rates'!E17 -> 18.5 | P7: ='B1.1 Current Distribution Rates'!F17 -> 13.7196 | Q7: ='B1.1 Current Distribution Rates'!G17 -> 11.0264 | R7: ="" ->  | S7: ="" -> 
C8: ='B1.1 Current Distribution Rates'!C18 -> RATE 1 - General Service Rate - Industrial | D8: =D7 -> 30.2062 | E8: ='B1.1 Current Distribution Rates'!L18 -> 0.0435 | F8: ='C1.1 Current Rate Riders'!E18 -> 0.33 | G8: ='C1.1 Current Rate Riders'!F18 -> 0.3195 | H8: ='C1.1 Current Rate Riders'!H18 -> 0 | I8: ='C1.1 Current Rate Riders'!I18 -> 1.35 | J8: ='C1.1 Current Rate Riders'!J18 -> 0.2683 | K8: ='C1.1 Current Rate Riders'!K18 -> 0.03 | L8: ='C1.1 Current Rate Riders'!L18 -> 0.03 | M8: =M$6 -> 9.79 | N8: 0.0034 | O8: ='B1.1 Current Distribution Rates'!E18 -> 18.5 | P8: ='B1.1 Current Distribution Rates'!F18 -> 13.7196 | Q8: ='B1.1 Current Distribution Rates'!G18 -> 11.0264 | R8: ="" ->  | S8: ="" -> 
C9: ='B1.1 Current Distribution Rates'!C19 -> RATE 2 - Seasonal Service - Apr to Oct | D9: 30.2062 | E9: ='B1.1 Current Distribution Rates'!L19 -> 0.0435 | F9: ='C1.1 Current Rate Riders'!E19 -> 0.33 | G9: ='C1.1 Current Rate Riders'!F19 -> 0.3195 | H9: ='C1.1 Current Rate Riders'!H19 -> 0 | J9: ='C1.1 Current Rate Riders'!J19 -> 0.2343 | K9: ='C1.1 Current Rate Riders'!K19 -> 0.03 | L9: ='C1.1 Current Rate Riders'!L19 -> 0.03 | M9: 9.79 | N9: 0.0034 | O9: ='B1.1 Current Distribution Rates'!E19 -> 20 | P9: ='B1.1 Current Distribution Rates'!F19 -> 17.6387 | Q9: ='B1.1 Current Distribution Rates'!H19 -> 9.163 | R9: ='B1.1 Current Distribution Rates'!I19 -> 7.1434 | S9: ="" -> 
C10: ='B1.1 Current Distribution Rates'!C20 -> RATE 2 - Seasonal Service - Nov to Mar | D10: 30.2062 | E10: ='B1.1 Current Distribution Rates'!L20 -> 0.0435 | F10: ='C1.1 Current Rate Riders'!E20 -> 0.33 | G10: ='C1.1 Current Rate Riders'!F20 -> 0.3195 | H10: ='C1.1 Current Rate Riders'!H20 -> 0 | J10: ='C1.1 Current Rate Riders'!J20 -> 0.2343 | K10: ='C1.1 Current Rate Riders'!K20 -> 0.03 | L10: ='C1.1 Current Rate Riders'!L20 -> 0.03 | M10: 9.79 | N10: 0.0034 | O10: ='B1.1 Current Distribution Rates'!E20 -> 20 | P10: ='B1.1 Current Distribution Rates'!F20 -> 22.2332 | Q10: ='B1.1 Current Distribution Rates'!H20 -> 15.167 | R10: ='B1.1 Current Distribution Rates'!I20 -> 16.0935 | S10: ="" -> 
C11: ='B1.1 Current Distribution Rates'!C21 -> RATE 3 - Special Large Volume Contract Rate | D11: 30.2062 | E11: ='B1.1 Current Distribution Rates'!L21 -> 0.0435 | F11: ='C1.1 Current Rate Riders'!E21 -> 0.33 | G11: ='C1.1 Current Rate Riders'!F21 -> 0.3195 | H11: ='C1.1 Current Rate Riders'!H21 -> 0 | J11: ='C1.1 Current Rate Riders'!J21 -> 0.0179 | K11: ='C1.1 Current Rate Riders'!K21 -> 0.03 | L11: ='C1.1 Current Rate Riders'!L21 -> 0.03 | M11: 9.79 | N11: 0.0034 | O11: ='B1.1 Current Distribution Rates'!E21 -> 200 | P11: ='B1.1 Current Distribution Rates'!J21 -> 4.0445 | Q11: ="" ->  | R11: ="" ->  | S11: ='B1.1 Current Distribution Rates'!K21 -> 30.6443
C12: ='B1.1 Current Distribution Rates'!C22 -> RATE 4 - General Service Peaking - Apr to Dec | D12: 30.2062 | E12: ='B1.1 Current Distribution Rates'!L22 -> 0.0435 | F12: ='C1.1 Current Rate Riders'!E22 -> 0.33 | G12: ='C1.1 Current Rate Riders'!F22 -> 0.3195 | H12: ='C1.1 Current Rate Riders'!H22 -> 0 | J12: ='C1.1 Current Rate Riders'!J22 -> 0.0814 | K12: ='C1.1 Current Rate Riders'!K22 -> 0.03 | L12: ='C1.1 Current Rate Riders'!L22 -> 0.03 | M12: 9.79 | N12: 0.0034 | O12: ='B1.1 Current Distribution Rates'!E22 -> 20 | P12: ='B1.1 Current Distribution Rates'!F22 -> 19.5025 | Q12: ='B1.1 Current Distribution Rates'!G22 -> 11.966 | R12: ="" ->  | S12: ="" -> 
C13: ='B1.1 Current Distribution Rates'!C23 -> RATE 4 - General Service Peaking - Jan to Mar | D13: 30.2062 | E13: ='B1.1 Current Distribution Rates'!L23 -> 0.0435 | F13: ='C1.1 Current Rate Riders'!E23 -> 0.33 | G13: ='C1.1 Current Rate Riders'!F23 -> 0.3195 | H13: ='C1.1 Current Rate Riders'!H23 -> 0 | J13: ='C1.1 Current Rate Riders'!J23 -> 0.0814 | K13: ='C1.1 Current Rate Riders'!K23 -> 0.03 | L13: ='C1.1 Current Rate Riders'!L23 -> 0.03 | M13: 9.79 | N13: 0.0034 | O13: ='B1.1 Current Distribution Rates'!E23 -> 20 | P13: ='B1.1 Current Distribution Rates'!F23 -> 24.8799 | Q13: ='B1.1 Current Distribution Rates'!G23 -> 19.2257 | R13: ="" ->  | S13: ="" -> 
C14: ='B1.1 Current Distribution Rates'!C24 -> RATE 5 - Interruptible Peaking Contract Rate | D14: 30.2062 | E14: ='B1.1 Current Distribution Rates'!L24 -> 0.0435 | F14: ='C1.1 Current Rate Riders'!E24 -> 0.33 | G14: ='C1.1 Current Rate Riders'!F24 -> 0.3195 | H14: ='C1.1 Current Rate Riders'!H24 -> 0 | J14: ='C1.1 Current Rate Riders'!J24 -> 0.0238 | K14: ='C1.1 Current Rate Riders'!K24 -> 0.03 | L14: ='C1.1 Current Rate Riders'!L24 -> 0.03 | M14: 9.79 | N14: 0.0034 | O14: ='B1.1 Current Distribution Rates'!E24 -> 190 | P14: ='B1.1 Current Distribution Rates'!J24 -> 8.060590841 | Q14: ="" ->  | R14: ="" ->  | S14: ="" -> 
C15: ='B1.1 Current Distribution Rates'!C25 -> RATE 6 - Integrated Grain Processors Co-Operative Aylmer Ethanol Production Facility | D15: ="" ->  | E15: ="" ->  | F15: ='C1.1 Current Rate Riders'!E25 -> 0.27 | G15: ='C1.1 Current Rate Riders'!G25 -> 0 | H15: ='C1.1 Current Rate Riders'!I25 -> 0 | J15: ='C1.1 Current Rate Riders'!J25 -> 0 | K15: ='C1.1 Current Rate Riders'!K25 -> 0 | L15: ='C1.1 Current Rate Riders'!L25 -> 0 | M15: ="" ->  | N15: 0.0034 | O15: ='B1.1 Current Distribution Rates'!E25 -> 64139.69 | P15: ="" ->  | Q15: ="" ->  | R15: ="" ->  | S15: ="" -> 
C17: Proposed Rates
C19: =C5 -> Rate Group | D19: =D5 -> Commodity | E19: System Gas | F19: REDA | G19: PGTVA | H19: ADVADA | I19: =I5 -> LDMDA | J19: SICDA | K19: =K5 -> FCCVA | L19: =L5 -> GGEADA | M19: Federal Carbon | N19: Facility Carbon | O19: Dist. Customer Rate | P19: Dist. Vol. Rate Tier 1 | Q19: Dist. Vol. Rate Tier 2 | R19: Dist. Vol. Rate Tier 3 | S19: Dist. Capacity Rate
C20: =C6 -> RATE 1 - General Service Rate - Residential | D20: =D6 -> 30.2062 | E20: ='E1.1 Proposed Dist Rates '!L16 -> 0.0435 | F20: ='F1.1 REDA'!$H$22 -> 0.02 | G20: ='F1.2 PGTVA'!$G$16 -> 0.4355195776 | H20: ='F1.3 ADVADA'!$H$16 -> 0 | I20: ='F1.4 Proposed Rate Riders'!I13 -> 0 | J20: ='F1.4 Proposed Rate Riders'!J13 -> 0 | K20: =K6 -> 0.03 | L20: =L6 -> 0.03 | M20: =M6 -> 9.79 | N20: =N6 -> 0.0034 | O20: ='E1.1 Proposed Dist Rates '!E16 -> 19.5 | P20: ='E1.1 Proposed Dist Rates '!F16 -> 13.98233362 | Q20: ='E1.1 Proposed Dist Rates '!G16 -> 11.23755819 | R20: ="" ->  | S20: ="" -> 
C21: =C7 -> RATE 1 - General Service Rate - Commercial | D21: =D7 -> 30.2062 | E21: ='E1.1 Proposed Dist Rates '!L17 -> 0.0435 | F21: ='F1.1 REDA'!$H$22 -> 0.02 | G21: ='F1.2 PGTVA'!$G$16 -> 0.4355195776 | H21: ='F1.3 ADVADA'!$H$16 -> 0 | I21: ='F1.4 Proposed Rate Riders'!I14 -> 0 | J21: ='F1.4 Proposed Rate Riders'!J14 -> 0 | K21: =K7 -> 0.03 | L21: 0.03 | M21: =M$20 -> 9.79 | N21: =N$20 -> 0.0034 | O21: ='E1.1 Proposed Dist Rates '!E17 -> 19.5 | P21: ='E1.1 Proposed Dist Rates '!F17 -> 13.98233362 | Q21: ='E1.1 Proposed Dist Rates '!G17 -> 11.23755819 | R21: ="" ->  | S21: ="" -> 
C22: RATE 1 - General Service Rate - Industrial | D22: =D8 -> 30.2062 | E22: ='E1.1 Proposed Dist Rates '!L18 -> 0.0435 | F22: ='F1.1 REDA'!$H$22 -> 0.02 | G22: ='F1.2 PGTVA'!$G$16 -> 0.4355195776 | H22: ='F1.3 ADVADA'!$H$16 -> 0 | I22: ='F1.4 Proposed Rate Riders'!I15 -> 0 | J22: ='F1.4 Proposed Rate Riders'!J15 -> 0 | K22: 0.03 | L22: 0.03 | M22: =M$20 -> 9.79 | N22: 0.0034 | O22: ='E1.1 Proposed Dist Rates '!E18 -> 19.5 | P22: ='E1.1 Proposed Dist Rates '!F18 -> 13.98233362 | Q22: ='E1.1 Proposed Dist Rates '!G18 -> 11.23755819 | R22: ="" ->  | S22: ="" -> 
C23: RATE 2 - Seasonal Service - Apr to Oct | D23: 30.2062 | E23: ='E1.1 Proposed Dist Rates '!L19 -> 0.0435 | F23: ='F1.1 REDA'!$H$22 -> 0.02 | G23: ='F1.2 PGTVA'!$G$16 -> 0.4355195776 | H23: ='F1.3 ADVADA'!$H$16 -> 0 | J23: ='F1.4 Proposed Rate Riders'!J16 -> 0 | K23: 0.03 | L23: 0.03 | M23: 9.79 | N23: 0.0034 | O23: ='E1.1 Proposed Dist Rates '!E19 -> 21.64180452 | P23: ='E1.1 Proposed Dist Rates '!F19 -> 17.94689923 | Q23: ='E1.1 Proposed Dist Rates '!H19 -> 9.286281901 | R23: ='E1.1 Proposed Dist Rates '!I19 -> 7.343929946 | S23: ="" -> 
C24: RATE 2 - Seasonal Service - Nov to Mar | D24: 30.2062 | E24: ='E1.1 Proposed Dist Rates '!L20 -> 0.0435 | F24: ='F1.1 REDA'!$H$22 -> 0.02 | G24: ='F1.2 PGTVA'!$G$16 -> 0.4355195776 | H24: ='F1.3 ADVADA'!$H$16 -> 0 | J24: ='F1.4 Proposed Rate Riders'!J17 -> 0 | K24: 0.03 | L24: 0.03 | M24: 9.79 | N24: 0.0034 | O24: ='E1.1 Proposed Dist Rates '!E20 -> 21.64180452 | P24: ='E1.1 Proposed Dist Rates '!F20 -> 22.62174543 | Q24: ='E1.1 Proposed Dist Rates '!H20 -> 15.37098345 | R24: ='E1.1 Proposed Dist Rates '!I20 -> 16.54505135 | S24: ="" -> 
C25: RATE 3 - Special Large Volume Contract Rate | D25: 30.2062 | E25: ='E1.1 Proposed Dist Rates '!L21 -> 0.0435 | F25: ='F1.1 REDA'!$H$22 -> 0.02 | G25: ='F1.2 PGTVA'!$G$16 -> 0.4355195776 | H25: ='F1.3 ADVADA'!$H$16 -> 0 | J25: ='F1.4 Proposed Rate Riders'!J18 -> 0 | K25: 0.03 | L25: 0.03 | M25: 9.79 | N25: 0.0034 | O25: ='E1.1 Proposed Dist Rates '!E21 -> 216.4180452 | P25: ='E1.1 Proposed Dist Rates '!J21 -> 3.896715113 | Q25: ="" ->  | R25: ="" ->  | S25: ='E1.1 Proposed Dist Rates '!K21 -> 31.48601214
C26: RATE 4 - General Service Peaking - Apr to Dec | D26: 30.2062 | E26: ='E1.1 Proposed Dist Rates '!L22 -> 0.0435 | F26: ='F1.1 REDA'!$H$22 -> 0.02 | G26: ='F1.2 PGTVA'!$G$16 -> 0.4355195776 | H26: ='F1.3 ADVADA'!$H$16 -> 0 | J26: ='F1.4 Proposed Rate Riders'!J19 -> 0 | K26: 0.03 | L26: 0.03 | M26: 9.79 | N26: 0.0034 | O26: ='E1.1 Proposed Dist Rates '!E22 -> 21.64180452 | P26: ='E1.1 Proposed Dist Rates '!F22 -> 19.76264663 | Q26: ='E1.1 Proposed Dist Rates '!G22 -> 12.12557845 | R26: ="" ->  | S26: ="" -> 
C27: RATE 4 - General Service Peaking - Jan to Mar | D27: 30.2062 | E27: ='E1.1 Proposed Dist Rates '!L23 -> 0.0435 | F27: ='F1.1 REDA'!$H$22 -> 0.02 | G27: ='F1.2 PGTVA'!$G$16 -> 0.4355195776 | H27: ='F1.3 ADVADA'!$H$16 -> 0 | J27: ='F1.4 Proposed Rate Riders'!J20 -> 0 | K27: 0.03 | L27: 0.03 | M27: 9.79 | N27: 0.0034 | O27: ='E1.1 Proposed Dist Rates '!E23 -> 21.64180452 | P27: ='E1.1 Proposed Dist Rates '!F23 -> 25.21162018 | Q27: ='E1.1 Proposed Dist Rates '!G23 -> 19.48195243 | R27: ="" ->  | S27: ="" -> 
C28: RATE 5 - Interruptible Peaking Contract Rate | D28: 30.2062 | E28: ='E1.1 Proposed Dist Rates '!L24 -> 0.0435 | F28: ='F1.1 REDA'!$H$22 -> 0.02 | G28: ='F1.2 PGTVA'!$G$16 -> 0.4355195776 | H28: ='F1.3 ADVADA'!$H$16 -> 0 | J28: ='F1.4 Proposed Rate Riders'!J21 -> 0 | K28: 0.03 | L28: 0.03 | M28: 9.79 | N28: 0.0034 | O28: ='E1.1 Proposed Dist Rates '!E24 -> 205.5971429 | P28: ='E1.1 Proposed Dist Rates '!J24 -> 8.248232748 | Q28: ="" ->  | R28: ="" ->  | S28: ="" -> 
C29: RATE 6 - Integrated Grain Processors Co-Operative Aylmer Ethanol Production Facility | D29: ="" ->  | E29: ="" ->  | F29: ='F1.1 REDA'!$H$23 -> 0 | G29: ="" ->  | H29: ='F1.3 ADVADA'!$H$17 -> 0 | I29: ="" ->  | J29: ="" ->  | K29: ='C1.1 Current Rate Riders'!K39 -> 0 | L29: ='C1.1 Current Rate Riders'!L39 -> 0 | M29: ="" ->  | N29: 0.0034 | O29: ='E1.1 Proposed Dist Rates '!E25 -> 66256.29977 | P29: ="" ->  | Q29: ="" ->  | R29: ="" ->  | S29: ="" -> 
C31: Average Bill Determinant per Customer
C33: =C47 -> Rate Group | D33: Commodity | E33: System Gas | F33: REDA | G33: PGTVA | H33: ADVADA | I33: =I47 -> LDMDA | J33: SICDA | K33: =K19 -> FCCVA | L33: =L19 -> GGEADA | M33: =M47 -> Federal Carbon | N33: Facility Carbon | O33: =O47 -> Dist. Customer Rate | P33: =P47 -> Dist. Vol. Rate Tier 1 | Q33: =Q47 -> Dist. Vol. Rate Tier 2 | R33: =R47 -> Dist. Vol. Rate Tier 3 | S33: =S47 -> Dist. Capacity Rate
C34: =C6 -> RATE 1 - General Service Rate - Residential | D34: =SUM($P34:$R34) -> 1907.110976 | E34: =SUM($P34:$R34) -> 1907.110976 | F34: =$O34 -> 12 | G34: =SUM($P34:$R34) -> 1907.110976 | H34: 1907.110976 | I34: =$O34 -> 12 | J34: 1907.110976 | K34: =$O34 -> 12 | L34: =$O34 -> 12 | M34: =SUM($P34:$R34) -> 1907.110976 | N34: =SUM($P34:$R34) -> 1907.110976 | O34: 12 | P34: ='B1.2 Billing Determinants'!F16/'B1.2 Billing Determinants'!$E16 -> 1885.387176 | Q34: ='B1.2 Billing Determinants'!G16/'B1.2 Billing Determinants'!$E16 -> 21.72380051 | R34: ="" ->  | S34: ="" -> 
C35: =C7 -> RATE 1 - General Service Rate - Commercial | D35: =SUM($P35:$R35) -> 9350.184964 | E35: 9350.184964 | F35: =$O35 -> 12 | G35: 9350.184964 | H35: 9350.184964 | I35: 12 | J35: 9350.184964 | K35: 12 | L35: 12 | M35: 9350.184964 | N35: 9350.184964 | O35: 12 | P35: ='B1.2 Billing Determinants'!F17/'B1.2 Billing Determinants'!$E17 -> 4486.512681 | Q35: ='B1.2 Billing Determinants'!G17/'B1.2 Billing Determinants'!$E17 -> 4863.672283 | R35: ="" ->  | S35: ="" -> 
C36: RATE 1 - General Service Rate - Industrial | D36: 30188.16667 | E36: 30188.16667 | F36: 12 | G36: 30188.16667 | H36: 30188.16667 | I36: 12 | J36: 30188.16667 | K36: 12 | L36: 12 | M36: 30188.16667 | N36: 30188.16667 | O36: 12 | P36: ='B1.2 Billing Determinants'!F18/'B1.2 Billing Determinants'!$E18 -> 6231.961333 | Q36: ='B1.2 Billing Determinants'!G18/'B1.2 Billing Determinants'!$E18 -> 23956.20533 | R36: ="" ->  | S36: ="" -> 
C37: RATE 2 - Seasonal Service - Apr to Oct | D37: 10037.448 | E37: 10037.448 | F37: 7 | G37: 10037.448 | H37: 10037.448 | I37: 7 | J37: 10037.448 | K37: 7 | L37: 7 | M37: 10037.448 | N37: 10037.448 | O37: 7 | P37: ='B1.2 Billing Determinants'!F19/'B1.2 Billing Determinants'!$E19 -> 1473.642 | Q37: ='B1.2 Billing Determinants'!H19/'B1.2 Billing Determinants'!$E19 -> 7718.316 | R37: ='B1.2 Billing Determinants'!I19/'B1.2 Billing Determinants'!$E19 -> 845.49 | S37: ="" -> 
C38: RATE 2 - Seasonal Service - Nov to Mar | D38: 6865.262 | E38: 6865.262 | F38: 5 | G38: 6865.262 | H38: 6865.262 | I38: 5 | J38: 6865.262 | K38: 5 | L38: 5 | M38: 6865.262 | N38: 6865.262 | O38: 5 | P38: ='B1.2 Billing Determinants'!F20/'B1.2 Billing Determinants'!$E20 -> 1348.004 | Q38: ='B1.2 Billing Determinants'!H20/'B1.2 Billing Determinants'!$E20 -> 5246.606 | R38: ='B1.2 Billing Determinants'!I20/'B1.2 Billing Determinants'!$E20 -> 270.652 | S38: ="" -> 
C39: RATE 3 - Special Large Volume Contract Rate | D39: 222738.9 | E39: 222738.9 | F39: 12 | G39: 222738.9 | H39: 222738.9 | I39: 12 | J39: 222738.9 | K39: 12 | L39: 12 | M39: 222738.9 | N39: 222738.9 | O39: 12 | P39: ='B1.2 Billing Determinants'!J21/'B1.2 Billing Determinants'!E21 -> 222738.9 | Q39: ="" ->  | R39: ="" ->  | S39: ='B1.2 Billing Determinants'!K21/'B1.2 Billing Determinants'!E21 -> 35911.2
C40: RATE 4 - General Service Peaking - Apr to Dec | D40: 41301.07805 | E40: 41301.07805 | F40: 9 | G40: 41301.07805 | H40: 41301.07805 | I40: 9 | J40: 41301.07805 | K40: 9 | L40: 9 | M40: 41301.07805 | N40: 41301.07805 | O40: 9 | P40: ='B1.2 Billing Determinants'!F22/'B1.2 Billing Determinants'!$E22 -> 2689.895122 | Q40: ='B1.2 Billing Determinants'!G22/'B1.2 Billing Determinants'!$E22 -> 38611.18293 | R40: ="" ->  | S40: ="" -> 
C41: RATE 4 - General Service Peaking - Jan to Mar | D41: 813.1926829 | E41: 813.1926829 | F41: 3 | G41: 813.1926829 | H41: 813.1926829 | I41: 3 | J41: 813.1926829 | K41: 3 | L41: 3 | M41: 813.1926829 | N41: 813.1926829 | O41: 3 | P41: ='B1.2 Billing Determinants'!F23/'B1.2 Billing Determinants'!$E23 -> 509.9878049 | Q41: ='B1.2 Billing Determinants'!G23/'B1.2 Billing Determinants'!$E23 -> 303.204878 | R41: ="" ->  | S41: ="" -> 
C42: RATE 5 - Interruptible Peaking Contract Rate | D42: 194037.125 | E42: 194037.125 | F42: 12 | G42: 194037.125 | H42: 194037.125 | I42: 12 | J42: 194037.125 | K42: 12 | L42: 12 | M42: 194037.125 | N42: 194037.125 | O42: 12 | P42: ='B1.2 Billing Determinants'!J24/'B1.2 Billing Determinants'!E24 -> 194037.125 | Q42: ="" ->  | R42: ="" ->  | S42: ="" -> 
C43: RATE 6 - Integrated Grain Processors Co-Operative Aylmer Ethanol Production Facility | D43: ="" ->  | E43: ="" ->  | F43: 12 | G43: 12 | H43: 12 | I43: 12 | J43: 12 | K43: 12 | L43: 12 | M43: ="" ->  | N43: ='B1.2 Billing Determinants'!J25 -> 60162513.4 | O43: 12 | P43: ="" ->  | Q43: ="" ->  | R43: ="" ->  | S43: ="" -> 
C45: Label
C47: =C19 -> Rate Group | D47: Commodity | E47: System Gas | F47: REDA | G47: PGTVA | H47: ADVADA | I47: =I19 -> LDMDA | J47: SICDA | K47: =K33 -> FCCVA | L47: =L33 -> GGEADA | M47: =M19 -> Federal Carbon | N47: Facility Carbon | O47: =O19 -> Dist. Customer Rate | P47: =P19 -> Dist. Vol. Rate Tier 1 | Q47: =Q19 -> Dist. Vol. Rate Tier 2 | R47: =R19 -> Dist. Vol. Rate Tier 3 | S47: =S19 -> Dist. Capacity Rate
C48: =C6 -> RATE 1 - General Service Rate - Residential | D48: Commodity | E48: System Gas Charge | F48: REDA | G48: PGTVA | H48: ADVADA | I48: LDMDA | J48: SICDA | K48: =K47 -> FCCVA | L48: =L47 -> GGEADA | M48: Federal Carbon | N48: Facility Carbon | O48: Customer (excl. Bill 32) | P48: Block 1 (First 1,000 m3 per month) | Q48: Block 2 (Over 1,000 m3 per month) | R48: ="" ->  | S48: ="" -> 
C49: =C7 -> RATE 1 - General Service Rate - Commercial | D49: Commodity | E49: System Gas Charge | F49: REDA | G49: PGTVA | H49: ADVADA | I49: LDMDA | J49: SICDA | K49: =K48 -> FCCVA | L49: GGEADA | M49: Federal Carbon | N49: Facility Carbon | O49: Customer (excl. Bill 32) | P49: Block 1 (First 1,000 m3 per month) | Q49: Block 2 (Over 1,000 m3 per month) | R49: ="" ->  | S49: ="" -> 
C50: RATE 1 - General Service Rate - Industrial | D50: Commodity | E50: System Gas Charge | F50: REDA | G50: PGTVA | H50: ADVADA | I50: LDMDA | J50: SICDA | K50: FCCVA | L50: GGEADA | M50: Federal Carbon | N50: Facility Carbon | O50: Customer (excl. Bill 32) | P50: Block 1 (First 1,000 m3 per month) | Q50: Block 2 (Over 1,000 m3 per month) | R50: ="" ->  | S50: ="" -> 
C51: RATE 2 - Seasonal Service - Apr to Oct | D51: Commodity | E51: System Gas Charge | F51: REDA | G51: PGTVA | H51: ADVADA | I51: LDMDA | J51: SICDA | K51: FCCVA | L51: GGEADA | M51: Federal Carbon | N51: Facility Carbon | O51: Customer (excl. Bill 32) | P51: Block 1 (First 1,000 m3 per month) | Q51: Block 2 (Next 24,000 m3 per month) | R51: Block 3 (Over 25,000 m3 per month) | S51: ="" -> 
C52: RATE 2 - Seasonal Service - Nov to Mar | D52: Commodity | E52: System Gas Charge | F52: REDA | G52: PGTVA | H52: ADVADA | I52: LDMDA | J52: SICDA | K52: FCCVA | L52: GGEADA | M52: Federal Carbon | N52: Facility Carbon | O52: Customer (excl. Bill 32) | P52: Block 1 (First 1,000 m3 per month) | Q52: Block 2 (Next 24,000 m3 per month) | R52: Block 3 (Over 25,000 m3 per month) | S52: ="" -> 
C53: RATE 3 - Special Large Volume Contract Rate | D53: Commodity | E53: System Gas Charge | F53: REDA | G53: PGTVA | H53: ADVADA | I53: LDMDA | J53: SICDA | K53: FCCVA | L53: GGEADA | M53: Federal Carbon | N53: Facility Carbon | O53: Customer (excl. Bill 32) | P53: Delivery - Firm | Q53: ="" ->  | R53: ="" ->  | S53: Demand - Firm
C54: RATE 4 - General Service Peaking - Apr to Dec | D54: Commodity | E54: System Gas Charge | F54: REDA | G54: PGTVA | H54: ADVADA | I54: LDMDA | J54: SICDA | K54: FCCVA | L54: GGEADA | M54: Federal Carbon | N54: Facility Carbon | O54: Customer (excl. Bill 32) | P54: Block 1 (First 1,000 m3 per month) | Q54: Block 2 (Over 1,000 m3 per month) | R54: ="" ->  | S54: ="" -> 
C55: RATE 4 - General Service Peaking - Jan to Mar | D55: Commodity | E55: System Gas Charge | F55: REDA | G55: PGTVA | H55: ADVADA | I55: LDMDA | J55: SICDA | K55: FCCVA | L55: GGEADA | M55: Federal Carbon | N55: Facility Carbon | O55: Customer (excl. Bill 32) | P55: Block 1 (First 1,000 m3 per month) | Q55: Block 2 (Over 1,000 m3 per month) | R55: ="" ->  | S55: ="" -> 
C56: RATE 5 - Interruptible Peaking Contract Rate | D56: Commodity | E56: System Gas Charge | F56: REDA | G56: PGTVA | H56: ADVADA | I56: LDMDA | J56: SICDA | K56: FCCVA | L56: GGEADA | M56: Federal Carbon | N56: Facility Carbon | O56: Customer (excl. Bill 32) | P56: Delivery - Firm | Q56: ="" ->  | R56: ="" ->  | S56: ="" -> 
C57: RATE 6 - Integrated Grain Processors Co-Operative Aylmer Ethanol Production Facility | D57: ="" ->  | E57: ="" ->  | F57: REDA | G57: PGTVA | H57: ADVADA | I57: LDMDA | J57: SICDA | K57: FCCVA | L57: GGEADA | M57: ="" ->  | N57: Facility Carbon | O57: Customer (excl. Bill 32) | P57: ="" ->  | Q57: ="" ->  | R57: ="" ->  | S57: ="" -> 
C59: Unit
C61: =C33 -> Rate Group | D61: Commodity | E61: System Gas | F61: REDA | G61: PGTVA | H61: ADVADA | I61: =I33 -> LDMDA | J61: SICDA | K61: =K47 -> FCCVA | L61: =L47 -> GGEADA | M61: =M33 -> Federal Carbon | N61: Facility Carbon | O61: =O33 -> Dist. Customer Rate | P61: =P33 -> Dist. Vol. Rate Tier 1 | Q61: =Q33 -> Dist. Vol. Rate Tier 2 | R61: =R33 -> Dist. Vol. Rate Tier 3 | S61: =S33 -> Dist. Capacity Rate
C62: =C20 -> RATE 1 - General Service Rate - Residential | D62: cents / m3 | E62: cents / m3 | F62: $ / month | G62: cents / m3 | H62: cents / m3 | I62: $ / month | J62: ='F1.4 Proposed Rate Riders'!$J$11 -> cents / m3 | K62: =I62 -> $ / month | L62: =K62 -> $ / month | M62: cents / m3 | N62: cents / m3 | O62: $ / month | P62: cents / m3 | Q62: cents / m3 | R62: ="" ->  | S62: ="" -> 
C63: =C21 -> RATE 1 - General Service Rate - Commercial | D63: cents / m3 | E63: cents / m3 | F63: $ / month | G63: cents / m3 | H63: cents / m3 | I63: $ / month | J63: ='F1.4 Proposed Rate Riders'!$J$11 -> cents / m3 | K63: =I63 -> $ / month | L63: =K63 -> $ / month | M63: cents / m3 | N63: cents / m3 | O63: $ / month | P63: cents / m3 | Q63: cents / m3 | R63: ="" ->  | S63: ="" -> 
C64: RATE 1 - General Service Rate - Industrial | D64: cents / m3 | E64: cents / m3 | F64: $ / month | G64: cents / m3 | H64: cents / m3 | I64: $ / month | J64: ='F1.4 Proposed Rate Riders'!$J$11 -> cents / m3 | K64: $ / month | L64: $ / month | M64: cents / m3 | N64: cents / m3 | O64: $ / month | P64: cents / m3 | Q64: cents / m3 | R64: ="" ->  | S64: ="" -> 
C65: RATE 2 - Seasonal Service - Apr to Oct | D65: cents / m3 | E65: cents / m3 | F65: $ / month | G65: cents / m3 | H65: cents / m3 | I65: $ / month | J65: ='F1.4 Proposed Rate Riders'!$J$11 -> cents / m3 | K65: $ / month | L65: $ / month | M65: cents / m3 | N65: cents / m3 | O65: $ / month | P65: cents / m3 | Q65: cents / m3 | R65: cents / m3 | S65: ="" -> 
C66: RATE 2 - Seasonal Service - Nov to Mar | D66: cents / m3 | E66: cents / m3 | F66: $ / month | G66: cents / m3 | H66: cents / m3 | I66: $ / month | J66: ='F1.4 Proposed Rate Riders'!$J$11 -> cents / m3 | K66: $ / month | L66: $ / month | M66: cents / m3 | N66: cents / m3 | O66: $ / month | P66: cents / m3 | Q66: cents / m3 | R66: cents / m3 | S66: ="" -> 
C67: RATE 3 - Special Large Volume Contract Rate | D67: cents / m3 | E67: cents / m3 | F67: $ / month | G67: cents / m3 | H67: cents / m3 | I67: $ / month | J67: ='F1.4 Proposed Rate Riders'!$J$11 -> cents / m3 | K67: $ / month | L67: $ / month | M67: cents / m3 | N67: cents / m3 | O67: $ / month | P67: cents / m3 | Q67: ="" ->  | R67: ="" ->  | S67: cents / m3
C68: RATE 4 - General Service Peaking - Apr to Dec | D68: cents / m3 | E68: cents / m3 | F68: $ / month | G68: cents / m3 | H68: cents / m3 | I68: $ / month | J68: ='F1.4 Proposed Rate Riders'!$J$11 -> cents / m3 | K68: $ / month | L68: $ / month | M68: cents / m3 | N68: cents / m3 | O68: $ / month | P68: cents / m3 | Q68: cents / m3 | R68: ="" ->  | S68: ="" -> 
C69: RATE 4 - General Service Peaking - Jan to Mar | D69: cents / m3 | E69: cents / m3 | F69: $ / month | G69: cents / m3 | H69: cents / m3 | I69: $ / month | J69: ='F1.4 Proposed Rate Riders'!$J$11 -> cents / m3 | K69: $ / month | L69: $ / month | M69: cents / m3 | N69: cents / m3 | O69: $ / month | P69: cents / m3 | Q69: cents / m3 | R69: ="" ->  | S69: ="" -> 
C70: RATE 5 - Interruptible Peaking Contract Rate | D70: cents / m3 | E70: cents / m3 | F70: $ / month | G70: cents / m3 | H70: cents / m3 | I70: $ / month | J70: ='F1.4 Proposed Rate Riders'!$J$11 -> cents / m3 | K70: $ / month | L70: $ / month | M70: cents / m3 | N70: cents / m3 | O70: $ / month | P70: cents / m3 | Q70: ="" ->  | R70: ="" ->  | S70: ="" -> 
C71: RATE 6 - Integrated Grain Processors Co-Operative Aylmer Ethanol Production Facility | D71: ="" ->  | E71: ="" ->  | F71: $ / month | G71: $ / month | H71: $ / month | I71: $ / month | J71: ='F1.4 Proposed Rate Riders'!$J$11 -> cents / m3 | K71: $ / month | L71: $ / month | M71: ="" ->  | N71: cents / m3 | O71: $ / month | P71: ="" ->  | Q71: ="" ->  | R71: ="" ->  | S71: ="" -> 

Sheet A1.1 Distributor Information
C3: ="Name of LDC: " &D21 -> Name of LDC: EPCOR Natural Gas Limited Partnership
C4: ="OEB Application Number: " & D23 -> OEB Application Number: EB-2022-0183 Exhibit A - 2023 IRM Application
C11: Distributor Information
C21: Distributor Name | D21: EPCOR Natural Gas Limited Partnership
C23: OEB Application Number | D23: EB-2022-0183 Exhibit A - 2023 IRM Application
C30: =MID(CELL("filename",A1),FIND("]",CELL("filename",A1))+1,255) -> A1.1 Distributor Information

Sheet B1.1 Current Distribution Rates
C2: ='A1.1 Distributor Information'!C3 -> Name of LDC: EPCOR Natural Gas Limited Partnership
C3: ='A1.1 Distributor Information'!C4 -> OEB Application Number: EB-2022-0183 Exhibit A - 2023 IRM Application
C10: Current Distribution Tariff Sheet Rates
C15: Rate Group | E15: Monthly Service Charge (excl. Bill 32) | F15: Delivery First 1,000 m3 | G15: Delivery Over 1,000 m3 | H15: Delivery Next 24,000 m3 | I15: Delivery Over 25,000 m3 | J15: Delivery - Firm | K15: Demand - Firm | L15: Commodity | M15: Delivery - Int - Lower | N15: Delivery - Int - Upper
C16: RATE 1 - General Service Rate - Residential | E16: 18.5 | F16: 13.7196 | G16: 11.0264 | L16: 0.0435
C17: RATE 1 - General Service Rate - Commercial | E17: 18.5 | F17: 13.7196 | G17: 11.0264 | L17: 0.0435
C18: RATE 1 - General Service Rate - Industrial | E18: 18.5 | F18: 13.7196 | G18: 11.0264 | L18: 0.0435
C19: RATE 2 - Seasonal Service - Apr to Oct | E19: 20 | F19: 17.6387 | H19: 9.163 | I19: 7.1434 | L19: 0.0435
C20: RATE 2 - Seasonal Service - Nov to Mar | E20: 20 | F20: 22.2332 | H20: 15.167 | I20: 16.0935 | L20: 0.0435
C21: RATE 3 - Special Large Volume Contract Rate | E21: 200 | J21: 4.0445 | K21: 30.6443 | L21: 0.0435 | M21: 7.9775 | N21: 11.0113
C22: RATE 4 - General Service Peaking - Apr to Dec | E22: 20 | F22: 19.5025 | G22: 11.966 | L22: 0.0435
C23: RATE 4 - General Service Peaking - Jan to Mar | E23: 20 | F23: 24.8799 | G23: 19.2257 | L23: 0.0435
C24: RATE 5 - Interruptible Peaking Contract Rate | E24: 190 | J24: 8.060590841 | K24: 1 | L24: 0.0435 | M24: 6.2641 | N24: 9.7053
C25: RATE 6 - Integrated Grain Processors Co-Operative Aylmer Ethanol Production Facility | E25: 64139.69
C27: 1 Placeholder rate for average application
C34: =MID(CELL("filename",A1),FIND("]",CELL("filename",A1))+1,255) -> B1.1 Current Distribution Rates

Sheet B1.2 Billing Determinants
C2: ='A1.1 Distributor Information'!C3 -> Name of LDC: EPCOR Natural Gas Limited Partnership
C3: ='A1.1 Distributor Information'!C4 -> OEB Application Number: EB-2022-0183 Exhibit A - 2023 IRM Application
C10: Billing Determinants - Actuals January 1, 2021 to December 31, 2021
C15: Rate Group | E15: Monthly Service Charge | F15: Delivery First 1,000 m3 | G15: Delivery Over 1,000 m3 | H15: Delivery Next 24,000 m3 | I15: Delivery Over 25,000 m3 | J15: Delivery - Firm | K15: Demand - Firm | L15: Commodity | M15: Delivery - Int - Lower | N15: Delivery - Int - Upper
C16: RATE 1 - General Service Rate - Residential | E16: 8983 | F16: 16936433 | G16: 195144.9 | L16: 17131577.9
C17: RATE 1 - General Service Rate - Commercial | E17: 552 | F17: 2476555 | G17: 2684747.1 | L17: 4667901.1
C18: RATE 1 - General Service Rate - Industrial | E18: 75 | F18: 467397.1 | G18: 1796715.4 | L18: 2234972.7
C19: RATE 2 - Seasonal Service - Apr to Oct | E19: 50 | F19: 73682.1 | H19: 385915.8 | I19: 42274.5 | L19: 501872.4
C20: RATE 2 - Seasonal Service - Nov to Mar | E20: 50 | F20: 67400.2 | H20: 262330.3 | I20: 13532.6 | L20: 343263.1
C21: RATE 3 - Special Large Volume Contract Rate | E21: 6 | J21: 1336433.4 | K21: 215467.2 | L21: 998786.5
C22: RATE 4 - General Service Peaking - Apr to Dec | E22: 41 | F22: 110285.7 | G22: 1583058.5 | L22: 1693344.2
C23: RATE 4 - General Service Peaking - Jan to Mar | E23: 41 | F23: 20909.5 | G23: 12431.4 | L23: 33340.9
C24: RATE 5 - Interruptible Peaking Contract Rate | E24: 4 | J24: 776148.5 | L24: 776148.5
C25: RATE 6 - Integrated Grain Processors Co-Operative Aylmer Ethanol Production Facility | E25: 1 | J25: 60162513.4 | K25: 2505600
E26: =SUM(E16:E19,E21:E22,E24:E25) -> 9712 | F26: =SUM(F16:F25) -> 20152662.6 | G26: 6272097.3 | H26: 648246.1 | I26: 55807.1 | J26: 62275095.3 | K26: 2721067.2 | L26: 28381207.3 | M26: =SUM(M16:M25) -> 0 | N26: =SUM(N16:N25) -> 0
C30: =MID(CELL("filename",A1),FIND("]",CELL("filename",A1))+1,255) -> B1.2 Billing Determinants

Sheet B1.3 Current Rev From Rates
C2: ='A1.1 Distributor Information'!C3 -> Name of LDC: EPCOR Natural Gas Limited Partnership
C3: ='A1.1 Distributor Information'!C4 -> OEB Application Number: EB-2022-0183 Exhibit A - 2023 IRM Application
C10: Revenue from Current Rates
C15: Rate Group | E15: Monthly Service Charge | F15: Delivery First 1,000 m3 | G15: Delivery Over 1,000 m3 | H15: Delivery Next 24,000 m3 | I15: Delivery Over 25,000 m3 | J15: Demand - Firm | K15: Delivery - Firm | L15: Commodity | M15: Delivery - Int - Lower | N15: Delivery - Int - Upper | O15: Total
C16: RATE 1 - General Service Rate - Residential | E16: ='B1.1 Current Distribution Rates'!E16*'B1.2 Billing Determinants'!E16*12 -> 1994226 | F16: ='B1.1 Current Distribution Rates'!F16*'B1.2 Billing Determinants'!F16/100 -> 2323610.862 | G16: ='B1.1 Current Distribution Rates'!G16*'B1.2 Billing Determinants'!G16/100 -> 21517.45725 | H16: ='B1.1 Current Distribution Rates'!H16*'B1.2 Billing Determinants'!H16/100 -> 0 | I16: ='B1.1 Current Distribution Rates'!I16*'B1.2 Billing Determinants'!I16/100 -> 0 | J16: ='B1.1 Current Distribution Rates'!J16*'B1.2 Billing Determinants'!J16/100 -> 0 | K16: ='B1.1 Current Distribution Rates'!K16*'B1.2 Billing Determinants'!K16/100 -> 0 | L16: ='B1.1 Current Distribution Rates'!L16*'B1.2 Billing Determinants'!L16/100 -> 7452.236386 | M16: ='B1.1 Current Distribution Rates'!M16*'B1.2 Billing Determinants'!M16/100 -> 0 | N16: ='B1.1 Current Distribution Rates'!N16*'B1.2 Billing Determinants'!N16/100 -> 0 | O16: =SUM(E16:N16) -> 4346806.556
C17: RATE 1 - General Service Rate - Commercial | E17: ='B1.1 Current Distribution Rates'!E17*'B1.2 Billing Determinants'!E17*12 -> 122544 | F17: ='B1.1 Current Distribution Rates'!F17*'B1.2 Billing Determinants'!F17/100 -> 339773.4398 | G17: ='B1.1 Current Distribution Rates'!G17*'B1.2 Billing Determinants'!G17/100 -> 296030.9542 | H17: ='B1.1 Current Distribution Rates'!H17*'B1.2 Billing Determinants'!H17/100 -> 0 | I17: ='B1.1 Current Distribution Rates'!I17*'B1.2 Billing Determinants'!I17/100 -> 0 | J17: ='B1.1 Current Distribution Rates'!J17*'B1.2 Billing Determinants'!J17/100 -> 0 | K17: ='B1.1 Current Distribution Rates'!K17*'B1.2 Billing Determinants'!K17/100 -> 0 | L17: ='B1.1 Current Distribution Rates'!L17*'B1.2 Billing Determinants'!L17/100 -> 2030.536978 | M17: ='B1.1 Current Distribution Rates'!M17*'B1.2 Billing Determinants'!M17/100 -> 0 | N17: ='B1.1 Current Distribution Rates'!N17*'B1.2 Billing Determinants'!N17/100 -> 0 | O17: =SUM(E17:N17) -> 760378.931
C18: RATE 1 - General Service Rate - Industrial | E18: ='B1.1 Current Distribution Rates'!E18*'B1.2 Billing Determinants'!E18*12 -> 16650 | F18: ='B1.1 Current Distribution Rates'!F18*'B1.2 Billing Determinants'!F18/100 -> 64125.01253 | G18: ='B1.1 Current Distribution Rates'!G18*'B1.2 Billing Determinants'!G18/100 -> 198113.0269 | H18: ='B1.1 Current Distribution Rates'!H18*'B1.2 Billing Determinants'!H18/100 -> 0 | I18: ='B1.1 Current Distribution Rates'!I18*'B1.2 Billing Determinants'!I18/100 -> 0 | J18: ='B1.1 Current Distribution Rates'!J18*'B1.2 Billing Determinants'!J18/100 -> 0 | K18: ='B1.1 Current Distribution Rates'!K18*'B1.2 Billing Determinants'!K18/100 -> 0 | L18: ='B1.1 Current Distribution Rates'!L18*'B1.2 Billing Determinants'!L18/100 -> 972.2131245 | M18: ='B1.1 Current Distribution Rates'!M18*'B1.2 Billing Determinants'!M18/100 -> 0 | N18: ='B1.1 Current Distribution Rates'!N18*'B1.2 Billing Determinants'!N18/100 -> 0 | O18: =SUM(E18:N18) -> 279860.2525
C19: RATE 2 - Seasonal Service - Apr to Oct | E19: ='B1.1 Current Distribution Rates'!E19*'B1.2 Billing Determinants'!E19*7 -> 7000 | F19: ='B1.1 Current Distribution Rates'!F19*'B1.2 Billing Determinants'!F19/100 -> 12996.56457 | G19: ='B1.1 Current Distribution Rates'!G19*'B1.2 Billing Determinants'!G19/100 -> 0 | H19: ='B1.1 Current Distribution Rates'!H19*'B1.2 Billing Determinants'!H19/100 -> 35361.46475 | I19: ='B1.1 Current Distribution Rates'!I19*'B1.2 Billing Determinants'!I19/100 -> 3019.836633 | J19: ='B1.1 Current Distribution Rates'!J19*'B1.2 Billing Determinants'!J19/100 -> 0 | K19: ='B1.1 Current Distribution Rates'!K19*'B1.2 Billing Determinants'!K19/100 -> 0 | L19: ='B1.1 Current Distribution Rates'!L19*'B1.2 Billing Determinants'!L19/100 -> 218.314494 | M19: ='B1.1 Current Distribution Rates'!M19*'B1.2 Billing Determinants'!M19/100 -> 0 | N19: ='B1.1 Current Distribution Rates'!N19*'B1.2 Billing Determinants'!N19/100 -> 0 | O19: =SUM(E19:N19) -> 58596.18045
C20: RATE 2 - Seasonal Service - Nov to Mar | E20: ='B1.1 Current Distribution Rates'!E20*'B1.2 Billing Determinants'!E20*5 -> 5000 | F20: ='B1.1 Current Distribution Rates'!F20*'B1.2 Billing Determinants'!F20/100 -> 14985.22127 | G20: ='B1.1 Current Distribution Rates'!G20*'B1.2 Billing Determinants'!G20/100 -> 0 | H20: ='B1.1 Current Distribution Rates'!H20*'B1.2 Billing Determinants'!H20/100 -> 39787.6366 | I20: ='B1.1 Current Distribution Rates'!I20*'B1.2 Billing Determinants'!I20/100 -> 2177.868981 | J20: ='B1.1 Current Distribution Rates'!J20*'B1.2 Billing Determinants'!J20/100 -> 0 | K20: ='B1.1 Current Distribution Rates'!K20*'B1.2 Billing Determinants'!K20/100 -> 0 | L20: ='B1.1 Current Distribution Rates'!L20*'B1.2 Billing Determinants'!L20/100 -> 149.3194485 | M20: ='B1.1 Current Distribution Rates'!M20*'B1.2 Billing Determinants'!M20/100 -> 0 | N20: ='B1.1 Current Distribution Rates'!N20*'B1.2 Billing Determinants'!N20/100 -> 0 | O20: =SUM(E20:N20) -> 62100.0463
C21: RATE 3 - Special Large Volume Contract Rate | E21: ='B1.1 Current Distribution Rates'!E21*'B1.2 Billing Determinants'!E21*12 -> 14400 | F21: ='B1.1 Current Distribution Rates'!F21*'B1.2 Billing Determinants'!F21/100 -> 0 | G21: ='B1.1 Current Distribution Rates'!G21*'B1.2 Billing Determinants'!G21/100 -> 0 | H21: ='B1.1 Current Distribution Rates'!H21*'B1.2 Billing Determinants'!H21/100 -> 0 | I21: ='B1.1 Current Distribution Rates'!I21*'B1.2 Billing Determinants'!I21/100 -> 0 | J21: ='B1.1 Current Distribution Rates'!J21*'B1.2 Billing Determinants'!J21/100 -> 54052.04886 | K21: ='B1.1 Current Distribution Rates'!K21*'B1.2 Billing Determinants'!K21/100 -> 66028.41517 | L21: ='B1.1 Current Distribution Rates'!L21*'B1.2 Billing Determinants'!L21/100 -> 434.4721275 | M21: ='B1.1 Current Distribution Rates'!M21*'B1.2 Billing Determinants'!M21/100 -> 0 | N21: ='B1.1 Current Distribution Rates'!N21*'B1.2 Billing Determinants'!N21/100 -> 0 | O21: 134914.9362
C22: RATE 4 - General Service Peaking - Apr to Dec | E22: ='B1.1 Current Distribution Rates'!E22*'B1.2 Billing Determinants'!E22*9 -> 7380 | F22: ='B1.1 Current Distribution Rates'!F22*'B1.2 Billing Determinants'!F22/100 -> 21508.46864 | G22: ='B1.1 Current Distribution Rates'!G22*'B1.2 Billing Determinants'!G22/100 -> 189428.7801 | H22: ='B1.1 Current Distribution Rates'!H22*'B1.2 Billing Determinants'!H22/100 -> 0 | I22: ='B1.1 Current Distribution Rates'!I22*'B1.2 Billing Determinants'!I22/100 -> 0 | J22: ='B1.1 Current Distribution Rates'!J22*'B1.2 Billing Determinants'!J22/100 -> 0 | K22: ='B1.1 Current Distribution Rates'!K22*'B1.2 Billing Determinants'!K22/100 -> 0 | L22: ='B1.1 Current Distribution Rates'!L22*'B1.2 Billing Determinants'!L22/100 -> 736.604727 | M22: ='B1.1 Current Distribution Rates'!M22*'B1.2 Billing Determinants'!M22/100 -> 0 | N22: ='B1.1 Current Distribution Rates'!N22*'B1.2 Billing Determinants'!N22/100 -> 0 | O22: 219053.8535
C23: RATE 4 - General Service Peaking - Jan to Mar | E23: ='B1.1 Current Distribution Rates'!E23*'B1.2 Billing Determinants'!E23*3 -> 2460 | F23: ='B1.1 Current Distribution Rates'!F23*'B1.2 Billing Determinants'!F23/100 -> 5202.26269 | G23: ='B1.1 Current Distribution Rates'!G23*'B1.2 Billing Determinants'!G23/100 -> 2390.02367 | H23: ='B1.1 Current Distribution Rates'!H23*'B1.2 Billing Determinants'!H23/100 -> 0 | I23: ='B1.1 Current Distribution Rates'!I23*'B1.2 Billing Determinants'!I23/100 -> 0 | J23: ='B1.1 Current Distribution Rates'!J23*'B1.2 Billing Determinants'!J23/100 -> 0 | K23: ='B1.1 Current Distribution Rates'!K23*'B1.2 Billing Determinants'!K23/100 -> 0 | L23: ='B1.1 Current Distribution Rates'!L23*'B1.2 Billing Determinants'!L23/100 -> 14.5032915 | M23: ='B1.1 Current Distribution Rates'!M23*'B1.2 Billing Determinants'!M23/100 -> 0 | N23: ='B1.1 Current Distribution Rates'!N23*'B1.2 Billing Determinants'!N23/100 -> 0 | O23: 10066.78965
C24: RATE 5 - Interruptible Peaking Contract Rate | E24: ='B1.1 Current Distribution Rates'!E24*'B1.2 Billing Determinants'!E24*12 -> 9120 | F24: ='B1.1 Current Distribution Rates'!F24*'B1.2 Billing Determinants'!F24/100 -> 0 | G24: ='B1.1 Current Distribution Rates'!G24*'B1.2 Billing Determinants'!G24/100 -> 0 | H24: ='B1.1 Current Distribution Rates'!H24*'B1.2 Billing Determinants'!H24/100 -> 0 | I24: ='B1.1 Current Distribution Rates'!I24*'B1.2 Billing Determinants'!I24/100 -> 0 | J24: ='B1.1 Current Distribution Rates'!J24*'B1.2 Billing Determinants'!J24/100 -> 62562.1549 | K24: ='B1.1 Current Distribution Rates'!K24*'B1.2 Billing Determinants'!K24/100 -> 0 | L24: ='B1.1 Current Distribution Rates'!L24*'B1.2 Billing Determinants'!L24/100 -> 337.6245975 | M24: ='B1.1 Current Distribution Rates'!M24*'B1.2 Billing Determinants'!M24/100 -> 0 | N24: ='B1.1 Current Distribution Rates'!N24*'B1.2 Billing Determinants'!N24/100 -> 0 | O24: 72019.7795
C25: RATE 6 - Integrated Grain Processors Co-Operative Aylmer Ethanol Production Facility | E25: ='B1.1 Current Distribution Rates'!E25*'B1.2 Billing Determinants'!E25*12 -> 769676.28 | F25: ='B1.1 Current Distribution Rates'!F25*'B1.2 Billing Determinants'!F25/100 -> 0 | G25: ='B1.1 Current Distribution Rates'!G25*'B1.2 Billing Determinants'!G25/100 -> 0 | H25: ='B1.1 Current Distribution Rates'!H25*'B1.2 Billing Determinants'!H25/100 -> 0 | I25: ='B1.1 Current Distribution Rates'!I25*'B1.2 Billing Determinants'!I25/100 -> 0 | J25: ='B1.1 Current Distribution Rates'!J25*'B1.2 Billing Determinants'!J25/100 -> 0 | K25: ='B1.1 Current Distribution Rates'!K25*'B1.2 Billing Determinants'!K25/100 -> 0 | L25: ='B1.1 Current Distribution Rates'!L25*'B1.2 Billing Determinants'!L25/100 -> 0 | M25: ='B1.1 Current Distribution Rates'!M25*'B1.2 Billing Determinants'!M25/100 -> 0 | N25: ='B1.1 Current Distribution Rates'!N25*'B1.2 Billing Determinants'!N25/100 -> 0 | O25: 769676.28
E26: =SUM(E16:E25) -> 2948456.28 | F26: =SUM(F16:F25) -> 2782201.831 | G26: 707480.2421 | H26: 75149.10135 | I26: 5197.705614 | J26: 116614.2038 | K26: 66028.41517 | L26: 12345.82518 | M26: 0 | N26: 0 | O26: 6713473.605
C29: =MID(CELL("filename",A1),FIND("]",CELL("filename",A1))+1,255) -> B1.3 Current Rev From Rates

Sheet C1.1 Current Rate Riders
C2: ='A1.1 Distributor Information'!C3 -> Name of LDC: EPCOR Natural Gas Limited Partnership
C3: ='A1.1 Distributor Information'!C4 -> OEB Application Number: EB-2022-0183 Exhibit A - 2023 IRM Application
C10: Current Rate Riders
C12: Description | E12: REDA | F12: PGTVA | G12: ADVADA Rate 1 - 5 | H12: ADVADA Rate 6 | I12: LDMDA | J12: SICDA | K12: FCCVA | L12: GGEADA
E13: Jan 2022-Dec 2022 | F13: Jan 2022-Dec 2022 | G13: Effective for 12 months | H13: Effective for 12 months | I13: Jan 2022-Dec 2022 | J13: Jan 2022-Dec 2022 | K13: April 2022-Mar 2023 | L13: April 2022-Mar 2023
E14: $ per Customer Per Month | F14: cents / m3 | G14: cents / m3 | H14: $ per Customer Per Month | I14: $ per Customer Per Month | J14: cents / m3 | K14: $ per Customer Per Month | L14: $ per Customer Per Month
C15: Rate Group
C16: RATE 1 - General Service Rate - Residential | E16: 0.33 | F16: =ROUND(0.319484621172099,4) -> 0.3195 | G16: ='F1.3 ADVADA'!$H$16 -> 0 | I16: 1.35 | J16: 0.2683 | K16: 0.03 | L16: 0.03
C17: RATE 1 - General Service Rate - Commercial | E17: 0.33 | F17: =ROUND(0.319484621172099,4) -> 0.3195 | G17: ='F1.3 ADVADA'!$H$16 -> 0 | I17: 1.35 | J17: 0.2683 | K17: 0.03 | L17: 0.03
C18: RATE 1 - General Service Rate - Industrial | E18: 0.33 | F18: 0.3195 | G18: ='F1.3 ADVADA'!$H$16 -> 0 | I18: 1.35 | J18: 0.2683 | K18: 0.03 | L18: 0.03
C19: RATE 2 - Seasonal Service - Apr to Oct | E19: 0.33 | F19: 0.3195 | G19: ='F1.3 ADVADA'!$H$16 -> 0 | J19: 0.2343 | K19: 0.03 | L19: 0.03
C20: RATE 2 - Seasonal Service - Nov to Mar | E20: 0.33 | F20: 0.3195 | G20: ='F1.3 ADVADA'!$H$16 -> 0 | J20: =J19 -> 0.2343 | K20: 0.03 | L20: 0.03
C21: RATE 3 - Special Large Volume Contract Rate | E21: 0.33 | F21: 0.3195 | G21: ='F1.3 ADVADA'!$H$16 -> 0 | J21: 0.0179 | K21: 0.03 | L21: 0.03
C22: RATE 4 - General Service Peaking - Apr to Dec | E22: 0.33 | F22: 0.3195 | G22: ='F1.3 ADVADA'!$H$16 -> 0 | J22: 0.0814 | K22: 0.03 | L22: 0.03
C23: RATE 4 - General Service Peaking - Jan to Mar | E23: 0.33 | F23: 0.3195 | G23: ='F1.3 ADVADA'!$H$16 -> 0 | J23: =J22 -> 0.0814 | K23: 0.03 | L23: 0.03
C24: RATE 5 - Interruptible Peaking Contract Rate | E24: 0.33 | F24: 0.3195 | G24: ='F1.3 ADVADA'!$H$16 -> 0 | J24: 0.0238 | K24: 0.03 | L24: 0.03
C25: RATE 6 - Integrated Grain Processors Co-Operative Aylmer Ethanol Production Facility | E25: 0.27 | H25: ='F1.3 ADVADA'!H20 -> 0
C29: =MID(CELL("filename",A1),FIND("]",CELL("filename",A1))+1,255) -> C1.1 Current Rate Riders

Sheet D1.1 Rate 1 Adjustment
C2: ='A1.1 Distributor Information'!C3 -> Name of LDC: EPCOR Natural Gas Limited Partnership
C3: ='A1.1 Distributor Information'!C4 -> OEB Application Number: EB-2022-0183 Exhibit A - 2023 IRM Application
C8: Rate 1 Price Cap Adjustment
C11: GDP-IPI | E11: 0.037
C12: Less Productivity | E12: 0
C13: Less Stretch Factor | E13: 0.004
C14: Price Cap Adjustment | E14: =E11-E12-E13 -> 0.033
E16: Current Rate (excl. Bill 32) | F16: 2020 Rate including previously disallowed ratebase | G16: Price Cap | H16: Adjusted Rates (excl. Bill 32) | I16: Billing Determinants | J16: Revenue | L16: Balanced Rates | M16: Revenue
C17: Monthly Service Charge | E17: ='B1.1 Current Distribution Rates'!E16 -> 18.5 | G17: =E14 -> 0.033 | H17: =E17*(1+G17) -> 19.1105 | I17: =SUM('B1.2 Billing Determinants'!E16:E18) -> 9610 | J17: =H17*I17*12 -> 2203822.86 | K17: Change | L17: =E17+1 -> 19.5 | M17: =I17*L17*12 -> 2248740
C18: Delivery First 1,000 m3 | E18: ='B1.1 Current Distribution Rates'!F16 -> 13.7196 | G18: =E14 -> 0.033 | H18: =E18*(1+G18) -> 14.1723468 | I18: =SUM('B1.2 Billing Determinants'!F16:F18) -> 19880385.1 | J18: =H18*I18/100 -> 2817517.122 | K18: Change | L18: =M18/I18*100 -> 13.98233362 | M18: =(J$21-M$17-M$20)*J18/(J$21-J$17-J$20) -> 2779741.769
C19: Delivery Over 1,000 m3 | E19: ='B1.1 Current Distribution Rates'!G16 -> 11.0264 | G19: =E14 -> 0.033 | H19: 11.3902712 | I19: =SUM('B1.2 Billing Determinants'!G16:G18) -> 4676607.4 | J19: =H19*I19/100 -> 532678.2658 | K19: Change | L19: =M19/I19*100 -> 11.23755819 | M19: =(J$21-M$17-M$20)*J19/(J$21-J$17-J$20) -> 525536.4781
C20: Commodity | E20: ='B1.1 Current Distribution Rates'!L16 -> 0.0435 | G20: 0 | H20: 0.0435 | I20: =SUM('B1.2 Billing Determinants'!L16:L18) -> 24034451.7 | J20: =H20*I20/100 -> 10454.98649 | K20: No Change | L20: =E20 -> 0.0435 | M20: =I20*L20/100 -> 10454.98649
J21: =SUM(J17:J20) -> 5564473.234 | M21: =SUM(M17:M20) -> 5564473.234
M23: =(I17*L17)*12+SUMPRODUCT(I18:I20,L18:L20)/100-M21 -> 0
C30: =MID(CELL("filename",A1),FIND("]",CELL("filename",A1))+1,255) -> D1.1 Rate 1 Adjustment

Sheet D1.2 Rate 2 Adjustment
C2: ='A1.1 Distributor Information'!C3 -> Name of LDC: EPCOR Natural Gas Limited Partnership
C3: ='A1.1 Distributor Information'!C4 -> OEB Application Number: EB-2022-0183 Exhibit A - 2023 IRM Application
C8: Rate 2 Price Cap Adjustment
C11: GDP-IPI | E11: ='D1.1 Rate 1 Adjustment'!E11 -> 0.037
C12: Less Productivity | E12: ='D1.1 Rate 1 Adjustment'!E12 -> 0
C13: Less Stretch Factor | E13: ='D1.1 Rate 1 Adjustment'!E13 -> 0.004
C14: Price Cap Adjustment | E14: =E11-E12-E13 -> 0.033
E16: Current Rate (excl. Bill 32) | F16: ='D1.1 Rate 1 Adjustment'!F16 -> 2020 Rate including previously disallowed ratebase | G16: Price Cap | H16: Adjusted Rates (excl. Bill 32) | I16: Billing Determinants | J16: Revenue | L16: Rebalanced Rates | M16: Revenue
C17: Monthly Service Charge | E17: ='B1.1 Current Distribution Rates'!E19 -> 20 | G17: =$E$14 -> 0.033 | H17: =E17*(1+G17) -> 20.66 | I17: ='B1.2 Billing Determinants'!E19 -> 50 | J17: =H17*I17*12 -> 12396 | K17: Change | L17: ='Fixed-Variable Adjust'!C11 -> 21.64180452 | M17: =I17*L17*12 -> 12985.08271
C18: Delivery First 1,000 m3 - Apr To Oct | E18: ='B1.1 Current Distribution Rates'!F19 -> 17.6387 | G18: =$E$14 -> 0.033 | H18: =E18*(1+G18) -> 18.2207771 | I18: ='B1.2 Billing Determinants'!F19 -> 73682.1 | J18: =H18*I18/100 -> 13425.4512 | K18: Change | L18: ='Fixed-Variable Adjust'!C12 -> 17.94689923 | M18: =L18*I18/100 -> 13223.65224
C19: Delivery Next 24,000 m3 - Apr To Oct | E19: ='B1.1 Current Distribution Rates'!H19 -> 9.163 | G19: 0.033 | H19: =E19*(1+G19) -> 9.465379 | I19: ='B1.2 Billing Determinants'!H19 -> 385915.8 | J19: =H19*I19/100 -> 36528.39309 | K19: Change | L19: ='Fixed-Variable Adjust'!C13 -> 9.286281901 | M19: =L19*I19/100 -> 35837.22909
C20: Delivery Over 25,000 m3 - Apr To Oct | E20: ='B1.1 Current Distribution Rates'!I19 -> 7.1434 | G20: 0.033 | H20: 7.3791322 | I20: ='B1.2 Billing Determinants'!I19 -> 42274.5 | J20: 3119.491242 | K20: Change | L20: ='Fixed-Variable Adjust'!C14 -> 7.343929946 | M20: 3104.609665
C21: Delivery First 1,000 m3 - Nov To Mar | E21: ='B1.1 Current Distribution Rates'!F20 -> 22.2332 | G21: 0.033 | H21: 22.9668956 | I21: ='B1.2 Billing Determinants'!F20 -> 67400.2 | J21: 15479.73357 | K21: Change | L21: ='Fixed-Variable Adjust'!C15 -> 22.62174543 | M21: 15247.10166
C22: Delivery Next 24,000 m3 - Nov To Mar | E22: ='B1.1 Current Distribution Rates'!H20 -> 15.167 | G22: 0.033 | H22: 15.667511 | I22: ='B1.2 Billing Determinants'!H20 -> 262330.3 | J22: 41100.62861 | K22: Change | L22: ='Fixed-Variable Adjust'!C16 -> 15.37098345 | M22: 40322.747
C23: Delivery Over 25,000 m3 - Nov To Mar | E23: ='B1.1 Current Distribution Rates'!I20 -> 16.0935 | G23: 0.033 | H23: 16.6245855 | I23: ='B1.2 Billing Determinants'!I20 -> 13532.6 | J23: 2249.738657 | K23: Change | L23: ='Fixed-Variable Adjust'!C17 -> 16.54505135 | M23: 2238.975619
C24: Commodity | E24: ='B1.1 Current Distribution Rates'!L19 -> 0.0435 | G24: 0 | H24: 0.0435 | I24: =SUM('B1.2 Billing Determinants'!L19:L20) -> 845135.5 | J24: 367.6339425 | K24: No Change | L24: =H24 -> 0.0435 | M24: =I24*L24/100 -> 367.6339425
J25: =SUM(J17:J24) -> 124667.0703 | M25: =SUM(M17:M24) -> 123327.0319
M27: =(I17*L17)*12+SUMPRODUCT(I18:I24,L18:L24)/100-M25 -> 0
C31: =MID(CELL("filename",A1),FIND("]",CELL("filename",A1))+1,255) -> D1.2 Rate 2 Adjustment

Sheet D1.3 Rate 3 Adjustment
C2: ='A1.1 Distributor Information'!C3 -> Name of LDC: EPCOR Natural Gas Limited Partnership
C3: ='A1.1 Distributor Information'!C4 -> OEB Application Number: EB-2022-0183 Exhibit A - 2023 IRM Application
C8: Rate 3 Price Cap Adjustment
C11: GDP-IPI | E11: ='D1.1 Rate 1 Adjustment'!E11 -> 0.037
C12: Less Productivity | E12: ='D1.1 Rate 1 Adjustment'!E12 -> 0
C13: Less Stretch Factor | E13: ='D1.1 Rate 1 Adjustment'!E13 -> 0.004
C14: Price Cap Adjustment | E14: =E11-E12-E13 -> 0.033
E16: Current Rate (excl. Bill 32) | F16: ='D1.1 Rate 1 Adjustment'!F16 -> 2020 Rate including previously disallowed ratebase | G16: Price Cap | H16: Adjusted Rates (excl. Bill 32) | I16: Billing Determinants | J16: Revenue | L16: Rebalanced Rates | M16: Revenue
C17: Monthly Service Charge | E17: ='B1.1 Current Distribution Rates'!E21 -> 200 | G17: =E14 -> 0.033 | H17: =E17*(1+G17) -> 206.6 | I17: ='B1.2 Billing Determinants'!E21 -> 6 | J17: =H17*I17*12 -> 14875.2 | K17: Change | L17: ='Fixed-Variable Adjust'!C24 -> 216.4180452 | M17: =I17*L17*12 -> 15582.09925
C18: Delivery Firm | E18: ='B1.1 Current Distribution Rates'!J21 -> 4.0445 | G18: =E14 -> 0.033 | H18: =E18*(1+G18) -> 4.1779685 | I18: ='B1.2 Billing Determinants'!J21 -> 1336433.4 | J18: =H18*I18/100 -> 55835.76648 | K18: Change | L18: ='Fixed-Variable Adjust'!C25 -> 3.896715113 | M18: =L18*I18/100 -> 52077.00227
C19: Demand Firm | E19: ='B1.1 Current Distribution Rates'!K21 -> 30.6443 | G19: =E14 -> 0.033 | H19: =E19*(1+G19) -> 31.6555619 | I19: ='B1.2 Billing Determinants'!K21 -> 215467.2 | J19: =H19*I19/100 -> 68207.35287 | K19: Change | L19: ='Fixed-Variable Adjust'!C26 -> 31.48601214 | M19: =L19*I19/100 -> 67842.02875
C20: Commodity | E20: ='B1.1 Current Distribution Rates'!L21 -> 0.0435 | G20: 0 | H20: =E20*(1+G20) -> 0.0435 | I20: ='B1.2 Billing Determinants'!L21 -> 998786.5 | J20: =H20*I20/100 -> 434.4721275 | K20: No Change | L20: =H20 -> 0.0435 | M20: =I20*L20/100 -> 434.4721275
J21: =SUM(J17:J20) -> 139352.7915 | M21: =SUM(M17:M20) -> 135935.6024
M23: =(I17*L17)*12+SUMPRODUCT(I18:I20,L18:L20)/100-M21 -> 0
C26: =MID(CELL("filename",A1),FIND("]",CELL("filename",A1))+1,255) -> D1.3 Rate 3 Adjustment

Sheet D1.4 Rate 4 Adjustment
C2: ='A1.1 Distributor Information'!C3 -> Name of LDC: EPCOR Natural Gas Limited Partnership
C3: ='A1.1 Distributor Information'!C4 -> OEB Application Number: EB-2022-0183 Exhibit A - 2023 IRM Application
C8: Rate 4 Price Cap Adjustment
C11: GDP-IPI | E11: ='D1.1 Rate 1 Adjustment'!E11 -> 0.037
C12: Less Productivity | E12: ='D1.1 Rate 1 Adjustment'!E12 -> 0
C13: Less Stretch Factor | E13: ='D1.1 Rate 1 Adjustment'!E13 -> 0.004
C14: Price Cap Adjustment | E14: =E11-E12-E13 -> 0.033
E16: Current Rate (excl. Bill 32) | F16: ='D1.1 Rate 1 Adjustment'!F16 -> 2020 Rate including previously disallowed ratebase | G16: Price Cap | H16: Adjusted Rates (excl. Bill 32) | I16: Billing Determinants | J16: Revenue | L16: Balanced Rates | M16: Revenue
C17: Monthly Service Charge | E17: ='B1.1 Current Distribution Rates'!E22 -> 20 | G17: =$E$14 -> 0.033 | H17: =E17*(1+G17) -> 20.66 | I17: ='B1.2 Billing Determinants'!E22 -> 41 | J17: =H17*I17*12 -> 10164.72 | K17: Change | L17: ='Fixed-Variable Adjust'!C31 -> 21.64180452 | M17: =I17*L17*12 -> 10647.76782
C18: Delivery First 1,000 m3 - Apr To Dec | E18: ='B1.1 Current Distribution Rates'!F22 -> 19.5025 | G18: =$E$14 -> 0.033 | H18: =E18*(1+G18) -> 20.1460825 | I18: ='B1.2 Billing Determinants'!F22 -> 110285.7 | J18: =H18*I18/100 -> 22218.24811 | K18: Change | L18: ='Fixed-Variable Adjust'!C32 -> 19.76264663 | M18: =L18*I18/100 -> 21795.37318
C19: Delivery Over 1,000 m3 - Apr To Dec | E19: ='B1.1 Current Distribution Rates'!G22 -> 11.966 | G19: 0.033 | H19: 12.360878 | I19: ='B1.2 Billing Determinants'!G22 -> 1583058.5 | J19: =H19*I19/100 -> 195679.9299 | K19: Change | L19: ='Fixed-Variable Adjust'!C33 -> 12.12557845 | M19: =L19*I19/100 -> 191955.0003
C20: Delivery First 1,000 m3 - Jan To Mar | E20: ='B1.1 Current Distribution Rates'!F23 -> 24.8799 | G20: 0.033 | H20: 25.7009367 | I20: ='B1.2 Billing Determinants'!F23 -> 20909.5 | J20: =H20*I20/100 -> 5373.937359 | K20: Change | L20: ='Fixed-Variable Adjust'!C34 -> 25.21162018 | M20: 5271.623721
C21: Delivery Over 1,000 m3 - Jan To Mar | E21: ='B1.1 Current Distribution Rates'!G23 -> 19.2257 | G21: 0.033 | H21: 19.8601481 | I21: ='B1.2 Billing Determinants'!G23 -> 12431.4 | J21: =H21*I21/100 -> 2468.894451 | K21: Change | L21: ='Fixed-Variable Adjust'!C35 -> 19.48195243 | M21: 2421.879434
C22: Commodity | E22: ='B1.1 Current Distribution Rates'!L22 -> 0.0435 | G22: 0 | H22: 0.0435 | I22: =SUM('B1.2 Billing Determinants'!L22:L23) -> 1726685.1 | J22: =H22*I22/100 -> 751.1080185 | K22: No Change | L22: =E22 -> 0.0435 | M22: 751.1080185
J23: =SUM(J17:J22) -> 236656.8378 | M23: =SUM(M17:M22) -> 232842.7524
M25: =(I17*L17)*12+SUMPRODUCT(I18:I22,L18:L22)/100-M23 -> 0
C28: =MID(CELL("filename",A1),FIND("]",CELL("filename",A1))+1,255) -> D1.4 Rate 4 Adjustment

Sheet D1.5 Rate 5 Adjustment
C2: ='A1.1 Distributor Information'!C3 -> Name of LDC: EPCOR Natural Gas Limited Partnership
C3: ='A1.1 Distributor Information'!C4 -> OEB Application Number: EB-2022-0183 Exhibit A - 2023 IRM Application
C8: Rate 5 Price Cap Adjustment
C11: GDP-IPI | E11: ='D1.1 Rate 1 Adjustment'!E11 -> 0.037
C12: Less Productivity | E12: ='D1.1 Rate 1 Adjustment'!E12 -> 0
C13: Less Stretch Factor | E13: ='D1.1 Rate 1 Adjustment'!E13 -> 0.004
C14: Price Cap Adjustment | E14: =E11-E12-E13 -> 0.033
E16: Current Rate (excl. Bill 32) | F16: ='D1.1 Rate 1 Adjustment'!F16 -> 2020 Rate including previously disallowed ratebase | G16: Price Cap | H16: Adjusted Rates (excl. Bill 32) | I16: Billing Determinants | J16: Revenue | L16: Rebalanced Rates | M16: Revenue
C17: Monthly Service Charge | E17: ='B1.1 Current Distribution Rates'!E24 -> 190 | G17: =E14 -> 0.033 | H17: =E17*(1+G17) -> 196.27 | I17: ='B1.2 Billing Determinants'!E24 -> 4 | J17: =H17*I17*12 -> 9420.96 | K17: Change | L17: ='Fixed-Variable Adjust'!C40 -> 205.5971429 | M17: =I17*L17*12 -> 9868.662861
C18: Delivery Firm | E18: ='B1.1 Current Distribution Rates'!J24 -> 8.060590841 | G18: =E14 -> 0.033 | H18: =E18*(1+G18) -> 8.326590339 | I18: ='B1.2 Billing Determinants'!J24 -> 776148.5 | J18: =H18*I18/100 -> 64626.70601 | K18: Change | L18: ='Fixed-Variable Adjust'!C41 -> 8.248232748 | M18: =I18*L18/100 -> 64018.53475
C19: Commodity | E19: ='B1.1 Current Distribution Rates'!L24 -> 0.0435 | G19: 0 | H19: =E19*(1+G19) -> 0.0435 | I19: ='B1.2 Billing Determinants'!L24 -> 776148.5 | J19: =H19*I19/100 -> 337.6245975 | K19: No Change | L19: =E19 -> 0.0435 | M19: =I19*L19/100 -> 337.6245975
J20: =SUM(J17:J19) -> 74385.29061 | M20: =SUM(M17:M19) -> 74224.82221
M22: =(I17*L17)*12+SUMPRODUCT(I18:I19,L18:L19)/100-M20 -> 0
C26: =MID(CELL("filename",A1),FIND("]",CELL("filename",A1))+1,255) -> D1.5 Rate 5 Adjustment

Sheet D1.6 Rate 6 Adjustment
C2: ='A1.1 Distributor Information'!C3 -> Name of LDC: EPCOR Natural Gas Limited Partnership
C3: ='A1.1 Distributor Information'!C4 -> OEB Application Number: EB-2022-0183 Exhibit A - 2023 IRM Application
C8: Rate 6 Price Cap Adjustment
C11: GDP-IPI | E11: ='D1.1 Rate 1 Adjustment'!E11 -> 0.037
C12: Less Productivity | E12: ='D1.1 Rate 1 Adjustment'!E12 -> 0
C13: Less Stretch Factor | E13: ='D1.1 Rate 1 Adjustment'!E13 -> 0.004
C14: Price Cap Adjustment | E14: =E11-E12-E13 -> 0.033
E16: Current Rate (excl. Bill 32) | F16: ='D1.1 Rate 1 Adjustment'!F16 -> 2020 Rate including previously disallowed ratebase | G16: Price Cap | H16: Adjusted Rates (excl. Bill 32) | I16: Billing Determinants | J16: Revenue | L16: Balanced Rates | M16: Revenue
C17: Monthly Service Charge | E17: ='B1.1 Current Distribution Rates'!E25 -> 64139.69 | G17: =E14 -> 0.033 | H17: =E17*(1+G17) -> 66256.29977 | I17: ='B1.2 Billing Determinants'!E25 -> 1 | J17: =H17*I17*12 -> 795075.5972 | K17: Change | L17: =H17 -> 66256.29977 | M17: =I17*L17*12 -> 795075.5972
C18: Delivery Firm | E18: ='B1.1 Current Distribution Rates'!J25 -> 0 | G18: =E14 -> 0.033 | H18: =F18*(1+G18) -> 0 | I18: ='B1.2 Billing Determinants'!J25 -> 60162513.4 | J18: =H18*I18/100 -> 0 | K18: No Change | M18: =J20-M17-M19 -> 0
C19: Demand Firm | E19: ='B1.1 Current Distribution Rates'!K25 -> 0 | G19: =E14 -> 0.033 | H19: 0 | I19: ='B1.2 Billing Determinants'!K25 -> 2505600 | J19: =H19*I19/100 -> 0 | K19: No Change | M19: =I19*L19/100 -> 0
J20: =SUM(J17:J19) -> 795075.5972 | M20: =SUM(M17:M19) -> 795075.5972
M22: =J20-M20 -> 0
C24: =MID(CELL("filename",A1),FIND("]",CELL("filename",A1))+1,255) -> D1.6 Rate 6 Adjustment

Sheet E1.1 Proposed Dist Rates
C2: ='A1.1 Distributor Information'!C3 -> Name of LDC: EPCOR Natural Gas Limited Partnership
C3: ='A1.1 Distributor Information'!C4 -> OEB Application Number: EB-2022-0183 Exhibit A - 2023 IRM Application
C10: Proposed Distribution Tariff Sheet Rates
C15: Rate Group | E15: Monthly Service Charge (excl. Bill 32) | F15: Delivery First 1,000 m3 | G15: Delivery Over 1,000 m3 | H15: Delivery Next 24,000 m3 | I15: Delivery Over 25,000 m3 | J15: Delivery - Firm | K15: Demand - Firm | L15: Commodity | M15: Delivery - Int - Lower | N15: Delivery - Int - Upper
C16: RATE 1 - General Service Rate - Residential | E16: ='D1.1 Rate 1 Adjustment'!L17 -> 19.5 | F16: ='D1.1 Rate 1 Adjustment'!L18 -> 13.98233362 | G16: ='D1.1 Rate 1 Adjustment'!L19 -> 11.23755819 | L16: ='D1.1 Rate 1 Adjustment'!L20 -> 0.0435
C17: RATE 1 - General Service Rate - Commercial | E17: ='D1.1 Rate 1 Adjustment'!L17 -> 19.5 | F17: ='D1.1 Rate 1 Adjustment'!L18 -> 13.98233362 | G17: ='D1.1 Rate 1 Adjustment'!L19 -> 11.23755819 | L17: ='D1.1 Rate 1 Adjustment'!L20 -> 0.0435
C18: RATE 1 - General Service Rate - Industrial | E18: ='D1.1 Rate 1 Adjustment'!L17 -> 19.5 | F18: ='D1.1 Rate 1 Adjustment'!L18 -> 13.98233362 | G18: ='D1.1 Rate 1 Adjustment'!L19 -> 11.23755819 | L18: ='D1.1 Rate 1 Adjustment'!L20 -> 0.0435
C19: RATE 2 - Seasonal Service - Apr to Oct | E19: ='D1.2 Rate 2 Adjustment'!L17 -> 21.64180452 | F19: ='D1.2 Rate 2 Adjustment'!L18 -> 17.94689923 | H19: ='D1.2 Rate 2 Adjustment'!L19 -> 9.286281901 | I19: ='D1.2 Rate 2 Adjustment'!L20 -> 7.343929946 | L19: ='D1.2 Rate 2 Adjustment'!L24 -> 0.0435
C20: RATE 2 - Seasonal Service - Nov to Mar | E20: ='D1.2 Rate 2 Adjustment'!L17 -> 21.64180452 | F20: ='D1.2 Rate 2 Adjustment'!L21 -> 22.62174543 | H20: ='D1.2 Rate 2 Adjustment'!L22 -> 15.37098345 | I20: ='D1.2 Rate 2 Adjustment'!L23 -> 16.54505135 | L20: ='D1.2 Rate 2 Adjustment'!L24 -> 0.0435
C21: RATE 3 - Special Large Volume Contract Rate | E21: ='D1.3 Rate 3 Adjustment'!L17 -> 216.4180452 | J21: ='D1.3 Rate 3 Adjustment'!L18 -> 3.896715113 | K21: ='D1.3 Rate 3 Adjustment'!L19 -> 31.48601214 | L21: ='D1.3 Rate 3 Adjustment'!L20 -> 0.0435 | M21: ='B1.1 Current Distribution Rates'!M21*(1+'D1.3 Rate 3 Adjustment'!$E$14) -> 8.2407575 | N21: ='B1.1 Current Distribution Rates'!N21*(1+'D1.3 Rate 3 Adjustment'!$E$14) -> 11.3746729
C22: RATE 4 - General Service Peaking - Apr to Dec | E22: ='D1.4 Rate 4 Adjustment'!L17 -> 21.64180452 | F22: ='D1.4 Rate 4 Adjustment'!L18 -> 19.76264663 | G22: ='D1.4 Rate 4 Adjustment'!L19 -> 12.12557845 | L22: ='D1.4 Rate 4 Adjustment'!L22 -> 0.0435
C23: RATE 4 - General Service Peaking - Jan to Mar | E23: ='D1.4 Rate 4 Adjustment'!L17 -> 21.64180452 | F23: ='D1.4 Rate 4 Adjustment'!L20 -> 25.21162018 | G23: ='D1.4 Rate 4 Adjustment'!L21 -> 19.48195243 | L23: ='D1.4 Rate 4 Adjustment'!L22 -> 0.0435
C24: RATE 5 - Interruptible Peaking Contract Rate | E24: ='D1.5 Rate 5 Adjustment'!L17 -> 205.5971429 | J24: ='D1.5 Rate 5 Adjustment'!L18 -> 8.248232748 | K24: 1 | L24: ='D1.5 Rate 5 Adjustment'!L19 -> 0.0435 | M24: ='B1.1 Current Distribution Rates'!M24*(1+'D1.3 Rate 3 Adjustment'!$E$14) -> 6.4708153 | N24: ='B1.1 Current Distribution Rates'!N24*(1+'D1.3 Rate 3 Adjustment'!$E$14) -> 10.0255749
C25: RATE 6 - Integrated Grain Processors Co-Operative Aylmer Ethanol Production Facility | E25: ='D1.6 Rate 6 Adjustment'!L17 -> 66256.29977 | J25: ='D1.6 Rate 6 Adjustment'!L18 -> 0 | K25: ='D1.6 Rate 6 Adjustment'!L19 -> 0 | M25: ='B1.1 Current Distribution Rates'!M25 -> 0 | N25: ='B1.1 Current Distribution Rates'!N25 -> 0
C27: 1 Placeholder rate for average application
C30: =MID(CELL("filename",A1),FIND("]",CELL("filename",A1))+1,255) -> E1.1 Proposed Dist Rates

Sheet E1.2 Billing Determinants
C2: ='A1.1 Distributor Information'!C3 -> Name of LDC: EPCOR Natural Gas Limited Partnership
C3: ='A1.1 Distributor Information'!C4 -> OEB Application Number: EB-2022-0183 Exhibit A - 2023 IRM Application
C10: ='B1.2 Billing Determinants'!C10 -> Billing Determinants - Actuals January 1, 2021 to December 31, 2021
C15: Rate Group | E15: Monthly Service Charge | F15: Delivery First 1,000 m3 | G15: Delivery Over 1,000 m3 | H15: Delivery Next 24,000 m3 | I15: Delivery Over 25,000 m3 | J15: Delivery - Firm | K15: Demand - Firm | L15: Commodity | M15: Delivery - Int - Lower | N15: Delivery - Int - Upper
C16: RATE 1 - General Service Rate - Residential | E16: ='B1.2 Billing Determinants'!E16 -> 8983 | F16: ='B1.2 Billing Determinants'!F16 -> 16936433 | G16: ='B1.2 Billing Determinants'!G16 -> 195144.9 | H16: ='B1.2 Billing Determinants'!H16 -> 0 | I16: ='B1.2 Billing Determinants'!I16 -> 0 | J16: ='B1.2 Billing Determinants'!J16 -> 0 | K16: ='B1.2 Billing Determinants'!K16 -> 0 | L16: ='B1.2 Billing Determinants'!L16 -> 17131577.9 | M16: ='B1.2 Billing Determinants'!M16 -> 0 | N16: ='B1.2 Billing Determinants'!N16 -> 0
C17: RATE 1 - General Service Rate - Commercial | E17: ='B1.2 Billing Determinants'!E17 -> 552 | F17: ='B1.2 Billing Determinants'!F17 -> 2476555 | G17: ='B1.2 Billing Determinants'!G17 -> 2684747.1 | H17: ='B1.2 Billing Determinants'!H17 -> 0 | I17: ='B1.2 Billing Determinants'!I17 -> 0 | J17: ='B1.2 Billing Determinants'!J17 -> 0 | K17: ='B1.2 Billing Determinants'!K17 -> 0 | L17: ='B1.2 Billing Determinants'!L17 -> 4667901.1 | M17: ='B1.2 Billing Determinants'!M17 -> 0 | N17: ='B1.2 Billing Determinants'!N17 -> 0
C18: RATE 1 - General Service Rate - Industrial | E18: ='B1.2 Billing Determinants'!E18 -> 75 | F18: ='B1.2 Billing Determinants'!F18 -> 467397.1 | G18: ='B1.2 Billing Determinants'!G18 -> 1796715.4 | H18: ='B1.2 Billing Determinants'!H18 -> 0 | I18: ='B1.2 Billing Determinants'!I18 -> 0 | J18: ='B1.2 Billing Determinants'!J18 -> 0 | K18: ='B1.2 Billing Determinants'!K18 -> 0 | L18: ='B1.2 Billing Determinants'!L18 -> 2234972.7 | M18: ='B1.2 Billing Determinants'!M18 -> 0 | N18: ='B1.2 Billing Determinants'!N18 -> 0
C19: RATE 2 - Seasonal Service - Apr to Oct | E19: ='B1.2 Billing Determinants'!E19 -> 50 | F19: ='B1.2 Billing Determinants'!F19 -> 73682.1 | G19: ='B1.2 Billing Determinants'!G19 -> 0 | H19: ='B1.2 Billing Determinants'!H19 -> 385915.8 | I19: ='B1.2 Billing Determinants'!I19 -> 42274.5 | J19: ='B1.2 Billing Determinants'!J19 -> 0 | K19: ='B1.2 Billing Determinants'!K19 -> 0 | L19: ='B1.2 Billing Determinants'!L19 -> 501872.4 | M19: ='B1.2 Billing Determinants'!M19 -> 0 | N19: ='B1.2 Billing Determinants'!N19 -> 0
C20: RATE 2 - Seasonal Service - Nov to Mar | E20: ='B1.2 Billing Determinants'!E20 -> 50 | F20: ='B1.2 Billing Determinants'!F20 -> 67400.2 | G20: ='B1.2 Billing Determinants'!G20 -> 0 | H20: ='B1.2 Billing Determinants'!H20 -> 262330.3 | I20: ='B1.2 Billing Determinants'!I20 -> 13532.6 | J20: ='B1.2 Billing Determinants'!J20 -> 0 | K20: ='B1.2 Billing Determinants'!K20 -> 0 | L20: ='B1.2 Billing Determinants'!L20 -> 343263.1 | M20: ='B1.2 Billing Determinants'!M20 -> 0 | N20: ='B1.2 Billing Determinants'!N20 -> 0
C21: RATE 3 - Special Large Volume Contract Rate | E21: ='B1.2 Billing Determinants'!E21 -> 6 | F21: ='B1.2 Billing Determinants'!F21 -> 0 | G21: ='B1.2 Billing Determinants'!G21 -> 0 | H21: ='B1.2 Billing Determinants'!H21 -> 0 | I21: ='B1.2 Billing Determinants'!I21 -> 0 | J21: ='B1.2 Billing Determinants'!J21 -> 1336433.4 | K21: ='B1.2 Billing Determinants'!K21 -> 215467.2 | L21: ='B1.2 Billing Determinants'!L21 -> 998786.5 | M21: ='B1.2 Billing Determinants'!M21 -> 0 | N21: ='B1.2 Billing Determinants'!N21 -> 0
C22: RATE 4 - General Service Peaking - Apr to Dec | E22: ='B1.2 Billing Determinants'!E22 -> 41 | F22: ='B1.2 Billing Determinants'!F22 -> 110285.7 | G22: ='B1.2 Billing Determinants'!G22 -> 1583058.5 | H22: ='B1.2 Billing Determinants'!H22 -> 0 | I22: ='B1.2 Billing Determinants'!I22 -> 0 | J22: ='B1.2 Billing Determinants'!J22 -> 0 | K22: ='B1.2 Billing Determinants'!K22 -> 0 | L22: ='B1.2 Billing Determinants'!L22 -> 1693344.2 | M22: ='B1.2 Billing Determinants'!M22 -> 0 | N22: ='B1.2 Billing Determinants'!N22 -> 0
C23: RATE 4 - General Service Peaking - Jan to Mar | E23: ='B1.2 Billing Determinants'!E23 -> 41 | F23: ='B1.2 Billing Determinants'!F23 -> 20909.5 | G23: ='B1.2 Billing Determinants'!G23 -> 12431.4 | H23: ='B1.2 Billing Determinants'!H23 -> 0 | I23: ='B1.2 Billing Determinants'!I23 -> 0 | J23: ='B1.2 Billing Determinants'!J23 -> 0 | K23: ='B1.2 Billing Determinants'!K23 -> 0 | L23: ='B1.2 Billing Determinants'!L23 -> 33340.9 | M23: ='B1.2 Billing Determinants'!M23 -> 0 | N23: ='B1.2 Billing Determinants'!N23 -> 0
C24: RATE 5 - Interruptible Peaking Contract Rate | E24: ='B1.2 Billing Determinants'!E24 -> 4 | F24: ='B1.2 Billing Determinants'!F24 -> 0 | G24: ='B1.2 Billing Determinants'!G24 -> 0 | H24: ='B1.2 Billing Determinants'!H24 -> 0 | I24: ='B1.2 Billing Determinants'!I24 -> 0 | J24: ='B1.2 Billing Determinants'!J24 -> 776148.5 | K24: ='B1.2 Billing Determinants'!K24 -> 0 | L24: ='B1.2 Billing Determinants'!L24 -> 776148.5 | M24: ='B1.2 Billing Determinants'!M24 -> 0 | N24: ='B1.2 Billing Determinants'!N24 -> 0
C25: RATE 6 - Integrated Grain Processors Co-Operative Aylmer Ethanol Production Facility | E25: ='B1.2 Billing Determinants'!E25 -> 1 | F25: ='B1.2 Billing Determinants'!F25 -> 0 | G25: ='B1.2 Billing Determinants'!G25 -> 0 | H25: ='B1.2 Billing Determinants'!H25 -> 0 | I25: ='B1.2 Billing Determinants'!I25 -> 0 | J25: ='B1.2 Billing Determinants'!J25 -> 60162513.4 | K25: ='B1.2 Billing Determinants'!K25 -> 2505600 | L25: ='B1.2 Billing Determinants'!L25 -> 0 | M25: ='B1.2 Billing Determinants'!M25 -> 0 | N25: ='B1.2 Billing Determinants'!N25 -> 0
E26: =SUM(E16:E19,E21:E22,E24:E25) -> 9712 | F26: =SUM(F16:F25) -> 20152662.6 | G26: 6272097.3 | H26: 648246.1 | I26: 55807.1 | J26: 62275095.3 | K26: 2721067.2 | L26: 28381207.3 | M26: 0 | N26: 0
C30: =MID(CELL("filename",A1),FIND("]",CELL("filename",A1))+1,255) -> E1.2 Billing Determinants

Sheet E1.3 Proposed Rev From Rate
C2: ='A1.1 Distributor Information'!C3 -> Name of LDC: EPCOR Natural Gas Limited Partnership
C3: ='A1.1 Distributor Information'!C4 -> OEB Application Number: EB-2022-0183 Exhibit A - 2023 IRM Application
C10: Proposed Revenue from Rates
C15: Rate Group | E15: Monthly Service Charge | F15: Delivery First 1,000 m3 | G15: Delivery Over 1,000 m3 | H15: Delivery Next 24,000 m3 | I15: Delivery Over 25,000 m3 | J15: Demand - Firm | K15: Delivery - Firm | L15: Commodity | M15: Delivery - Int - Lower | N15: Delivery - Int - Upper | O15: Total
C16: RATE 1 - General Service Rate - Residential | E16: ='E1.1 Proposed Dist Rates '!E16*'E1.2 Billing Determinants'!E16*12 -> 2102022 | F16: ='E1.1 Proposed Dist Rates '!F16*'E1.2 Billing Determinants'!F16/100 -> 2368108.565 | G16: ='E1.1 Proposed Dist Rates '!G16*'E1.2 Billing Determinants'!G16/100 -> 21929.5217 | H16: ='E1.1 Proposed Dist Rates '!H16*'E1.2 Billing Determinants'!H16/100 -> 0 | I16: ='E1.1 Proposed Dist Rates '!I16*'E1.2 Billing Determinants'!I16/100 -> 0 | J16: ='E1.1 Proposed Dist Rates '!J16*'E1.2 Billing Determinants'!J16/100 -> 0 | K16: ='E1.1 Proposed Dist Rates '!K16*'E1.2 Billing Determinants'!K16/100 -> 0 | L16: ='E1.1 Proposed Dist Rates '!L16*'E1.2 Billing Determinants'!L16/100 -> 7452.236386 | M16: ='E1.1 Proposed Dist Rates '!M16*'E1.2 Billing Determinants'!M16/100 -> 0 | N16: ='E1.1 Proposed Dist Rates '!N16*'E1.2 Billing Determinants'!N16/100 -> 0 | O16: =SUM(E16:N16) -> 4499512.323
C17: RATE 1 - General Service Rate - Commercial | E17: ='E1.1 Proposed Dist Rates '!E17*'E1.2 Billing Determinants'!E17*12 -> 129168 | F17: ='E1.1 Proposed Dist Rates '!F17*'E1.2 Billing Determinants'!F17/100 -> 346280.1823 | G17: ='E1.1 Proposed Dist Rates '!G17*'E1.2 Billing Determinants'!G17/100 -> 301700.0177 | H17: ='E1.1 Proposed Dist Rates '!H17*'E1.2 Billing Determinants'!H17/100 -> 0 | I17: ='E1.1 Proposed Dist Rates '!I17*'E1.2 Billing Determinants'!I17/100 -> 0 | J17: ='E1.1 Proposed Dist Rates '!J17*'E1.2 Billing Determinants'!J17/100 -> 0 | K17: ='E1.1 Proposed Dist Rates '!K17*'E1.2 Billing Determinants'!K17/100 -> 0 | L17: ='E1.1 Proposed Dist Rates '!L17*'E1.2 Billing Determinants'!L17/100 -> 2030.536978 | M17: ='E1.1 Proposed Dist Rates '!M17*'E1.2 Billing Determinants'!M17/100 -> 0 | N17: ='E1.1 Proposed Dist Rates '!N17*'E1.2 Billing Determinants'!N17/100 -> 0 | O17: =SUM(E17:N17) -> 779178.7371
C18: RATE 1 - General Service Rate - Industrial | E18: ='E1.1 Proposed Dist Rates '!E18*'E1.2 Billing Determinants'!E18*12 -> 17550 | F18: ='E1.1 Proposed Dist Rates '!F18*'E1.2 Billing Determinants'!F18/100 -> 65353.02184 | G18: ='E1.1 Proposed Dist Rates '!G18*'E1.2 Billing Determinants'!G18/100 -> 201906.9387 | H18: ='E1.1 Proposed Dist Rates '!H18*'E1.2 Billing Determinants'!H18/100 -> 0 | I18: ='E1.1 Proposed Dist Rates '!I18*'E1.2 Billing Determinants'!I18/100 -> 0 | J18: ='E1.1 Proposed Dist Rates '!J18*'E1.2 Billing Determinants'!J18/100 -> 0 | K18: ='E1.1 Proposed Dist Rates '!K18*'E1.2 Billing Determinants'!K18/100 -> 0 | L18: ='E1.1 Proposed Dist Rates '!L18*'E1.2 Billing Determinants'!L18/100 -> 972.2131245 | M18: ='E1.1 Proposed Dist Rates '!M18*'E1.2 Billing Determinants'!M18/100 -> 0 | N18: ='E1.1 Proposed Dist Rates '!N18*'E1.2 Billing Determinants'!N18/100 -> 0 | O18: 285782.1736
C19: RATE 2 - Seasonal Service - Apr to Oct | E19: ='E1.1 Proposed Dist Rates '!E19*'E1.2 Billing Determinants'!E19*7 -> 7574.631582 | F19: ='E1.1 Proposed Dist Rates '!F19*'E1.2 Billing Determinants'!F19/100 -> 13223.65224 | G19: ='E1.1 Proposed Dist Rates '!G19*'E1.2 Billing Determinants'!G19/100 -> 0 | H19: ='E1.1 Proposed Dist Rates '!H19*'E1.2 Billing Determinants'!H19/100 -> 35837.22909 | I19: ='E1.1 Proposed Dist Rates '!I19*'E1.2 Billing Determinants'!I19/100 -> 3104.609665 | J19: ='E1.1 Proposed Dist Rates '!J19*'E1.2 Billing Determinants'!J19/100 -> 0 | K19: ='E1.1 Proposed Dist Rates '!K19*'E1.2 Billing Determinants'!K19/100 -> 0 | L19: ='E1.1 Proposed Dist Rates '!L19*'E1.2 Billing Determinants'!L19/100 -> 218.314494 | M19: ='E1.1 Proposed Dist Rates '!M19*'E1.2 Billing Determinants'!M19/100 -> 0 | N19: ='E1.1 Proposed Dist Rates '!N19*'E1.2 Billing Determinants'!N19/100 -> 0 | O19: 59958.43707
C20: RATE 2 - Seasonal Service - Nov to Mar | E20: ='E1.1 Proposed Dist Rates '!E20*'E1.2 Billing Determinants'!E20*5 -> 5410.45113 | F20: ='E1.1 Proposed Dist Rates '!F20*'E1.2 Billing Determinants'!F20/100 -> 15247.10166 | G20: ='E1.1 Proposed Dist Rates '!G20*'E1.2 Billing Determinants'!G20/100 -> 0 | H20: ='E1.1 Proposed Dist Rates '!H20*'E1.2 Billing Determinants'!H20/100 -> 40322.747 | I20: ='E1.1 Proposed Dist Rates '!I20*'E1.2 Billing Determinants'!I20/100 -> 2238.975619 | J20: ='E1.1 Proposed Dist Rates '!J20*'E1.2 Billing Determinants'!J20/100 -> 0 | K20: ='E1.1 Proposed Dist Rates '!K20*'E1.2 Billing Determinants'!K20/100 -> 0 | L20: ='E1.1 Proposed Dist Rates '!L20*'E1.2 Billing Determinants'!L20/100 -> 149.3194485 | M20: ='E1.1 Proposed Dist Rates '!M20*'E1.2 Billing Determinants'!M20/100 -> 0 | N20: ='E1.1 Proposed Dist Rates '!N20*'E1.2 Billing Determinants'!N20/100 -> 0 | O20: 63368.59486
C21: RATE 3 - Special Large Volume Contract Rate | E21: ='E1.1 Proposed Dist Rates '!E21*'E1.2 Billing Determinants'!E21*12 -> 15582.09925 | F21: ='E1.1 Proposed Dist Rates '!F21*'E1.2 Billing Determinants'!F21/100 -> 0 | G21: ='E1.1 Proposed Dist Rates '!G21*'E1.2 Billing Determinants'!G21/100 -> 0 | H21: ='E1.1 Proposed Dist Rates '!H21*'E1.2 Billing Determinants'!H21/100 -> 0 | I21: ='E1.1 Proposed Dist Rates '!I21*'E1.2 Billing Determinants'!I21/100 -> 0 | J21: ='E1.1 Proposed Dist Rates '!J21*'E1.2 Billing Determinants'!J21/100 -> 52077.00227 | K21: ='E1.1 Proposed Dist Rates '!K21*'E1.2 Billing Determinants'!K21/100 -> 67842.02875 | L21: ='E1.1 Proposed Dist Rates '!L21*'E1.2 Billing Determinants'!L21/100 -> 434.4721275 | M21: ='E1.1 Proposed Dist Rates '!M21*'E1.2 Billing Determinants'!M21/100 -> 0 | N21: ='E1.1 Proposed Dist Rates '!N21*'E1.2 Billing Determinants'!N21/100 -> 0 | O21: 135935.6024
C22: RATE 4 - General Service Peaking - Apr to Dec | E22: ='E1.1 Proposed Dist Rates '!E22*'E1.2 Billing Determinants'!E22*9 -> 7985.825868 | F22: ='E1.1 Proposed Dist Rates '!F22*'E1.2 Billing Determinants'!F22/100 -> 21795.37318 | G22: ='E1.1 Proposed Dist Rates '!G22*'E1.2 Billing Determinants'!G22/100 -> 191955.0003 | H22: ='E1.1 Proposed Dist Rates '!H22*'E1.2 Billing Determinants'!H22/100 -> 0 | I22: ='E1.1 Proposed Dist Rates '!I22*'E1.2 Billing Determinants'!I22/100 -> 0 | J22: ='E1.1 Proposed Dist Rates '!J22*'E1.2 Billing Determinants'!J22/100 -> 0 | K22: ='E1.1 Proposed Dist Rates '!K22*'E1.2 Billing Determinants'!K22/100 -> 0 | L22: ='E1.1 Proposed Dist Rates '!L22*'E1.2 Billing Determinants'!L22/100 -> 736.604727 | M22: ='E1.1 Proposed Dist Rates '!M22*'E1.2 Billing Determinants'!M22/100 -> 0 | N22: ='E1.1 Proposed Dist Rates '!N22*'E1.2 Billing Determinants'!N22/100 -> 0 | O22: 222472.804
C23: RATE 4 - General Service Peaking - Jan to Mar | E23: ='E1.1 Proposed Dist Rates '!E23*'E1.2 Billing Determinants'!E23*3 -> 2661.941956 | F23: ='E1.1 Proposed Dist Rates '!F23*'E1.2 Billing Determinants'!F23/100 -> 5271.623721 | G23: ='E1.1 Proposed Dist Rates '!G23*'E1.2 Billing Determinants'!G23/100 -> 2421.879434 | H23: ='E1.1 Proposed Dist Rates '!H23*'E1.2 Billing Determinants'!H23/100 -> 0 | I23: ='E1.1 Proposed Dist Rates '!I23*'E1.2 Billing Determinants'!I23/100 -> 0 | J23: ='E1.1 Proposed Dist Rates '!J23*'E1.2 Billing Determinants'!J23/100 -> 0 | K23: ='E1.1 Proposed Dist Rates '!K23*'E1.2 Billing Determinants'!K23/100 -> 0 | L23: ='E1.1 Proposed Dist Rates '!L23*'E1.2 Billing Determinants'!L23/100 -> 14.5032915 | M23: ='E1.1 Proposed Dist Rates '!M23*'E1.2 Billing Determinants'!M23/100 -> 0 | N23: ='E1.1 Proposed Dist Rates '!N23*'E1.2 Billing Determinants'!N23/100 -> 0 | O23: 10369.9484
C24: RATE 5 - Interruptible Peaking Contract Rate | E24: ='E1.1 Proposed Dist Rates '!E24*'E1.2 Billing Determinants'!E24*12 -> 9868.662861 | F24: ='E1.1 Proposed Dist Rates '!F24*'E1.2 Billing Determinants'!F24/100 -> 0 | G24: ='E1.1 Proposed Dist Rates '!G24*'E1.2 Billing Determinants'!G24/100 -> 0 | H24: ='E1.1 Proposed Dist Rates '!H24*'E1.2 Billing Determinants'!H24/100 -> 0 | I24: ='E1.1 Proposed Dist Rates '!I24*'E1.2 Billing Determinants'!I24/100 -> 0 | J24: ='E1.1 Proposed Dist Rates '!J24*'E1.2 Billing Determinants'!J24/100 -> 64018.53475 | K24: ='E1.1 Proposed Dist Rates '!K24*'E1.2 Billing Determinants'!K24/100 -> 0 | L24: ='E1.1 Proposed Dist Rates '!L24*'E1.2 Billing Determinants'!L24/100 -> 337.6245975 | M24: ='E1.1 Proposed Dist Rates '!M24*'E1.2 Billing Determinants'!M24/100 -> 0 | N24: ='E1.1 Proposed Dist Rates '!N24*'E1.2 Billing Determinants'!N24/100 -> 0 | O24: 74224.82221
C25: RATE 6 - Integrated Grain Processors Co-Operative Aylmer Ethanol Production Facility | E25: ='E1.1 Proposed Dist Rates '!E25*'E1.2 Billing Determinants'!E25*12 -> 795075.5972 | F25: ='E1.1 Proposed Dist Rates '!F25*'E1.2 Billing Determinants'!F25/100 -> 0 | G25: ='E1.1 Proposed Dist Rates '!G25*'E1.2 Billing Determinants'!G25/100 -> 0 | H25: ='E1.1 Proposed Dist Rates '!H25*'E1.2 Billing Determinants'!H25/100 -> 0 | I25: ='E1.1 Proposed Dist Rates '!I25*'E1.2 Billing Determinants'!I25/100 -> 0 | J25: ='E1.1 Proposed Dist Rates '!J25*'E1.2 Billing Determinants'!J25/100 -> 0 | K25: ='E1.1 Proposed Dist Rates '!K25*'E1.2 Billing Determinants'!K25/100 -> 0 | L25: ='E1.1 Proposed Dist Rates '!L25*'E1.2 Billing Determinants'!L25/100 -> 0 | M25: ='E1.1 Proposed Dist Rates '!M25*'E1.2 Billing Determinants'!M25/100 -> 0 | N25: ='E1.1 Proposed Dist Rates '!N25*'E1.2 Billing Determinants'!N25/100 -> 0 | O25: 795075.5972
E26: =SUM(E16:E25) -> 3092899.21 | F26: =SUM(F16:F25) -> 2835279.52 | G26: 719913.3578 | H26: 76159.97609 | I26: 5343.585283 | J26: 116095.537 | K26: 67842.02875 | L26: 12345.82518 | M26: 0 | N26: 0 | O26: 6925879.04
K28: =13.36/13 -> 1.027692308 | N28: Proposed Revenue | O28: =O26 -> 6925879.04
N29: Current Revenue | O29: ='B1.3 Current Rev From Rates'!O26 -> 6713473.605
N30: Change | O30: =O28-O29 -> 212405.4355
O31: =O30/O29 -> 0.03163867887
C33: =MID(CELL("filename",A1),FIND("]",CELL("filename",A1))+1,255) -> E1.3 Proposed Rev From Rate

Sheet F1.1 REDA
C2: ='A1.1 Distributor Information'!C3 -> Name of LDC: EPCOR Natural Gas Limited Partnership
C3: ='A1.1 Distributor Information'!C4 -> OEB Application Number: EB-2022-0183 Exhibit A - 2023 IRM Application
C10: REDA
C15: REDA Cost Type | D15: Number of Customers to Allocate | F15: Disposition Amount ($) | H15: Disposition Rate ($ / customer / month)
C16: DSM | D16: 9711 | F16: 2129 | H16: =F16/D16/12 -> 0.01826965984
C21: Rate Class | H21: Proposed Rate Rider ($ / customer / month)
C22: Rates 1 - 5 | H22: =ROUND(H16+H17,2) -> 0.02
C23: Rate 6
C28: =MID(CELL("filename",A1),FIND("]",CELL("filename",A1))+1,255) -> F1.1 REDA

Sheet F1.2 PGTVA
C2: ='A1.1 Distributor Information'!C3 -> Name of LDC: EPCOR Natural Gas Limited Partnership
C3: ='A1.1 Distributor Information'!C4 -> OEB Application Number: EB-2022-0183 Exhibit A - 2023 IRM Application
C10: PGTVA Rates 1 - 5
C15: Volume (m3) | E15: Disposition Amount ($) | G15: Proposed Rate Rider (cents / m3)
C16: =SUM('E1.2 Billing Determinants'!F16:J24) -> 29241395 | E16: 127352 | G16: =E16/C16*100 -> 0.4355195776
C21: =MID(CELL("filename",A1),FIND("]",CELL("filename",A1))+1,255) -> F1.2 PGTVA

Sheet F1.3 ADVADA (hidden)
D2: ='A1.1 Distributor Information'!C3 -> Name of LDC: EPCOR Natural Gas Limited Partnership
D3: ='A1.1 Distributor Information'!C4 -> OEB Application Number: EB-2022-0183 Exhibit A - 2023 IRM Application
C10: ADVADA
C15: Rate Class | D15: Number of Customers | E15: Volume (m3) | F15: Disposition Amount ($) | G15: Rate Rider Unit | H15: Proposed Rate Rider
C16: Rate 1 - 5 | D16: ='E1.2 Billing Determinants'!E26-'E1.2 Billing Determinants'!E25 -> 9711 | E16: =SUM('E1.2 Billing Determinants'!F16:J24) -> 29241395 | G16: cents / m3 | H16: =F16/E16*100 -> 0
C17: Rate 6 | D17: ='E1.2 Billing Determinants'!E25 -> 1 | G17: $ / customer / month | H17: =F17/D17/12 -> 0
C21: =MID(CELL("filename",A1),FIND("]",CELL("filename",A1))+1,255) -> F1.3 ADVADA

Sheet F1.4 LDMDA (hidden)
D2: ='A1.1 Distributor Information'!C3 -> Name of LDC: EPCOR Natural Gas Limited Partnership
D3: ='A1.1 Distributor Information'!C4 -> OEB Application Number: EB-2022-0183 Exhibit A - 2023 IRM Application
C10: LDMDA
C15: Rate Class | D15: Number of Customers | E15: Volume (m3) | F15: Disposition Amount ($) | G15: Rate Rider Unit | H15: Proposed Rate Rider
C21: =MID(CELL("filename",A1),FIND("]",CELL("filename",A1))+1,255) -> F1.4 LDMDA

Sheet F1.5 SICDA (hidden)
D2: ='A1.1 Distributor Information'!C3 -> Name of LDC: EPCOR Natural Gas Limited Partnership
D3: ='A1.1 Distributor Information'!C4 -> OEB Application Number: EB-2022-0183 Exhibit A - 2023 IRM Application
C10: SICDA
C15: Rate Class | D15: Number of Customers | E15: Volume (m3) | F15: Disposition Amount ($) | G15: Rate Rider Unit | H15: Proposed Rate Rider
C22: =MID(CELL("filename",A1),FIND("]",CELL("filename",A1))+1,255) -> F1.5 SICDA

Sheet F1.4 Proposed Rate Riders
C2: ='A1.1 Distributor Information'!C3 -> Name of LDC: EPCOR Natural Gas Limited Partnership
C3: ='A1.1 Distributor Information'!C4 -> OEB Application Number: EB-2022-0183 Exhibit A - 2023 IRM Application
C7: Proposed Rate Riders
C9: Description | E9: REDA | F9: PGTVA | G9: ADVADA Rate 1 - 5 | H9: ADVADA Rate 6 | I9: LDMDA | J9: SICDA
E10: Effective for 12 months | F10: Effective for 12 months | G10: Effective for 12 months | H10: Effective for 12 months | I10: Effective for 12 months | J10: Effective for 12 months
E11: $ per Customer Per Month | F11: cents / m3 | G11: cents / m3 | H11: $ per Customer Per Month | I11: $ per Customer Per Month | J11: cents / m3
C12: Rate Group
C13: RATE 1 - General Service Rate - Residential | E13: ='F1.1 REDA'!$H$22 -> 0.02 | F13: ='F1.2 PGTVA'!$G$16 -> 0.4355195776 | G13: ='F1.3 ADVADA'!$H$16 -> 0 | I13: ='F1.4 LDMDA'!$H$16 -> 0 | J13: ='F1.5 SICDA'!$H$16 -> 0
C14: RATE 1 - General Service Rate - Commercial | E14: ='F1.1 REDA'!$H$22 -> 0.02 | F14: ='F1.2 PGTVA'!$G$16 -> 0.4355195776 | G14: ='F1.3 ADVADA'!$H$16 -> 0 | I14: ='F1.4 LDMDA'!$H$16 -> 0 | J14: ='F1.5 SICDA'!$H$16 -> 0
C15: RATE 1 - General Service Rate - Industrial | E15: ='F1.1 REDA'!$H$22 -> 0.02 | F15: ='F1.2 PGTVA'!$G$16 -> 0.4355195776 | G15: ='F1.3 ADVADA'!$H$16 -> 0 | I15: ='F1.4 LDMDA'!$H$16 -> 0 | J15: ='F1.5 SICDA'!$H$16 -> 0
C16: RATE 2 - Seasonal Service - Apr to Oct | E16: ='F1.1 REDA'!$H$22 -> 0.02 | F16: ='F1.2 PGTVA'!$G$16 -> 0.4355195776 | G16: ='F1.3 ADVADA'!$H$16 -> 0 | J16: ='F1.5 SICDA'!H17 -> 0
C17: RATE 2 - Seasonal Service - Nov to Mar | E17: ='F1.1 REDA'!$H$22 -> 0.02 | F17: ='F1.2 PGTVA'!$G$16 -> 0.4355195776 | G17: ='F1.3 ADVADA'!$H$16 -> 0 | J17: =J16 -> 0
C18: RATE 3 - Special Large Volume Contract Rate | E18: ='F1.1 REDA'!$H$22 -> 0.02 | F18: ='F1.2 PGTVA'!$G$16 -> 0.4355195776 | G18: ='F1.3 ADVADA'!$H$16 -> 0 | J18: ='F1.5 SICDA'!H18 -> 0
C19: RATE 4 - General Service Peaking - Apr to Dec | E19: ='F1.1 REDA'!$H$22 -> 0.02 | F19: ='F1.2 PGTVA'!$G$16 -> 0.4355195776 | G19: ='F1.3 ADVADA'!$H$16 -> 0 | J19: ='F1.5 SICDA'!H19 -> 0
C20: RATE 4 - General Service Peaking - Jan to Mar | E20: ='F1.1 REDA'!$H$22 -> 0.02 | F20: ='F1.2 PGTVA'!$G$16 -> 0.4355195776 | G20: ='F1.3 ADVADA'!$H$16 -> 0 | J20: =J19 -> 0
C21: RATE 5 - Interruptible Peaking Contract Rate | E21: ='F1.1 REDA'!$H$22 -> 0.02 | F21: ='F1.2 PGTVA'!$G$16 -> 0.4355195776 | G21: ='F1.3 ADVADA'!$H$16 -> 0 | J21: ='F1.5 SICDA'!H20 -> 0
C22: RATE 6 - Integrated Grain Processors Co-Operative Aylmer Ethanol Production Facility | H22: ='F1.3 ADVADA'!H17 -> 0
C28: =MID(CELL("filename",A15),FIND("]",CELL("filename",A15))+1,255) -> F1.4 Proposed Rate Riders

Sheet G1.1 Rate 1 Bill Impact
C2: ='A1.1 Distributor Information'!C3 -> Name of LDC: EPCOR Natural Gas Limited Partnership
C3: ='A1.1 Distributor Information'!C4 -> OEB Application Number: EB-2022-0183 Exhibit A - 2023 IRM Application
C7: Rate 1 Delivery Bill Impact
C10: ='For Bill Impact(HideBeforeFile)'!C6 -> RATE 1 - General Service Rate - Residential | F10: Current | H10: Proposed | J10: Bill Determinant | O10: Look-up
C14: =INDEX('For Bill Impact(HideBeforeFile)'!$D$48:$S$57,MATCH(C10,'For Bill Impact(HideBeforeFile)'!$C$62:$C$71,0),MATCH($O14,'For Bill Impact(HideBeforeFile)'!$D$61:$S$61,0)) -> Commodity | D14: =INDEX('For Bill Impact(HideBeforeFile)'!$D$62:$S$71,MATCH(C10,'For Bill Impact(HideBeforeFile)'!$C$62:$C$71,0),MATCH($O14,'For Bill Impact(HideBeforeFile)'!$D$61:$S$61,0)) -> cents / m3 | F14: =INDEX('For Bill Impact(HideBeforeFile)'!$D$6:$S$15,MATCH(C10,'For Bill Impact(HideBeforeFile)'!$C$62:$C$71,0),MATCH($O14,'For Bill Impact(HideBeforeFile)'!$D$61:$S$61,0)) -> 30.2062 | H14: =INDEX('For Bill Impact(HideBeforeFile)'!$D$20:$S$29,MATCH(C10,'For Bill Impact(HideBeforeFile)'!$C$62:$C$71,0),MATCH($O14,'For Bill Impact(HideBeforeFile)'!$D$61:$S$61,0)) -> 30.2062 | J14: =INDEX('For Bill Impact(HideBeforeFile)'!$D$34:$S$43,MATCH(C10,'For Bill Impact(HideBeforeFile)'!$C$62:$C$71,0),MATCH($O14,'For Bill Impact(HideBeforeFile)'!$D$61:$S$61,0)) -> 1907.110976 | O14: ='For Bill Impact(HideBeforeFile)'!$D$5 -> Commodity
C16: =INDEX('For Bill Impact(HideBeforeFile)'!$D$48:$S$57,MATCH(C10,'For Bill Impact(HideBeforeFile)'!$C$62:$C$71,0),MATCH($O16,'For Bill Impact(HideBeforeFile)'!$D$61:$S$61,0)) -> Customer (excl. Bill 32) | D16: =INDEX('For Bill Impact(HideBeforeFile)'!$D$62:$S$71,MATCH(C10,'For Bill Impact(HideBeforeFile)'!$C$62:$C$71,0),MATCH($O16,'For Bill Impact(HideBeforeFile)'!$D$61:$S$61,0)) -> $ / month | F16: =INDEX('For Bill Impact(HideBeforeFile)'!$D$6:$S$15,MATCH(C10,'For Bill Impact(HideBeforeFile)'!$C$62:$C$71,0),MATCH($O16,'For Bill Impact(HideBeforeFile)'!$D$61:$S$61,0)) -> 18.5 | H16: =INDEX('For Bill Impact(HideBeforeFile)'!$D$20:$S$29,MATCH(C10,'For Bill Impact(HideBeforeFile)'!$C$62:$C$71,0),MATCH($O16,'For Bill Impact(HideBeforeFile)'!$D$61:$S$61,0)) -> 19.5 | J16: =INDEX('For Bill Impact(HideBeforeFile)'!$D$34:$S$43,MATCH(C10,'For Bill Impact(HideBeforeFile)'!$C$62:$C$71,0),MATCH($O16,'For Bill Impact(HideBeforeFile)'!$D$61:$S$61,0)) -> 12 | O16: ='For Bill Impact(HideBeforeFile)'!$O$5 -> Dist. Customer Rate
C17: =INDEX('For Bill Impact(HideBeforeFile)'!$D$48:$S$57,MATCH(C10,'For Bill Impact(HideBeforeFile)'!$C$62:$C$71,0),MATCH($O17,'For Bill Impact(HideBeforeFile)'!$D$61:$S$61,0)) -> Block 1 (First 1,000 m3 per month) | D17: =INDEX('For Bill Impact(HideBeforeFile)'!$D$62:$S$71,MATCH(C10,'For Bill Impact(HideBeforeFile)'!$C$62:$C$71,0),MATCH($O17,'For Bill Impact(HideBeforeFile)'!$D$61:$S$61,0)) -> cents / m3 | F17: =INDEX('For Bill Impact(HideBeforeFile)'!$D$6:$S$15,MATCH(C10,'For Bill Impact(HideBeforeFile)'!$C$62:$C$71,0),MATCH($O17,'For Bill Impact(HideBeforeFile)'!$D$61:$S$61,0)) -> 13.7196 | H17: =INDEX('For Bill Impact(HideBeforeFile)'!$D$20:$S$29,MATCH(C10,'For Bill Impact(HideBeforeFile)'!$C$62:$C$71,0),MATCH($O17,'For Bill Impact(HideBeforeFile)'!$D$61:$S$61,0)) -> 13.98233362 | J17: =INDEX('For Bill Impact(HideBeforeFile)'!$D$34:$S$43,MATCH(C10,'For Bill Impact(HideBeforeFile)'!$C$62:$C$71,0),MATCH($O17,'For Bill Impact(HideBeforeFile)'!$D$61:$S$61,0)) -> 1885.387176 | O17: ='For Bill Impact(HideBeforeFile)'!$P$5 -> Dist. Vol. Rate Tier 1
C18: =INDEX('For Bill Impact(HideBeforeFile)'!$D$48:$S$57,MATCH(C10,'For Bill Impact(HideBeforeFile)'!$C$62:$C$71,0),MATCH($O18,'For Bill Impact(HideBeforeFile)'!$D$61:$S$61,0)) -> Block 2 (Over 1,000 m3 per month) | D18: =INDEX('For Bill Impact(HideBeforeFile)'!$D$62:$S$71,MATCH(C10,'For Bill Impact(HideBeforeFile)'!$C$62:$C$71,0),MATCH($O18,'For Bill Impact(HideBeforeFile)'!$D$61:$S$61,0)) -> cents / m3 | F18: =INDEX('For Bill Impact(HideBeforeFile)'!$D$6:$S$15,MATCH(C10,'For Bill Impact(HideBeforeFile)'!$C$62:$C$71,0),MATCH($O18,'For Bill Impact(HideBeforeFile)'!$D$61:$S$61,0)) -> 11.0264 | H18: =INDEX('For Bill Impact(HideBeforeFile)'!$D$20:$S$29,MATCH(C10,'For Bill Impact(HideBeforeFile)'!$C$62:$C$71,0),MATCH($O18,'For Bill Impact(HideBeforeFile)'!$D$61:$S$61,0)) -> 11.23755819 | J18: =INDEX('For Bill Impact(HideBeforeFile)'!$D$34:$S$43,MATCH(C10,'For Bill Impact(HideBeforeFile)'!$C$62:$C$71,0),MATCH($O18,'For Bill Impact(HideBeforeFile)'!$D$61:$S$61,0)) -> 21.72380051 | O18: ='For Bill Impact(HideBeforeFile)'!$Q$5 -> Dist. Vol. Rate Tier 2
C19: =INDEX('For Bill Impact(HideBeforeFile)'!$D$48:$S$57,MATCH(C10,'For Bill Impact(HideBeforeFile)'!$C$62:$C$71,0),MATCH($O19,'For Bill Impact(HideBeforeFile)'!$D$61:$S$61,0)) ->  | D19: =INDEX('For Bill Impact(HideBeforeFile)'!$D$62:$S$71,MATCH(C10,'For Bill Impact(HideBeforeFile)'!$C$62:$C$71,0),MATCH($O19,'For Bill Impact(HideBeforeFile)'!$D$61:$S$61,0)) ->  | F19: =INDEX('For Bill Impact(HideBeforeFile)'!$D$6:$S$15,MATCH(C10,'For Bill Impact(HideBeforeFile)'!$C$62:$C$71,0),MATCH($O19,'For Bill Impact(HideBeforeFile)'!$D$61:$S$61,0)) ->  | H19: =INDEX('For Bill Impact(HideBeforeFile)'!$D$20:$S$29,MATCH(C10,'For Bill Impact(HideBeforeFile)'!$C$62:$C$71,0),MATCH($O19,'For Bill Impact(HideBeforeFile)'!$D$61:$S$61,0)) ->  | J19: =INDEX('For Bill Impact(HideBeforeFile)'!$D$34:$S$43,MATCH(C10,'For Bill Impact(HideBeforeFile)'!$C$62:$C$71,0),MATCH($O19,'For Bill Impact(HideBeforeFile)'!$D$61:$S$61,0)) ->  | O19: ='For Bill Impact(HideBeforeFile)'!$R$5 -> Dist. Vol. Rate Tier 3
C20: =INDEX('For Bill Impact(HideBeforeFile)'!$D$48:$S$57,MATCH(C10,'For Bill Impact(HideBeforeFile)'!$C$62:$C$71,0),MATCH($O20,'For Bill Impact(HideBeforeFile)'!$D$61:$S$61,0)) ->  | D20: =INDEX('For Bill Impact(HideBeforeFile)'!$D$62:$S$71,MATCH(C10,'For Bill Impact(HideBeforeFile)'!$C$62:$C$71,0),MATCH($O20,'For Bill Impact(HideBeforeFile)'!$D$61:$S$61,0)) ->  | F20: =INDEX('For Bill Impact(HideBeforeFile)'!$D$6:$S$15,MATCH(C10,'For Bill Impact(HideBeforeFile)'!$C$62:$C$71,0),MATCH($O20,'For Bill Impact(HideBeforeFile)'!$D$61:$S$61,0)) ->  | H20: =INDEX('For Bill Impact(HideBeforeFile)'!$D$20:$S$29,MATCH(C10,'For Bill Impact(HideBeforeFile)'!$C$62:$C$71,0),MATCH($O20,'For Bill Impact(HideBeforeFile)'!$D$61:$S$61,0)) ->  | J20: =INDEX('For Bill Impact(HideBeforeFile)'!$D$34:$S$43,MATCH(C10,'For Bill Impact(HideBeforeFile)'!$C$62:$C$71,0),MATCH($O20,'For Bill Impact(HideBeforeFile)'!$D$61:$S$61,0)) ->  | O20: ='For Bill Impact(HideBeforeFile)'!$S$5 -> Dist. Capacity Rate
C21: =INDEX('For Bill Impact(HideBeforeFile)'!$D$48:$S$57,MATCH(C10,'For Bill Impact(HideBeforeFile)'!$C$62:$C$71,0),MATCH($O21,'For Bill Impact(HideBeforeFile)'!$D$61:$S$61,0)) -> System Gas Charge | D21: =INDEX('For Bill Impact(HideBeforeFile)'!$D$62:$S$71,MATCH(C10,'For Bill Impact(HideBeforeFile)'!$C$62:$C$71,0),MATCH($O21,'For Bill Impact(HideBeforeFile)'!$D$61:$S$61,0)) -> cents / m3 | F21: =INDEX('For Bill Impact(HideBeforeFile)'!$D$6:$S$15,MATCH(C10,'For Bill Impact(HideBeforeFile)'!$C$62:$C$71,0),MATCH($O21,'For Bill Impact(HideBeforeFile)'!$D$61:$S$61,0)) -> 0.0435 | H21: =INDEX('For Bill Impact(HideBeforeFile)'!$D$20:$S$29,MATCH(C10,'For Bill Impact(HideBeforeFile)'!$C$62:$C$71,0),MATCH($O21,'For Bill Impact(HideBeforeFile)'!$D$61:$S$61,0)) -> 0.0435 | J21: =INDEX('For Bill Impact(HideBeforeFile)'!$D$34:$S$43,MATCH(C10,'For Bill Impact(HideBeforeFile)'!$C$62:$C$71,0),MATCH($O21,'For Bill Impact(HideBeforeFile)'!$D$61:$S$61,0)) -> 1907.110976 | O21: ='For Bill Impact(HideBeforeFile)'!$E$5 -> System Gas
C23: =INDEX('For Bill Impact(HideBeforeFile)'!$D$48:$S$57,MATCH(C10,'For Bill Impact(HideBeforeFile)'!$C$62:$C$71,0),MATCH($O23,'For Bill Impact(HideBeforeFile)'!$D$61:$S$61,0)) -> REDA | D23: =INDEX('For Bill Impact(HideBeforeFile)'!$D$62:$S$71,MATCH(C10,'For Bill Impact(HideBeforeFile)'!$C$62:$C$71,0),MATCH($O23,'For Bill Impact(HideBeforeFile)'!$D$61:$S$61,0)) -> $ / month | F23: =INDEX('For Bill Impact(HideBeforeFile)'!$D$6:$S$15,MATCH(C10,'For Bill Impact(HideBeforeFile)'!$C$62:$C$71,0),MATCH($O23,'For Bill Impact(HideBeforeFile)'!$D$61:$S$61,0)) -> 0.33 | H23: =INDEX('For Bill Impact(HideBeforeFile)'!$D$20:$S$29,MATCH(C10,'For Bill Impact(HideBeforeFile)'!$C$62:$C$71,0),MATCH($O23,'For Bill Impact(HideBeforeFile)'!$D$61:$S$61,0)) -> 0.02 | J23: =INDEX('For Bill Impact(HideBeforeFile)'!$D$34:$S$43,MATCH(C10,'For Bill Impact(HideBeforeFile)'!$C$62:$C$71,0),MATCH($O23,'For Bill Impact(HideBeforeFile)'!$D$61:$S$61,0)) -> 12 | O23: ='For Bill Impact(HideBeforeFile)'!$F$5 -> REDA
C24: =INDEX('For Bill Impact(HideBeforeFile)'!$D$48:$S$57,MATCH(C10,'For Bill Impact(HideBeforeFile)'!$C$62:$C$71,0),MATCH($O24,'For Bill Impact(HideBeforeFile)'!$D$61:$S$61,0)) -> PGTVA | D24: =INDEX('For Bill Impact(HideBeforeFile)'!$D$62:$S$71,MATCH(C10,'For Bill Impact(HideBeforeFile)'!$C$62:$C$71,0),MATCH($O24,'For Bill Impact(HideBeforeFile)'!$D$61:$S$61,0)) -> cents / m3 | F24: =INDEX('For Bill Impact(HideBeforeFile)'!$D$6:$S$15,MATCH(C10,'For Bill Impact(HideBeforeFile)'!$C$62:$C$71,0),MATCH($O24,'For Bill Impact(HideBeforeFile)'!$D$61:$S$61,0)) -> 0.3195 | H24: =INDEX('For Bill Impact(HideBeforeFile)'!$D$20:$S$29,MATCH(C10,'For Bill Impact(HideBeforeFile)'!$C$62:$C$71,0),MATCH($O24,'For Bill Impact(HideBeforeFile)'!$D$61:$S$61,0)) -> 0.4355195776 | J24: =INDEX('For Bill Impact(HideBeforeFile)'!$D$34:$S$43,MATCH(C10,'For Bill Impact(HideBeforeFile)'!$C$62:$C$71,0),MATCH($O24,'For Bill Impact(HideBeforeFile)'!$D$61:$S$61,0)) -> 1907.110976 | O24: ='For Bill Impact(HideBeforeFile)'!$G$5 -> PGTVA
C25: =INDEX('For Bill Impact(HideBeforeFile)'!$D$48:$S$57,MATCH(C10,'For Bill Impact(HideBeforeFile)'!$C$62:$C$71,0),MATCH($O25,'For Bill Impact(HideBeforeFile)'!$D$61:$S$61,0)) -> ADVADA | D25: =INDEX('For Bill Impact(HideBeforeFile)'!$D$62:$S$71,MATCH(C10,'For Bill Impact(HideBeforeFile)'!$C$62:$C$71,0),MATCH($O25,'For Bill Impact(HideBeforeFile)'!$D$61:$S$61,0)) -> cents / m3 | F25: =INDEX('For Bill Impact(HideBeforeFile)'!$D$6:$S$15,MATCH(C10,'For Bill Impact(HideBeforeFile)'!$C$62:$C$71,0),MATCH($O25,'For Bill Impact(HideBeforeFile)'!$D$61:$S$61,0)) -> 0 | H25: =INDEX('For Bill Impact(HideBeforeFile)'!$D$20:$S$29,MATCH(C10,'For Bill Impact(HideBeforeFile)'!$C$62:$C$71,0),MATCH($O25,'For Bill Impact(HideBeforeFile)'!$D$61:$S$61,0)) -> 0 | J25: =INDEX('For Bill Impact(HideBeforeFile)'!$D$34:$S$43,MATCH(C10,'For Bill Impact(HideBeforeFile)'!$C$62:$C$71,0),MATCH($O25,'For Bill Impact(HideBeforeFile)'!$D$61:$S$61,0)) -> 1907.110976 | O25: ='For Bill Impact(HideBeforeFile)'!$H$5 -> ADVADA
C26: =INDEX('For Bill Impact(HideBeforeFile)'!$D$48:$S$57,MATCH(C10,'For Bill Impact(HideBeforeFile)'!$C$62:$C$71,0),MATCH($O26,'For Bill Impact(HideBeforeFile)'!$D$61:$S$61,0)) -> LDMDA | D26: =INDEX('For Bill Impact(HideBeforeFile)'!$D$62:$S$71,MATCH(C10,'For Bill Impact(HideBeforeFile)'!$C$62:$C$71,0),MATCH($O26,'For Bill Impact(HideBeforeFile)'!$D$61:$S$61,0)) -> $ / month | F26: =INDEX('For Bill Impact(HideBeforeFile)'!$D$6:$S$15,MATCH(C10,'For Bill Impact(HideBeforeFile)'!$C$62:$C$71,0),MATCH($O26,'For Bill Impact(HideBeforeFile)'!$D$61:$S$61,0)) -> 1.35 | H26: =INDEX('For Bill Impact(HideBeforeFile)'!$D$20:$S$29,MATCH(C10,'For Bill Impact(HideBeforeFile)'!$C$62:$C$71,0),MATCH($O26,'For Bill Impact(HideBeforeFile)'!$D$61:$S$61,0)) -> 0 | J26: =INDEX('For Bill Impact(HideBeforeFile)'!$D$34:$S$43,MATCH(C10,'For Bill Impact(HideBeforeFile)'!$C$62:$C$71,0),MATCH($O26,'For Bill Impact(HideBeforeFile)'!$D$61:$S$61,0)) -> 12 | O26: LDMDA
C27: =INDEX('For Bill Impact(HideBeforeFile)'!$D$48:$S$57,MATCH(C10,'For Bill Impact(HideBeforeFile)'!$C$62:$C$71,0),MATCH($O27,'For Bill Impact(HideBeforeFile)'!$D$61:$S$61,0)) -> SICDA | D27: =INDEX('For Bill Impact(HideBeforeFile)'!$D$62:$S$71,MATCH(C10,'For Bill Impact(HideBeforeFile)'!$C$62:$C$71,0),MATCH($O27,'For Bill Impact(HideBeforeFile)'!$D$61:$S$61,0)) -> cents / m3 | F27: =INDEX('For Bill Impact(HideBeforeFile)'!$D$6:$S$15,MATCH(C10,'For Bill Impact(HideBeforeFile)'!$C$62:$C$71,0),MATCH($O27,'For Bill Impact(HideBeforeFile)'!$D$61:$S$61,0)) -> 0.2683 | H27: =INDEX('For Bill Impact(HideBeforeFile)'!$D$20:$S$29,MATCH(C10,'For Bill Impact(HideBeforeFile)'!$C$62:$C$71,0),MATCH($O27,'For Bill Impact(HideBeforeFile)'!$D$61:$S$61,0)) -> 0 | J27: =INDEX('For Bill Impact(HideBeforeFile)'!$D$34:$S$43,MATCH(C10,'For Bill Impact(HideBeforeFile)'!$C$62:$C$71,0),MATCH($O27,'For Bill Impact(HideBeforeFile)'!$D$61:$S$61,0)) -> 1907.110976 | O27: SICDA
C28: =INDEX('For Bill Impact(HideBeforeFile)'!$D$48:$S$57,MATCH(C10,'For Bill Impact(HideBeforeFile)'!$C$62:$C$71,0),MATCH($O28,'For Bill Impact(HideBeforeFile)'!$D$61:$S$61,0)) -> FCCVA | D28: =INDEX('For Bill Impact(HideBeforeFile)'!$D$62:$S$71,MATCH(C10,'For Bill Impact(HideBeforeFile)'!$C$62:$C$71,0),MATCH($O28,'For Bill Impact(HideBeforeFile)'!$D$61:$S$61,0)) -> $ / month | F28: =INDEX('For Bill Impact(HideBeforeFile)'!$D$6:$S$15,MATCH(C10,'For Bill Impact(HideBeforeFile)'!$C$62:$C$71,0),MATCH($O28,'For Bill Impact(HideBeforeFile)'!$D$61:$S$61,0)) -> 0.03 | H28: =INDEX('For Bill Impact(HideBeforeFile)'!$D$20:$S$29,MATCH(C10,'For Bill Impact(HideBeforeFile)'!$C$62:$C$71,0),MATCH($O28,'For Bill Impact(HideBeforeFile)'!$D$61:$S$61,0)) -> 0.03 | J28: =INDEX('For Bill Impact(HideBeforeFile)'!$D$34:$S$43,MATCH(C10,'For Bill Impact(HideBeforeFile)'!$C$62:$C$71,0),MATCH($O28,'For Bill Impact(HideBeforeFile)'!$D$61:$S$61,0)) -> 12 | O28: FCCVA
C29: =INDEX('For Bill Impact(HideBeforeFile)'!$D$48:$S$57,MATCH(C10,'For Bill Impact(HideBeforeFile)'!$C$62:$C$71,0),MATCH($O29,'For Bill Impact(HideBeforeFile)'!$D$61:$S$61,0)) -> GGEADA | D29: =INDEX('For Bill Impact(HideBeforeFile)'!$D$62:$S$71,MATCH(C10,'For Bill Impact(HideBeforeFile)'!$C$62:$C$71,0),MATCH($O29,'For Bill Impact(HideBeforeFile)'!$D$61:$S$61,0)) -> $ / month | F29: =INDEX('For Bill Impact(HideBeforeFile)'!$D$6:$S$15,MATCH(C10,'For Bill Impact(HideBeforeFile)'!$C$62:$C$71,0),MATCH($O29,'For Bill Impact(HideBeforeFile)'!$D$61:$S$61,0)) -> 0.03 | H29: =INDEX('For Bill Impact(HideBeforeFile)'!$D$20:$S$29,MATCH(C10,'For Bill Impact(HideBeforeFile)'!$C$62:$C$71,0),MATCH($O29,'For Bill Impact(HideBeforeFile)'!$D$61:$S$61,0)) -> 0.03 | J29: =INDEX('For Bill Impact(HideBeforeFile)'!$D$34:$S$43,MATCH(C10,'For Bill Impact(HideBeforeFile)'!$C$62:$C$71,0),MATCH($O29,'For Bill Impact(HideBeforeFile)'!$D$61:$S$61,0)) -> 12 | O29: GGEADA
C31: =INDEX('For Bill Impact(HideBeforeFile)'!$D$48:$S$57,MATCH(C10,'For Bill Impact(HideBeforeFile)'!$C$62:$C$71,0),MATCH($O31,'For Bill Impact(HideBeforeFile)'!$D$61:$S$61,0)) -> Federal Carbon | D31: =INDEX('For Bill Impact(HideBeforeFile)'!$D$62:$S$71,MATCH(C10,'For Bill Impact(HideBeforeFile)'!$C$62:$C$71,0),MATCH($O31,'For Bill Impact(HideBeforeFile)'!$D$61:$S$61,0)) -> cents / m3 | F31: =INDEX('For Bill Impact(HideBeforeFile)'!$D$6:$S$15,MATCH(C10,'For Bill Impact(HideBeforeFile)'!$C$62:$C$71,0),MATCH($O31,'For Bill Impact(HideBeforeFile)'!$D$61:$S$61,0)) -> 9.79 | H31: =INDEX('For Bill Impact(HideBeforeFile)'!$D$20:$S$29,MATCH(C10,'For Bill Impact(HideBeforeFile)'!$C$62:$C$71,0),MATCH($O31,'For Bill Impact(HideBeforeFile)'!$D$61:$S$61,0)) -> 9.79 | J31: =INDEX('For Bill Impact(HideBeforeFile)'!$D$34:$S$43,MATCH(C10,'For Bill Impact(HideBeforeFile)'!$C$62:$C$71,0),MATCH($O31,'For Bill Impact(HideBeforeFile)'!$D$61:$S$61,0)) -> 1907.110976 | O31: ='For Bill Impact(HideBeforeFile)'!$M$5 -> Federal Carbon
C32: =INDEX('For Bill Impact(HideBeforeFile)'!$D$48:$S$57,MATCH(C10,'For Bill Impact(HideBeforeFile)'!$C$62:$C$71,0),MATCH($O32,'For Bill Impact(HideBeforeFile)'!$D$61:$S$61,0)) -> Facility Carbon | D32: =INDEX('For Bill Impact(HideBeforeFile)'!$D$62:$S$71,MATCH(C10,'For Bill Impact(HideBeforeFile)'!$C$62:$C$71,0),MATCH($O32,'For Bill Impact(HideBeforeFile)'!$D$61:$S$61,0)) -> cents / m3 | F32: =INDEX('For Bill Impact(HideBeforeFile)'!$D$6:$S$15,MATCH(C10,'For Bill Impact(HideBeforeFile)'!$C$62:$C$71,0),MATCH($O32,'For Bill Impact(HideBeforeFile)'!$D$61:$S$61,0)) -> 0.0034 | H32: =INDEX('For Bill Impact(HideBeforeFile)'!$D$20:$S$29,MATCH(C10,'For Bill Impact(HideBeforeFile)'!$C$62:$C$71,0),MATCH($O32,'For Bill Impact(HideBeforeFile)'!$D$61:$S$61,0)) -> 0.0034 | J32: =INDEX('For Bill Impact(HideBeforeFile)'!$D$34:$S$43,MATCH(C10,'For Bill Impact(HideBeforeFile)'!$C$62:$C$71,0),MATCH($O32,'For Bill Impact(HideBeforeFile)'!$D$61:$S$61,0)) -> 1907.110976 | O32: ='For Bill Impact(HideBeforeFile)'!$N$5 -> Facility Carbon
C35: Commodity | F35: Current | H35: Proposed | J35: Change $ | L35: Change %
F36: =F14*$J14/100 -> 576.0657557 | H36: =H14*$J14/100 -> 576.0657557 | J36: =H36-F36 -> 0 | L36: =IFERROR(J36/F36,"") -> 0 | O36: ='For Bill Impact(HideBeforeFile)'!$D$5 -> Commodity
C38: Delivery | F38: Current Rate | H38: Proposed Rate | J38: Change $ | L38: Change %
C39: =IF(C16<>"",C16,"") -> Customer (excl. Bill 32) | F39: =F16*$J16 -> 222 | H39: =H16*$J16 -> 234 | J39: =IFERROR(H39-F39,"") -> 12 | L39: =IFERROR(J39/F39,"") -> 0.05405405405 | O39: ='For Bill Impact(HideBeforeFile)'!$O$5 -> Dist. Customer Rate
C40: Bill 32 | F40: 12 | H40: 12 | J40: =IFERROR(H40-F40,"") -> 0 | L40: =IFERROR(J40/F40,"") -> 0
C41: =IF(C17<>"",C17,"") -> Block 1 (First 1,000 m3 per month) | F41: =IFERROR(F17*$J17/100,"") -> 258.667579 | H41: =IFERROR(H17*$J17/100,"") -> 263.6211249 | J41: =IFERROR(H41-F41,"") -> 4.953545943 | L41: =IFERROR(J41/F41,"") -> 0.01915023894 | O41: ='For Bill Impact(HideBeforeFile)'!$P$5 -> Dist. Vol. Rate Tier 1
C42: =IF(C18<>"",C18,"") -> Block 2 (Over 1,000 m3 per month) | F42: =IFERROR(F18*$J18/100,"") -> 2.39535314 | H42: =IFERROR(H18*$J18/100,"") -> 2.441224725 | J42: 0.04587158497 | L42: 0.01915023894 | O42: ='For Bill Impact(HideBeforeFile)'!$Q$5 -> Dist. Vol. Rate Tier 2
C43: =IF(C19<>"",C19,"") ->  | F43: =IFERROR(F19*$J19/100,"") ->  | H43: =IFERROR(H19*$J19/100,"") ->  | O43: ='For Bill Impact(HideBeforeFile)'!$R$5 -> Dist. Vol. Rate Tier 3
C44: =IF(C20<>"",C20,"") ->  | F44: =IFERROR(F20*$J20/100,"") ->  | H44: =IFERROR(H20*$J20/100,"") ->  | O44: ='For Bill Impact(HideBeforeFile)'!$S$5 -> Dist. Capacity Rate
C45: =IF(C21<>"",C21,"") -> System Gas Charge | F45: =IFERROR(F21*$J21/100,"") -> 0.8295932747 | H45: =IFERROR(H21*$J21/100,"") -> 0.8295932747 | J45: 0 | L45: 0 | O45: ='For Bill Impact(HideBeforeFile)'!$E$5 -> System Gas
C46: Total Delivery | F46: =SUM(F39:F45) -> 495.8925254 | H46: =SUM(H39:H45) -> 512.8919429 | J46: =H46-F46 -> 16.99941753 | L46: =IF(ISERROR(J46/F46),0,J46/F46) -> 0.03428044719
C48: Rate Riders
C50: Rate Riders | F50: Current Rate | H50: Proposed Rate | J50: Change $ | L50: Change %
C51: =C23 -> REDA | F51: =F23*$J23 -> 3.96 | H51: =H23*$J23 -> 0.24 | J51: =IFERROR(H51-F51,"") -> -3.72 | L51: =IFERROR(J51/F51,"") -> -0.9393939394 | O51: ='For Bill Impact(HideBeforeFile)'!$F$5 -> REDA
C52: =C24 -> PGTVA | F52: =IFERROR(F24*$J24/100,"") -> 6.093219569 | H52: =IFERROR(H24*$J24/100,"") -> 8.305841669 | J52: =IFERROR(H52-F52,"") -> 2.2126221 | L52: =IFERROR(J52/F52,"") -> 0.3631285685 | O52: ='For Bill Impact(HideBeforeFile)'!$G$5 -> PGTVA
C53: =C25 -> ADVADA | F53: =IFERROR(F25*$J25/100,"") -> 0 | H53: =IFERROR(H25*$J25/100,"") -> 0 | J53: 0 | O53: ='For Bill Impact(HideBeforeFile)'!$H$5 -> ADVADA
C54: =C26 -> LDMDA | F54: =F26*$J26 -> 16.2 | H54: =H26*$J26 -> 0 | J54: -16.2 | L54: -1 | O54: ='For Bill Impact(HideBeforeFile)'!$I$5 -> LDMDA
C55: =C27 -> SICDA | F55: =IFERROR(F27*$J27/100,"") -> 5.116778749 | H55: =IFERROR(H27*$J27/100,"") -> 0 | J55: -5.116778749 | L55: -1 | O55: ='For Bill Impact(HideBeforeFile)'!$J$5 -> SICDA
C56: =C28 -> FCCVA | F56: =F28*$J28 -> 0.36 | H56: =H28*$J28 -> 0.36 | J56: =IFERROR(H56-F56,"") -> 0 | L56: =IFERROR(J56/F56,"") -> 0
C57: GGEADA | F57: 0.36 | H57: 0.36 | J57: 0 | L57: 0
C58: Total Rate Riders | F58: =SUM(F51:F57) -> 32.08999832 | H58: =SUM(H51:H57) -> 9.265841669 | J58: =SUM(J51:J57) -> -22.82415665 | L58: =IF(ISERROR(J58/F58),0,J58/F58) -> -0.7112545293
C60: Carbon Tax
C61: Federal Carbon | F61: =F31*$J31/100 -> 186.7061646 | H61: =H31*$J31/100 -> 186.7061646 | J61: =IFERROR(H61-F61,"") -> 0 | L61: =IFERROR(J61/F61,"") -> 0
C62: Facility Carbon | F62: =F32*$J32/100 -> 0.06484177319 | H62: =H32*$J32/100 -> 0.06484177319 | J62: =IFERROR(H62-F62,"") -> 0 | L62: 0
C63: Total Carbon Tax | F63: =SUM(F61:F62) -> 186.7710064 | H63: =SUM(H61:H62) -> 186.7710064 | J63: =SUM(J61:J62) -> 0 | L63: =IF(ISERROR(J63/F63),0,J63/F63) -> 0
C65: Total Bill Impact | F65: =SUM(F36,F46,F58,F63) -> 1290.819286 | H65: =SUM(H36,H46,H58,H63) -> 1284.994547 | J65: =SUM(J36,J46,J58,J63) -> -5.824739121 | L65: =IFERROR(J65/F65,"") -> -0.004512435773
J67: =J65/12 -> -0.4853949268
C68: =MID(CELL("filename",A1),FIND("]",CELL("filename",A1))+1,255) -> G1.1 Rate 1 Bill Impact
C70: ='For Bill Impact(HideBeforeFile)'!C7 -> RATE 1 - General Service Rate - Commercial | F70: Current | H70: Proposed | J70: Bill Determinant | O70: Look-up
C74: =INDEX('For Bill Impact(HideBeforeFile)'!$D$48:$S$57,MATCH(C70,'For Bill Impact(HideBeforeFile)'!$C$62:$C$71,0),MATCH($O74,'For Bill Impact(HideBeforeFile)'!$D$61:$S$61,0)) -> Commodity | D74: =INDEX('For Bill Impact(HideBeforeFile)'!$D$62:$S$71,MATCH(C70,'For Bill Impact(HideBeforeFile)'!$C$62:$C$71,0),MATCH($O74,'For Bill Impact(HideBeforeFile)'!$D$61:$S$61,0)) -> cents / m3 | F74: =INDEX('For Bill Impact(HideBeforeFile)'!$D$6:$S$15,MATCH(C70,'For Bill Impact(HideBeforeFile)'!$C$62:$C$71,0),MATCH($O74,'For Bill Impact(HideBeforeFile)'!$D$61:$S$61,0)) -> 30.2062 | H74: =INDEX('For Bill Impact(HideBeforeFile)'!$D$20:$S$29,MATCH(C70,'For Bill Impact(HideBeforeFile)'!$C$62:$C$71,0),MATCH($O74,'For Bill Impact(HideBeforeFile)'!$D$61:$S$61,0)) -> 30.2062 | J74: =INDEX('For Bill Impact(HideBeforeFile)'!$D$34:$S$43,MATCH(C70,'For Bill Impact(HideBeforeFile)'!$C$62:$C$71,0),MATCH($O74,'For Bill Impact(HideBeforeFile)'!$D$61:$S$61,0)) -> 9350.184964 | O74: ='For Bill Impact(HideBeforeFile)'!$D$5 -> Commodity
C76: =INDEX('For Bill Impact(HideBeforeFile)'!$D$48:$S$57,MATCH(C70,'For Bill Impact(HideBeforeFile)'!$C$62:$C$71,0),MATCH($O76,'For Bill Impact(HideBeforeFile)'!$D$61:$S$61,0)) -> Customer (excl. Bill 32) | D76: =INDEX('For Bill Impact(HideBeforeFile)'!$D$62:$S$71,MATCH(C70,'For Bill Impact(HideBeforeFile)'!$C$62:$C$71,0),MATCH($O76,'For Bill Impact(HideBeforeFile)'!$D$61:$S$61,0)) -> $ / month | F76: =INDEX('For Bill Impact(HideBeforeFile)'!$D$6:$S$15,MATCH(C70,'For Bill Impact(HideBeforeFile)'!$C$62:$C$71,0),MATCH($O76,'For Bill Impact(HideBeforeFile)'!$D$61:$S$61,0)) -> 18.5 | H76: =INDEX('For Bill Impact(HideBeforeFile)'!$D$20:$S$29,MATCH(C70,'For Bill Impact(HideBeforeFile)'!$C$62:$C$71,0),MATCH($O76,'For Bill Impact(HideBeforeFile)'!$D$61:$S$61,0)) -> 19.5 | J76: =INDEX('For Bill Impact(HideBeforeFile)'!$D$34:$S$43,MATCH(C70,'For Bill Impact(HideBeforeFile)'!$C$62:$C$71,0),MATCH($O76,'For Bill Impact(HideBeforeFile)'!$D$61:$S$61,0)) -> 12 | O76: ='For Bill Impact(HideBeforeFile)'!$O$5 -> Dist. Customer Rate
C77: =INDEX('For Bill Impact(HideBeforeFile)'!$D$48:$S$57,MATCH(C70,'For Bill Impact(HideBeforeFile)'!$C$62:$C$71,0),MATCH($O77,'For Bill Impact(HideBeforeFile)'!$D$61:$S$61,0)) -> Block 1 (First 1,000 m3 per month) | D77: =INDEX('For Bill Impact(HideBeforeFile)'!$D$62:$S$71,MATCH(C70,'For Bill Impact(HideBeforeFile)'!$C$62:$C$71,0),MATCH($O77,'For Bill Impact(HideBeforeFile)'!$D$61:$S$61,0)) -> cents / m3 | F77: =INDEX('For Bill Impact(HideBeforeFile)'!$D$6:$S$15,MATCH(C70,'For Bill Impact(HideBeforeFile)'!$C$62:$C$71,0),MATCH($O77,'For Bill Impact(HideBeforeFile)'!$D$61:$S$61,0)) -> 13.7196 | H77: =INDEX('For Bill Impact(HideBeforeFile)'!$D$20:$S$29,MATCH(C70,'For Bill Impact(HideBeforeFile)'!$C$62:$C$71,0),MATCH($O77,'For Bill Impact(HideBeforeFile)'!$D$61:$S$61,0)) -> 13.98233362 | J77: =INDEX('For Bill Impact(HideBeforeFile)'!$D$34:$S$43,MATCH(C70,'For Bill Impact(HideBeforeFile)'!$C$62:$C$71,0),MATCH($O77,'For Bill Impact(HideBeforeFile)'!$D$61:$S$61,0)) -> 4486.512681 | O77: ='For Bill Impact(HideBeforeFile)'!$P$5 -> Dist. Vol. Rate Tier 1
C78: =INDEX('For Bill Impact(HideBeforeFile)'!$D$48:$S$57,MATCH(C70,'For Bill Impact(HideBeforeFile)'!$C$62:$C$71,0),MATCH($O78,'For Bill Impact(HideBeforeFile)'!$D$61:$S$61,0)) -> Block 2 (Over 1,000 m3 per month) | D78: =INDEX('For Bill Impact(HideBeforeFile)'!$D$62:$S$71,MATCH(C70,'For Bill Impact(HideBeforeFile)'!$C$62:$C$71,0),MATCH($O78,'For Bill Impact(HideBeforeFile)'!$D$61:$S$61,0)) -> cents / m3 | F78: =INDEX('For Bill Impact(HideBeforeFile)'!$D$6:$S$15,MATCH(C70,'For Bill Impact(HideBeforeFile)'!$C$62:$C$71,0),MATCH($O78,'For Bill Impact(HideBeforeFile)'!$D$61:$S$61,0)) -> 11.0264 | H78: =INDEX('For Bill Impact(HideBeforeFile)'!$D$20:$S$29,MATCH(C70,'For Bill Impact(HideBeforeFile)'!$C$62:$C$71,0),MATCH($O78,'For Bill Impact(HideBeforeFile)'!$D$61:$S$61,0)) -> 11.23755819 | J78: =INDEX('For Bill Impact(HideBeforeFile)'!$D$34:$S$43,MATCH(C70,'For Bill Impact(HideBeforeFile)'!$C$62:$C$71,0),MATCH($O78,'For Bill Impact(HideBeforeFile)'!$D$61:$S$61,0)) -> 4863.672283 | O78: ='For Bill Impact(HideBeforeFile)'!$Q$5 -> Dist. Vol. Rate Tier 2
C79: =INDEX('For Bill Impact(HideBeforeFile)'!$D$48:$S$57,MATCH(C70,'For Bill Impact(HideBeforeFile)'!$C$62:$C$71,0),MATCH($O79,'For Bill Impact(HideBeforeFile)'!$D$61:$S$61,0)) ->  | D79: =INDEX('For Bill Impact(HideBeforeFile)'!$D$62:$S$71,MATCH(C70,'For Bill Impact(HideBeforeFile)'!$C$62:$C$71,0),MATCH($O79,'For Bill Impact(HideBeforeFile)'!$D$61:$S$61,0)) ->  | F79: =INDEX('For Bill Impact(HideBeforeFile)'!$D$6:$S$15,MATCH(C70,'For Bill Impact(HideBeforeFile)'!$C$62:$C$71,0),MATCH($O79,'For Bill Impact(HideBeforeFile)'!$D$61:$S$61,0)) ->  | H79: =INDEX('For Bill Impact(HideBeforeFile)'!$D$20:$S$29,MATCH(C70,'For Bill Impact(HideBeforeFile)'!$C$62:$C$71,0),MATCH($O79,'For Bill Impact(HideBeforeFile)'!$D$61:$S$61,0)) ->  | J79: =INDEX('For Bill Impact(HideBeforeFile)'!$D$34:$S$43,MATCH(C70,'For Bill Impact(HideBeforeFile)'!$C$62:$C$71,0),MATCH($O79,'For Bill Impact(HideBeforeFile)'!$D$61:$S$61,0)) ->  | O79: ='For Bill Impact(HideBeforeFile)'!$R$5 -> Dist. Vol. Rate Tier 3
C80: =INDEX('For Bill Impact(HideBeforeFile)'!$D$48:$S$57,MATCH(C70,'For Bill Impact(HideBeforeFile)'!$C$62:$C$71,0),MATCH($O80,'For Bill Impact(HideBeforeFile)'!$D$61:$S$61,0)) ->  | D80: =INDEX('For Bill Impact(HideBeforeFile)'!$D$62:$S$71,MATCH(C70,'For Bill Impact(HideBeforeFile)'!$C$62:$C$71,0),MATCH($O80,'For Bill Impact(HideBeforeFile)'!$D$61:$S$61,0)) ->  | F80: =INDEX('For Bill Impact(HideBeforeFile)'!$D$6:$S$15,MATCH(C70,'For Bill Impact(HideBeforeFile)'!$C$62:$C$71,0),MATCH($O80,'For Bill Impact(HideBeforeFile)'!$D$61:$S$61,0)) ->  | H80: =INDEX('For Bill Impact(HideBeforeFile)'!$D$20:$S$29,MATCH(C70,'For Bill Impact(HideBeforeFile)'!$C$62:$C$71,0),MATCH($O80,'For Bill Impact(HideBeforeFile)'!$D$61:$S$61,0)) ->  | J80: =INDEX('For Bill Impact(HideBeforeFile)'!$D$34:$S$43,MATCH(C70,'For Bill Impact(HideBeforeFile)'!$C$62:$C$71,0),MATCH($O80,'For Bill Impact(HideBeforeFile)'!$D$61:$S$61,0)) ->  | O80: ='For Bill Impact(HideBeforeFile)'!$S$5 -> Dist. Capacity Rate
C81: =INDEX('For Bill Impact(HideBeforeFile)'!$D$48:$S$57,MATCH(C70,'For Bill Impact(HideBeforeFile)'!$C$62:$C$71,0),MATCH($O81,'For Bill Impact(HideBeforeFile)'!$D$61:$S$61,0)) -> System Gas Charge | D81: =INDEX('For Bill Impact(HideBeforeFile)'!$D$62:$S$71,MATCH(C70,'For Bill Impact(HideBeforeFile)'!$C$62:$C$71,0),MATCH($O81,'For Bill Impact(HideBeforeFile)'!$D$61:$S$61,0)) -> cents / m3 | F81: =INDEX('For Bill Impact(HideBeforeFile)'!$D$6:$S$15,MATCH(C70,'For Bill Impact(HideBeforeFile)'!$C$62:$C$71,0),MATCH($O81,'For Bill Impact(HideBeforeFile)'!$D$61:$S$61,0)) -> 0.0435 | H81: =INDEX('For Bill Impact(HideBeforeFile)'!$D$20:$S$29,MATCH(C70,'For Bill Impact(HideBeforeFile)'!$C$62:$C$71,0),MATCH($O81,'For Bill Impact(HideBeforeFile)'!$D$61:$S$61,0)) -> 0.0435 | J81: =INDEX('For Bill Impact(HideBeforeFile)'!$D$34:$S$43,MATCH(C70,'For Bill Impact(HideBeforeFile)'!$C$62:$C$71,0),MATCH($O81,'For Bill Impact(HideBeforeFile)'!$D$61:$S$61,0)) -> 9350.184964 | O81: ='For Bill Impact(HideBeforeFile)'!$E$5 -> System Gas
C83: =INDEX('For Bill Impact(HideBeforeFile)'!$D$48:$S$57,MATCH(C70,'For Bill Impact(HideBeforeFile)'!$C$62:$C$71,0),MATCH($O83,'For Bill Impact(HideBeforeFile)'!$D$61:$S$61,0)) -> REDA | D83: =INDEX('For Bill Impact(HideBeforeFile)'!$D$62:$S$71,MATCH(C70,'For Bill Impact(HideBeforeFile)'!$C$62:$C$71,0),MATCH($O83,'For Bill Impact(HideBeforeFile)'!$D$61:$S$61,0)) -> $ / month | F83: =INDEX('For Bill Impact(HideBeforeFile)'!$D$6:$S$15,MATCH(C70,'For Bill Impact(HideBeforeFile)'!$C$62:$C$71,0),MATCH($O83,'For Bill Impact(HideBeforeFile)'!$D$61:$S$61,0)) -> 0.33 | H83: =INDEX('For Bill Impact(HideBeforeFile)'!$D$20:$S$29,MATCH(C70,'For Bill Impact(HideBeforeFile)'!$C$62:$C$71,0),MATCH($O83,'For Bill Impact(HideBeforeFile)'!$D$61:$S$61,0)) -> 0.02 | J83: =INDEX('For Bill Impact(HideBeforeFile)'!$D$34:$S$43,MATCH(C70,'For Bill Impact(HideBeforeFile)'!$C$62:$C$71,0),MATCH($O83,'For Bill Impact(HideBeforeFile)'!$D$61:$S$61,0)) -> 12 | O83: =O23 -> REDA
C84: =INDEX('For Bill Impact(HideBeforeFile)'!$D$48:$S$57,MATCH(C70,'For Bill Impact(HideBeforeFile)'!$C$62:$C$71,0),MATCH($O84,'For Bill Impact(HideBeforeFile)'!$D$61:$S$61,0)) -> PGTVA | D84: =INDEX('For Bill Impact(HideBeforeFile)'!$D$62:$S$71,MATCH(C70,'For Bill Impact(HideBeforeFile)'!$C$62:$C$71,0),MATCH($O84,'For Bill Impact(HideBeforeFile)'!$D$61:$S$61,0)) -> cents / m3 | F84: =INDEX('For Bill Impact(HideBeforeFile)'!$D$6:$S$15,MATCH(C70,'For Bill Impact(HideBeforeFile)'!$C$62:$C$71,0),MATCH($O84,'For Bill Impact(HideBeforeFile)'!$D$61:$S$61,0)) -> 0.3195 | H84: =INDEX('For Bill Impact(HideBeforeFile)'!$D$20:$S$29,MATCH(C70,'For Bill Impact(HideBeforeFile)'!$C$62:$C$71,0),MATCH($O84,'For Bill Impact(HideBeforeFile)'!$D$61:$S$61,0)) -> 0.4355195776 | J84: =INDEX('For Bill Impact(HideBeforeFile)'!$D$34:$S$43,MATCH(C70,'For Bill Impact(HideBeforeFile)'!$C$62:$C$71,0),MATCH($O84,'For Bill Impact(HideBeforeFile)'!$D$61:$S$61,0)) -> 9350.184964 | O84: =O24 -> PGTVA
C85: =INDEX('For Bill Impact(HideBeforeFile)'!$D$48:$S$57,MATCH(C70,'For Bill Impact(HideBeforeFile)'!$C$62:$C$71,0),MATCH($O85,'For Bill Impact(HideBeforeFile)'!$D$61:$S$61,0)) -> ADVADA | D85: =INDEX('For Bill Impact(HideBeforeFile)'!$D$62:$S$71,MATCH(C70,'For Bill Impact(HideBeforeFile)'!$C$62:$C$71,0),MATCH($O85,'For Bill Impact(HideBeforeFile)'!$D$61:$S$61,0)) -> cents / m3 | F85: =INDEX('For Bill Impact(HideBeforeFile)'!$D$6:$S$15,MATCH(C70,'For Bill Impact(HideBeforeFile)'!$C$62:$C$71,0),MATCH($O85,'For Bill Impact(HideBeforeFile)'!$D$61:$S$61,0)) -> 0 | H85: =INDEX('For Bill Impact(HideBeforeFile)'!$D$20:$S$29,MATCH(C70,'For Bill Impact(HideBeforeFile)'!$C$62:$C$71,0),MATCH($O85,'For Bill Impact(HideBeforeFile)'!$D$61:$S$61,0)) -> 0 | J85: =INDEX('For Bill Impact(HideBeforeFile)'!$D$34:$S$43,MATCH(C70,'For Bill Impact(HideBeforeFile)'!$C$62:$C$71,0),MATCH($O85,'For Bill Impact(HideBeforeFile)'!$D$61:$S$61,0)) -> 9350.184964 | O85: =O25 -> ADVADA
C86: =INDEX('For Bill Impact(HideBeforeFile)'!$D$48:$S$57,MATCH(C70,'For Bill Impact(HideBeforeFile)'!$C$62:$C$71,0),MATCH($O86,'For Bill Impact(HideBeforeFile)'!$D$61:$S$61,0)) -> LDMDA | D86: =INDEX('For Bill Impact(HideBeforeFile)'!$D$62:$S$71,MATCH(C70,'For Bill Impact(HideBeforeFile)'!$C$62:$C$71,0),MATCH($O86,'For Bill Impact(HideBeforeFile)'!$D$61:$S$61,0)) -> $ / month | F86: =INDEX('For Bill Impact(HideBeforeFile)'!$D$6:$S$15,MATCH(C70,'For Bill Impact(HideBeforeFile)'!$C$62:$C$71,0),MATCH($O86,'For Bill Impact(HideBeforeFile)'!$D$61:$S$61,0)) -> 1.35 | H86: =INDEX('For Bill Impact(HideBeforeFile)'!$D$20:$S$29,MATCH(C70,'For Bill Impact(HideBeforeFile)'!$C$62:$C$71,0),MATCH($O86,'For Bill Impact(HideBeforeFile)'!$D$61:$S$61,0)) -> 0 | J86: =INDEX('For Bill Impact(HideBeforeFile)'!$D$34:$S$43,MATCH(C70,'For Bill Impact(HideBeforeFile)'!$C$62:$C$71,0),MATCH($O86,'For Bill Impact(HideBeforeFile)'!$D$61:$S$61,0)) -> 12 | O86: =O26 -> LDMDA
C87: =INDEX('For Bill Impact(HideBeforeFile)'!$D$48:$S$57,MATCH(C70,'For Bill Impact(HideBeforeFile)'!$C$62:$C$71,0),MATCH($O87,'For Bill Impact(HideBeforeFile)'!$D$61:$S$61,0)) -> SICDA | D87: =INDEX('For Bill Impact(HideBeforeFile)'!$D$62:$S$71,MATCH(C70,'For Bill Impact(HideBeforeFile)'!$C$62:$C$71,0),MATCH($O87,'For Bill Impact(HideBeforeFile)'!$D$61:$S$61,0)) -> cents / m3 | F87: =INDEX('For Bill Impact(HideBeforeFile)'!$D$6:$S$15,MATCH(C70,'For Bill Impact(HideBeforeFile)'!$C$62:$C$71,0),MATCH($O87,'For Bill Impact(HideBeforeFile)'!$D$61:$S$61,0)) -> 0.2683 | H87: =INDEX('For Bill Impact(HideBeforeFile)'!$D$20:$S$29,MATCH(C70,'For Bill Impact(HideBeforeFile)'!$C$62:$C$71,0),MATCH($O87,'For Bill Impact(HideBeforeFile)'!$D$61:$S$61,0)) -> 0 | J87: =INDEX('For Bill Impact(HideBeforeFile)'!$D$34:$S$43,MATCH(C70,'For Bill Impact(HideBeforeFile)'!$C$62:$C$71,0),MATCH($O87,'For Bill Impact(HideBeforeFile)'!$D$61:$S$61,0)) -> 9350.184964 | O87: =O27 -> SICDA
C88: =INDEX('For Bill Impact(HideBeforeFile)'!$D$48:$S$57,MATCH(C70,'For Bill Impact(HideBeforeFile)'!$C$62:$C$71,0),MATCH($O88,'For Bill Impact(HideBeforeFile)'!$D$61:$S$61,0)) -> FCCVA | D88: =INDEX('For Bill Impact(HideBeforeFile)'!$D$62:$S$71,MATCH(C70,'For Bill Impact(HideBeforeFile)'!$C$62:$C$71,0),MATCH($O88,'For Bill Impact(HideBeforeFile)'!$D$61:$S$61,0)) -> $ / month | F88: =INDEX('For Bill Impact(HideBeforeFile)'!$D$6:$S$15,MATCH(C70,'For Bill Impact(HideBeforeFile)'!$C$62:$C$71,0),MATCH($O88,'For Bill Impact(HideBeforeFile)'!$D$61:$S$61,0)) -> 0.03 | H88: =INDEX('For Bill Impact(HideBeforeFile)'!$D$20:$S$29,MATCH(C70,'For Bill Impact(HideBeforeFile)'!$C$62:$C$71,0),MATCH($O88,'For Bill Impact(HideBeforeFile)'!$D$61:$S$61,0)) -> 0.03 | J88: =INDEX('For Bill Impact(HideBeforeFile)'!$D$34:$S$43,MATCH(C70,'For Bill Impact(HideBeforeFile)'!$C$62:$C$71,0),MATCH($O88,'For Bill Impact(HideBeforeFile)'!$D$61:$S$61,0)) -> 12 | O88: FCCVA
C89: =INDEX('For Bill Impact(HideBeforeFile)'!$D$48:$S$57,MATCH(C70,'For Bill Impact(HideBeforeFile)'!$C$62:$C$71,0),MATCH($O89,'For Bill Impact(HideBeforeFile)'!$D$61:$S$61,0)) -> GGEADA | D89: =INDEX('For Bill Impact(HideBeforeFile)'!$D$62:$S$71,MATCH(C70,'For Bill Impact(HideBeforeFile)'!$C$62:$C$71,0),MATCH($O89,'For Bill Impact(HideBeforeFile)'!$D$61:$S$61,0)) -> $ / month | F89: =INDEX('For Bill Impact(HideBeforeFile)'!$D$6:$S$15,MATCH(C70,'For Bill Impact(HideBeforeFile)'!$C$62:$C$71,0),MATCH($O89,'For Bill Impact(HideBeforeFile)'!$D$61:$S$61,0)) -> 0.03 | H89: =INDEX('For Bill Impact(HideBeforeFile)'!$D$20:$S$29,MATCH(C70,'For Bill Impact(HideBeforeFile)'!$C$62:$C$71,0),MATCH($O89,'For Bill Impact(HideBeforeFile)'!$D$61:$S$61,0)) -> 0.03 | J89: =INDEX('For Bill Impact(HideBeforeFile)'!$D$34:$S$43,MATCH(C70,'For Bill Impact(HideBeforeFile)'!$C$62:$C$71,0),MATCH($O89,'For Bill Impact(HideBeforeFile)'!$D$61:$S$61,0)) -> 12 | O89: GGEADA
C91: =INDEX('For Bill Impact(HideBeforeFile)'!$D$48:$S$57,MATCH(C70,'For Bill Impact(HideBeforeFile)'!$C$62:$C$71,0),MATCH($O91,'For Bill Impact(HideBeforeFile)'!$D$61:$S$61,0)) -> Federal Carbon | D91: =INDEX('For Bill Impact(HideBeforeFile)'!$D$62:$S$71,MATCH(C70,'For Bill Impact(HideBeforeFile)'!$C$62:$C$71,0),MATCH($O91,'For Bill Impact(HideBeforeFile)'!$D$61:$S$61,0)) -> cents / m3 | F91: =INDEX('For Bill Impact(HideBeforeFile)'!$D$6:$S$15,MATCH(C70,'For Bill Impact(HideBeforeFile)'!$C$62:$C$71,0),MATCH($O91,'For Bill Impact(HideBeforeFile)'!$D$61:$S$61,0)) -> 9.79 | H91: =INDEX('For Bill Impact(HideBeforeFile)'!$D$20:$S$29,MATCH(C70,'For Bill Impact(HideBeforeFile)'!$C$62:$C$71,0),MATCH($O91,'For Bill Impact(HideBeforeFile)'!$D$61:$S$61,0)) -> 9.79 | J91: =INDEX('For Bill Impact(HideBeforeFile)'!$D$34:$S$43,MATCH(C70,'For Bill Impact(HideBeforeFile)'!$C$62:$C$71,0),MATCH($O91,'For Bill Impact(HideBeforeFile)'!$D$61:$S$61,0)) -> 9350.184964 | O91: ='For Bill Impact(HideBeforeFile)'!$M$5 -> Federal Carbon
C92: =INDEX('For Bill Impact(HideBeforeFile)'!$D$48:$S$57,MATCH(C70,'For Bill Impact(HideBeforeFile)'!$C$62:$C$71,0),MATCH($O92,'For Bill Impact(HideBeforeFile)'!$D$61:$S$61,0)) -> Facility Carbon | D92: =INDEX('For Bill Impact(HideBeforeFile)'!$D$62:$S$71,MATCH(C70,'For Bill Impact(HideBeforeFile)'!$C$62:$C$71,0),MATCH($O92,'For Bill Impact(HideBeforeFile)'!$D$61:$S$61,0)) -> cents / m3 | F92: =INDEX('For Bill Impact(HideBeforeFile)'!$D$6:$S$15,MATCH(C70,'For Bill Impact(HideBeforeFile)'!$C$62:$C$71,0),MATCH($O92,'For Bill Impact(HideBeforeFile)'!$D$61:$S$61,0)) -> 0.0034 | H92: =INDEX('For Bill Impact(HideBeforeFile)'!$D$20:$S$29,MATCH(C70,'For Bill Impact(HideBeforeFile)'!$C$62:$C$71,0),MATCH($O92,'For Bill Impact(HideBeforeFile)'!$D$61:$S$61,0)) -> 0.0034 | J92: =INDEX('For Bill Impact(HideBeforeFile)'!$D$34:$S$43,MATCH(C70,'For Bill Impact(HideBeforeFile)'!$C$62:$C$71,0),MATCH($O92,'For Bill Impact(HideBeforeFile)'!$D$61:$S$61,0)) -> 9350.184964 | O92: ='For Bill Impact(HideBeforeFile)'!$N$5 -> Facility Carbon
C95: Commodity | F95: Current | H95: Proposed | J95: Change $ | L95: Change %
F96: =F74*$J74/100 -> 2824.335571 | H96: =H74*$J74/100 -> 2824.335571 | J96: =H96-F96 -> 0 | L96: =IFERROR(J96/F96,"") -> 0
C98: Delivery | F98: Current Rate | H98: Proposed Rate | J98: Change $ | L98: Change %
C99: =IF(C76<>"",C76,"") -> Customer (excl. Bill 32) | F99: =F76*$J76 -> 222 | H99: =H76*$J76 -> 234 | J99: =IFERROR(H99-F99,"") -> 12 | L99: =IFERROR(J99/F99,"") -> 0.05405405405
C100: Bill 32 | F100: 12 | H100: 12 | J100: =IFERROR(H100-F100,"") -> 0 | L100: =IFERROR(J100/F100,"") -> 0
C101: =IF(C77<>"",C77,"") -> Block 1 (First 1,000 m3 per month) | F101: =IFERROR(F77*$J77/100,"") -> 615.5315938 | H101: =IFERROR(H77*$J77/100,"") -> 627.3191709 | J101: =IFERROR(H101-F101,"") -> 11.7875771 | L101: =IFERROR(J101/F101,"") -> 0.01915023894
C102: =IF(C78<>"",C78,"") -> Block 2 (Over 1,000 m3 per month) | F102: =IFERROR(F78*$J78/100,"") -> 536.2879606 | H102: =IFERROR(H78*$J78/100,"") -> 546.5580032 | J102: 10.27004259 | L102: 0.01915023894
C103: =IF(C79<>"",C79,"") ->  | F103: =IFERROR(F79*$J79/100,"") ->  | H103: =IFERROR(H79*$J79/100,"") -> 
C104: =IF(C80<>"",C80,"") ->  | F104: =IFERROR(F80*$J80/100,"") ->  | H104: =IFERROR(H80*$J80/100,"") -> 
C105: =IF(C81<>"",C81,"") -> System Gas Charge | F105: =IFERROR(F81*$J81/100,"") -> 4.067330459 | H105: =IFERROR(H81*$J81/100,"") -> 4.067330459 | J105: 0 | L105: 0
C106: Total Delivery | F106: =SUM(F99:F105) -> 1389.886885 | H106: =SUM(H99:H105) -> 1423.944505 | J106: =H106-F106 -> 34.05761968 | L106: =IF(ISERROR(J106/F106),0,J106/F106) -> 0.02450387874
C108: Rate Riders
C110: Rate Riders | F110: Current Rate | H110: Proposed Rate | J110: Change $ | L110: Change %
C111: =C83 -> REDA | F111: =F83*$J83 -> 3.96 | H111: =H83*$J83 -> 0.24 | J111: =IFERROR(H111-F111,"") -> -3.72 | L111: =IFERROR(J111/F111,"") -> -0.9393939394
C112: =C84 -> PGTVA | F112: =IFERROR(F84*$J84/100,"") -> 29.87384096 | H112: =IFERROR(H84*$J84/100,"") -> 40.72188606 | J112: =IFERROR(H112-F112,"") -> 10.8480451 | L112: =IFERROR(J112/F112,"") -> 0.3631285685
C113: =C85 -> ADVADA | F113: =IFERROR(F85*$J85/100,"") -> 0 | H113: =IFERROR(H85*$J85/100,"") -> 0 | J113: 0
C114: =C86 -> LDMDA | F114: =F86*$J86 -> 16.2 | H114: =H86*$J86 -> 0 | J114: -16.2 | L114: -1
C115: =C87 -> SICDA | F115: =IFERROR(F87*$J87/100,"") -> 25.08654626 | H115: =IFERROR(H87*$J87/100,"") -> 0 | J115: -25.08654626 | L115: -1
C116: =C88 -> FCCVA | F116: =F88*$J88 -> 0.36 | H116: =H88*$J88 -> 0.36 | J116: 0 | L116: 0
C117: GGEADA | F117: 0.36 | H117: 0.36 | J117: 0 | L117: 0
C118: Total Rate Riders | F118: =SUM(F111:F117) -> 75.84038722 | H118: =SUM(H111:H117) -> 41.68188606 | J118: =SUM(J111:J115) -> -34.15850115 | L118: =IF(ISERROR(J118/F118),0,J118/F118) -> -0.4503998781
C120: Carbon Tax
C121: Federal Carbon | F121: =F91*$J91/100 -> 915.383108 | H121: =H91*$J91/100 -> 915.383108 | J121: =IFERROR(H121-F121,"") -> 0 | L121: =IFERROR(J121/F121,"") -> 0
C122: Facility Carbon | F122: =F92*$J92/100 -> 0.3179062888 | H122: =H92*$J92/100 -> 0.3179062888 | J122: =IFERROR(H122-F122,"") -> 0 | L122: 0
C123: Total Carbon Tax | F123: =SUM(F121:F122) -> 915.7010142 | H123: =SUM(H121:H122) -> 915.7010142 | J123: =SUM(J121:J122) -> 0 | L123: =IF(ISERROR(J123/F123),0,J123/F123) -> 0
C125: Total Bill Impact | F125: =SUM(F96,F106,F118,F123) -> 5205.763857 | H125: =SUM(H96,H106,H118,H123) -> 5205.662975 | J125: =SUM(J96,J106,J118,J123) -> -0.1008814725 | L125: =IFERROR(J125/F125,"") -> -1.937880305e-05
C128: =MID(CELL("filename",A61),FIND("]",CELL("filename",A61))+1,255) -> G1.1 Rate 1 Bill Impact
C130: ='For Bill Impact(HideBeforeFile)'!C8 -> RATE 1 - General Service Rate - Industrial | F130: Current | H130: Proposed | J130: Bill Determinant | O130: Look-up
C134: =INDEX('For Bill Impact(HideBeforeFile)'!$D$48:$S$57,MATCH(C130,'For Bill Impact(HideBeforeFile)'!$C$62:$C$71,0),MATCH($O134,'For Bill Impact(HideBeforeFile)'!$D$61:$S$61,0)) -> Commodity | D134: =INDEX('For Bill Impact(HideBeforeFile)'!$D$62:$S$71,MATCH(C130,'For Bill Impact(HideBeforeFile)'!$C$62:$C$71,0),MATCH($O134,'For Bill Impact(HideBeforeFile)'!$D$61:$S$61,0)) -> cents / m3 | F134: =INDEX('For Bill Impact(HideBeforeFile)'!$D$6:$S$15,MATCH(C130,'For Bill Impact(HideBeforeFile)'!$C$62:$C$71,0),MATCH($O134,'For Bill Impact(HideBeforeFile)'!$D$61:$S$61,0)) -> 30.2062 | H134: =INDEX('For Bill Impact(HideBeforeFile)'!$D$20:$S$29,MATCH(C130,'For Bill Impact(HideBeforeFile)'!$C$62:$C$71,0),MATCH($O134,'For Bill Impact(HideBeforeFile)'!$D$61:$S$61,0)) -> 30.2062 | J134: =INDEX('For Bill Impact(HideBeforeFile)'!$D$34:$S$43,MATCH(C130,'For Bill Impact(HideBeforeFile)'!$C$62:$C$71,0),MATCH($O134,'For Bill Impact(HideBeforeFile)'!$D$61:$S$61,0)) -> 30188.16667 | O134: ='For Bill Impact(HideBeforeFile)'!$D$5 -> Commodity
C136: =INDEX('For Bill Impact(HideBeforeFile)'!$D$48:$S$57,MATCH(C130,'For Bill Impact(HideBeforeFile)'!$C$62:$C$71,0),MATCH($O136,'For Bill Impact(HideBeforeFile)'!$D$61:$S$61,0)) -> Customer (excl. Bill 32) | D136: =INDEX('For Bill Impact(HideBeforeFile)'!$D$62:$S$71,MATCH(C130,'For Bill Impact(HideBeforeFile)'!$C$62:$C$71,0),MATCH($O136,'For Bill Impact(HideBeforeFile)'!$D$61:$S$61,0)) -> $ / month | F136: =INDEX('For Bill Impact(HideBeforeFile)'!$D$6:$S$15,MATCH(C130,'For Bill Impact(HideBeforeFile)'!$C$62:$C$71,0),MATCH($O136,'For Bill Impact(HideBeforeFile)'!$D$61:$S$61,0)) -> 18.5 | H136: =INDEX('For Bill Impact(HideBeforeFile)'!$D$20:$S$29,MATCH(C130,'For Bill Impact(HideBeforeFile)'!$C$62:$C$71,0),MATCH($O136,'For Bill Impact(HideBeforeFile)'!$D$61:$S$61,0)) -> 19.5 | J136: =INDEX('For Bill Impact(HideBeforeFile)'!$D$34:$S$43,MATCH(C130,'For Bill Impact(HideBeforeFile)'!$C$62:$C$71,0),MATCH($O136,'For Bill Impact(HideBeforeFile)'!$D$61:$S$61,0)) -> 12 | O136: ='For Bill Impact(HideBeforeFile)'!$O$5 -> Dist. Customer Rate
C137: =INDEX('For Bill Impact(HideBeforeFile)'!$D$48:$S$57,MATCH(C130,'For Bill Impact(HideBeforeFile)'!$C$62:$C$71,0),MATCH($O137,'For Bill Impact(HideBeforeFile)'!$D$61:$S$61,0)) -> Block 1 (First 1,000 m3 per month) | D137: =INDEX('For Bill Impact(HideBeforeFile)'!$D$62:$S$71,MATCH(C130,'For Bill Impact(HideBeforeFile)'!$C$62:$C$71,0),MATCH($O137,'For Bill Impact(HideBeforeFile)'!$D$61:$S$61,0)) -> cents / m3 | F137: =INDEX('For Bill Impact(HideBeforeFile)'!$D$6:$S$15,MATCH(C130,'For Bill Impact(HideBeforeFile)'!$C$62:$C$71,0),MATCH($O137,'For Bill Impact(HideBeforeFile)'!$D$61:$S$61,0)) -> 13.7196 | H137: =INDEX('For Bill Impact(HideBeforeFile)'!$D$20:$S$29,MATCH(C130,'For Bill Impact(HideBeforeFile)'!$C$62:$C$71,0),MATCH($O137,'For Bill Impact(HideBeforeFile)'!$D$61:$S$61,0)) -> 13.98233362 | J137: =INDEX('For Bill Impact(HideBeforeFile)'!$D$34:$S$43,MATCH(C130,'For Bill Impact(HideBeforeFile)'!$C$62:$C$71,0),MATCH($O137,'For Bill Impact(HideBeforeFile)'!$D$61:$S$61,0)) -> 6231.961333 | O137: ='For Bill Impact(HideBeforeFile)'!$P$5 -> Dist. Vol. Rate Tier 1
C138: =INDEX('For Bill Impact(HideBeforeFile)'!$D$48:$S$57,MATCH(C130,'For Bill Impact(HideBeforeFile)'!$C$62:$C$71,0),MATCH($O138,'For Bill Impact(HideBeforeFile)'!$D$61:$S$61,0)) -> Block 2 (Over 1,000 m3 per month) | D138: =INDEX('For Bill Impact(HideBeforeFile)'!$D$62:$S$71,MATCH(C130,'For Bill Impact(HideBeforeFile)'!$C$62:$C$71,0),MATCH($O138,'For Bill Impact(HideBeforeFile)'!$D$61:$S$61,0)) -> cents / m3 | F138: =INDEX('For Bill Impact(HideBeforeFile)'!$D$6:$S$15,MATCH(C130,'For Bill Impact(HideBeforeFile)'!$C$62:$C$71,0),MATCH($O138,'For Bill Impact(HideBeforeFile)'!$D$61:$S$61,0)) -> 11.0264 | H138: =INDEX('For Bill Impact(HideBeforeFile)'!$D$20:$S$29,MATCH(C130,'For Bill Impact(HideBeforeFile)'!$C$62:$C$71,0),MATCH($O138,'For Bill Impact(HideBeforeFile)'!$D$61:$S$61,0)) -> 11.23755819 | J138: =INDEX('For Bill Impact(HideBeforeFile)'!$D$34:$S$43,MATCH(C130,'For Bill Impact(HideBeforeFile)'!$C$62:$C$71,0),MATCH($O138,'For Bill Impact(HideBeforeFile)'!$D$61:$S$61,0)) -> 23956.20533 | O138: ='For Bill Impact(HideBeforeFile)'!$Q$5 -> Dist. Vol. Rate Tier 2
C139: =INDEX('For Bill Impact(HideBeforeFile)'!$D$48:$S$57,MATCH(C130,'For Bill Impact(HideBeforeFile)'!$C$62:$C$71,0),MATCH($O139,'For Bill Impact(HideBeforeFile)'!$D$61:$S$61,0)) ->  | D139: =INDEX('For Bill Impact(HideBeforeFile)'!$D$62:$S$71,MATCH(C130,'For Bill Impact(HideBeforeFile)'!$C$62:$C$71,0),MATCH($O139,'For Bill Impact(HideBeforeFile)'!$D$61:$S$61,0)) ->  | F139: =INDEX('For Bill Impact(HideBeforeFile)'!$D$6:$S$15,MATCH(C130,'For Bill Impact(HideBeforeFile)'!$C$62:$C$71,0),MATCH($O139,'For Bill Impact(HideBeforeFile)'!$D$61:$S$61,0)) ->  | H139: =INDEX('For Bill Impact(HideBeforeFile)'!$D$20:$S$29,MATCH(C130,'For Bill Impact(HideBeforeFile)'!$C$62:$C$71,0),MATCH($O139,'For Bill Impact(HideBeforeFile)'!$D$61:$S$61,0)) ->  | J139: =INDEX('For Bill Impact(HideBeforeFile)'!$D$34:$S$43,MATCH(C130,'For Bill Impact(HideBeforeFile)'!$C$62:$C$71,0),MATCH($O139,'For Bill Impact(HideBeforeFile)'!$D$61:$S$61,0)) ->  | O139: ='For Bill Impact(HideBeforeFile)'!$R$5 -> Dist. Vol. Rate Tier 3
C140: =INDEX('For Bill Impact(HideBeforeFile)'!$D$48:$S$57,MATCH(C130,'For Bill Impact(HideBeforeFile)'!$C$62:$C$71,0),MATCH($O140,'For Bill Impact(HideBeforeFile)'!$D$61:$S$61,0)) ->  | D140: =INDEX('For Bill Impact(HideBeforeFile)'!$D$62:$S$71,MATCH(C130,'For Bill Impact(HideBeforeFile)'!$C$62:$C$71,0),MATCH($O140,'For Bill Impact(HideBeforeFile)'!$D$61:$S$61,0)) ->  | F140: =INDEX('For Bill Impact(HideBeforeFile)'!$D$6:$S$15,MATCH(C130,'For Bill Impact(HideBeforeFile)'!$C$62:$C$71,0),MATCH($O140,'For Bill Impact(HideBeforeFile)'!$D$61:$S$61,0)) ->  | H140: =INDEX('For Bill Impact(HideBeforeFile)'!$D$20:$S$29,MATCH(C130,'For Bill Impact(HideBeforeFile)'!$C$62:$C$71,0),MATCH($O140,'For Bill Impact(HideBeforeFile)'!$D$61:$S$61,0)) ->  | J140: =INDEX('For Bill Impact(HideBeforeFile)'!$D$34:$S$43,MATCH(C130,'For Bill Impact(HideBeforeFile)'!$C$62:$C$71,0),MATCH($O140,'For Bill Impact(HideBeforeFile)'!$D$61:$S$61,0)) ->  | O140: ='For Bill Impact(HideBeforeFile)'!$S$5 -> Dist. Capacity Rate
C141: =INDEX('For Bill Impact(HideBeforeFile)'!$D$48:$S$57,MATCH(C130,'For Bill Impact(HideBeforeFile)'!$C$62:$C$71,0),MATCH($O141,'For Bill Impact(HideBeforeFile)'!$D$61:$S$61,0)) -> System Gas Charge | D141: =INDEX('For Bill Impact(HideBeforeFile)'!$D$62:$S$71,MATCH(C130,'For Bill Impact(HideBeforeFile)'!$C$62:$C$71,0),MATCH($O141,'For Bill Impact(HideBeforeFile)'!$D$61:$S$61,0)) -> cents / m3 | F141: =INDEX('For Bill Impact(HideBeforeFile)'!$D$6:$S$15,MATCH(C130,'For Bill Impact(HideBeforeFile)'!$C$62:$C$71,0),MATCH($O141,'For Bill Impact(HideBeforeFile)'!$D$61:$S$61,0)) -> 0.0435 | H141: =INDEX('For Bill Impact(HideBeforeFile)'!$D$20:$S$29,MATCH(C130,'For Bill Impact(HideBeforeFile)'!$C$62:$C$71,0),MATCH($O141,'For Bill Impact(HideBeforeFile)'!$D$61:$S$61,0)) -> 0.0435 | J141: =INDEX('For Bill Impact(HideBeforeFile)'!$D$34:$S$43,MATCH(C130,'For Bill Impact(HideBeforeFile)'!$C$62:$C$71,0),MATCH($O141,'For Bill Impact(HideBeforeFile)'!$D$61:$S$61,0)) -> 30188.16667 | O141: ='For Bill Impact(HideBeforeFile)'!$E$5 -> System Gas
C143: =INDEX('For Bill Impact(HideBeforeFile)'!$D$48:$S$57,MATCH(C130,'For Bill Impact(HideBeforeFile)'!$C$62:$C$71,0),MATCH($O143,'For Bill Impact(HideBeforeFile)'!$D$61:$S$61,0)) -> REDA | D143: =INDEX('For Bill Impact(HideBeforeFile)'!$D$62:$S$71,MATCH(C130,'For Bill Impact(HideBeforeFile)'!$C$62:$C$71,0),MATCH($O143,'For Bill Impact(HideBeforeFile)'!$D$61:$S$61,0)) -> $ / month | F143: =INDEX('For Bill Impact(HideBeforeFile)'!$D$6:$S$15,MATCH(C130,'For Bill Impact(HideBeforeFile)'!$C$62:$C$71,0),MATCH($O143,'For Bill Impact(HideBeforeFile)'!$D$61:$S$61,0)) -> 0.33 | H143: =INDEX('For Bill Impact(HideBeforeFile)'!$D$20:$S$29,MATCH(C130,'For Bill Impact(HideBeforeFile)'!$C$62:$C$71,0),MATCH($O143,'For Bill Impact(HideBeforeFile)'!$D$61:$S$61,0)) -> 0.02 | J143: =INDEX('For Bill Impact(HideBeforeFile)'!$D$34:$S$43,MATCH(C130,'For Bill Impact(HideBeforeFile)'!$C$62:$C$71,0),MATCH($O143,'For Bill Impact(HideBeforeFile)'!$D$61:$S$61,0)) -> 12 | O143: =O83 -> REDA
C144: =INDEX('For Bill Impact(HideBeforeFile)'!$D$48:$S$57,MATCH(C130,'For Bill Impact(HideBeforeFile)'!$C$62:$C$71,0),MATCH($O144,'For Bill Impact(HideBeforeFile)'!$D$61:$S$61,0)) -> PGTVA | D144: =INDEX('For Bill Impact(HideBeforeFile)'!$D$62:$S$71,MATCH(C130,'For Bill Impact(HideBeforeFile)'!$C$62:$C$71,0),MATCH($O144,'For Bill Impact(HideBeforeFile)'!$D$61:$S$61,0)) -> cents / m3 | F144: =INDEX('For Bill Impact(HideBeforeFile)'!$D$6:$S$15,MATCH(C130,'For Bill Impact(HideBeforeFile)'!$C$62:$C$71,0),MATCH($O144,'For Bill Impact(HideBeforeFile)'!$D$61:$S$61,0)) -> 0.3195 | H144: =INDEX('For Bill Impact(HideBeforeFile)'!$D$20:$S$29,MATCH(C130,'For Bill Impact(HideBeforeFile)'!$C$62:$C$71,0),MATCH($O144,'For Bill Impact(HideBeforeFile)'!$D$61:$S$61,0)) -> 0.4355195776 | J144: =INDEX('For Bill Impact(HideBeforeFile)'!$D$34:$S$43,MATCH(C130,'For Bill Impact(HideBeforeFile)'!$C$62:$C$71,0),MATCH($O144,'For Bill Impact(HideBeforeFile)'!$D$61:$S$61,0)) -> 30188.16667 | O144: =O84 -> PGTVA
C145: =INDEX('For Bill Impact(HideBeforeFile)'!$D$48:$S$57,MATCH(C130,'For Bill Impact(HideBeforeFile)'!$C$62:$C$71,0),MATCH($O145,'For Bill Impact(HideBeforeFile)'!$D$61:$S$61,0)) -> ADVADA | D145: =INDEX('For Bill Impact(HideBeforeFile)'!$D$62:$S$71,MATCH(C130,'For Bill Impact(HideBeforeFile)'!$C$62:$C$71,0),MATCH($O145,'For Bill Impact(HideBeforeFile)'!$D$61:$S$61,0)) -> cents / m3 | F145: =INDEX('For Bill Impact(HideBeforeFile)'!$D$6:$S$15,MATCH(C130,'For Bill Impact(HideBeforeFile)'!$C$62:$C$71,0),MATCH($O145,'For Bill Impact(HideBeforeFile)'!$D$61:$S$61,0)) -> 0 | H145: =INDEX('For Bill Impact(HideBeforeFile)'!$D$20:$S$29,MATCH(C130,'For Bill Impact(HideBeforeFile)'!$C$62:$C$71,0),MATCH($O145,'For Bill Impact(HideBeforeFile)'!$D$61:$S$61,0)) -> 0 | J145: =INDEX('For Bill Impact(HideBeforeFile)'!$D$34:$S$43,MATCH(C130,'For Bill Impact(HideBeforeFile)'!$C$62:$C$71,0),MATCH($O145,'For Bill Impact(HideBeforeFile)'!$D$61:$S$61,0)) -> 30188.16667 | O145: =O85 -> ADVADA
C146: =INDEX('For Bill Impact(HideBeforeFile)'!$D$48:$S$57,MATCH(C130,'For Bill Impact(HideBeforeFile)'!$C$62:$C$71,0),MATCH($O146,'For Bill Impact(HideBeforeFile)'!$D$61:$S$61,0)) -> LDMDA | D146: =INDEX('For Bill Impact(HideBeforeFile)'!$D$62:$S$71,MATCH(C130,'For Bill Impact(HideBeforeFile)'!$C$62:$C$71,0),MATCH($O146,'For Bill Impact(HideBeforeFile)'!$D$61:$S$61,0)) -> $ / month | F146: =INDEX('For Bill Impact(HideBeforeFile)'!$D$6:$S$15,MATCH(C130,'For Bill Impact(HideBeforeFile)'!$C$62:$C$71,0),MATCH($O146,'For Bill Impact(HideBeforeFile)'!$D$61:$S$61,0)) -> 1.35 | H146: =INDEX('For Bill Impact(HideBeforeFile)'!$D$20:$S$29,MATCH(C130,'For Bill Impact(HideBeforeFile)'!$C$62:$C$71,0),MATCH($O146,'For Bill Impact(HideBeforeFile)'!$D$61:$S$61,0)) -> 0 | J146: =INDEX('For Bill Impact(HideBeforeFile)'!$D$34:$S$43,MATCH(C130,'For Bill Impact(HideBeforeFile)'!$C$62:$C$71,0),MATCH($O146,'For Bill Impact(HideBeforeFile)'!$D$61:$S$61,0)) -> 12 | O146: =O86 -> LDMDA
C147: =INDEX('For Bill Impact(HideBeforeFile)'!$D$48:$S$57,MATCH(C130,'For Bill Impact(HideBeforeFile)'!$C$62:$C$71,0),MATCH($O147,'For Bill Impact(HideBeforeFile)'!$D$61:$S$61,0)) -> SICDA | D147: =INDEX('For Bill Impact(HideBeforeFile)'!$D$62:$S$71,MATCH(C130,'For Bill Impact(HideBeforeFile)'!$C$62:$C$71,0),MATCH($O147,'For Bill Impact(HideBeforeFile)'!$D$61:$S$61,0)) -> cents / m3 | F147: =INDEX('For Bill Impact(HideBeforeFile)'!$D$6:$S$15,MATCH(C130,'For Bill Impact(HideBeforeFile)'!$C$62:$C$71,0),MATCH($O147,'For Bill Impact(HideBeforeFile)'!$D$61:$S$61,0)) -> 0.2683 | H147: =INDEX('For Bill Impact(HideBeforeFile)'!$D$20:$S$29,MATCH(C130,'For Bill Impact(HideBeforeFile)'!$C$62:$C$71,0),MATCH($O147,'For Bill Impact(HideBeforeFile)'!$D$61:$S$61,0)) -> 0 | J147: =INDEX('For Bill Impact(HideBeforeFile)'!$D$34:$S$43,MATCH(C130,'For Bill Impact(HideBeforeFile)'!$C$62:$C$71,0),MATCH($O147,'For Bill Impact(HideBeforeFile)'!$D$61:$S$61,0)) -> 30188.16667 | O147: =O87 -> SICDA
C148: =INDEX('For Bill Impact(HideBeforeFile)'!$D$48:$S$57,MATCH(C130,'For Bill Impact(HideBeforeFile)'!$C$62:$C$71,0),MATCH($O148,'For Bill Impact(HideBeforeFile)'!$D$61:$S$61,0)) -> FCCVA | D148: =INDEX('For Bill Impact(HideBeforeFile)'!$D$62:$S$71,MATCH(C130,'For Bill Impact(HideBeforeFile)'!$C$62:$C$71,0),MATCH($O148,'For Bill Impact(HideBeforeFile)'!$D$61:$S$61,0)) -> $ / month | F148: =INDEX('For Bill Impact(HideBeforeFile)'!$D$6:$S$15,MATCH(C130,'For Bill Impact(HideBeforeFile)'!$C$62:$C$71,0),MATCH($O148,'For Bill Impact(HideBeforeFile)'!$D$61:$S$61,0)) -> 0.03 | H148: =INDEX('For Bill Impact(HideBeforeFile)'!$D$20:$S$29,MATCH(C130,'For Bill Impact(HideBeforeFile)'!$C$62:$C$71,0),MATCH($O148,'For Bill Impact(HideBeforeFile)'!$D$61:$S$61,0)) -> 0.03 | J148: =INDEX('For Bill Impact(HideBeforeFile)'!$D$34:$S$43,MATCH(C130,'For Bill Impact(HideBeforeFile)'!$C$62:$C$71,0),MATCH($O148,'For Bill Impact(HideBeforeFile)'!$D$61:$S$61,0)) -> 12 | O148: FCCVA
C149: =INDEX('For Bill Impact(HideBeforeFile)'!$D$48:$S$57,MATCH(C130,'For Bill Impact(HideBeforeFile)'!$C$62:$C$71,0),MATCH($O149,'For Bill Impact(HideBeforeFile)'!$D$61:$S$61,0)) -> GGEADA | D149: =INDEX('For Bill Impact(HideBeforeFile)'!$D$62:$S$71,MATCH(C130,'For Bill Impact(HideBeforeFile)'!$C$62:$C$71,0),MATCH($O149,'For Bill Impact(HideBeforeFile)'!$D$61:$S$61,0)) -> $ / month | F149: =INDEX('For Bill Impact(HideBeforeFile)'!$D$6:$S$15,MATCH(C130,'For Bill Impact(HideBeforeFile)'!$C$62:$C$71,0),MATCH($O149,'For Bill Impact(HideBeforeFile)'!$D$61:$S$61,0)) -> 0.03 | H149: =INDEX('For Bill Impact(HideBeforeFile)'!$D$20:$S$29,MATCH(C130,'For Bill Impact(HideBeforeFile)'!$C$62:$C$71,0),MATCH($O149,'For Bill Impact(HideBeforeFile)'!$D$61:$S$61,0)) -> 0.03 | J149: =INDEX('For Bill Impact(HideBeforeFile)'!$D$34:$S$43,MATCH(C130,'For Bill Impact(HideBeforeFile)'!$C$62:$C$71,0),MATCH($O149,'For Bill Impact(HideBeforeFile)'!$D$61:$S$61,0)) -> 12 | O149: GGEADA
C151: =INDEX('For Bill Impact(HideBeforeFile)'!$D$48:$S$57,MATCH(C130,'For Bill Impact(HideBeforeFile)'!$C$62:$C$71,0),MATCH($O151,'For Bill Impact(HideBeforeFile)'!$D$61:$S$61,0)) -> Federal Carbon | D151: =INDEX('For Bill Impact(HideBeforeFile)'!$D$62:$S$71,MATCH(C130,'For Bill Impact(HideBeforeFile)'!$C$62:$C$71,0),MATCH($O151,'For Bill Impact(HideBeforeFile)'!$D$61:$S$61,0)) -> cents / m3 | F151: =INDEX('For Bill Impact(HideBeforeFile)'!$D$6:$S$15,MATCH(C130,'For Bill Impact(HideBeforeFile)'!$C$62:$C$71,0),MATCH($O151,'For Bill Impact(HideBeforeFile)'!$D$61:$S$61,0)) -> 9.79 | H151: =INDEX('For Bill Impact(HideBeforeFile)'!$D$20:$S$29,MATCH(C130,'For Bill Impact(HideBeforeFile)'!$C$62:$C$71,0),MATCH($O151,'For Bill Impact(HideBeforeFile)'!$D$61:$S$61,0)) -> 9.79 | J151: =INDEX('For Bill Impact(HideBeforeFile)'!$D$34:$S$43,MATCH(C130,'For Bill Impact(HideBeforeFile)'!$C$62:$C$71,0),MATCH($O151,'For Bill Impact(HideBeforeFile)'!$D$61:$S$61,0)) -> 30188.16667 | O151: ='For Bill Impact(HideBeforeFile)'!$M$5 -> Federal Carbon
C152: =INDEX('For Bill Impact(HideBeforeFile)'!$D$48:$S$57,MATCH(C130,'For Bill Impact(HideBeforeFile)'!$C$62:$C$71,0),MATCH($O152,'For Bill Impact(HideBeforeFile)'!$D$61:$S$61,0)) -> Facility Carbon | D152: =INDEX('For Bill Impact(HideBeforeFile)'!$D$62:$S$71,MATCH(C130,'For Bill Impact(HideBeforeFile)'!$C$62:$C$71,0),MATCH($O152,'For Bill Impact(HideBeforeFile)'!$D$61:$S$61,0)) -> cents / m3 | F152: =INDEX('For Bill Impact(HideBeforeFile)'!$D$6:$S$15,MATCH(C130,'For Bill Impact(HideBeforeFile)'!$C$62:$C$71,0),MATCH($O152,'For Bill Impact(HideBeforeFile)'!$D$61:$S$61,0)) -> 0.0034 | H152: =INDEX('For Bill Impact(HideBeforeFile)'!$D$20:$S$29,MATCH(C130,'For Bill Impact(HideBeforeFile)'!$C$62:$C$71,0),MATCH($O152,'For Bill Impact(HideBeforeFile)'!$D$61:$S$61,0)) -> 0.0034 | J152: =INDEX('For Bill Impact(HideBeforeFile)'!$D$34:$S$43,MATCH(C130,'For Bill Impact(HideBeforeFile)'!$C$62:$C$71,0),MATCH($O152,'For Bill Impact(HideBeforeFile)'!$D$61:$S$61,0)) -> 30188.16667 | O152: ='For Bill Impact(HideBeforeFile)'!$N$5 -> Facility Carbon
C155: Commodity | F155: Current | H155: Proposed | J155: Change $ | L155: Change %
F156: =F134*$J134/100 -> 9118.698 | H156: =H134*$J134/100 -> 9118.698 | J156: =H156-F156 -> 0 | L156: =IFERROR(J156/F156,"") -> 0
C158: Delivery | F158: Current Rate | H158: Proposed Rate | J158: Change $ | L158: Change %
C159: =IF(C136<>"",C136,"") -> Customer (excl. Bill 32) | F159: =F136*$J136 -> 222 | H159: =H136*$J136 -> 234 | J159: =IFERROR(H159-F159,"") -> 12 | L159: =IFERROR(J159/F159,"") -> 0.05405405405
C160: Bill 32 | F160: 12 | H160: 12 | J160: =IFERROR(H160-F160,"") -> 0 | L160: =IFERROR(J160/F160,"") -> 0
C161: =IF(C137<>"",C137,"") -> Block 1 (First 1,000 m3 per month) | F161: =IFERROR(F137*$J137/100,"") -> 855.0001671 | H161: =IFERROR(H137*$J137/100,"") -> 871.3736246 | J161: =IFERROR(H161-F161,"") -> 16.37345749 | L161: =IFERROR(J161/F161,"") -> 0.01915023894
C162: =IF(C138<>"",C138,"") -> Block 2 (Over 1,000 m3 per month) | F162: =IFERROR(F138*$J138/100,"") -> 2641.507025 | H162: =IFERROR(H138*$J138/100,"") -> 2692.092516 | J162: 50.58549069 | L162: 0.01915023894
C163: =IF(C139<>"",C139,"") ->  | F163: =IFERROR(F139*$J139/100,"") ->  | H163: =IFERROR(H139*$J139/100,"") -> 
C164: =IF(C140<>"",C140,"") ->  | F164: =IFERROR(F140*$J140/100,"") ->  | H164: =IFERROR(H140*$J140/100,"") -> 
C165: =IF(C141<>"",C141,"") -> System Gas Charge | F165: =IFERROR(F141*$J141/100,"") -> 13.1318525 | H165: =IFERROR(H141*$J141/100,"") -> 13.1318525 | J165: 0 | L165: 0
C166: Total Delivery | F166: =SUM(F159:F165) -> 3743.639044 | H166: =SUM(H159:H165) -> 3822.597993 | J166: =H166-F166 -> 78.95894818 | L166: =IF(ISERROR(J166/F166),0,J166/F166) -> 0.02109149607
C168: Rate Riders
C170: Rate Riders | F170: Current Rate | H170: Proposed Rate | J170: Change $ | L170: Change %
C171: =C111 -> REDA | F171: =F143*$J143 -> 3.96 | H171: =H143*$J143 -> 0.24 | J171: =IFERROR(H171-F171,"") -> -3.72 | L171: =IFERROR(J171/F171,"") -> -0.9393939394
C172: =C112 -> PGTVA | F172: =IFERROR(F144*$J144/100,"") -> 96.4511925 | H172: =IFERROR(H144*$J144/100,"") -> 131.475376 | J172: =IFERROR(H172-F172,"") -> 35.02418346 | L172: =IFERROR(J172/F172,"") -> 0.3631285685
C173: ADVADA | F173: =IFERROR(F145*$J145/100,"") -> 0 | H173: =IFERROR(H145*$J145/100,"") -> 0 | J173: 0
C174: LDMDA | F174: =F146*$J146 -> 16.2 | H174: =H146*$J146 -> 0 | J174: -16.2 | L174: -1
C175: SICDA | F175: =IFERROR(F147*$J147/100,"") -> 80.99485117 | H175: =IFERROR(H147*$J147/100,"") -> 0 | J175: -80.99485117 | L175: -1
C176: FCCVA | F176: =F148*$J148 -> 0.36 | H176: =H148*$J148 -> 0.36 | J176: 0 | L176: 0
C177: GGEADA | F177: 0.36 | H177: 0.36 | J177: 0 | L177: 0
C178: Total Rate Riders | F178: =SUM(F171:F177) -> 198.3260437 | H178: =SUM(H171:H177) -> 132.435376 | J178: =SUM(J171:J177) -> -65.8906677 | L178: =IF(ISERROR(J178/F178),0,J178/F178) -> -0.3322340651
C180: Carbon Tax
C181: Federal Carbon | F181: =F151*$J151/100 -> 2955.421517 | H181: =H151*$J151/100 -> 2955.421517 | J181: =IFERROR(H181-F181,"") -> 0 | L181: =IFERROR(J181/F181,"") -> 0
C182: Facility Carbon | F182: =F152*$J152/100 -> 1.026397667 | H182: =H152*$J152/100 -> 1.026397667 | J182: =IFERROR(H182-F182,"") -> 0 | L182: 0
C183: Total Carbon Tax | F183: =SUM(F181:F182) -> 2956.447914 | H183: =SUM(H181:H182) -> 2956.447914 | J183: =SUM(J181:J182) -> 0 | L183: =IF(ISERROR(J183/F183),0,J183/F183) -> 0
C185: Total Bill Impact | F185: =SUM(F156,F166,F178,F183) -> 16017.111 | H185: =SUM(H156,H166,H178,H183) -> 16030.17928 | J185: =SUM(J156,J166,J178,J183) -> 13.06828048 | L185: =IFERROR(J185/F185,"") -> 0.0008158949811
C188: =MID(CELL("filename",A121),FIND("]",CELL("filename",A121))+1,255) -> G1.1 Rate 1 Bill Impact

Sheet G1.2 Rate 2 Bill Impact
C2: ='A1.1 Distributor Information'!C3 -> Name of LDC: EPCOR Natural Gas Limited Partnership
C3: ='A1.1 Distributor Information'!C4 -> OEB Application Number: EB-2022-0183 Exhibit A - 2023 IRM Application
C7: Rate 2 Delivery Bill Impact
C10: ='For Bill Impact(HideBeforeFile)'!C9 -> RATE 2 - Seasonal Service - Apr to Oct | F10: Current | H10: Proposed | J10: Bill Determinant | O10: Look-up
C14: =INDEX('For Bill Impact(HideBeforeFile)'!$D$48:$S$57,MATCH(C10,'For Bill Impact(HideBeforeFile)'!$C$62:$C$71,0),MATCH($O14,'For Bill Impact(HideBeforeFile)'!$D$61:$S$61,0)) -> Commodity | D14: =INDEX('For Bill Impact(HideBeforeFile)'!$D$62:$S$71,MATCH(C10,'For Bill Impact(HideBeforeFile)'!$C$62:$C$71,0),MATCH($O14,'For Bill Impact(HideBeforeFile)'!$D$61:$S$61,0)) -> cents / m3 | F14: =INDEX('For Bill Impact(HideBeforeFile)'!$D$6:$S$15,MATCH(C10,'For Bill Impact(HideBeforeFile)'!$C$62:$C$71,0),MATCH($O14,'For Bill Impact(HideBeforeFile)'!$D$61:$S$61,0)) -> 30.2062 | H14: =INDEX('For Bill Impact(HideBeforeFile)'!$D$20:$S$29,MATCH(C10,'For Bill Impact(HideBeforeFile)'!$C$62:$C$71,0),MATCH($O14,'For Bill Impact(HideBeforeFile)'!$D$61:$S$61,0)) -> 30.2062 | J14: =INDEX('For Bill Impact(HideBeforeFile)'!$D$34:$S$43,MATCH(C10,'For Bill Impact(HideBeforeFile)'!$C$62:$C$71,0),MATCH($O14,'For Bill Impact(HideBeforeFile)'!$D$61:$S$61,0)) -> 10037.448 | O14: ='For Bill Impact(HideBeforeFile)'!$D$5 -> Commodity
C16: =INDEX('For Bill Impact(HideBeforeFile)'!$D$48:$S$57,MATCH(C10,'For Bill Impact(HideBeforeFile)'!$C$62:$C$71,0),MATCH($O16,'For Bill Impact(HideBeforeFile)'!$D$61:$S$61,0)) -> Customer (excl. Bill 32) | D16: =INDEX('For Bill Impact(HideBeforeFile)'!$D$62:$S$71,MATCH(C10,'For Bill Impact(HideBeforeFile)'!$C$62:$C$71,0),MATCH($O16,'For Bill Impact(HideBeforeFile)'!$D$61:$S$61,0)) -> $ / month | F16: =INDEX('For Bill Impact(HideBeforeFile)'!$D$6:$S$15,MATCH(C10,'For Bill Impact(HideBeforeFile)'!$C$62:$C$71,0),MATCH($O16,'For Bill Impact(HideBeforeFile)'!$D$61:$S$61,0)) -> 20 | H16: =INDEX('For Bill Impact(HideBeforeFile)'!$D$20:$S$29,MATCH(C10,'For Bill Impact(HideBeforeFile)'!$C$62:$C$71,0),MATCH($O16,'For Bill Impact(HideBeforeFile)'!$D$61:$S$61,0)) -> 21.64180452 | J16: =INDEX('For Bill Impact(HideBeforeFile)'!$D$34:$S$43,MATCH(C10,'For Bill Impact(HideBeforeFile)'!$C$62:$C$71,0),MATCH($O16,'For Bill Impact(HideBeforeFile)'!$D$61:$S$61,0)) -> 7 | O16: ='For Bill Impact(HideBeforeFile)'!$O$5 -> Dist. Customer Rate
C17: =INDEX('For Bill Impact(HideBeforeFile)'!$D$48:$S$57,MATCH(C10,'For Bill Impact(HideBeforeFile)'!$C$62:$C$71,0),MATCH($O17,'For Bill Impact(HideBeforeFile)'!$D$61:$S$61,0)) -> Block 1 (First 1,000 m3 per month) | D17: =INDEX('For Bill Impact(HideBeforeFile)'!$D$62:$S$71,MATCH(C10,'For Bill Impact(HideBeforeFile)'!$C$62:$C$71,0),MATCH($O17,'For Bill Impact(HideBeforeFile)'!$D$61:$S$61,0)) -> cents / m3 | F17: =INDEX('For Bill Impact(HideBeforeFile)'!$D$6:$S$15,MATCH(C10,'For Bill Impact(HideBeforeFile)'!$C$62:$C$71,0),MATCH($O17,'For Bill Impact(HideBeforeFile)'!$D$61:$S$61,0)) -> 17.6387 | H17: =INDEX('For Bill Impact(HideBeforeFile)'!$D$20:$S$29,MATCH(C10,'For Bill Impact(HideBeforeFile)'!$C$62:$C$71,0),MATCH($O17,'For Bill Impact(HideBeforeFile)'!$D$61:$S$61,0)) -> 17.94689923 | J17: =INDEX('For Bill Impact(HideBeforeFile)'!$D$34:$S$43,MATCH(C10,'For Bill Impact(HideBeforeFile)'!$C$62:$C$71,0),MATCH($O17,'For Bill Impact(HideBeforeFile)'!$D$61:$S$61,0)) -> 1473.642 | O17: ='For Bill Impact(HideBeforeFile)'!$P$5 -> Dist. Vol. Rate Tier 1
C18: =INDEX('For Bill Impact(HideBeforeFile)'!$D$48:$S$57,MATCH(C10,'For Bill Impact(HideBeforeFile)'!$C$62:$C$71,0),MATCH($O18,'For Bill Impact(HideBeforeFile)'!$D$61:$S$61,0)) -> Block 2 (Next 24,000 m3 per month) | D18: =INDEX('For Bill Impact(HideBeforeFile)'!$D$62:$S$71,MATCH(C10,'For Bill Impact(HideBeforeFile)'!$C$62:$C$71,0),MATCH($O18,'For Bill Impact(HideBeforeFile)'!$D$61:$S$61,0)) -> cents / m3 | F18: =INDEX('For Bill Impact(HideBeforeFile)'!$D$6:$S$15,MATCH(C10,'For Bill Impact(HideBeforeFile)'!$C$62:$C$71,0),MATCH($O18,'For Bill Impact(HideBeforeFile)'!$D$61:$S$61,0)) -> 9.163 | H18: =INDEX('For Bill Impact(HideBeforeFile)'!$D$20:$S$29,MATCH(C10,'For Bill Impact(HideBeforeFile)'!$C$62:$C$71,0),MATCH($O18,'For Bill Impact(HideBeforeFile)'!$D$61:$S$61,0)) -> 9.286281901 | J18: =INDEX('For Bill Impact(HideBeforeFile)'!$D$34:$S$43,MATCH(C10,'For Bill Impact(HideBeforeFile)'!$C$62:$C$71,0),MATCH($O18,'For Bill Impact(HideBeforeFile)'!$D$61:$S$61,0)) -> 7718.316 | O18: ='For Bill Impact(HideBeforeFile)'!$Q$5 -> Dist. Vol. Rate Tier 2
C19: =INDEX('For Bill Impact(HideBeforeFile)'!$D$48:$S$57,MATCH(C10,'For Bill Impact(HideBeforeFile)'!$C$62:$C$71,0),MATCH($O19,'For Bill Impact(HideBeforeFile)'!$D$61:$S$61,0)) -> Block 3 (Over 25,000 m3 per month) | D19: =INDEX('For Bill Impact(HideBeforeFile)'!$D$62:$S$71,MATCH(C10,'For Bill Impact(HideBeforeFile)'!$C$62:$C$71,0),MATCH($O19,'For Bill Impact(HideBeforeFile)'!$D$61:$S$61,0)) -> cents / m3 | F19: =INDEX('For Bill Impact(HideBeforeFile)'!$D$6:$S$15,MATCH(C10,'For Bill Impact(HideBeforeFile)'!$C$62:$C$71,0),MATCH($O19,'For Bill Impact(HideBeforeFile)'!$D$61:$S$61,0)) -> 7.1434 | H19: =INDEX('For Bill Impact(HideBeforeFile)'!$D$20:$S$29,MATCH(C10,'For Bill Impact(HideBeforeFile)'!$C$62:$C$71,0),MATCH($O19,'For Bill Impact(HideBeforeFile)'!$D$61:$S$61,0)) -> 7.343929946 | J19: =INDEX('For Bill Impact(HideBeforeFile)'!$D$34:$S$43,MATCH(C10,'For Bill Impact(HideBeforeFile)'!$C$62:$C$71,0),MATCH($O19,'For Bill Impact(HideBeforeFile)'!$D$61:$S$61,0)) -> 845.49 | O19: ='For Bill Impact(HideBeforeFile)'!$R$5 -> Dist. Vol. Rate Tier 3
C20: =INDEX('For Bill Impact(HideBeforeFile)'!$D$48:$S$57,MATCH(C10,'For Bill Impact(HideBeforeFile)'!$C$62:$C$71,0),MATCH($O20,'For Bill Impact(HideBeforeFile)'!$D$61:$S$61,0)) ->  | D20: =INDEX('For Bill Impact(HideBeforeFile)'!$D$62:$S$71,MATCH(C10,'For Bill Impact(HideBeforeFile)'!$C$62:$C$71,0),MATCH($O20,'For Bill Impact(HideBeforeFile)'!$D$61:$S$61,0)) ->  | F20: =INDEX('For Bill Impact(HideBeforeFile)'!$D$6:$S$15,MATCH(C10,'For Bill Impact(HideBeforeFile)'!$C$62:$C$71,0),MATCH($O20,'For Bill Impact(HideBeforeFile)'!$D$61:$S$61,0)) ->  | H20: =INDEX('For Bill Impact(HideBeforeFile)'!$D$20:$S$29,MATCH(C10,'For Bill Impact(HideBeforeFile)'!$C$62:$C$71,0),MATCH($O20,'For Bill Impact(HideBeforeFile)'!$D$61:$S$61,0)) ->  | J20: =INDEX('For Bill Impact(HideBeforeFile)'!$D$34:$S$43,MATCH(C10,'For Bill Impact(HideBeforeFile)'!$C$62:$C$71,0),MATCH($O20,'For Bill Impact(HideBeforeFile)'!$D$61:$S$61,0)) ->  | O20: ='For Bill Impact(HideBeforeFile)'!$S$5 -> Dist. Capacity Rate
C21: =INDEX('For Bill Impact(HideBeforeFile)'!$D$48:$S$57,MATCH(C10,'For Bill Impact(HideBeforeFile)'!$C$62:$C$71,0),MATCH($O21,'For Bill Impact(HideBeforeFile)'!$D$61:$S$61,0)) -> System Gas Charge | D21: =INDEX('For Bill Impact(HideBeforeFile)'!$D$62:$S$71,MATCH(C10,'For Bill Impact(HideBeforeFile)'!$C$62:$C$71,0),MATCH($O21,'For Bill Impact(HideBeforeFile)'!$D$61:$S$61,0)) -> cents / m3 | F21: =INDEX('For Bill Impact(HideBeforeFile)'!$D$6:$S$15,MATCH(C10,'For Bill Impact(HideBeforeFile)'!$C$62:$C$71,0),MATCH($O21,'For Bill Impact(HideBeforeFile)'!$D$61:$S$61,0)) -> 0.0435 | H21: =INDEX('For Bill Impact(HideBeforeFile)'!$D$20:$S$29,MATCH(C10,'For Bill Impact(HideBeforeFile)'!$C$62:$C$71,0),MATCH($O21,'For Bill Impact(HideBeforeFile)'!$D$61:$S$61,0)) -> 0.0435 | J21: =INDEX('For Bill Impact(HideBeforeFile)'!$D$34:$S$43,MATCH(C10,'For Bill Impact(HideBeforeFile)'!$C$62:$C$71,0),MATCH($O21,'For Bill Impact(HideBeforeFile)'!$D$61:$S$61,0)) -> 10037.448 | O21: ='For Bill Impact(HideBeforeFile)'!$E$5 -> System Gas
C23: =INDEX('For Bill Impact(HideBeforeFile)'!$D$48:$S$57,MATCH(C10,'For Bill Impact(HideBeforeFile)'!$C$62:$C$71,0),MATCH($O23,'For Bill Impact(HideBeforeFile)'!$D$61:$S$61,0)) -> REDA | D23: =INDEX('For Bill Impact(HideBeforeFile)'!$D$62:$S$71,MATCH(C10,'For Bill Impact(HideBeforeFile)'!$C$62:$C$71,0),MATCH($O23,'For Bill Impact(HideBeforeFile)'!$D$61:$S$61,0)) -> $ / month | F23: =INDEX('For Bill Impact(HideBeforeFile)'!$D$6:$S$15,MATCH(C10,'For Bill Impact(HideBeforeFile)'!$C$62:$C$71,0),MATCH($O23,'For Bill Impact(HideBeforeFile)'!$D$61:$S$61,0)) -> 0.33 | H23: =INDEX('For Bill Impact(HideBeforeFile)'!$D$20:$S$29,MATCH(C10,'For Bill Impact(HideBeforeFile)'!$C$62:$C$71,0),MATCH($O23,'For Bill Impact(HideBeforeFile)'!$D$61:$S$61,0)) -> 0.02 | J23: =INDEX('For Bill Impact(HideBeforeFile)'!$D$34:$S$43,MATCH(C10,'For Bill Impact(HideBeforeFile)'!$C$62:$C$71,0),MATCH($O23,'For Bill Impact(HideBeforeFile)'!$D$61:$S$61,0)) -> 7 | O23: ='For Bill Impact(HideBeforeFile)'!$F$5 -> REDA
C24: =INDEX('For Bill Impact(HideBeforeFile)'!$D$48:$S$57,MATCH(C10,'For Bill Impact(HideBeforeFile)'!$C$62:$C$71,0),MATCH($O24,'For Bill Impact(HideBeforeFile)'!$D$61:$S$61,0)) -> PGTVA | D24: =INDEX('For Bill Impact(HideBeforeFile)'!$D$62:$S$71,MATCH(C10,'For Bill Impact(HideBeforeFile)'!$C$62:$C$71,0),MATCH($O24,'For Bill Impact(HideBeforeFile)'!$D$61:$S$61,0)) -> cents / m3 | F24: =INDEX('For Bill Impact(HideBeforeFile)'!$D$6:$S$15,MATCH(C10,'For Bill Impact(HideBeforeFile)'!$C$62:$C$71,0),MATCH($O24,'For Bill Impact(HideBeforeFile)'!$D$61:$S$61,0)) -> 0.3195 | H24: =INDEX('For Bill Impact(HideBeforeFile)'!$D$20:$S$29,MATCH(C10,'For Bill Impact(HideBeforeFile)'!$C$62:$C$71,0),MATCH($O24,'For Bill Impact(HideBeforeFile)'!$D$61:$S$61,0)) -> 0.4355195776 | J24: =INDEX('For Bill Impact(HideBeforeFile)'!$D$34:$S$43,MATCH(C10,'For Bill Impact(HideBeforeFile)'!$C$62:$C$71,0),MATCH($O24,'For Bill Impact(HideBeforeFile)'!$D$61:$S$61,0)) -> 10037.448 | O24: ='For Bill Impact(HideBeforeFile)'!$G$5 -> PGTVA
C25: =INDEX('For Bill Impact(HideBeforeFile)'!$D$48:$S$57,MATCH(C10,'For Bill Impact(HideBeforeFile)'!$C$62:$C$71,0),MATCH($O25,'For Bill Impact(HideBeforeFile)'!$D$61:$S$61,0)) -> ADVADA | D25: =INDEX('For Bill Impact(HideBeforeFile)'!$D$62:$S$71,MATCH(C10,'For Bill Impact(HideBeforeFile)'!$C$62:$C$71,0),MATCH($O25,'For Bill Impact(HideBeforeFile)'!$D$61:$S$61,0)) -> cents / m3 | F25: =INDEX('For Bill Impact(HideBeforeFile)'!$D$6:$S$15,MATCH(C10,'For Bill Impact(HideBeforeFile)'!$C$62:$C$71,0),MATCH($O25,'For Bill Impact(HideBeforeFile)'!$D$61:$S$61,0)) -> 0 | H25: =INDEX('For Bill Impact(HideBeforeFile)'!$D$20:$S$29,MATCH(C10,'For Bill Impact(HideBeforeFile)'!$C$62:$C$71,0),MATCH($O25,'For Bill Impact(HideBeforeFile)'!$D$61:$S$61,0)) -> 0 | J25: =INDEX('For Bill Impact(HideBeforeFile)'!$D$34:$S$43,MATCH(C10,'For Bill Impact(HideBeforeFile)'!$C$62:$C$71,0),MATCH($O25,'For Bill Impact(HideBeforeFile)'!$D$61:$S$61,0)) -> 10037.448 | O25: ='For Bill Impact(HideBeforeFile)'!$H$5 -> ADVADA
C26: =INDEX('For Bill Impact(HideBeforeFile)'!$D$48:$S$57,MATCH(C10,'For Bill Impact(HideBeforeFile)'!$C$62:$C$71,0),MATCH($O26,'For Bill Impact(HideBeforeFile)'!$D$61:$S$61,0)) -> LDMDA | D26: =INDEX('For Bill Impact(HideBeforeFile)'!$D$62:$S$71,MATCH(C10,'For Bill Impact(HideBeforeFile)'!$C$62:$C$71,0),MATCH($O26,'For Bill Impact(HideBeforeFile)'!$D$61:$S$61,0)) -> $ / month | F26: =INDEX('For Bill Impact(HideBeforeFile)'!$D$6:$S$15,MATCH(C10,'For Bill Impact(HideBeforeFile)'!$C$62:$C$71,0),MATCH($O26,'For Bill Impact(HideBeforeFile)'!$D$61:$S$61,0)) -> 0 | H26: =INDEX('For Bill Impact(HideBeforeFile)'!$D$20:$S$29,MATCH(C10,'For Bill Impact(HideBeforeFile)'!$C$62:$C$71,0),MATCH($O26,'For Bill Impact(HideBeforeFile)'!$D$61:$S$61,0)) -> 0 | J26: =INDEX('For Bill Impact(HideBeforeFile)'!$D$34:$S$43,MATCH(C10,'For Bill Impact(HideBeforeFile)'!$C$62:$C$71,0),MATCH($O26,'For Bill Impact(HideBeforeFile)'!$D$61:$S$61,0)) -> 7 | O26: LDMDA
C27: =INDEX('For Bill Impact(HideBeforeFile)'!$D$48:$S$57,MATCH(C10,'For Bill Impact(HideBeforeFile)'!$C$62:$C$71,0),MATCH($O27,'For Bill Impact(HideBeforeFile)'!$D$61:$S$61,0)) -> SICDA | D27: =INDEX('For Bill Impact(HideBeforeFile)'!$D$62:$S$71,MATCH(C10,'For Bill Impact(HideBeforeFile)'!$C$62:$C$71,0),MATCH($O27,'For Bill Impact(HideBeforeFile)'!$D$61:$S$61,0)) -> cents / m3 | F27: =INDEX('For Bill Impact(HideBeforeFile)'!$D$6:$S$15,MATCH(C10,'For Bill Impact(HideBeforeFile)'!$C$62:$C$71,0),MATCH($O27,'For Bill Impact(HideBeforeFile)'!$D$61:$S$61,0)) -> 0.2343 | H27: =INDEX('For Bill Impact(HideBeforeFile)'!$D$20:$S$29,MATCH(C10,'For Bill Impact(HideBeforeFile)'!$C$62:$C$71,0),MATCH($O27,'For Bill Impact(HideBeforeFile)'!$D$61:$S$61,0)) -> 0 | J27: =INDEX('For Bill Impact(HideBeforeFile)'!$D$34:$S$43,MATCH(C10,'For Bill Impact(HideBeforeFile)'!$C$62:$C$71,0),MATCH($O27,'For Bill Impact(HideBeforeFile)'!$D$61:$S$61,0)) -> 10037.448 | O27: SICDA
C28: =INDEX('For Bill Impact(HideBeforeFile)'!$D$48:$S$57,MATCH(C10,'For Bill Impact(HideBeforeFile)'!$C$62:$C$71,0),MATCH($O28,'For Bill Impact(HideBeforeFile)'!$D$61:$S$61,0)) -> FCCVA | D28: =INDEX('For Bill Impact(HideBeforeFile)'!$D$62:$S$71,MATCH(C10,'For Bill Impact(HideBeforeFile)'!$C$62:$C$71,0),MATCH($O28,'For Bill Impact(HideBeforeFile)'!$D$61:$S$61,0)) -> $ / month | F28: =INDEX('For Bill Impact(HideBeforeFile)'!$D$6:$S$15,MATCH(C10,'For Bill Impact(HideBeforeFile)'!$C$62:$C$71,0),MATCH($O28,'For Bill Impact(HideBeforeFile)'!$D$61:$S$61,0)) -> 0.03 | H28: =INDEX('For Bill Impact(HideBeforeFile)'!$D$20:$S$29,MATCH(C10,'For Bill Impact(HideBeforeFile)'!$C$62:$C$71,0),MATCH($O28,'For Bill Impact(HideBeforeFile)'!$D$61:$S$61,0)) -> 0.03 | J28: =INDEX('For Bill Impact(HideBeforeFile)'!$D$34:$S$43,MATCH(C10,'For Bill Impact(HideBeforeFile)'!$C$62:$C$71,0),MATCH($O28,'For Bill Impact(HideBeforeFile)'!$D$61:$S$61,0)) -> 7 | O28: FCCVA
C29: =INDEX('For Bill Impact(HideBeforeFile)'!$D$48:$S$57,MATCH(C10,'For Bill Impact(HideBeforeFile)'!$C$62:$C$71,0),MATCH($O29,'For Bill Impact(HideBeforeFile)'!$D$61:$S$61,0)) -> GGEADA | D29: =INDEX('For Bill Impact(HideBeforeFile)'!$D$62:$S$71,MATCH(C10,'For Bill Impact(HideBeforeFile)'!$C$62:$C$71,0),MATCH($O29,'For Bill Impact(HideBeforeFile)'!$D$61:$S$61,0)) -> $ / month | F29: =INDEX('For Bill Impact(HideBeforeFile)'!$D$6:$S$15,MATCH(C10,'For Bill Impact(HideBeforeFile)'!$C$62:$C$71,0),MATCH($O29,'For Bill Impact(HideBeforeFile)'!$D$61:$S$61,0)) -> 0.03 | H29: =INDEX('For Bill Impact(HideBeforeFile)'!$D$20:$S$29,MATCH(C10,'For Bill Impact(HideBeforeFile)'!$C$62:$C$71,0),MATCH($O29,'For Bill Impact(HideBeforeFile)'!$D$61:$S$61,0)) -> 0.03 | J29: =INDEX('For Bill Impact(HideBeforeFile)'!$D$34:$S$43,MATCH(C10,'For Bill Impact(HideBeforeFile)'!$C$62:$C$71,0),MATCH($O29,'For Bill Impact(HideBeforeFile)'!$D$61:$S$61,0)) -> 7 | O29: GGEADA
C31: =INDEX('For Bill Impact(HideBeforeFile)'!$D$48:$S$57,MATCH(C10,'For Bill Impact(HideBeforeFile)'!$C$62:$C$71,0),MATCH($O31,'For Bill Impact(HideBeforeFile)'!$D$61:$S$61,0)) -> Federal Carbon | D31: =INDEX('For Bill Impact(HideBeforeFile)'!$D$62:$S$71,MATCH(C10,'For Bill Impact(HideBeforeFile)'!$C$62:$C$71,0),MATCH($O31,'For Bill Impact(HideBeforeFile)'!$D$61:$S$61,0)) -> cents / m3 | F31: =INDEX('For Bill Impact(HideBeforeFile)'!$D$6:$S$15,MATCH(C10,'For Bill Impact(HideBeforeFile)'!$C$62:$C$71,0),MATCH($O31,'For Bill Impact(HideBeforeFile)'!$D$61:$S$61,0)) -> 9.79 | H31: =INDEX('For Bill Impact(HideBeforeFile)'!$D$20:$S$29,MATCH(C10,'For Bill Impact(HideBeforeFile)'!$C$62:$C$71,0),MATCH($O31,'For Bill Impact(HideBeforeFile)'!$D$61:$S$61,0)) -> 9.79 | J31: =INDEX('For Bill Impact(HideBeforeFile)'!$D$34:$S$43,MATCH(C10,'For Bill Impact(HideBeforeFile)'!$C$62:$C$71,0),MATCH($O31,'For Bill Impact(HideBeforeFile)'!$D$61:$S$61,0)) -> 10037.448 | O31: ='For Bill Impact(HideBeforeFile)'!$M$5 -> Federal Carbon
C32: =INDEX('For Bill Impact(HideBeforeFile)'!$D$48:$S$57,MATCH(C10,'For Bill Impact(HideBeforeFile)'!$C$62:$C$71,0),MATCH($O32,'For Bill Impact(HideBeforeFile)'!$D$61:$S$61,0)) -> Facility Carbon | D32: =INDEX('For Bill Impact(HideBeforeFile)'!$D$62:$S$71,MATCH(C10,'For Bill Impact(HideBeforeFile)'!$C$62:$C$71,0),MATCH($O32,'For Bill Impact(HideBeforeFile)'!$D$61:$S$61,0)) -> cents / m3 | F32: =INDEX('For Bill Impact(HideBeforeFile)'!$D$6:$S$15,MATCH(C10,'For Bill Impact(HideBeforeFile)'!$C$62:$C$71,0),MATCH($O32,'For Bill Impact(HideBeforeFile)'!$D$61:$S$61,0)) -> 0.0034 | H32: =INDEX('For Bill Impact(HideBeforeFile)'!$D$20:$S$29,MATCH(C10,'For Bill Impact(HideBeforeFile)'!$C$62:$C$71,0),MATCH($O32,'For Bill Impact(HideBeforeFile)'!$D$61:$S$61,0)) -> 0.0034 | J32: =INDEX('For Bill Impact(HideBeforeFile)'!$D$34:$S$43,MATCH(C10,'For Bill Impact(HideBeforeFile)'!$C$62:$C$71,0),MATCH($O32,'For Bill Impact(HideBeforeFile)'!$D$61:$S$61,0)) -> 10037.448 | O32: ='For Bill Impact(HideBeforeFile)'!$N$5 -> Facility Carbon
C35: Commodity | F35: Current | H35: Proposed | J35: Change $ | L35: Change %
F36: =F14*$J14/100 -> 3031.931618 | H36: =H14*$J14/100 -> 3031.931618 | J36: =H36-F36 -> 0 | L36: =IFERROR(J36/F36,"") -> 0 | O36: ='For Bill Impact(HideBeforeFile)'!$D$5 -> Commodity
C38: Delivery | F38: Current Rate | H38: Proposed Rate | J38: Change $ | L38: Change %
C39: =IF(C16<>"",C16,"") -> Customer (excl. Bill 32) | F39: =F16*$J16 -> 140 | H39: =H16*$J16 -> 151.4926316 | J39: =IFERROR(H39-F39,"") -> 11.49263164 | L39: =IFERROR(J39/F39,"") -> 0.082090226 | O39: ='For Bill Impact(HideBeforeFile)'!$O$5 -> Dist. Customer Rate
C40: Bill 32 | F40: =J16 -> 7 | H40: =J16 -> 7 | J40: =IFERROR(H40-F40,"") -> 0 | L40: =IFERROR(J40/F40,"") -> 0
C41: =IF(C17<>"",C17,"") -> Block 1 (First 1,000 m3 per month) | F41: =IFERROR(F17*$J17/100,"") -> 259.9312915 | H41: =IFERROR(H17*$J17/100,"") -> 264.4730448 | J41: =IFERROR(H41-F41,"") -> 4.54175336 | L41: =IFERROR(J41/F41,"") -> 0.01747289961 | O41: ='For Bill Impact(HideBeforeFile)'!$P$5 -> Dist. Vol. Rate Tier 1
C42: =IF(C18<>"",C18,"") -> Block 2 (Next 24,000 m3 per month) | F42: =IFERROR(F18*$J18/100,"") -> 707.2292951 | H42: =IFERROR(H18*$J18/100,"") -> 716.7445818 | J42: 9.515286728 | L42: 0.01345431643 | O42: ='For Bill Impact(HideBeforeFile)'!$Q$5 -> Dist. Vol. Rate Tier 2
C43: =IF(C19<>"",C19,"") -> Block 3 (Over 25,000 m3 per month) | F43: =IFERROR(F19*$J19/100,"") -> 60.39673266 | H43: =IFERROR(H19*$J19/100,"") -> 62.0921933 | J43: 1.695460639 | L43: 0.02807205894 | O43: ='For Bill Impact(HideBeforeFile)'!$R$5 -> Dist. Vol. Rate Tier 3
C44: =IF(C20<>"",C20,"") ->  | F44: =IFERROR(F20*$J20/100,"") ->  | H44: =IFERROR(H20*$J20/100,"") ->  | O44: ='For Bill Impact(HideBeforeFile)'!$S$5 -> Dist. Capacity Rate
C45: =IF(C21<>"",C21,"") -> System Gas Charge | F45: =IFERROR(F21*$J21/100,"") -> 4.36628988 | H45: =IFERROR(H21*$J21/100,"") -> 4.36628988 | J45: 0 | L45: 0 | O45: ='For Bill Impact(HideBeforeFile)'!$E$5 -> System Gas
C46: Total Delivery | F46: =SUM(F39:F45) -> 1178.923609 | H46: =SUM(H39:H45) -> 1206.168741 | J46: =H46-F46 -> 27.24513237 | L46: =IF(ISERROR(J46/F46),0,J46/F46) -> 0.02311017623
C48: Rate Riders
C50: Rate Riders | F50: Current Rate | H50: Proposed Rate | J50: Change $ | L50: Change %
C51: =C23 -> REDA | F51: =F23*$J23 -> 2.31 | H51: =H23*$J23 -> 0.14 | J51: =IFERROR(H51-F51,"") -> -2.17 | L51: =IFERROR(J51/F51,"") -> -0.9393939394 | O51: ='For Bill Impact(HideBeforeFile)'!$F$5 -> REDA
C52: PGTVA | F52: =IFERROR(F24*$J24/100,"") -> 32.06964636 | H52: =IFERROR(H24*$J24/100,"") -> 43.71505114 | J52: =IFERROR(H52-F52,"") -> 11.64540478 | L52: =IFERROR(J52/F52,"") -> 0.3631285685 | O52: ='For Bill Impact(HideBeforeFile)'!$G$5 -> PGTVA
C53: ADVADA | F53: =IFERROR(F25*$J25/100,"") -> 0 | H53: =IFERROR(H25*$J25/100,"") -> 0 | J53: 0 | O53: ='For Bill Impact(HideBeforeFile)'!$H$5 -> ADVADA
C54: LDMDA | F54: =F26*$J26 -> 0 | H54: =H26*$J26 -> 0 | J54: 0 | O54: ='For Bill Impact(HideBeforeFile)'!$I$5 -> LDMDA
C55: SICDA | F55: =IFERROR(F27*$J27/100,"") -> 23.51774066 | H55: =IFERROR(H27*$J27/100,"") -> 0 | J55: -23.51774066 | L55: -1 | O55: ='For Bill Impact(HideBeforeFile)'!$J$5 -> SICDA
C56: FCCVA | F56: =F28*$J28 -> 0.21 | H56: =H28*$J28 -> 0.21 | J56: 0 | L56: 0 | O56: ='For Bill Impact(HideBeforeFile)'!$I$5 -> LDMDA
C57: GGEADA | F57: 0.21 | H57: 0.21 | J57: 0 | L57: 0 | O57: ='For Bill Impact(HideBeforeFile)'!$J$5 -> SICDA
C58: Total Rate Riders | F58: =SUM(F51:F57) -> 58.31738702 | H58: =SUM(H51:H57) -> 44.27505114 | J58: =SUM(J51:J57) -> -14.04233589 | L58: =IF(ISERROR(J58/F58),0,J58/F58) -> -0.2407915822
C60: Carbon Tax
C61: Federal Carbon | F61: =F31*$J31/100 -> 982.6661592 | H61: =H31*$J31/100 -> 982.6661592 | J61: =IFERROR(H61-F61,"") -> 0 | L61: =IFERROR(J61/F61,"") -> 0
C62: Facility Carbon | F62: =F32*$J32/100 -> 0.341273232 | H62: =H32*$J32/100 -> 0.341273232 | J62: =IFERROR(H62-F62,"") -> 0 | L62: 0
C63: Total Carbon Tax | F63: =SUM(F61:F62) -> 983.0074324 | H63: =SUM(H61:H62) -> 983.0074324 | J63: =SUM(J61:J62) -> 0 | L63: =IF(ISERROR(J63/F63),0,J63/F63) -> 0
C65: Total Bill Impact | F65: =SUM(F36,F46,F58,F63) -> 5252.180046 | H65: =SUM(H36,H46,H58,H63) -> 5265.382843 | J65: =SUM(J36,J46,J58,J63) -> 13.20279648 | L65: =IFERROR(J65/F65,"") -> 0.00251377454
C68: =MID(CELL("filename",A1),FIND("]",CELL("filename",A1))+1,255) -> G1.2 Rate 2 Bill Impact
C70: ='For Bill Impact(HideBeforeFile)'!C10 -> RATE 2 - Seasonal Service - Nov to Mar | F70: Current | H70: Proposed | J70: Bill Determinant | O70: Look-up
C74: =INDEX('For Bill Impact(HideBeforeFile)'!$D$48:$S$57,MATCH(C70,'For Bill Impact(HideBeforeFile)'!$C$62:$C$71,0),MATCH($O74,'For Bill Impact(HideBeforeFile)'!$D$61:$S$61,0)) -> Commodity | D74: =INDEX('For Bill Impact(HideBeforeFile)'!$D$62:$S$71,MATCH(C70,'For Bill Impact(HideBeforeFile)'!$C$62:$C$71,0),MATCH($O74,'For Bill Impact(HideBeforeFile)'!$D$61:$S$61,0)) -> cents / m3 | F74: =INDEX('For Bill Impact(HideBeforeFile)'!$D$6:$S$15,MATCH(C70,'For Bill Impact(HideBeforeFile)'!$C$62:$C$71,0),MATCH($O74,'For Bill Impact(HideBeforeFile)'!$D$61:$S$61,0)) -> 30.2062 | H74: =INDEX('For Bill Impact(HideBeforeFile)'!$D$20:$S$29,MATCH(C70,'For Bill Impact(HideBeforeFile)'!$C$62:$C$71,0),MATCH($O74,'For Bill Impact(HideBeforeFile)'!$D$61:$S$61,0)) -> 30.2062 | J74: =INDEX('For Bill Impact(HideBeforeFile)'!$D$34:$S$43,MATCH(C70,'For Bill Impact(HideBeforeFile)'!$C$62:$C$71,0),MATCH($O74,'For Bill Impact(HideBeforeFile)'!$D$61:$S$61,0)) -> 6865.262 | O74: ='For Bill Impact(HideBeforeFile)'!$D$5 -> Commodity
C76: =INDEX('For Bill Impact(HideBeforeFile)'!$D$48:$S$57,MATCH(C70,'For Bill Impact(HideBeforeFile)'!$C$62:$C$71,0),MATCH($O76,'For Bill Impact(HideBeforeFile)'!$D$61:$S$61,0)) -> Customer (excl. Bill 32) | D76: =INDEX('For Bill Impact(HideBeforeFile)'!$D$62:$S$71,MATCH(C70,'For Bill Impact(HideBeforeFile)'!$C$62:$C$71,0),MATCH($O76,'For Bill Impact(HideBeforeFile)'!$D$61:$S$61,0)) -> $ / month | F76: =INDEX('For Bill Impact(HideBeforeFile)'!$D$6:$S$15,MATCH(C70,'For Bill Impact(HideBeforeFile)'!$C$62:$C$71,0),MATCH($O76,'For Bill Impact(HideBeforeFile)'!$D$61:$S$61,0)) -> 20 | H76: =INDEX('For Bill Impact(HideBeforeFile)'!$D$20:$S$29,MATCH(C70,'For Bill Impact(HideBeforeFile)'!$C$62:$C$71,0),MATCH($O76,'For Bill Impact(HideBeforeFile)'!$D$61:$S$61,0)) -> 21.64180452 | J76: =INDEX('For Bill Impact(HideBeforeFile)'!$D$34:$S$43,MATCH(C70,'For Bill Impact(HideBeforeFile)'!$C$62:$C$71,0),MATCH($O76,'For Bill Impact(HideBeforeFile)'!$D$61:$S$61,0)) -> 5 | O76: ='For Bill Impact(HideBeforeFile)'!$O$5 -> Dist. Customer Rate
C77: =INDEX('For Bill Impact(HideBeforeFile)'!$D$48:$S$57,MATCH(C70,'For Bill Impact(HideBeforeFile)'!$C$62:$C$71,0),MATCH($O77,'For Bill Impact(HideBeforeFile)'!$D$61:$S$61,0)) -> Block 1 (First 1,000 m3 per month) | D77: =INDEX('For Bill Impact(HideBeforeFile)'!$D$62:$S$71,MATCH(C70,'For Bill Impact(HideBeforeFile)'!$C$62:$C$71,0),MATCH($O77,'For Bill Impact(HideBeforeFile)'!$D$61:$S$61,0)) -> cents / m3 | F77: =INDEX('For Bill Impact(HideBeforeFile)'!$D$6:$S$15,MATCH(C70,'For Bill Impact(HideBeforeFile)'!$C$62:$C$71,0),MATCH($O77,'For Bill Impact(HideBeforeFile)'!$D$61:$S$61,0)) -> 22.2332 | H77: =INDEX('For Bill Impact(HideBeforeFile)'!$D$20:$S$29,MATCH(C70,'For Bill Impact(HideBeforeFile)'!$C$62:$C$71,0),MATCH($O77,'For Bill Impact(HideBeforeFile)'!$D$61:$S$61,0)) -> 22.62174543 | J77: =INDEX('For Bill Impact(HideBeforeFile)'!$D$34:$S$43,MATCH(C70,'For Bill Impact(HideBeforeFile)'!$C$62:$C$71,0),MATCH($O77,'For Bill Impact(HideBeforeFile)'!$D$61:$S$61,0)) -> 1348.004 | O77: ='For Bill Impact(HideBeforeFile)'!$P$5 -> Dist. Vol. Rate Tier 1
C78: =INDEX('For Bill Impact(HideBeforeFile)'!$D$48:$S$57,MATCH(C70,'For Bill Impact(HideBeforeFile)'!$C$62:$C$71,0),MATCH($O78,'For Bill Impact(HideBeforeFile)'!$D$61:$S$61,0)) -> Block 2 (Next 24,000 m3 per month) | D78: =INDEX('For Bill Impact(HideBeforeFile)'!$D$62:$S$71,MATCH(C70,'For Bill Impact(HideBeforeFile)'!$C$62:$C$71,0),MATCH($O78,'For Bill Impact(HideBeforeFile)'!$D$61:$S$61,0)) -> cents / m3 | F78: =INDEX('For Bill Impact(HideBeforeFile)'!$D$6:$S$15,MATCH(C70,'For Bill Impact(HideBeforeFile)'!$C$62:$C$71,0),MATCH($O78,'For Bill Impact(HideBeforeFile)'!$D$61:$S$61,0)) -> 15.167 | H78: =INDEX('For Bill Impact(HideBeforeFile)'!$D$20:$S$29,MATCH(C70,'For Bill Impact(HideBeforeFile)'!$C$62:$C$71,0),MATCH($O78,'For Bill Impact(HideBeforeFile)'!$D$61:$S$61,0)) -> 15.37098345 | J78: =INDEX('For Bill Impact(HideBeforeFile)'!$D$34:$S$43,MATCH(C70,'For Bill Impact(HideBeforeFile)'!$C$62:$C$71,0),MATCH($O78,'For Bill Impact(HideBeforeFile)'!$D$61:$S$61,0)) -> 5246.606 | O78: ='For Bill Impact(HideBeforeFile)'!$Q$5 -> Dist. Vol. Rate Tier 2
C79: =INDEX('For Bill Impact(HideBeforeFile)'!$D$48:$S$57,MATCH(C70,'For Bill Impact(HideBeforeFile)'!$C$62:$C$71,0),MATCH($O79,'For Bill Impact(HideBeforeFile)'!$D$61:$S$61,0)) -> Block 3 (Over 25,000 m3 per month) | D79: =INDEX('For Bill Impact(HideBeforeFile)'!$D$62:$S$71,MATCH(C70,'For Bill Impact(HideBeforeFile)'!$C$62:$C$71,0),MATCH($O79,'For Bill Impact(HideBeforeFile)'!$D$61:$S$61,0)) -> cents / m3 | F79: =INDEX('For Bill Impact(HideBeforeFile)'!$D$6:$S$15,MATCH(C70,'For Bill Impact(HideBeforeFile)'!$C$62:$C$71,0),MATCH($O79,'For Bill Impact(HideBeforeFile)'!$D$61:$S$61,0)) -> 16.0935 | H79: =INDEX('For Bill Impact(HideBeforeFile)'!$D$20:$S$29,MATCH(C70,'For Bill Impact(HideBeforeFile)'!$C$62:$C$71,0),MATCH($O79,'For Bill Impact(HideBeforeFile)'!$D$61:$S$61,0)) -> 16.54505135 | J79: =INDEX('For Bill Impact(HideBeforeFile)'!$D$34:$S$43,MATCH(C70,'For Bill Impact(HideBeforeFile)'!$C$62:$C$71,0),MATCH($O79,'For Bill Impact(HideBeforeFile)'!$D$61:$S$61,0)) -> 270.652 | O79: ='For Bill Impact(HideBeforeFile)'!$R$5 -> Dist. Vol. Rate Tier 3
C80: =INDEX('For Bill Impact(HideBeforeFile)'!$D$48:$S$57,MATCH(C70,'For Bill Impact(HideBeforeFile)'!$C$62:$C$71,0),MATCH($O80,'For Bill Impact(HideBeforeFile)'!$D$61:$S$61,0)) ->  | D80: =INDEX('For Bill Impact(HideBeforeFile)'!$D$62:$S$71,MATCH(C70,'For Bill Impact(HideBeforeFile)'!$C$62:$C$71,0),MATCH($O80,'For Bill Impact(HideBeforeFile)'!$D$61:$S$61,0)) ->  | F80: =INDEX('For Bill Impact(HideBeforeFile)'!$D$6:$S$15,MATCH(C70,'For Bill Impact(HideBeforeFile)'!$C$62:$C$71,0),MATCH($O80,'For Bill Impact(HideBeforeFile)'!$D$61:$S$61,0)) ->  | H80: =INDEX('For Bill Impact(HideBeforeFile)'!$D$20:$S$29,MATCH(C70,'For Bill Impact(HideBeforeFile)'!$C$62:$C$71,0),MATCH($O80,'For Bill Impact(HideBeforeFile)'!$D$61:$S$61,0)) ->  | J80: =INDEX('For Bill Impact(HideBeforeFile)'!$D$34:$S$43,MATCH(C70,'For Bill Impact(HideBeforeFile)'!$C$62:$C$71,0),MATCH($O80,'For Bill Impact(HideBeforeFile)'!$D$61:$S$61,0)) ->  | O80: ='For Bill Impact(HideBeforeFile)'!$S$5 -> Dist. Capacity Rate
C81: =INDEX('For Bill Impact(HideBeforeFile)'!$D$48:$S$57,MATCH(C70,'For Bill Impact(HideBeforeFile)'!$C$62:$C$71,0),MATCH($O81,'For Bill Impact(HideBeforeFile)'!$D$61:$S$61,0)) -> System Gas Charge | D81: =INDEX('For Bill Impact(HideBeforeFile)'!$D$62:$S$71,MATCH(C70,'For Bill Impact(HideBeforeFile)'!$C$62:$C$71,0),MATCH($O81,'For Bill Impact(HideBeforeFile)'!$D$61:$S$61,0)) -> cents / m3 | F81: =INDEX('For Bill Impact(HideBeforeFile)'!$D$6:$S$15,MATCH(C70,'For Bill Impact(HideBeforeFile)'!$C$62:$C$71,0),MATCH($O81,'For Bill Impact(HideBeforeFile)'!$D$61:$S$61,0)) -> 0.0435 | H81: =INDEX('For Bill Impact(HideBeforeFile)'!$D$20:$S$29,MATCH(C70,'For Bill Impact(HideBeforeFile)'!$C$62:$C$71,0),MATCH($O81,'For Bill Impact(HideBeforeFile)'!$D$61:$S$61,0)) -> 0.0435 | J81: =INDEX('For Bill Impact(HideBeforeFile)'!$D$34:$S$43,MATCH(C70,'For Bill Impact(HideBeforeFile)'!$C$62:$C$71,0),MATCH($O81,'For Bill Impact(HideBeforeFile)'!$D$61:$S$61,0)) -> 6865.262 | O81: ='For Bill Impact(HideBeforeFile)'!$E$5 -> System Gas
C83: =INDEX('For Bill Impact(HideBeforeFile)'!$D$48:$S$57,MATCH(C70,'For Bill Impact(HideBeforeFile)'!$C$62:$C$71,0),MATCH($O83,'For Bill Impact(HideBeforeFile)'!$D$61:$S$61,0)) -> REDA | D83: =INDEX('For Bill Impact(HideBeforeFile)'!$D$62:$S$71,MATCH(C70,'For Bill Impact(HideBeforeFile)'!$C$62:$C$71,0),MATCH($O83,'For Bill Impact(HideBeforeFile)'!$D$61:$S$61,0)) -> $ / month | F83: =INDEX('For Bill Impact(HideBeforeFile)'!$D$6:$S$15,MATCH(C70,'For Bill Impact(HideBeforeFile)'!$C$62:$C$71,0),MATCH($O83,'For Bill Impact(HideBeforeFile)'!$D$61:$S$61,0)) -> 0.33 | H83: =INDEX('For Bill Impact(HideBeforeFile)'!$D$20:$S$29,MATCH(C70,'For Bill Impact(HideBeforeFile)'!$C$62:$C$71,0),MATCH($O83,'For Bill Impact(HideBeforeFile)'!$D$61:$S$61,0)) -> 0.02 | J83: =INDEX('For Bill Impact(HideBeforeFile)'!$D$34:$S$43,MATCH(C70,'For Bill Impact(HideBeforeFile)'!$C$62:$C$71,0),MATCH($O83,'For Bill Impact(HideBeforeFile)'!$D$61:$S$61,0)) -> 5 | O83: =O23 -> REDA
C84: =INDEX('For Bill Impact(HideBeforeFile)'!$D$48:$S$57,MATCH(C70,'For Bill Impact(HideBeforeFile)'!$C$62:$C$71,0),MATCH($O84,'For Bill Impact(HideBeforeFile)'!$D$61:$S$61,0)) -> PGTVA | D84: =INDEX('For Bill Impact(HideBeforeFile)'!$D$62:$S$71,MATCH(C70,'For Bill Impact(HideBeforeFile)'!$C$62:$C$71,0),MATCH($O84,'For Bill Impact(HideBeforeFile)'!$D$61:$S$61,0)) -> cents / m3 | F84: =INDEX('For Bill Impact(HideBeforeFile)'!$D$6:$S$15,MATCH(C70,'For Bill Impact(HideBeforeFile)'!$C$62:$C$71,0),MATCH($O84,'For Bill Impact(HideBeforeFile)'!$D$61:$S$61,0)) -> 0.3195 | H84: =INDEX('For Bill Impact(HideBeforeFile)'!$D$20:$S$29,MATCH(C70,'For Bill Impact(HideBeforeFile)'!$C$62:$C$71,0),MATCH($O84,'For Bill Impact(HideBeforeFile)'!$D$61:$S$61,0)) -> 0.4355195776 | J84: =INDEX('For Bill Impact(HideBeforeFile)'!$D$34:$S$43,MATCH(C70,'For Bill Impact(HideBeforeFile)'!$C$62:$C$71,0),MATCH($O84,'For Bill Impact(HideBeforeFile)'!$D$61:$S$61,0)) -> 6865.262 | O84: =O24 -> PGTVA
C85: =INDEX('For Bill Impact(HideBeforeFile)'!$D$48:$S$57,MATCH(C70,'For Bill Impact(HideBeforeFile)'!$C$62:$C$71,0),MATCH($O85,'For Bill Impact(HideBeforeFile)'!$D$61:$S$61,0)) -> ADVADA | D85: =INDEX('For Bill Impact(HideBeforeFile)'!$D$62:$S$71,MATCH(C70,'For Bill Impact(HideBeforeFile)'!$C$62:$C$71,0),MATCH($O85,'For Bill Impact(HideBeforeFile)'!$D$61:$S$61,0)) -> cents / m3 | F85: =INDEX('For Bill Impact(HideBeforeFile)'!$D$6:$S$15,MATCH(C70,'For Bill Impact(HideBeforeFile)'!$C$62:$C$71,0),MATCH($O85,'For Bill Impact(HideBeforeFile)'!$D$61:$S$61,0)) -> 0 | H85: =INDEX('For Bill Impact(HideBeforeFile)'!$D$20:$S$29,MATCH(C70,'For Bill Impact(HideBeforeFile)'!$C$62:$C$71,0),MATCH($O85,'For Bill Impact(HideBeforeFile)'!$D$61:$S$61,0)) -> 0 | J85: =INDEX('For Bill Impact(HideBeforeFile)'!$D$34:$S$43,MATCH(C70,'For Bill Impact(HideBeforeFile)'!$C$62:$C$71,0),MATCH($O85,'For Bill Impact(HideBeforeFile)'!$D$61:$S$61,0)) -> 6865.262 | O85: =O25 -> ADVADA
C86: =INDEX('For Bill Impact(HideBeforeFile)'!$D$48:$S$57,MATCH(C70,'For Bill Impact(HideBeforeFile)'!$C$62:$C$71,0),MATCH($O86,'For Bill Impact(HideBeforeFile)'!$D$61:$S$61,0)) -> LDMDA | D86: =INDEX('For Bill Impact(HideBeforeFile)'!$D$62:$S$71,MATCH(C70,'For Bill Impact(HideBeforeFile)'!$C$62:$C$71,0),MATCH($O86,'For Bill Impact(HideBeforeFile)'!$D$61:$S$61,0)) -> $ / month | F86: =INDEX('For Bill Impact(HideBeforeFile)'!$D$6:$S$15,MATCH(C70,'For Bill Impact(HideBeforeFile)'!$C$62:$C$71,0),MATCH($O86,'For Bill Impact(HideBeforeFile)'!$D$61:$S$61,0)) -> 0 | H86: =INDEX('For Bill Impact(HideBeforeFile)'!$D$20:$S$29,MATCH(C70,'For Bill Impact(HideBeforeFile)'!$C$62:$C$71,0),MATCH($O86,'For Bill Impact(HideBeforeFile)'!$D$61:$S$61,0)) -> 0 | J86: =INDEX('For Bill Impact(HideBeforeFile)'!$D$34:$S$43,MATCH(C70,'For Bill Impact(HideBeforeFile)'!$C$62:$C$71,0),MATCH($O86,'For Bill Impact(HideBeforeFile)'!$D$61:$S$61,0)) -> 5 | O86: =O26 -> LDMDA
C87: =INDEX('For Bill Impact(HideBeforeFile)'!$D$48:$S$57,MATCH(C70,'For Bill Impact(HideBeforeFile)'!$C$62:$C$71,0),MATCH($O87,'For Bill Impact(HideBeforeFile)'!$D$61:$S$61,0)) -> SICDA | D87: =INDEX('For Bill Impact(HideBeforeFile)'!$D$62:$S$71,MATCH(C70,'For Bill Impact(HideBeforeFile)'!$C$62:$C$71,0),MATCH($O87,'For Bill Impact(HideBeforeFile)'!$D$61:$S$61,0)) -> cents / m3 | F87: =INDEX('For Bill Impact(HideBeforeFile)'!$D$6:$S$15,MATCH(C70,'For Bill Impact(HideBeforeFile)'!$C$62:$C$71,0),MATCH($O87,'For Bill Impact(HideBeforeFile)'!$D$61:$S$61,0)) -> 0.2343 | H87: =INDEX('For Bill Impact(HideBeforeFile)'!$D$20:$S$29,MATCH(C70,'For Bill Impact(HideBeforeFile)'!$C$62:$C$71,0),MATCH($O87,'For Bill Impact(HideBeforeFile)'!$D$61:$S$61,0)) -> 0 | J87: =INDEX('For Bill Impact(HideBeforeFile)'!$D$34:$S$43,MATCH(C70,'For Bill Impact(HideBeforeFile)'!$C$62:$C$71,0),MATCH($O87,'For Bill Impact(HideBeforeFile)'!$D$61:$S$61,0)) -> 6865.262 | O87: =O27 -> SICDA
C88: =INDEX('For Bill Impact(HideBeforeFile)'!$D$48:$S$57,MATCH(C70,'For Bill Impact(HideBeforeFile)'!$C$62:$C$71,0),MATCH($O88,'For Bill Impact(HideBeforeFile)'!$D$61:$S$61,0)) -> FCCVA | D88: =INDEX('For Bill Impact(HideBeforeFile)'!$D$62:$S$71,MATCH(C70,'For Bill Impact(HideBeforeFile)'!$C$62:$C$71,0),MATCH($O88,'For Bill Impact(HideBeforeFile)'!$D$61:$S$61,0)) -> $ / month | F88: =INDEX('For Bill Impact(HideBeforeFile)'!$D$6:$S$15,MATCH(C70,'For Bill Impact(HideBeforeFile)'!$C$62:$C$71,0),MATCH($O88,'For Bill Impact(HideBeforeFile)'!$D$61:$S$61,0)) -> 0.03 | H88: =INDEX('For Bill Impact(HideBeforeFile)'!$D$20:$S$29,MATCH(C70,'For Bill Impact(HideBeforeFile)'!$C$62:$C$71,0),MATCH($O88,'For Bill Impact(HideBeforeFile)'!$D$61:$S$61,0)) -> 0.03 | J88: =INDEX('For Bill Impact(HideBeforeFile)'!$D$34:$S$43,MATCH(C70,'For Bill Impact(HideBeforeFile)'!$C$62:$C$71,0),MATCH($O88,'For Bill Impact(HideBeforeFile)'!$D$61:$S$61,0)) -> 5 | O88: FCCVA
C89: =INDEX('For Bill Impact(HideBeforeFile)'!$D$48:$S$57,MATCH(C70,'For Bill Impact(HideBeforeFile)'!$C$62:$C$71,0),MATCH($O89,'For Bill Impact(HideBeforeFile)'!$D$61:$S$61,0)) -> GGEADA | D89: =INDEX('For Bill Impact(HideBeforeFile)'!$D$62:$S$71,MATCH(C70,'For Bill Impact(HideBeforeFile)'!$C$62:$C$71,0),MATCH($O89,'For Bill Impact(HideBeforeFile)'!$D$61:$S$61,0)) -> $ / month | F89: =INDEX('For Bill Impact(HideBeforeFile)'!$D$6:$S$15,MATCH(C70,'For Bill Impact(HideBeforeFile)'!$C$62:$C$71,0),MATCH($O89,'For Bill Impact(HideBeforeFile)'!$D$61:$S$61,0)) -> 0.03 | H89: =INDEX('For Bill Impact(HideBeforeFile)'!$D$20:$S$29,MATCH(C70,'For Bill Impact(HideBeforeFile)'!$C$62:$C$71,0),MATCH($O89,'For Bill Impact(HideBeforeFile)'!$D$61:$S$61,0)) -> 0.03 | J89: =INDEX('For Bill Impact(HideBeforeFile)'!$D$34:$S$43,MATCH(C70,'For Bill Impact(HideBeforeFile)'!$C$62:$C$71,0),MATCH($O89,'For Bill Impact(HideBeforeFile)'!$D$61:$S$61,0)) -> 5 | O89: GGEADA
C91: =INDEX('For Bill Impact(HideBeforeFile)'!$D$48:$S$57,MATCH(C70,'For Bill Impact(HideBeforeFile)'!$C$62:$C$71,0),MATCH($O91,'For Bill Impact(HideBeforeFile)'!$D$61:$S$61,0)) -> Federal Carbon | D91: =INDEX('For Bill Impact(HideBeforeFile)'!$D$62:$S$71,MATCH(C70,'For Bill Impact(HideBeforeFile)'!$C$62:$C$71,0),MATCH($O91,'For Bill Impact(HideBeforeFile)'!$D$61:$S$61,0)) -> cents / m3 | F91: =INDEX('For Bill Impact(HideBeforeFile)'!$D$6:$S$15,MATCH(C70,'For Bill Impact(HideBeforeFile)'!$C$62:$C$71,0),MATCH($O91,'For Bill Impact(HideBeforeFile)'!$D$61:$S$61,0)) -> 9.79 | H91: =INDEX('For Bill Impact(HideBeforeFile)'!$D$20:$S$29,MATCH(C70,'For Bill Impact(HideBeforeFile)'!$C$62:$C$71,0),MATCH($O91,'For Bill Impact(HideBeforeFile)'!$D$61:$S$61,0)) -> 9.79 | J91: =INDEX('For Bill Impact(HideBeforeFile)'!$D$34:$S$43,MATCH(C70,'For Bill Impact(HideBeforeFile)'!$C$62:$C$71,0),MATCH($O91,'For Bill Impact(HideBeforeFile)'!$D$61:$S$61,0)) -> 6865.262 | O91: ='For Bill Impact(HideBeforeFile)'!$M$5 -> Federal Carbon
C92: =INDEX('For Bill Impact(HideBeforeFile)'!$D$48:$S$57,MATCH(C70,'For Bill Impact(HideBeforeFile)'!$C$62:$C$71,0),MATCH($O92,'For Bill Impact(HideBeforeFile)'!$D$61:$S$61,0)) -> Facility Carbon | D92: =INDEX('For Bill Impact(HideBeforeFile)'!$D$62:$S$71,MATCH(C70,'For Bill Impact(HideBeforeFile)'!$C$62:$C$71,0),MATCH($O92,'For Bill Impact(HideBeforeFile)'!$D$61:$S$61,0)) -> cents / m3 | F92: =INDEX('For Bill Impact(HideBeforeFile)'!$D$6:$S$15,MATCH(C70,'For Bill Impact(HideBeforeFile)'!$C$62:$C$71,0),MATCH($O92,'For Bill Impact(HideBeforeFile)'!$D$61:$S$61,0)) -> 0.0034 | H92: =INDEX('For Bill Impact(HideBeforeFile)'!$D$20:$S$29,MATCH(C70,'For Bill Impact(HideBeforeFile)'!$C$62:$C$71,0),MATCH($O92,'For Bill Impact(HideBeforeFile)'!$D$61:$S$61,0)) -> 0.0034 | J92: =INDEX('For Bill Impact(HideBeforeFile)'!$D$34:$S$43,MATCH(C70,'For Bill Impact(HideBeforeFile)'!$C$62:$C$71,0),MATCH($O92,'For Bill Impact(HideBeforeFile)'!$D$61:$S$61,0)) -> 6865.262 | O92: ='For Bill Impact(HideBeforeFile)'!$N$5 -> Facility Carbon
C95: Commodity | F95: Current | H95: Proposed | J95: Change $ | L95: Change %
F96: =F74*$J74/100 -> 2073.73477 | H96: =H74*$J74/100 -> 2073.73477 | J96: =H96-F96 -> 0 | L96: =IFERROR(J96/F96,"") -> 0
C98: Delivery | F98: Current Rate | H98: Proposed Rate | J98: Change $ | L98: Change %
C99: =IF(C76<>"",C76,"") -> Customer (excl. Bill 32) | F99: =F76*$J76 -> 100 | H99: =H76*$J76 -> 108.2090226 | J99: =IFERROR(H99-F99,"") -> 8.2090226 | L99: =IFERROR(J99/F99,"") -> 0.082090226
C100: Bill 32 | F100: =J76 -> 5 | H100: =J76 -> 5 | J100: =IFERROR(H100-F100,"") -> 0 | L100: =IFERROR(J100/F100,"") -> 0
C101: =IF(C77<>"",C77,"") -> Block 1 (First 1,000 m3 per month) | F101: =IFERROR(F77*$J77/100,"") -> 299.7044253 | H101: =IFERROR(H77*$J77/100,"") -> 304.9420332 | J101: =IFERROR(H101-F101,"") -> 5.23760792 | L101: =IFERROR(J101/F101,"") -> 0.01747591119
C102: =IF(C78<>"",C78,"") -> Block 2 (Next 24,000 m3 per month) | F102: =IFERROR(F78*$J78/100,"") -> 795.752732 | H102: =IFERROR(H78*$J78/100,"") -> 806.45494 | J102: 10.702208 | L102: 0.01344916274
C103: =IF(C79<>"",C79,"") -> Block 3 (Over 25,000 m3 per month) | F103: =IFERROR(F79*$J79/100,"") -> 43.55737962 | H103: =IFERROR(H79*$J79/100,"") -> 44.77951237 | J103: 1.22213275 | L103: 0.02805799525
C104: =IF(C80<>"",C80,"") ->  | F104: =IFERROR(F80*$J80/100,"") ->  | H104: =IFERROR(H80*$J80/100,"") -> 
C105: =IF(C81<>"",C81,"") -> System Gas Charge | F105: =IFERROR(F81*$J81/100,"") -> 2.98638897 | H105: =IFERROR(H81*$J81/100,"") -> 2.98638897 | J105: 0 | L105: 0
C106: Total Delivery | F106: =SUM(F99:F105) -> 1247.000926 | H106: =SUM(H99:H105) -> 1272.371897 | J106: =H106-F106 -> 25.37097127 | L106: =IF(ISERROR(J106/F106),0,J106/F106) -> 0.02034559136
C108: Rate Riders
C110: Rate Riders | F110: Current Rate | H110: Proposed Rate | J110: Change $ | L110: Change %
C111: =C83 -> REDA | F111: =F83*$J83 -> 1.65 | H111: =H83*$J83 -> 0.1 | J111: =IFERROR(H111-F111,"") -> -1.55 | L111: =IFERROR(J111/F111,"") -> -0.9393939394
C112: PGTVA | F112: =IFERROR(F84*$J84/100,"") -> 21.93451209 | H112: =IFERROR(H84*$J84/100,"") -> 29.89956007 | J112: =IFERROR(H112-F112,"") -> 7.965047976 | L112: =IFERROR(J112/F112,"") -> 0.3631285685
C113: ADVADA | F113: =IFERROR(F85*$J85/100,"") -> 0 | H113: =IFERROR(H85*$J85/100,"") -> 0 | J113: 0
C114: LDMDA | F114: =F86*$J86 -> 0 | H114: =H86*$J86 -> 0 | J114: 0
C115: SICDA | F115: =IFERROR(F87*$J87/100,"") -> 16.08530887 | H115: =IFERROR(H87*$J87/100,"") -> 0 | J115: -16.08530887 | L115: -1
C116: FCCVA | F116: =F88*$J88 -> 0.15 | H116: =H88*$J88 -> 0.15 | J116: 0 | L116: 0 | O116: ='For Bill Impact(HideBeforeFile)'!$I$5 -> LDMDA
C117: GGEADA | F117: 0.15 | H117: 0.15 | J117: 0 | L117: 0 | O117: ='For Bill Impact(HideBeforeFile)'!$J$5 -> SICDA
C118: Total Rate Riders | F118: =SUM(F111:F117) -> 39.96982096 | H118: =SUM(H111:H117) -> 30.29956007 | J118: =SUM(J111:J117) -> -9.67026089 | L118: =IF(ISERROR(J118/F118),0,J118/F118) -> -0.2419390595
C120: Carbon Tax
C121: Federal Carbon | F121: =F91*$J91/100 -> 672.1091498 | H121: =H91*$J91/100 -> 672.1091498 | J121: =IFERROR(H121-F121,"") -> 0 | L121: =IFERROR(J121/F121,"") -> 0
C122: Facility Carbon | F122: =F92*$J92/100 -> 0.233418908 | H122: =H92*$J92/100 -> 0.233418908 | J122: =IFERROR(H122-F122,"") -> 0 | L122: 0
C123: Total Carbon Tax | F123: =SUM(F121:F122) -> 672.3425687 | H123: =SUM(H121:H122) -> 672.3425687 | J123: =SUM(J121:J122) -> 0 | L123: =IF(ISERROR(J123/F123),0,J123/F123) -> 0
C125: Total Bill Impact | F125: =SUM(F96,F106,F118,F123) -> 4033.048086 | H125: =SUM(H96,H106,H118,H123) -> 4048.748796 | J125: =SUM(J96,J106,J118,J123) -> 15.70071038 | L125: =IFERROR(J125/F125,"") -> 0.003893013434
C128: =MID(CELL("filename",A61),FIND("]",CELL("filename",A61))+1,255) -> G1.2 Rate 2 Bill Impact
C130: RATE 2 - Seasonal Service - Annual
C132: Commodity | F132: Current | H132: Proposed | J132: Change $ | L132: Change %
F133: =F36+F96 -> 5105.666388 | H133: =H36+H96 -> 5105.666388 | J133: =H133-F133 -> 0 | L133: =IFERROR(J133/F133,"") -> 0
C135: Delivery | F135: Current Rate | H135: Proposed Rate | J135: Change $ | L135: Change %
C136: =C39 -> Customer (excl. Bill 32) | F136: =IFERROR(F39+F99,"") -> 240 | H136: =IFERROR(H39+H99,"") -> 259.7016542 | J136: =IFERROR(H136-F136,"") -> 19.70165424 | L136: =IFERROR(J136/F136,"") -> 0.082090226
C137: Bill 32 | F137: 12 | H137: 12 | J137: =IFERROR(H137-F137,"") -> 0 | L137: =IFERROR(J137/F137,"") -> 0
C138: =C41 -> Block 1 (First 1,000 m3 per month) | F138: 559.6357168 | H138: 569.4150781 | J138: 9.779361281 | L138: =IFERROR(J138/F138,"") -> 0.01747451241
C139: =C42 -> Block 2 (Next 24,000 m3 per month) | F139: 1502.982027 | H139: 1523.199522 | J139: 20.21749472 | L139: 0.01345158782
C140: =C43 -> Block 3 (Over 25,000 m3 per month) | F140: 103.9541123 | H140: 106.8717057 | J140: 2.917593389 | L140: 0.02806616617
C141: =C44 -> 
C142: =C45 -> System Gas Charge | F142: 7.35267885 | H142: 7.35267885 | J142: 0 | L142: 0
C143: Total Delivery | F143: =SUM(F136:F142) -> 2425.924535 | H143: =SUM(H136:H142) -> 2478.540639 | J143: =H143-F143 -> 52.61610363 | L143: =IF(ISERROR(J143/F143),0,J143/F143) -> 0.02168909332
C145: Rate Riders
C147: Rate Riders | F147: Current Rate | H147: Proposed Rate | J147: Change $ | L147: Change %
C148: =C111 -> REDA | F148: =IFERROR(F51+F111,"") -> 3.96 | H148: =IFERROR(H51+H111,"") -> 0.24 | J148: =IFERROR(H148-F148,"") -> -3.72 | L148: =IFERROR(J148/F148,"") -> -0.9393939394
C149: PGTVA | F149: 54.00415845 | H149: 73.6146112 | J149: =IFERROR(H149-F149,"") -> 19.61045275 | L149: =IFERROR(J149/F149,"") -> 0.3631285685
C150: ADVADA | F150: 0 | H150: 0 | J150: 0
C151: LDMDA | F151: 0 | H151: 0 | J151: 0
C152: SICDA | F152: 39.60304953 | H152: 0 | J152: -39.60304953 | L152: -1
C153: FCCVA | F153: 0.36 | H153: 0.36 | J153: 0 | L153: =IFERROR(J153/F153,"") -> 0
C154: GGEADA | F154: 0.36 | H154: 0.36 | J154: 0 | L154: 0
C155: Total Rate Riders | F155: =SUM(F148:F154) -> 98.28720798 | H155: =SUM(H148:H154) -> 74.5746112 | J155: =SUM(J148:J154) -> -23.71259678 | L155: =IF(ISERROR(J155/F155),0,J155/F155) -> -0.2412582193
C157: Carbon Tax
C158: Federal Carbon | F158: =IFERROR(F61+F121,"") -> 1654.775309 | H158: =IFERROR(H61+H121,"") -> 1654.775309 | J158: =IFERROR(H158-F158,"") -> 0 | L158: =IFERROR(J158/F158,"") -> 0
C159: Facility Carbon | F159: =IFERROR(F62+F122,"") -> 0.57469214 | H159: =IFERROR(H62+H122,"") -> 0.57469214 | J159: =IFERROR(H159-F159,"") -> 0 | L159: 0
C160: Total Carbon Tax | F160: =SUM(F158:F159) -> 1655.350001 | H160: =SUM(H158:H159) -> 1655.350001 | J160: =SUM(J158:J159) -> 0 | L160: =IF(ISERROR(J160/F160),0,J160/F160) -> 0
C162: Total Bill Impact | F162: =SUM(F133,F143,F155,F160) -> 9285.228132 | H162: =SUM(H133,H143,H155,H160) -> 9314.131639 | J162: =SUM(J133,J143,J155,J160) -> 28.90350685 | L162: =IFERROR(J162/F162,"") -> 0.003112848327
C165: =MID(CELL("filename",A121),FIND("]",CELL("filename",A121))+1,255) -> G1.2 Rate 2 Bill Impact

Sheet G1.3 Rate 3 Bill Impact
C2: ='A1.1 Distributor Information'!C3 -> Name of LDC: EPCOR Natural Gas Limited Partnership
C3: ='A1.1 Distributor Information'!C4 -> OEB Application Number: EB-2022-0183 Exhibit A - 2023 IRM Application
C7: Rate 3 Delivery Bill Impact
C10: ='For Bill Impact(HideBeforeFile)'!C11 -> RATE 3 - Special Large Volume Contract Rate | F10: Current | H10: Proposed | J10: Bill Determinant | O10: Look-up
C14: =INDEX('For Bill Impact(HideBeforeFile)'!$D$48:$S$57,MATCH(C10,'For Bill Impact(HideBeforeFile)'!$C$62:$C$71,0),MATCH($O14,'For Bill Impact(HideBeforeFile)'!$D$61:$S$61,0)) -> Commodity | D14: =INDEX('For Bill Impact(HideBeforeFile)'!$D$62:$S$71,MATCH(C10,'For Bill Impact(HideBeforeFile)'!$C$62:$C$71,0),MATCH($O14,'For Bill Impact(HideBeforeFile)'!$D$61:$S$61,0)) -> cents / m3 | F14: =INDEX('For Bill Impact(HideBeforeFile)'!$D$6:$S$15,MATCH(C10,'For Bill Impact(HideBeforeFile)'!$C$62:$C$71,0),MATCH($O14,'For Bill Impact(HideBeforeFile)'!$D$61:$S$61,0)) -> 30.2062 | H14: =INDEX('For Bill Impact(HideBeforeFile)'!$D$20:$S$29,MATCH(C10,'For Bill Impact(HideBeforeFile)'!$C$62:$C$71,0),MATCH($O14,'For Bill Impact(HideBeforeFile)'!$D$61:$S$61,0)) -> 30.2062 | J14: =INDEX('For Bill Impact(HideBeforeFile)'!$D$34:$S$43,MATCH(C10,'For Bill Impact(HideBeforeFile)'!$C$62:$C$71,0),MATCH($O14,'For Bill Impact(HideBeforeFile)'!$D$61:$S$61,0)) -> 222738.9 | O14: ='For Bill Impact(HideBeforeFile)'!$D$5 -> Commodity
C16: =INDEX('For Bill Impact(HideBeforeFile)'!$D$48:$S$57,MATCH(C10,'For Bill Impact(HideBeforeFile)'!$C$62:$C$71,0),MATCH($O16,'For Bill Impact(HideBeforeFile)'!$D$61:$S$61,0)) -> Customer (excl. Bill 32) | D16: =INDEX('For Bill Impact(HideBeforeFile)'!$D$62:$S$71,MATCH(C10,'For Bill Impact(HideBeforeFile)'!$C$62:$C$71,0),MATCH($O16,'For Bill Impact(HideBeforeFile)'!$D$61:$S$61,0)) -> $ / month | F16: =INDEX('For Bill Impact(HideBeforeFile)'!$D$6:$S$15,MATCH(C10,'For Bill Impact(HideBeforeFile)'!$C$62:$C$71,0),MATCH($O16,'For Bill Impact(HideBeforeFile)'!$D$61:$S$61,0)) -> 200 | H16: =INDEX('For Bill Impact(HideBeforeFile)'!$D$20:$S$29,MATCH(C10,'For Bill Impact(HideBeforeFile)'!$C$62:$C$71,0),MATCH($O16,'For Bill Impact(HideBeforeFile)'!$D$61:$S$61,0)) -> 216.4180452 | J16: =INDEX('For Bill Impact(HideBeforeFile)'!$D$34:$S$43,MATCH(C10,'For Bill Impact(HideBeforeFile)'!$C$62:$C$71,0),MATCH($O16,'For Bill Impact(HideBeforeFile)'!$D$61:$S$61,0)) -> 12 | O16: ='For Bill Impact(HideBeforeFile)'!$O$5 -> Dist. Customer Rate
C17: =INDEX('For Bill Impact(HideBeforeFile)'!$D$48:$S$57,MATCH(C10,'For Bill Impact(HideBeforeFile)'!$C$62:$C$71,0),MATCH($O17,'For Bill Impact(HideBeforeFile)'!$D$61:$S$61,0)) -> Delivery - Firm | D17: =INDEX('For Bill Impact(HideBeforeFile)'!$D$62:$S$71,MATCH(C10,'For Bill Impact(HideBeforeFile)'!$C$62:$C$71,0),MATCH($O17,'For Bill Impact(HideBeforeFile)'!$D$61:$S$61,0)) -> cents / m3 | F17: =INDEX('For Bill Impact(HideBeforeFile)'!$D$6:$S$15,MATCH(C10,'For Bill Impact(HideBeforeFile)'!$C$62:$C$71,0),MATCH($O17,'For Bill Impact(HideBeforeFile)'!$D$61:$S$61,0)) -> 4.0445 | H17: =INDEX('For Bill Impact(HideBeforeFile)'!$D$20:$S$29,MATCH(C10,'For Bill Impact(HideBeforeFile)'!$C$62:$C$71,0),MATCH($O17,'For Bill Impact(HideBeforeFile)'!$D$61:$S$61,0)) -> 3.896715113 | J17: =INDEX('For Bill Impact(HideBeforeFile)'!$D$34:$S$43,MATCH(C10,'For Bill Impact(HideBeforeFile)'!$C$62:$C$71,0),MATCH($O17,'For Bill Impact(HideBeforeFile)'!$D$61:$S$61,0)) -> 222738.9 | O17: ='For Bill Impact(HideBeforeFile)'!$P$5 -> Dist. Vol. Rate Tier 1
C18: =INDEX('For Bill Impact(HideBeforeFile)'!$D$48:$S$57,MATCH(C10,'For Bill Impact(HideBeforeFile)'!$C$62:$C$71,0),MATCH($O18,'For Bill Impact(HideBeforeFile)'!$D$61:$S$61,0)) ->  | D18: =INDEX('For Bill Impact(HideBeforeFile)'!$D$62:$S$71,MATCH(C10,'For Bill Impact(HideBeforeFile)'!$C$62:$C$71,0),MATCH($O18,'For Bill Impact(HideBeforeFile)'!$D$61:$S$61,0)) ->  | F18: =INDEX('For Bill Impact(HideBeforeFile)'!$D$6:$S$15,MATCH(C10,'For Bill Impact(HideBeforeFile)'!$C$62:$C$71,0),MATCH($O18,'For Bill Impact(HideBeforeFile)'!$D$61:$S$61,0)) ->  | H18: =INDEX('For Bill Impact(HideBeforeFile)'!$D$20:$S$29,MATCH(C10,'For Bill Impact(HideBeforeFile)'!$C$62:$C$71,0),MATCH($O18,'For Bill Impact(HideBeforeFile)'!$D$61:$S$61,0)) ->  | J18: =INDEX('For Bill Impact(HideBeforeFile)'!$D$34:$S$43,MATCH(C10,'For Bill Impact(HideBeforeFile)'!$C$62:$C$71,0),MATCH($O18,'For Bill Impact(HideBeforeFile)'!$D$61:$S$61,0)) ->  | O18: ='For Bill Impact(HideBeforeFile)'!$Q$5 -> Dist. Vol. Rate Tier 2
C19: =INDEX('For Bill Impact(HideBeforeFile)'!$D$48:$S$57,MATCH(C10,'For Bill Impact(HideBeforeFile)'!$C$62:$C$71,0),MATCH($O19,'For Bill Impact(HideBeforeFile)'!$D$61:$S$61,0)) ->  | D19: =INDEX('For Bill Impact(HideBeforeFile)'!$D$62:$S$71,MATCH(C10,'For Bill Impact(HideBeforeFile)'!$C$62:$C$71,0),MATCH($O19,'For Bill Impact(HideBeforeFile)'!$D$61:$S$61,0)) ->  | F19: =INDEX('For Bill Impact(HideBeforeFile)'!$D$6:$S$15,MATCH(C10,'For Bill Impact(HideBeforeFile)'!$C$62:$C$71,0),MATCH($O19,'For Bill Impact(HideBeforeFile)'!$D$61:$S$61,0)) ->  | H19: =INDEX('For Bill Impact(HideBeforeFile)'!$D$20:$S$29,MATCH(C10,'For Bill Impact(HideBeforeFile)'!$C$62:$C$71,0),MATCH($O19,'For Bill Impact(HideBeforeFile)'!$D$61:$S$61,0)) ->  | J19: =INDEX('For Bill Impact(HideBeforeFile)'!$D$34:$S$43,MATCH(C10,'For Bill Impact(HideBeforeFile)'!$C$62:$C$71,0),MATCH($O19,'For Bill Impact(HideBeforeFile)'!$D$61:$S$61,0)) ->  | O19: ='For Bill Impact(HideBeforeFile)'!$R$5 -> Dist. Vol. Rate Tier 3
C20: =INDEX('For Bill Impact(HideBeforeFile)'!$D$48:$S$57,MATCH(C10,'For Bill Impact(HideBeforeFile)'!$C$62:$C$71,0),MATCH($O20,'For Bill Impact(HideBeforeFile)'!$D$61:$S$61,0)) -> Demand - Firm | D20: =INDEX('For Bill Impact(HideBeforeFile)'!$D$62:$S$71,MATCH(C10,'For Bill Impact(HideBeforeFile)'!$C$62:$C$71,0),MATCH($O20,'For Bill Impact(HideBeforeFile)'!$D$61:$S$61,0)) -> cents / m3 | F20: =INDEX('For Bill Impact(HideBeforeFile)'!$D$6:$S$15,MATCH(C10,'For Bill Impact(HideBeforeFile)'!$C$62:$C$71,0),MATCH($O20,'For Bill Impact(HideBeforeFile)'!$D$61:$S$61,0)) -> 30.6443 | H20: =INDEX('For Bill Impact(HideBeforeFile)'!$D$20:$S$29,MATCH(C10,'For Bill Impact(HideBeforeFile)'!$C$62:$C$71,0),MATCH($O20,'For Bill Impact(HideBeforeFile)'!$D$61:$S$61,0)) -> 31.48601214 | J20: =INDEX('For Bill Impact(HideBeforeFile)'!$D$34:$S$43,MATCH(C10,'For Bill Impact(HideBeforeFile)'!$C$62:$C$71,0),MATCH($O20,'For Bill Impact(HideBeforeFile)'!$D$61:$S$61,0)) -> 35911.2 | O20: ='For Bill Impact(HideBeforeFile)'!$S$5 -> Dist. Capacity Rate
C21: =INDEX('For Bill Impact(HideBeforeFile)'!$D$48:$S$57,MATCH(C10,'For Bill Impact(HideBeforeFile)'!$C$62:$C$71,0),MATCH($O21,'For Bill Impact(HideBeforeFile)'!$D$61:$S$61,0)) -> System Gas Charge | D21: =INDEX('For Bill Impact(HideBeforeFile)'!$D$62:$S$71,MATCH(C10,'For Bill Impact(HideBeforeFile)'!$C$62:$C$71,0),MATCH($O21,'For Bill Impact(HideBeforeFile)'!$D$61:$S$61,0)) -> cents / m3 | F21: =INDEX('For Bill Impact(HideBeforeFile)'!$D$6:$S$15,MATCH(C10,'For Bill Impact(HideBeforeFile)'!$C$62:$C$71,0),MATCH($O21,'For Bill Impact(HideBeforeFile)'!$D$61:$S$61,0)) -> 0.0435 | H21: =INDEX('For Bill Impact(HideBeforeFile)'!$D$20:$S$29,MATCH(C10,'For Bill Impact(HideBeforeFile)'!$C$62:$C$71,0),MATCH($O21,'For Bill Impact(HideBeforeFile)'!$D$61:$S$61,0)) -> 0.0435 | J21: =INDEX('For Bill Impact(HideBeforeFile)'!$D$34:$S$43,MATCH(C10,'For Bill Impact(HideBeforeFile)'!$C$62:$C$71,0),MATCH($O21,'For Bill Impact(HideBeforeFile)'!$D$61:$S$61,0)) -> 222738.9 | O21: ='For Bill Impact(HideBeforeFile)'!$E$5 -> System Gas
C23: =INDEX('For Bill Impact(HideBeforeFile)'!$D$48:$S$57,MATCH(C10,'For Bill Impact(HideBeforeFile)'!$C$62:$C$71,0),MATCH($O23,'For Bill Impact(HideBeforeFile)'!$D$61:$S$61,0)) -> REDA | D23: =INDEX('For Bill Impact(HideBeforeFile)'!$D$62:$S$71,MATCH(C10,'For Bill Impact(HideBeforeFile)'!$C$62:$C$71,0),MATCH($O23,'For Bill Impact(HideBeforeFile)'!$D$61:$S$61,0)) -> $ / month | F23: =INDEX('For Bill Impact(HideBeforeFile)'!$D$6:$S$15,MATCH(C10,'For Bill Impact(HideBeforeFile)'!$C$62:$C$71,0),MATCH($O23,'For Bill Impact(HideBeforeFile)'!$D$61:$S$61,0)) -> 0.33 | H23: =INDEX('For Bill Impact(HideBeforeFile)'!$D$20:$S$29,MATCH(C10,'For Bill Impact(HideBeforeFile)'!$C$62:$C$71,0),MATCH($O23,'For Bill Impact(HideBeforeFile)'!$D$61:$S$61,0)) -> 0.02 | J23: =INDEX('For Bill Impact(HideBeforeFile)'!$D$34:$S$43,MATCH(C10,'For Bill Impact(HideBeforeFile)'!$C$62:$C$71,0),MATCH($O23,'For Bill Impact(HideBeforeFile)'!$D$61:$S$61,0)) -> 12 | O23: ='For Bill Impact(HideBeforeFile)'!$F$5 -> REDA
C24: =INDEX('For Bill Impact(HideBeforeFile)'!$D$48:$S$57,MATCH(C10,'For Bill Impact(HideBeforeFile)'!$C$62:$C$71,0),MATCH($O24,'For Bill Impact(HideBeforeFile)'!$D$61:$S$61,0)) -> PGTVA | D24: =INDEX('For Bill Impact(HideBeforeFile)'!$D$62:$S$71,MATCH(C10,'For Bill Impact(HideBeforeFile)'!$C$62:$C$71,0),MATCH($O24,'For Bill Impact(HideBeforeFile)'!$D$61:$S$61,0)) -> cents / m3 | F24: =INDEX('For Bill Impact(HideBeforeFile)'!$D$6:$S$15,MATCH(C10,'For Bill Impact(HideBeforeFile)'!$C$62:$C$71,0),MATCH($O24,'For Bill Impact(HideBeforeFile)'!$D$61:$S$61,0)) -> 0.3195 | H24: =INDEX('For Bill Impact(HideBeforeFile)'!$D$20:$S$29,MATCH(C10,'For Bill Impact(HideBeforeFile)'!$C$62:$C$71,0),MATCH($O24,'For Bill Impact(HideBeforeFile)'!$D$61:$S$61,0)) -> 0.4355195776 | J24: =INDEX('For Bill Impact(HideBeforeFile)'!$D$34:$S$43,MATCH(C10,'For Bill Impact(HideBeforeFile)'!$C$62:$C$71,0),MATCH($O24,'For Bill Impact(HideBeforeFile)'!$D$61:$S$61,0)) -> 222738.9 | O24: ='For Bill Impact(HideBeforeFile)'!$G$5 -> PGTVA
C25: =INDEX('For Bill Impact(HideBeforeFile)'!$D$48:$S$57,MATCH(C10,'For Bill Impact(HideBeforeFile)'!$C$62:$C$71,0),MATCH($O25,'For Bill Impact(HideBeforeFile)'!$D$61:$S$61,0)) -> ADVADA | D25: =INDEX('For Bill Impact(HideBeforeFile)'!$D$62:$S$71,MATCH(C10,'For Bill Impact(HideBeforeFile)'!$C$62:$C$71,0),MATCH($O25,'For Bill Impact(HideBeforeFile)'!$D$61:$S$61,0)) -> cents / m3 | F25: =INDEX('For Bill Impact(HideBeforeFile)'!$D$6:$S$15,MATCH(C10,'For Bill Impact(HideBeforeFile)'!$C$62:$C$71,0),MATCH($O25,'For Bill Impact(HideBeforeFile)'!$D$61:$S$61,0)) -> 0 | H25: =INDEX('For Bill Impact(HideBeforeFile)'!$D$20:$S$29,MATCH(C10,'For Bill Impact(HideBeforeFile)'!$C$62:$C$71,0),MATCH($O25,'For Bill Impact(HideBeforeFile)'!$D$61:$S$61,0)) -> 0 | J25: =INDEX('For Bill Impact(HideBeforeFile)'!$D$34:$S$43,MATCH(C10,'For Bill Impact(HideBeforeFile)'!$C$62:$C$71,0),MATCH($O25,'For Bill Impact(HideBeforeFile)'!$D$61:$S$61,0)) -> 222738.9 | O25: ='For Bill Impact(HideBeforeFile)'!$H$5 -> ADVADA
C26: =INDEX('For Bill Impact(HideBeforeFile)'!$D$48:$S$57,MATCH(C10,'For Bill Impact(HideBeforeFile)'!$C$62:$C$71,0),MATCH($O26,'For Bill Impact(HideBeforeFile)'!$D$61:$S$61,0)) -> LDMDA | D26: =INDEX('For Bill Impact(HideBeforeFile)'!$D$62:$S$71,MATCH(C10,'For Bill Impact(HideBeforeFile)'!$C$62:$C$71,0),MATCH($O26,'For Bill Impact(HideBeforeFile)'!$D$61:$S$61,0)) -> $ / month | F26: =INDEX('For Bill Impact(HideBeforeFile)'!$D$6:$S$15,MATCH(C10,'For Bill Impact(HideBeforeFile)'!$C$62:$C$71,0),MATCH($O26,'For Bill Impact(HideBeforeFile)'!$D$61:$S$61,0)) -> 0 | H26: =INDEX('For Bill Impact(HideBeforeFile)'!$D$20:$S$29,MATCH(C10,'For Bill Impact(HideBeforeFile)'!$C$62:$C$71,0),MATCH($O26,'For Bill Impact(HideBeforeFile)'!$D$61:$S$61,0)) -> 0 | J26: =INDEX('For Bill Impact(HideBeforeFile)'!$D$34:$S$43,MATCH(C10,'For Bill Impact(HideBeforeFile)'!$C$62:$C$71,0),MATCH($O26,'For Bill Impact(HideBeforeFile)'!$D$61:$S$61,0)) -> 12 | O26: LDMDA
C27: =INDEX('For Bill Impact(HideBeforeFile)'!$D$48:$S$57,MATCH(C10,'For Bill Impact(HideBeforeFile)'!$C$62:$C$71,0),MATCH($O27,'For Bill Impact(HideBeforeFile)'!$D$61:$S$61,0)) -> SICDA | D27: =INDEX('For Bill Impact(HideBeforeFile)'!$D$62:$S$71,MATCH(C10,'For Bill Impact(HideBeforeFile)'!$C$62:$C$71,0),MATCH($O27,'For Bill Impact(HideBeforeFile)'!$D$61:$S$61,0)) -> cents / m3 | F27: =INDEX('For Bill Impact(HideBeforeFile)'!$D$6:$S$15,MATCH(C10,'For Bill Impact(HideBeforeFile)'!$C$62:$C$71,0),MATCH($O27,'For Bill Impact(HideBeforeFile)'!$D$61:$S$61,0)) -> 0.0179 | H27: =INDEX('For Bill Impact(HideBeforeFile)'!$D$20:$S$29,MATCH(C10,'For Bill Impact(HideBeforeFile)'!$C$62:$C$71,0),MATCH($O27,'For Bill Impact(HideBeforeFile)'!$D$61:$S$61,0)) -> 0 | J27: =INDEX('For Bill Impact(HideBeforeFile)'!$D$34:$S$43,MATCH(C10,'For Bill Impact(HideBeforeFile)'!$C$62:$C$71,0),MATCH($O27,'For Bill Impact(HideBeforeFile)'!$D$61:$S$61,0)) -> 222738.9 | O27: SICDA
C28: =INDEX('For Bill Impact(HideBeforeFile)'!$D$48:$S$57,MATCH(C10,'For Bill Impact(HideBeforeFile)'!$C$62:$C$71,0),MATCH($O28,'For Bill Impact(HideBeforeFile)'!$D$61:$S$61,0)) -> FCCVA | D28: =INDEX('For Bill Impact(HideBeforeFile)'!$D$62:$S$71,MATCH(C10,'For Bill Impact(HideBeforeFile)'!$C$62:$C$71,0),MATCH($O28,'For Bill Impact(HideBeforeFile)'!$D$61:$S$61,0)) -> $ / month | F28: =INDEX('For Bill Impact(HideBeforeFile)'!$D$6:$S$15,MATCH(C10,'For Bill Impact(HideBeforeFile)'!$C$62:$C$71,0),MATCH($O28,'For Bill Impact(HideBeforeFile)'!$D$61:$S$61,0)) -> 0.03 | H28: =INDEX('For Bill Impact(HideBeforeFile)'!$D$20:$S$29,MATCH(C10,'For Bill Impact(HideBeforeFile)'!$C$62:$C$71,0),MATCH($O28,'For Bill Impact(HideBeforeFile)'!$D$61:$S$61,0)) -> 0.03 | J28: =INDEX('For Bill Impact(HideBeforeFile)'!$D$34:$S$43,MATCH(C10,'For Bill Impact(HideBeforeFile)'!$C$62:$C$71,0),MATCH($O28,'For Bill Impact(HideBeforeFile)'!$D$61:$S$61,0)) -> 12 | O28: FCCVA
C29: =INDEX('For Bill Impact(HideBeforeFile)'!$D$48:$S$57,MATCH(C10,'For Bill Impact(HideBeforeFile)'!$C$62:$C$71,0),MATCH($O29,'For Bill Impact(HideBeforeFile)'!$D$61:$S$61,0)) -> GGEADA | D29: =INDEX('For Bill Impact(HideBeforeFile)'!$D$62:$S$71,MATCH(C10,'For Bill Impact(HideBeforeFile)'!$C$62:$C$71,0),MATCH($O29,'For Bill Impact(HideBeforeFile)'!$D$61:$S$61,0)) -> $ / month | F29: =INDEX('For Bill Impact(HideBeforeFile)'!$D$6:$S$15,MATCH(C10,'For Bill Impact(HideBeforeFile)'!$C$62:$C$71,0),MATCH($O29,'For Bill Impact(HideBeforeFile)'!$D$61:$S$61,0)) -> 0.03 | H29: =INDEX('For Bill Impact(HideBeforeFile)'!$D$20:$S$29,MATCH(C10,'For Bill Impact(HideBeforeFile)'!$C$62:$C$71,0),MATCH($O29,'For Bill Impact(HideBeforeFile)'!$D$61:$S$61,0)) -> 0.03 | J29: =INDEX('For Bill Impact(HideBeforeFile)'!$D$34:$S$43,MATCH(C10,'For Bill Impact(HideBeforeFile)'!$C$62:$C$71,0),MATCH($O29,'For Bill Impact(HideBeforeFile)'!$D$61:$S$61,0)) -> 12 | O29: GGEADA
C31: =INDEX('For Bill Impact(HideBeforeFile)'!$D$48:$S$57,MATCH(C10,'For Bill Impact(HideBeforeFile)'!$C$62:$C$71,0),MATCH($O31,'For Bill Impact(HideBeforeFile)'!$D$61:$S$61,0)) -> Federal Carbon | D31: =INDEX('For Bill Impact(HideBeforeFile)'!$D$62:$S$71,MATCH(C10,'For Bill Impact(HideBeforeFile)'!$C$62:$C$71,0),MATCH($O31,'For Bill Impact(HideBeforeFile)'!$D$61:$S$61,0)) -> cents / m3 | F31: =INDEX('For Bill Impact(HideBeforeFile)'!$D$6:$S$15,MATCH(C10,'For Bill Impact(HideBeforeFile)'!$C$62:$C$71,0),MATCH($O31,'For Bill Impact(HideBeforeFile)'!$D$61:$S$61,0)) -> 9.79 | H31: =INDEX('For Bill Impact(HideBeforeFile)'!$D$20:$S$29,MATCH(C10,'For Bill Impact(HideBeforeFile)'!$C$62:$C$71,0),MATCH($O31,'For Bill Impact(HideBeforeFile)'!$D$61:$S$61,0)) -> 9.79 | J31: =INDEX('For Bill Impact(HideBeforeFile)'!$D$34:$S$43,MATCH(C10,'For Bill Impact(HideBeforeFile)'!$C$62:$C$71,0),MATCH($O31,'For Bill Impact(HideBeforeFile)'!$D$61:$S$61,0)) -> 222738.9 | O31: ='For Bill Impact(HideBeforeFile)'!$M$5 -> Federal Carbon
C32: =INDEX('For Bill Impact(HideBeforeFile)'!$D$48:$S$57,MATCH(C10,'For Bill Impact(HideBeforeFile)'!$C$62:$C$71,0),MATCH($O32,'For Bill Impact(HideBeforeFile)'!$D$61:$S$61,0)) -> Facility Carbon | D32: =INDEX('For Bill Impact(HideBeforeFile)'!$D$62:$S$71,MATCH(C10,'For Bill Impact(HideBeforeFile)'!$C$62:$C$71,0),MATCH($O32,'For Bill Impact(HideBeforeFile)'!$D$61:$S$61,0)) -> cents / m3 | F32: =INDEX('For Bill Impact(HideBeforeFile)'!$D$6:$S$15,MATCH(C10,'For Bill Impact(HideBeforeFile)'!$C$62:$C$71,0),MATCH($O32,'For Bill Impact(HideBeforeFile)'!$D$61:$S$61,0)) -> 0.0034 | H32: =INDEX('For Bill Impact(HideBeforeFile)'!$D$20:$S$29,MATCH(C10,'For Bill Impact(HideBeforeFile)'!$C$62:$C$71,0),MATCH($O32,'For Bill Impact(HideBeforeFile)'!$D$61:$S$61,0)) -> 0.0034 | J32: =INDEX('For Bill Impact(HideBeforeFile)'!$D$34:$S$43,MATCH(C10,'For Bill Impact(HideBeforeFile)'!$C$62:$C$71,0),MATCH($O32,'For Bill Impact(HideBeforeFile)'!$D$61:$S$61,0)) -> 222738.9 | O32: ='For Bill Impact(HideBeforeFile)'!$N$5 -> Facility Carbon
C35: Commodity | F35: Current | H35: Proposed | J35: Change $ | L35: Change %
F36: =F14*$J14/100 -> 67280.95761 | H36: =H14*$J14/100 -> 67280.95761 | J36: =H36-F36 -> 0 | L36: =IFERROR(J36/F36,"") -> 0 | O36: ='For Bill Impact(HideBeforeFile)'!$D$5 -> Commodity
C38: Delivery | F38: Current Rate | H38: Proposed Rate | J38: Change $ | L38: Change %
C39: =IF(C16<>"",C16,"") -> Customer (excl. Bill 32) | F39: =F16*$J16 -> 2400 | H39: =H16*$J16 -> 2597.016542 | J39: =IFERROR(H39-F39,"") -> 197.0165424 | L39: =IFERROR(J39/F39,"") -> 0.082090226 | O39: ='For Bill Impact(HideBeforeFile)'!$O$5 -> Dist. Customer Rate
C40: Bill 32 | F40: =J16 -> 12 | H40: =J16 -> 12 | J40: =IFERROR(H40-F40,"") -> 0 | L40: =IFERROR(J40/F40,"") -> 0
C41: =IF(C17<>"",C17,"") -> Delivery - Firm | F41: =IFERROR(F17*$J17/100,"") -> 9008.674811 | H41: =IFERROR(H17*$J17/100,"") -> 8679.500378 | J41: =IFERROR(H41-F41,"") -> -329.174432 | L41: =IFERROR(J41/F41,"") -> -0.03653971743 | O41: ='For Bill Impact(HideBeforeFile)'!$P$5 -> Dist. Vol. Rate Tier 1
C42: =IF(C18<>"",C18,"") ->  | F42: =IFERROR(F18*$J18/100,"") ->  | H42: =IFERROR(H18*$J18/100,"") ->  | O42: ='For Bill Impact(HideBeforeFile)'!$Q$5 -> Dist. Vol. Rate Tier 2
C43: =IF(C19<>"",C19,"") ->  | F43: =IFERROR(F19*$J19/100,"") ->  | H43: =IFERROR(H19*$J19/100,"") ->  | O43: ='For Bill Impact(HideBeforeFile)'!$R$5 -> Dist. Vol. Rate Tier 3
C44: =IF(C20<>"",C20,"") -> Demand - Firm | F44: =IFERROR(F20*$J20/100,"") -> 11004.73586 | H44: =IFERROR(H20*$J20/100,"") -> 11307.00479 | J44: 302.2689307 | L44: 0.02746716819 | O44: ='For Bill Impact(HideBeforeFile)'!$S$5 -> Dist. Capacity Rate
C45: =IF(C21<>"",C21,"") -> System Gas Charge | F45: =IFERROR(F21*$J21/100,"") -> 96.8914215 | H45: =IFERROR(H21*$J21/100,"") -> 96.8914215 | J45: 0 | L45: 0 | O45: ='For Bill Impact(HideBeforeFile)'!$E$5 -> System Gas
C46: Total Delivery | F46: =SUM(F39:F45) -> 22522.30209 | H46: =SUM(H39:H45) -> 22692.41313 | J46: =H46-F46 -> 170.1110411 | L46: =IF(ISERROR(J46/F46),0,J46/F46) -> 0.007553004148
C48: Rate Riders
C50: Rate Riders | F50: Current Rate | H50: Proposed Rate | J50: Change $ | L50: Change %
C51: =C23 -> REDA | F51: =F23*$J23 -> 3.96 | H51: =H23*$J23 -> 0.24 | J51: =IFERROR(H51-F51,"") -> -3.72 | L51: =IFERROR(J51/F51,"") -> -0.9393939394 | O51: ='For Bill Impact(HideBeforeFile)'!$F$5 -> REDA
C52: PGTVA | F52: =IFERROR(F24*$J24/100,"") -> 711.6507855 | H52: =IFERROR(H24*$J24/100,"") -> 970.0715165 | J52: =IFERROR(H52-F52,"") -> 258.420731 | L52: =IFERROR(J52/F52,"") -> 0.3631285685 | O52: ='For Bill Impact(HideBeforeFile)'!$G$5 -> PGTVA
C53: ADVADA | F53: =IFERROR(F25*$J25/100,"") -> 0 | H53: =IFERROR(H25*$J25/100,"") -> 0 | J53: 0 | O53: ='For Bill Impact(HideBeforeFile)'!$H$5 -> ADVADA
C54: LDMDA | F54: =F26*$J26 -> 0 | H54: =H26*$J26 -> 0 | J54: 0 | O54: ='For Bill Impact(HideBeforeFile)'!$I$5 -> LDMDA
C55: SICDA | F55: =IFERROR(F27*$J27/100,"") -> 39.8702631 | H55: =IFERROR(H27*$J27/100,"") -> 0 | J55: -39.8702631 | L55: -1 | O55: ='For Bill Impact(HideBeforeFile)'!$J$5 -> SICDA
C56: FCCVA | F56: =F28*$J28 -> 0.36 | H56: =H28*$J28 -> 0.36 | J56: 0 | L56: 0 | O56: ='For Bill Impact(HideBeforeFile)'!$K$5 -> FCCVA
C57: GGEADA | F57: 0.36 | H57: 0.36 | J57: 0 | L57: 0 | O57: ='For Bill Impact(HideBeforeFile)'!$L$5 -> GGEADA
C58: Total Rate Riders | F58: =SUM(F51:F57) -> 756.2010486 | H58: =SUM(H51:H57) -> 971.0315165 | J58: =SUM(J51:J57) -> 214.8304679 | L58: =IF(ISERROR(J58/F58),0,J58/F58) -> 0.284091735
C60: Carbon Tax
C61: Federal Carbon | F61: =F31*$J31/100 -> 21806.13831 | H61: =H31*$J31/100 -> 21806.13831 | J61: =IFERROR(H61-F61,"") -> 0 | L61: =IFERROR(J61/F61,"") -> 0
C62: Facility Carbon | F62: =F32*$J32/100 -> 7.5731226 | H62: =H32*$J32/100 -> 7.5731226 | J62: =IFERROR(H62-F62,"") -> 0 | L62: 0
C63: Total Carbon Tax | F63: =SUM(F61:F62) -> 21813.71143 | H63: =SUM(H61:H62) -> 21813.71143 | J63: =SUM(J61:J62) -> 0 | L63: =IF(ISERROR(J63/F63),0,J63/F63) -> 0
C65: Total Bill Impact | F65: =SUM(F36,F46,F58,F63) -> 112373.1722 | H65: =SUM(H36,H46,H58,H63) -> 112758.1137 | J65: =SUM(J36,J46,J58,J63) -> 384.9415091 | L65: =IFERROR(J65/F65,"") -> 0.003425564141
C68: =MID(CELL("filename",A1),FIND("]",CELL("filename",A1))+1,255) -> G1.3 Rate 3 Bill Impact

Sheet G1.4 Rate 4 Bill Impact
C2: ='A1.1 Distributor Information'!C3 -> Name of LDC: EPCOR Natural Gas Limited Partnership
C3: ='A1.1 Distributor Information'!C4 -> OEB Application Number: EB-2022-0183 Exhibit A - 2023 IRM Application
C7: Rate 4 Delivery Bill Impact
C10: ='For Bill Impact(HideBeforeFile)'!C12 -> RATE 4 - General Service Peaking - Apr to Dec | F10: Current | H10: Proposed | J10: Bill Determinant | O10: Look-up
C14: =INDEX('For Bill Impact(HideBeforeFile)'!$D$48:$S$57,MATCH(C10,'For Bill Impact(HideBeforeFile)'!$C$62:$C$71,0),MATCH($O14,'For Bill Impact(HideBeforeFile)'!$D$61:$S$61,0)) -> Commodity | D14: =INDEX('For Bill Impact(HideBeforeFile)'!$D$62:$S$71,MATCH(C10,'For Bill Impact(HideBeforeFile)'!$C$62:$C$71,0),MATCH($O14,'For Bill Impact(HideBeforeFile)'!$D$61:$S$61,0)) -> cents / m3 | F14: =INDEX('For Bill Impact(HideBeforeFile)'!$D$6:$S$15,MATCH(C10,'For Bill Impact(HideBeforeFile)'!$C$62:$C$71,0),MATCH($O14,'For Bill Impact(HideBeforeFile)'!$D$61:$S$61,0)) -> 30.2062 | H14: =INDEX('For Bill Impact(HideBeforeFile)'!$D$20:$S$29,MATCH(C10,'For Bill Impact(HideBeforeFile)'!$C$62:$C$71,0),MATCH($O14,'For Bill Impact(HideBeforeFile)'!$D$61:$S$61,0)) -> 30.2062 | J14: =INDEX('For Bill Impact(HideBeforeFile)'!$D$34:$S$43,MATCH(C10,'For Bill Impact(HideBeforeFile)'!$C$62:$C$71,0),MATCH($O14,'For Bill Impact(HideBeforeFile)'!$D$61:$S$61,0)) -> 41301.07805 | O14: ='For Bill Impact(HideBeforeFile)'!$D$5 -> Commodity
C16: =INDEX('For Bill Impact(HideBeforeFile)'!$D$48:$S$57,MATCH(C10,'For Bill Impact(HideBeforeFile)'!$C$62:$C$71,0),MATCH($O16,'For Bill Impact(HideBeforeFile)'!$D$61:$S$61,0)) -> Customer (excl. Bill 32) | D16: =INDEX('For Bill Impact(HideBeforeFile)'!$D$62:$S$71,MATCH(C10,'For Bill Impact(HideBeforeFile)'!$C$62:$C$71,0),MATCH($O16,'For Bill Impact(HideBeforeFile)'!$D$61:$S$61,0)) -> $ / month | F16: =INDEX('For Bill Impact(HideBeforeFile)'!$D$6:$S$15,MATCH(C10,'For Bill Impact(HideBeforeFile)'!$C$62:$C$71,0),MATCH($O16,'For Bill Impact(HideBeforeFile)'!$D$61:$S$61,0)) -> 20 | H16: =INDEX('For Bill Impact(HideBeforeFile)'!$D$20:$S$29,MATCH(C10,'For Bill Impact(HideBeforeFile)'!$C$62:$C$71,0),MATCH($O16,'For Bill Impact(HideBeforeFile)'!$D$61:$S$61,0)) -> 21.64180452 | J16: =INDEX('For Bill Impact(HideBeforeFile)'!$D$34:$S$43,MATCH(C10,'For Bill Impact(HideBeforeFile)'!$C$62:$C$71,0),MATCH($O16,'For Bill Impact(HideBeforeFile)'!$D$61:$S$61,0)) -> 9 | O16: ='For Bill Impact(HideBeforeFile)'!$O$5 -> Dist. Customer Rate
C17: =INDEX('For Bill Impact(HideBeforeFile)'!$D$48:$S$57,MATCH(C10,'For Bill Impact(HideBeforeFile)'!$C$62:$C$71,0),MATCH($O17,'For Bill Impact(HideBeforeFile)'!$D$61:$S$61,0)) -> Block 1 (First 1,000 m3 per month) | D17: =INDEX('For Bill Impact(HideBeforeFile)'!$D$62:$S$71,MATCH(C10,'For Bill Impact(HideBeforeFile)'!$C$62:$C$71,0),MATCH($O17,'For Bill Impact(HideBeforeFile)'!$D$61:$S$61,0)) -> cents / m3 | F17: =INDEX('For Bill Impact(HideBeforeFile)'!$D$6:$S$15,MATCH(C10,'For Bill Impact(HideBeforeFile)'!$C$62:$C$71,0),MATCH($O17,'For Bill Impact(HideBeforeFile)'!$D$61:$S$61,0)) -> 19.5025 | H17: =INDEX('For Bill Impact(HideBeforeFile)'!$D$20:$S$29,MATCH(C10,'For Bill Impact(HideBeforeFile)'!$C$62:$C$71,0),MATCH($O17,'For Bill Impact(HideBeforeFile)'!$D$61:$S$61,0)) -> 19.76264663 | J17: =INDEX('For Bill Impact(HideBeforeFile)'!$D$34:$S$43,MATCH(C10,'For Bill Impact(HideBeforeFile)'!$C$62:$C$71,0),MATCH($O17,'For Bill Impact(HideBeforeFile)'!$D$61:$S$61,0)) -> 2689.895122 | O17: ='For Bill Impact(HideBeforeFile)'!$P$5 -> Dist. Vol. Rate Tier 1
C18: =INDEX('For Bill Impact(HideBeforeFile)'!$D$48:$S$57,MATCH(C10,'For Bill Impact(HideBeforeFile)'!$C$62:$C$71,0),MATCH($O18,'For Bill Impact(HideBeforeFile)'!$D$61:$S$61,0)) -> Block 2 (Over 1,000 m3 per month) | D18: =INDEX('For Bill Impact(HideBeforeFile)'!$D$62:$S$71,MATCH(C10,'For Bill Impact(HideBeforeFile)'!$C$62:$C$71,0),MATCH($O18,'For Bill Impact(HideBeforeFile)'!$D$61:$S$61,0)) -> cents / m3 | F18: =INDEX('For Bill Impact(HideBeforeFile)'!$D$6:$S$15,MATCH(C10,'For Bill Impact(HideBeforeFile)'!$C$62:$C$71,0),MATCH($O18,'For Bill Impact(HideBeforeFile)'!$D$61:$S$61,0)) -> 11.966 | H18: =INDEX('For Bill Impact(HideBeforeFile)'!$D$20:$S$29,MATCH(C10,'For Bill Impact(HideBeforeFile)'!$C$62:$C$71,0),MATCH($O18,'For Bill Impact(HideBeforeFile)'!$D$61:$S$61,0)) -> 12.12557845 | J18: =INDEX('For Bill Impact(HideBeforeFile)'!$D$34:$S$43,MATCH(C10,'For Bill Impact(HideBeforeFile)'!$C$62:$C$71,0),MATCH($O18,'For Bill Impact(HideBeforeFile)'!$D$61:$S$61,0)) -> 38611.18293 | O18: ='For Bill Impact(HideBeforeFile)'!$Q$5 -> Dist. Vol. Rate Tier 2
C19: =INDEX('For Bill Impact(HideBeforeFile)'!$D$48:$S$57,MATCH(C10,'For Bill Impact(HideBeforeFile)'!$C$62:$C$71,0),MATCH($O19,'For Bill Impact(HideBeforeFile)'!$D$61:$S$61,0)) ->  | D19: =INDEX('For Bill Impact(HideBeforeFile)'!$D$62:$S$71,MATCH(C10,'For Bill Impact(HideBeforeFile)'!$C$62:$C$71,0),MATCH($O19,'For Bill Impact(HideBeforeFile)'!$D$61:$S$61,0)) ->  | F19: =INDEX('For Bill Impact(HideBeforeFile)'!$D$6:$S$15,MATCH(C10,'For Bill Impact(HideBeforeFile)'!$C$62:$C$71,0),MATCH($O19,'For Bill Impact(HideBeforeFile)'!$D$61:$S$61,0)) ->  | H19: =INDEX('For Bill Impact(HideBeforeFile)'!$D$20:$S$29,MATCH(C10,'For Bill Impact(HideBeforeFile)'!$C$62:$C$71,0),MATCH($O19,'For Bill Impact(HideBeforeFile)'!$D$61:$S$61,0)) ->  | J19: =INDEX('For Bill Impact(HideBeforeFile)'!$D$34:$S$43,MATCH(C10,'For Bill Impact(HideBeforeFile)'!$C$62:$C$71,0),MATCH($O19,'For Bill Impact(HideBeforeFile)'!$D$61:$S$61,0)) ->  | O19: ='For Bill Impact(HideBeforeFile)'!$R$5 -> Dist. Vol. Rate Tier 3
C20: =INDEX('For Bill Impact(HideBeforeFile)'!$D$48:$S$57,MATCH(C10,'For Bill Impact(HideBeforeFile)'!$C$62:$C$71,0),MATCH($O20,'For Bill Impact(HideBeforeFile)'!$D$61:$S$61,0)) ->  | D20: =INDEX('For Bill Impact(HideBeforeFile)'!$D$62:$S$71,MATCH(C10,'For Bill Impact(HideBeforeFile)'!$C$62:$C$71,0),MATCH($O20,'For Bill Impact(HideBeforeFile)'!$D$61:$S$61,0)) ->  | F20: =INDEX('For Bill Impact(HideBeforeFile)'!$D$6:$S$15,MATCH(C10,'For Bill Impact(HideBeforeFile)'!$C$62:$C$71,0),MATCH($O20,'For Bill Impact(HideBeforeFile)'!$D$61:$S$61,0)) ->  | H20: =INDEX('For Bill Impact(HideBeforeFile)'!$D$20:$S$29,MATCH(C10,'For Bill Impact(HideBeforeFile)'!$C$62:$C$71,0),MATCH($O20,'For Bill Impact(HideBeforeFile)'!$D$61:$S$61,0)) ->  | J20: =INDEX('For Bill Impact(HideBeforeFile)'!$D$34:$S$43,MATCH(C10,'For Bill Impact(HideBeforeFile)'!$C$62:$C$71,0),MATCH($O20,'For Bill Impact(HideBeforeFile)'!$D$61:$S$61,0)) ->  | O20: ='For Bill Impact(HideBeforeFile)'!$S$5 -> Dist. Capacity Rate
C21: =INDEX('For Bill Impact(HideBeforeFile)'!$D$48:$S$57,MATCH(C10,'For Bill Impact(HideBeforeFile)'!$C$62:$C$71,0),MATCH($O21,'For Bill Impact(HideBeforeFile)'!$D$61:$S$61,0)) -> System Gas Charge | D21: =INDEX('For Bill Impact(HideBeforeFile)'!$D$62:$S$71,MATCH(C10,'For Bill Impact(HideBeforeFile)'!$C$62:$C$71,0),MATCH($O21,'For Bill Impact(HideBeforeFile)'!$D$61:$S$61,0)) -> cents / m3 | F21: =INDEX('For Bill Impact(HideBeforeFile)'!$D$6:$S$15,MATCH(C10,'For Bill Impact(HideBeforeFile)'!$C$62:$C$71,0),MATCH($O21,'For Bill Impact(HideBeforeFile)'!$D$61:$S$61,0)) -> 0.0435 | H21: =INDEX('For Bill Impact(HideBeforeFile)'!$D$20:$S$29,MATCH(C10,'For Bill Impact(HideBeforeFile)'!$C$62:$C$71,0),MATCH($O21,'For Bill Impact(HideBeforeFile)'!$D$61:$S$61,0)) -> 0.0435 | J21: =INDEX('For Bill Impact(HideBeforeFile)'!$D$34:$S$43,MATCH(C10,'For Bill Impact(HideBeforeFile)'!$C$62:$C$71,0),MATCH($O21,'For Bill Impact(HideBeforeFile)'!$D$61:$S$61,0)) -> 41301.07805 | O21: ='For Bill Impact(HideBeforeFile)'!$E$5 -> System Gas
C23: =INDEX('For Bill Impact(HideBeforeFile)'!$D$48:$S$57,MATCH(C10,'For Bill Impact(HideBeforeFile)'!$C$62:$C$71,0),MATCH($O23,'For Bill Impact(HideBeforeFile)'!$D$61:$S$61,0)) -> REDA | D23: =INDEX('For Bill Impact(HideBeforeFile)'!$D$62:$S$71,MATCH(C10,'For Bill Impact(HideBeforeFile)'!$C$62:$C$71,0),MATCH($O23,'For Bill Impact(HideBeforeFile)'!$D$61:$S$61,0)) -> $ / month | F23: =INDEX('For Bill Impact(HideBeforeFile)'!$D$6:$S$15,MATCH(C10,'For Bill Impact(HideBeforeFile)'!$C$62:$C$71,0),MATCH($O23,'For Bill Impact(HideBeforeFile)'!$D$61:$S$61,0)) -> 0.33 | H23: =INDEX('For Bill Impact(HideBeforeFile)'!$D$20:$S$29,MATCH(C10,'For Bill Impact(HideBeforeFile)'!$C$62:$C$71,0),MATCH($O23,'For Bill Impact(HideBeforeFile)'!$D$61:$S$61,0)) -> 0.02 | J23: =INDEX('For Bill Impact(HideBeforeFile)'!$D$34:$S$43,MATCH(C10,'For Bill Impact(HideBeforeFile)'!$C$62:$C$71,0),MATCH($O23,'For Bill Impact(HideBeforeFile)'!$D$61:$S$61,0)) -> 9 | O23: ='For Bill Impact(HideBeforeFile)'!$F$5 -> REDA
C24: =INDEX('For Bill Impact(HideBeforeFile)'!$D$48:$S$57,MATCH(C10,'For Bill Impact(HideBeforeFile)'!$C$62:$C$71,0),MATCH($O24,'For Bill Impact(HideBeforeFile)'!$D$61:$S$61,0)) -> PGTVA | D24: =INDEX('For Bill Impact(HideBeforeFile)'!$D$62:$S$71,MATCH(C10,'For Bill Impact(HideBeforeFile)'!$C$62:$C$71,0),MATCH($O24,'For Bill Impact(HideBeforeFile)'!$D$61:$S$61,0)) -> cents / m3 | F24: =INDEX('For Bill Impact(HideBeforeFile)'!$D$6:$S$15,MATCH(C10,'For Bill Impact(HideBeforeFile)'!$C$62:$C$71,0),MATCH($O24,'For Bill Impact(HideBeforeFile)'!$D$61:$S$61,0)) -> 0.3195 | H24: =INDEX('For Bill Impact(HideBeforeFile)'!$D$20:$S$29,MATCH(C10,'For Bill Impact(HideBeforeFile)'!$C$62:$C$71,0),MATCH($O24,'For Bill Impact(HideBeforeFile)'!$D$61:$S$61,0)) -> 0.4355195776 | J24: =INDEX('For Bill Impact(HideBeforeFile)'!$D$34:$S$43,MATCH(C10,'For Bill Impact(HideBeforeFile)'!$C$62:$C$71,0),MATCH($O24,'For Bill Impact(HideBeforeFile)'!$D$61:$S$61,0)) -> 41301.07805 | O24: ='For Bill Impact(HideBeforeFile)'!$G$5 -> PGTVA
C25: =INDEX('For Bill Impact(HideBeforeFile)'!$D$48:$S$57,MATCH(C10,'For Bill Impact(HideBeforeFile)'!$C$62:$C$71,0),MATCH($O25,'For Bill Impact(HideBeforeFile)'!$D$61:$S$61,0)) -> ADVADA | D25: =INDEX('For Bill Impact(HideBeforeFile)'!$D$62:$S$71,MATCH(C10,'For Bill Impact(HideBeforeFile)'!$C$62:$C$71,0),MATCH($O25,'For Bill Impact(HideBeforeFile)'!$D$61:$S$61,0)) -> cents / m3 | F25: =INDEX('For Bill Impact(HideBeforeFile)'!$D$6:$S$15,MATCH(C10,'For Bill Impact(HideBeforeFile)'!$C$62:$C$71,0),MATCH($O25,'For Bill Impact(HideBeforeFile)'!$D$61:$S$61,0)) -> 0 | H25: =INDEX('For Bill Impact(HideBeforeFile)'!$D$20:$S$29,MATCH(C10,'For Bill Impact(HideBeforeFile)'!$C$62:$C$71,0),MATCH($O25,'For Bill Impact(HideBeforeFile)'!$D$61:$S$61,0)) -> 0 | J25: =INDEX('For Bill Impact(HideBeforeFile)'!$D$34:$S$43,MATCH(C10,'For Bill Impact(HideBeforeFile)'!$C$62:$C$71,0),MATCH($O25,'For Bill Impact(HideBeforeFile)'!$D$61:$S$61,0)) -> 41301.07805 | O25: ='For Bill Impact(HideBeforeFile)'!$H$5 -> ADVADA
C26: =INDEX('For Bill Impact(HideBeforeFile)'!$D$48:$S$57,MATCH(C10,'For Bill Impact(HideBeforeFile)'!$C$62:$C$71,0),MATCH($O26,'For Bill Impact(HideBeforeFile)'!$D$61:$S$61,0)) -> LDMDA | D26: =INDEX('For Bill Impact(HideBeforeFile)'!$D$62:$S$71,MATCH(C10,'For Bill Impact(HideBeforeFile)'!$C$62:$C$71,0),MATCH($O26,'For Bill Impact(HideBeforeFile)'!$D$61:$S$61,0)) -> $ / month | F26: =INDEX('For Bill Impact(HideBeforeFile)'!$D$6:$S$15,MATCH(C10,'For Bill Impact(HideBeforeFile)'!$C$62:$C$71,0),MATCH($O26,'For Bill Impact(HideBeforeFile)'!$D$61:$S$61,0)) -> 0 | H26: =INDEX('For Bill Impact(HideBeforeFile)'!$D$20:$S$29,MATCH(C10,'For Bill Impact(HideBeforeFile)'!$C$62:$C$71,0),MATCH($O26,'For Bill Impact(HideBeforeFile)'!$D$61:$S$61,0)) -> 0 | J26: =INDEX('For Bill Impact(HideBeforeFile)'!$D$34:$S$43,MATCH(C10,'For Bill Impact(HideBeforeFile)'!$C$62:$C$71,0),MATCH($O26,'For Bill Impact(HideBeforeFile)'!$D$61:$S$61,0)) -> 9 | O26: LDMDA
C27: =INDEX('For Bill Impact(HideBeforeFile)'!$D$48:$S$57,MATCH(C10,'For Bill Impact(HideBeforeFile)'!$C$62:$C$71,0),MATCH($O27,'For Bill Impact(HideBeforeFile)'!$D$61:$S$61,0)) -> SICDA | D27: =INDEX('For Bill Impact(HideBeforeFile)'!$D$62:$S$71,MATCH(C10,'For Bill Impact(HideBeforeFile)'!$C$62:$C$71,0),MATCH($O27,'For Bill Impact(HideBeforeFile)'!$D$61:$S$61,0)) -> cents / m3 | F27: =INDEX('For Bill Impact(HideBeforeFile)'!$D$6:$S$15,MATCH(C10,'For Bill Impact(HideBeforeFile)'!$C$62:$C$71,0),MATCH($O27,'For Bill Impact(HideBeforeFile)'!$D$61:$S$61,0)) -> 0.0814 | H27: =INDEX('For Bill Impact(HideBeforeFile)'!$D$20:$S$29,MATCH(C10,'For Bill Impact(HideBeforeFile)'!$C$62:$C$71,0),MATCH($O27,'For Bill Impact(HideBeforeFile)'!$D$61:$S$61,0)) -> 0 | J27: =INDEX('For Bill Impact(HideBeforeFile)'!$D$34:$S$43,MATCH(C10,'For Bill Impact(HideBeforeFile)'!$C$62:$C$71,0),MATCH($O27,'For Bill Impact(HideBeforeFile)'!$D$61:$S$61,0)) -> 41301.07805 | O27: SICDA
C28: =INDEX('For Bill Impact(HideBeforeFile)'!$D$48:$S$57,MATCH(C10,'For Bill Impact(HideBeforeFile)'!$C$62:$C$71,0),MATCH($O28,'For Bill Impact(HideBeforeFile)'!$D$61:$S$61,0)) -> FCCVA | D28: =INDEX('For Bill Impact(HideBeforeFile)'!$D$62:$S$71,MATCH(C10,'For Bill Impact(HideBeforeFile)'!$C$62:$C$71,0),MATCH($O28,'For Bill Impact(HideBeforeFile)'!$D$61:$S$61,0)) -> $ / month | F28: =INDEX('For Bill Impact(HideBeforeFile)'!$D$6:$S$15,MATCH(C10,'For Bill Impact(HideBeforeFile)'!$C$62:$C$71,0),MATCH($O28,'For Bill Impact(HideBeforeFile)'!$D$61:$S$61,0)) -> 0.03 | H28: =INDEX('For Bill Impact(HideBeforeFile)'!$D$20:$S$29,MATCH(C10,'For Bill Impact(HideBeforeFile)'!$C$62:$C$71,0),MATCH($O28,'For Bill Impact(HideBeforeFile)'!$D$61:$S$61,0)) -> 0.03 | J28: =INDEX('For Bill Impact(HideBeforeFile)'!$D$34:$S$43,MATCH(C10,'For Bill Impact(HideBeforeFile)'!$C$62:$C$71,0),MATCH($O28,'For Bill Impact(HideBeforeFile)'!$D$61:$S$61,0)) -> 9 | O28: FCCVA
C29: =INDEX('For Bill Impact(HideBeforeFile)'!$D$48:$S$57,MATCH(C10,'For Bill Impact(HideBeforeFile)'!$C$62:$C$71,0),MATCH($O29,'For Bill Impact(HideBeforeFile)'!$D$61:$S$61,0)) -> GGEADA | D29: =INDEX('For Bill Impact(HideBeforeFile)'!$D$62:$S$71,MATCH(C10,'For Bill Impact(HideBeforeFile)'!$C$62:$C$71,0),MATCH($O29,'For Bill Impact(HideBeforeFile)'!$D$61:$S$61,0)) -> $ / month | F29: =INDEX('For Bill Impact(HideBeforeFile)'!$D$6:$S$15,MATCH(C10,'For Bill Impact(HideBeforeFile)'!$C$62:$C$71,0),MATCH($O29,'For Bill Impact(HideBeforeFile)'!$D$61:$S$61,0)) -> 0.03 | H29: =INDEX('For Bill Impact(HideBeforeFile)'!$D$20:$S$29,MATCH(C10,'For Bill Impact(HideBeforeFile)'!$C$62:$C$71,0),MATCH($O29,'For Bill Impact(HideBeforeFile)'!$D$61:$S$61,0)) -> 0.03 | J29: =INDEX('For Bill Impact(HideBeforeFile)'!$D$34:$S$43,MATCH(C10,'For Bill Impact(HideBeforeFile)'!$C$62:$C$71,0),MATCH($O29,'For Bill Impact(HideBeforeFile)'!$D$61:$S$61,0)) -> 9 | O29: GGEADA
C31: =INDEX('For Bill Impact(HideBeforeFile)'!$D$48:$S$57,MATCH(C10,'For Bill Impact(HideBeforeFile)'!$C$62:$C$71,0),MATCH($O31,'For Bill Impact(HideBeforeFile)'!$D$61:$S$61,0)) -> Federal Carbon | D31: =INDEX('For Bill Impact(HideBeforeFile)'!$D$62:$S$71,MATCH(C10,'For Bill Impact(HideBeforeFile)'!$C$62:$C$71,0),MATCH($O31,'For Bill Impact(HideBeforeFile)'!$D$61:$S$61,0)) -> cents / m3 | F31: =INDEX('For Bill Impact(HideBeforeFile)'!$D$6:$S$15,MATCH(C10,'For Bill Impact(HideBeforeFile)'!$C$62:$C$71,0),MATCH($O31,'For Bill Impact(HideBeforeFile)'!$D$61:$S$61,0)) -> 9.79 | H31: =INDEX('For Bill Impact(HideBeforeFile)'!$D$20:$S$29,MATCH(C10,'For Bill Impact(HideBeforeFile)'!$C$62:$C$71,0),MATCH($O31,'For Bill Impact(HideBeforeFile)'!$D$61:$S$61,0)) -> 9.79 | J31: =INDEX('For Bill Impact(HideBeforeFile)'!$D$34:$S$43,MATCH(C10,'For Bill Impact(HideBeforeFile)'!$C$62:$C$71,0),MATCH($O31,'For Bill Impact(HideBeforeFile)'!$D$61:$S$61,0)) -> 41301.07805 | O31: ='For Bill Impact(HideBeforeFile)'!$M$5 -> Federal Carbon
C32: =INDEX('For Bill Impact(HideBeforeFile)'!$D$48:$S$57,MATCH(C10,'For Bill Impact(HideBeforeFile)'!$C$62:$C$71,0),MATCH($O32,'For Bill Impact(HideBeforeFile)'!$D$61:$S$61,0)) -> Facility Carbon | D32: =INDEX('For Bill Impact(HideBeforeFile)'!$D$62:$S$71,MATCH(C10,'For Bill Impact(HideBeforeFile)'!$C$62:$C$71,0),MATCH($O32,'For Bill Impact(HideBeforeFile)'!$D$61:$S$61,0)) -> cents / m3 | F32: =INDEX('For Bill Impact(HideBeforeFile)'!$D$6:$S$15,MATCH(C10,'For Bill Impact(HideBeforeFile)'!$C$62:$C$71,0),MATCH($O32,'For Bill Impact(HideBeforeFile)'!$D$61:$S$61,0)) -> 0.0034 | H32: =INDEX('For Bill Impact(HideBeforeFile)'!$D$20:$S$29,MATCH(C10,'For Bill Impact(HideBeforeFile)'!$C$62:$C$71,0),MATCH($O32,'For Bill Impact(HideBeforeFile)'!$D$61:$S$61,0)) -> 0.0034 | J32: =INDEX('For Bill Impact(HideBeforeFile)'!$D$34:$S$43,MATCH(C10,'For Bill Impact(HideBeforeFile)'!$C$62:$C$71,0),MATCH($O32,'For Bill Impact(HideBeforeFile)'!$D$61:$S$61,0)) -> 41301.07805 | O32: ='For Bill Impact(HideBeforeFile)'!$N$5 -> Facility Carbon
C35: Commodity | F35: Current | H35: Proposed | J35: Change $ | L35: Change %
F36: =F14*$J14/100 -> 12475.48624 | H36: =H14*$J14/100 -> 12475.48624 | J36: =H36-F36 -> 0 | L36: =IFERROR(J36/F36,"") -> 0 | O36: ='For Bill Impact(HideBeforeFile)'!$D$5 -> Commodity
C38: Delivery | F38: Current Rate | H38: Proposed Rate | J38: Change $ | L38: Change %
C39: =IF(C16<>"",C16,"") -> Customer (excl. Bill 32) | F39: =F16*$J16 -> 180 | H39: =H16*$J16 -> 194.7762407 | J39: =IFERROR(H39-F39,"") -> 14.77624068 | L39: =IFERROR(J39/F39,"") -> 0.082090226 | O39: ='For Bill Impact(HideBeforeFile)'!$O$5 -> Dist. Customer Rate
C40: Bill 32 | F40: =J16 -> 9 | H40: =J16 -> 9 | J40: =IFERROR(H40-F40,"") -> 0 | L40: =IFERROR(J40/F40,"") -> 0
C41: =IF(C17<>"",C17,"") -> Block 1 (First 1,000 m3 per month) | F41: =IFERROR(F17*$J17/100,"") -> 524.5967962 | H41: =IFERROR(H17*$J17/100,"") -> 531.5944678 | J41: =IFERROR(H41-F41,"") -> 6.997671605 | L41: =IFERROR(J41/F41,"") -> 0.01333914285 | O41: ='For Bill Impact(HideBeforeFile)'!$P$5 -> Dist. Vol. Rate Tier 1
C42: =IF(C18<>"",C18,"") -> Block 2 (Over 1,000 m3 per month) | F42: =IFERROR(F18*$J18/100,"") -> 4620.214149 | H42: =IFERROR(H18*$J18/100,"") -> 4681.829275 | J42: 61.6151255 | L42: 0.01333598909 | O42: ='For Bill Impact(HideBeforeFile)'!$Q$5 -> Dist. Vol. Rate Tier 2
C43: =IF(C19<>"",C19,"") ->  | F43: =IFERROR(F19*$J19/100,"") ->  | H43: =IFERROR(H19*$J19/100,"") ->  | O43: ='For Bill Impact(HideBeforeFile)'!$R$5 -> Dist. Vol. Rate Tier 3
C44: =IF(C20<>"",C20,"") ->  | F44: =IFERROR(F20*$J20/100,"") ->  | H44: =IFERROR(H20*$J20/100,"") ->  | O44: ='For Bill Impact(HideBeforeFile)'!$S$5 -> Dist. Capacity Rate
C45: =IF(C21<>"",C21,"") -> System Gas Charge | F45: =IFERROR(F21*$J21/100,"") -> 17.96596895 | H45: =IFERROR(H21*$J21/100,"") -> 17.96596895 | J45: 0 | L45: 0 | O45: ='For Bill Impact(HideBeforeFile)'!$E$5 -> System Gas
C46: Total Delivery | F46: =SUM(F39:F45) -> 5351.776914 | H46: =SUM(H39:H45) -> 5435.165952 | J46: =H46-F46 -> 83.38903778 | L46: =IF(ISERROR(J46/F46),0,J46/F46) -> 0.01558156088
C48: Rate Riders
C50: Rate Riders | F50: Current Rate | H50: Proposed Rate | J50: Change $ | L50: Change %
C51: =C23 -> REDA | F51: =F23*$J23 -> 2.97 | H51: =H23*$J23 -> 0.18 | J51: =IFERROR(H51-F51,"") -> -2.79 | L51: =IFERROR(J51/F51,"") -> -0.9393939394 | O51: ='For Bill Impact(HideBeforeFile)'!$F$5 -> REDA
C52: PGTVA | F52: =IFERROR(F24*$J24/100,"") -> 131.9569444 | H52: =IFERROR(H24*$J24/100,"") -> 179.8742807 | J52: =IFERROR(H52-F52,"") -> 47.91733631 | L52: =IFERROR(J52/F52,"") -> 0.3631285685 | O52: ='For Bill Impact(HideBeforeFile)'!$G$5 -> PGTVA
C53: ADVADA | F53: =IFERROR(F25*$J25/100,"") -> 0 | H53: =IFERROR(H25*$J25/100,"") -> 0 | J53: 0 | O53: ='For Bill Impact(HideBeforeFile)'!$H$5 -> ADVADA
C54: LDMDA | F54: =F26*$J26 -> 0 | H54: =H26*$J26 -> 0 | J54: 0 | O54: ='For Bill Impact(HideBeforeFile)'!$I$5 -> LDMDA
C55: SICDA | F55: =IFERROR(F27*$J27/100,"") -> 33.61907753 | H55: =IFERROR(H27*$J27/100,"") -> 0 | J55: -33.61907753 | L55: -1 | O55: ='For Bill Impact(HideBeforeFile)'!$J$5 -> SICDA
C56: FCCVA | F56: =F28*$J28 -> 0.27 | H56: =H28*$J28 -> 0.27 | J56: 0 | L56: 0 | O56: ='For Bill Impact(HideBeforeFile)'!$I$5 -> LDMDA
C57: GGEADA | F57: 0.27 | H57: 0.27 | J57: 0 | L57: 0 | O57: ='For Bill Impact(HideBeforeFile)'!$J$5 -> SICDA
C58: Total Rate Riders | F58: =SUM(F51:F57) -> 169.0860219 | H58: =SUM(H51:H57) -> 180.5942807 | J58: =SUM(J51:J57) -> 11.50825878 | L58: =IF(ISERROR(J58/F58),0,J58/F58) -> 0.06806156211
C60: Carbon Tax
C61: Federal Carbon | F61: =F31*$J31/100 -> 4043.375541 | H61: =H31*$J31/100 -> 4043.375541 | J61: =IFERROR(H61-F61,"") -> 0 | L61: =IFERROR(J61/F61,"") -> 0
C62: Facility Carbon | F62: =F32*$J32/100 -> 1.404236654 | H62: =H32*$J32/100 -> 1.404236654 | J62: =IFERROR(H62-F62,"") -> 0 | L62: 0
C63: Total Carbon Tax | F63: =SUM(F61:F62) -> 4044.779778 | H63: =SUM(H61:H62) -> 4044.779778 | J63: =SUM(J61:J62) -> 0 | L63: =IF(ISERROR(J63/F63),0,J63/F63) -> 0
C65: Total Bill Impact | F65: =SUM(F36,F46,F58,F63) -> 22041.12895 | H65: =SUM(H36,H46,H58,H63) -> 22136.02625 | J65: =SUM(J36,J46,J58,J63) -> 94.89729657 | L65: =IFERROR(J65/F65,"") -> 0.004305464424
C68: =MID(CELL("filename",A1),FIND("]",CELL("filename",A1))+1,255) -> G1.4 Rate 4 Bill Impact
C70: ='For Bill Impact(HideBeforeFile)'!C13 -> RATE 4 - General Service Peaking - Jan to Mar | F70: Current | H70: Proposed | J70: Bill Determinant | O70: Look-up
C74: =INDEX('For Bill Impact(HideBeforeFile)'!$D$48:$S$57,MATCH(C70,'For Bill Impact(HideBeforeFile)'!$C$62:$C$71,0),MATCH($O74,'For Bill Impact(HideBeforeFile)'!$D$61:$S$61,0)) -> Commodity | D74: =INDEX('For Bill Impact(HideBeforeFile)'!$D$62:$S$71,MATCH(C70,'For Bill Impact(HideBeforeFile)'!$C$62:$C$71,0),MATCH($O74,'For Bill Impact(HideBeforeFile)'!$D$61:$S$61,0)) -> cents / m3 | F74: =INDEX('For Bill Impact(HideBeforeFile)'!$D$6:$S$15,MATCH(C70,'For Bill Impact(HideBeforeFile)'!$C$62:$C$71,0),MATCH($O74,'For Bill Impact(HideBeforeFile)'!$D$61:$S$61,0)) -> 30.2062 | H74: =INDEX('For Bill Impact(HideBeforeFile)'!$D$20:$S$29,MATCH(C70,'For Bill Impact(HideBeforeFile)'!$C$62:$C$71,0),MATCH($O74,'For Bill Impact(HideBeforeFile)'!$D$61:$S$61,0)) -> 30.2062 | J74: =INDEX('For Bill Impact(HideBeforeFile)'!$D$34:$S$43,MATCH(C70,'For Bill Impact(HideBeforeFile)'!$C$62:$C$71,0),MATCH($O74,'For Bill Impact(HideBeforeFile)'!$D$61:$S$61,0)) -> 813.1926829 | O74: ='For Bill Impact(HideBeforeFile)'!$D$5 -> Commodity
C76: =INDEX('For Bill Impact(HideBeforeFile)'!$D$48:$S$57,MATCH(C70,'For Bill Impact(HideBeforeFile)'!$C$62:$C$71,0),MATCH($O76,'For Bill Impact(HideBeforeFile)'!$D$61:$S$61,0)) -> Customer (excl. Bill 32) | D76: =INDEX('For Bill Impact(HideBeforeFile)'!$D$62:$S$71,MATCH(C70,'For Bill Impact(HideBeforeFile)'!$C$62:$C$71,0),MATCH($O76,'For Bill Impact(HideBeforeFile)'!$D$61:$S$61,0)) -> $ / month | F76: =INDEX('For Bill Impact(HideBeforeFile)'!$D$6:$S$15,MATCH(C70,'For Bill Impact(HideBeforeFile)'!$C$62:$C$71,0),MATCH($O76,'For Bill Impact(HideBeforeFile)'!$D$61:$S$61,0)) -> 20 | H76: =INDEX('For Bill Impact(HideBeforeFile)'!$D$20:$S$29,MATCH(C70,'For Bill Impact(HideBeforeFile)'!$C$62:$C$71,0),MATCH($O76,'For Bill Impact(HideBeforeFile)'!$D$61:$S$61,0)) -> 21.64180452 | J76: =INDEX('For Bill Impact(HideBeforeFile)'!$D$34:$S$43,MATCH(C70,'For Bill Impact(HideBeforeFile)'!$C$62:$C$71,0),MATCH($O76,'For Bill Impact(HideBeforeFile)'!$D$61:$S$61,0)) -> 3 | O76: ='For Bill Impact(HideBeforeFile)'!$O$5 -> Dist. Customer Rate
C77: =INDEX('For Bill Impact(HideBeforeFile)'!$D$48:$S$57,MATCH(C70,'For Bill Impact(HideBeforeFile)'!$C$62:$C$71,0),MATCH($O77,'For Bill Impact(HideBeforeFile)'!$D$61:$S$61,0)) -> Block 1 (First 1,000 m3 per month) | D77: =INDEX('For Bill Impact(HideBeforeFile)'!$D$62:$S$71,MATCH(C70,'For Bill Impact(HideBeforeFile)'!$C$62:$C$71,0),MATCH($O77,'For Bill Impact(HideBeforeFile)'!$D$61:$S$61,0)) -> cents / m3 | F77: =INDEX('For Bill Impact(HideBeforeFile)'!$D$6:$S$15,MATCH(C70,'For Bill Impact(HideBeforeFile)'!$C$62:$C$71,0),MATCH($O77,'For Bill Impact(HideBeforeFile)'!$D$61:$S$61,0)) -> 24.8799 | H77: =INDEX('For Bill Impact(HideBeforeFile)'!$D$20:$S$29,MATCH(C70,'For Bill Impact(HideBeforeFile)'!$C$62:$C$71,0),MATCH($O77,'For Bill Impact(HideBeforeFile)'!$D$61:$S$61,0)) -> 25.21162018 | J77: =INDEX('For Bill Impact(HideBeforeFile)'!$D$34:$S$43,MATCH(C70,'For Bill Impact(HideBeforeFile)'!$C$62:$C$71,0),MATCH($O77,'For Bill Impact(HideBeforeFile)'!$D$61:$S$61,0)) -> 509.9878049 | O77: ='For Bill Impact(HideBeforeFile)'!$P$5 -> Dist. Vol. Rate Tier 1
C78: =INDEX('For Bill Impact(HideBeforeFile)'!$D$48:$S$57,MATCH(C70,'For Bill Impact(HideBeforeFile)'!$C$62:$C$71,0),MATCH($O78,'For Bill Impact(HideBeforeFile)'!$D$61:$S$61,0)) -> Block 2 (Over 1,000 m3 per month) | D78: =INDEX('For Bill Impact(HideBeforeFile)'!$D$62:$S$71,MATCH(C70,'For Bill Impact(HideBeforeFile)'!$C$62:$C$71,0),MATCH($O78,'For Bill Impact(HideBeforeFile)'!$D$61:$S$61,0)) -> cents / m3 | F78: =INDEX('For Bill Impact(HideBeforeFile)'!$D$6:$S$15,MATCH(C70,'For Bill Impact(HideBeforeFile)'!$C$62:$C$71,0),MATCH($O78,'For Bill Impact(HideBeforeFile)'!$D$61:$S$61,0)) -> 19.2257 | H78: =INDEX('For Bill Impact(HideBeforeFile)'!$D$20:$S$29,MATCH(C70,'For Bill Impact(HideBeforeFile)'!$C$62:$C$71,0),MATCH($O78,'For Bill Impact(HideBeforeFile)'!$D$61:$S$61,0)) -> 19.48195243 | J78: =INDEX('For Bill Impact(HideBeforeFile)'!$D$34:$S$43,MATCH(C70,'For Bill Impact(HideBeforeFile)'!$C$62:$C$71,0),MATCH($O78,'For Bill Impact(HideBeforeFile)'!$D$61:$S$61,0)) -> 303.204878 | O78: ='For Bill Impact(HideBeforeFile)'!$Q$5 -> Dist. Vol. Rate Tier 2
C79: =INDEX('For Bill Impact(HideBeforeFile)'!$D$48:$S$57,MATCH(C70,'For Bill Impact(HideBeforeFile)'!$C$62:$C$71,0),MATCH($O79,'For Bill Impact(HideBeforeFile)'!$D$61:$S$61,0)) ->  | D79: =INDEX('For Bill Impact(HideBeforeFile)'!$D$62:$S$71,MATCH(C70,'For Bill Impact(HideBeforeFile)'!$C$62:$C$71,0),MATCH($O79,'For Bill Impact(HideBeforeFile)'!$D$61:$S$61,0)) ->  | F79: =INDEX('For Bill Impact(HideBeforeFile)'!$D$6:$S$15,MATCH(C70,'For Bill Impact(HideBeforeFile)'!$C$62:$C$71,0),MATCH($O79,'For Bill Impact(HideBeforeFile)'!$D$61:$S$61,0)) ->  | H79: =INDEX('For Bill Impact(HideBeforeFile)'!$D$20:$S$29,MATCH(C70,'For Bill Impact(HideBeforeFile)'!$C$62:$C$71,0),MATCH($O79,'For Bill Impact(HideBeforeFile)'!$D$61:$S$61,0)) ->  | J79: =INDEX('For Bill Impact(HideBeforeFile)'!$D$34:$S$43,MATCH(C70,'For Bill Impact(HideBeforeFile)'!$C$62:$C$71,0),MATCH($O79,'For Bill Impact(HideBeforeFile)'!$D$61:$S$61,0)) ->  | O79: ='For Bill Impact(HideBeforeFile)'!$R$5 -> Dist. Vol. Rate Tier 3
C80: =INDEX('For Bill Impact(HideBeforeFile)'!$D$48:$S$57,MATCH(C70,'For Bill Impact(HideBeforeFile)'!$C$62:$C$71,0),MATCH($O80,'For Bill Impact(HideBeforeFile)'!$D$61:$S$61,0)) ->  | D80: =INDEX('For Bill Impact(HideBeforeFile)'!$D$62:$S$71,MATCH(C70,'For Bill Impact(HideBeforeFile)'!$C$62:$C$71,0),MATCH($O80,'For Bill Impact(HideBeforeFile)'!$D$61:$S$61,0)) ->  | F80: =INDEX('For Bill Impact(HideBeforeFile)'!$D$6:$S$15,MATCH(C70,'For Bill Impact(HideBeforeFile)'!$C$62:$C$71,0),MATCH($O80,'For Bill Impact(HideBeforeFile)'!$D$61:$S$61,0)) ->  | H80: =INDEX('For Bill Impact(HideBeforeFile)'!$D$20:$S$29,MATCH(C70,'For Bill Impact(HideBeforeFile)'!$C$62:$C$71,0),MATCH($O80,'For Bill Impact(HideBeforeFile)'!$D$61:$S$61,0)) ->  | J80: =INDEX('For Bill Impact(HideBeforeFile)'!$D$34:$S$43,MATCH(C70,'For Bill Impact(HideBeforeFile)'!$C$62:$C$71,0),MATCH($O80,'For Bill Impact(HideBeforeFile)'!$D$61:$S$61,0)) ->  | O80: ='For Bill Impact(HideBeforeFile)'!$S$5 -> Dist. Capacity Rate
C81: =INDEX('For Bill Impact(HideBeforeFile)'!$D$48:$S$57,MATCH(C70,'For Bill Impact(HideBeforeFile)'!$C$62:$C$71,0),MATCH($O81,'For Bill Impact(HideBeforeFile)'!$D$61:$S$61,0)) -> System Gas Charge | D81: =INDEX('For Bill Impact(HideBeforeFile)'!$D$62:$S$71,MATCH(C70,'For Bill Impact(HideBeforeFile)'!$C$62:$C$71,0),MATCH($O81,'For Bill Impact(HideBeforeFile)'!$D$61:$S$61,0)) -> cents / m3 | F81: =INDEX('For Bill Impact(HideBeforeFile)'!$D$6:$S$15,MATCH(C70,'For Bill Impact(HideBeforeFile)'!$C$62:$C$71,0),MATCH($O81,'For Bill Impact(HideBeforeFile)'!$D$61:$S$61,0)) -> 0.0435 | H81: =INDEX('For Bill Impact(HideBeforeFile)'!$D$20:$S$29,MATCH(C70,'For Bill Impact(HideBeforeFile)'!$C$62:$C$71,0),MATCH($O81,'For Bill Impact(HideBeforeFile)'!$D$61:$S$61,0)) -> 0.0435 | J81: =INDEX('For Bill Impact(HideBeforeFile)'!$D$34:$S$43,MATCH(C70,'For Bill Impact(HideBeforeFile)'!$C$62:$C$71,0),MATCH($O81,'For Bill Impact(HideBeforeFile)'!$D$61:$S$61,0)) -> 813.1926829 | O81: ='For Bill Impact(HideBeforeFile)'!$E$5 -> System Gas
C83: =INDEX('For Bill Impact(HideBeforeFile)'!$D$48:$S$57,MATCH(C70,'For Bill Impact(HideBeforeFile)'!$C$62:$C$71,0),MATCH($O83,'For Bill Impact(HideBeforeFile)'!$D$61:$S$61,0)) -> REDA | D83: =INDEX('For Bill Impact(HideBeforeFile)'!$D$62:$S$71,MATCH(C70,'For Bill Impact(HideBeforeFile)'!$C$62:$C$71,0),MATCH($O83,'For Bill Impact(HideBeforeFile)'!$D$61:$S$61,0)) -> $ / month | F83: =INDEX('For Bill Impact(HideBeforeFile)'!$D$6:$S$15,MATCH(C70,'For Bill Impact(HideBeforeFile)'!$C$62:$C$71,0),MATCH($O83,'For Bill Impact(HideBeforeFile)'!$D$61:$S$61,0)) -> 0.33 | H83: =INDEX('For Bill Impact(HideBeforeFile)'!$D$20:$S$29,MATCH(C70,'For Bill Impact(HideBeforeFile)'!$C$62:$C$71,0),MATCH($O83,'For Bill Impact(HideBeforeFile)'!$D$61:$S$61,0)) -> 0.02 | J83: =INDEX('For Bill Impact(HideBeforeFile)'!$D$34:$S$43,MATCH(C70,'For Bill Impact(HideBeforeFile)'!$C$62:$C$71,0),MATCH($O83,'For Bill Impact(HideBeforeFile)'!$D$61:$S$61,0)) -> 3 | O83: =O23 -> REDA
C84: =INDEX('For Bill Impact(HideBeforeFile)'!$D$48:$S$57,MATCH(C70,'For Bill Impact(HideBeforeFile)'!$C$62:$C$71,0),MATCH($O84,'For Bill Impact(HideBeforeFile)'!$D$61:$S$61,0)) -> PGTVA | D84: =INDEX('For Bill Impact(HideBeforeFile)'!$D$62:$S$71,MATCH(C70,'For Bill Impact(HideBeforeFile)'!$C$62:$C$71,0),MATCH($O84,'For Bill Impact(HideBeforeFile)'!$D$61:$S$61,0)) -> cents / m3 | F84: =INDEX('For Bill Impact(HideBeforeFile)'!$D$6:$S$15,MATCH(C70,'For Bill Impact(HideBeforeFile)'!$C$62:$C$71,0),MATCH($O84,'For Bill Impact(HideBeforeFile)'!$D$61:$S$61,0)) -> 0.3195 | H84: =INDEX('For Bill Impact(HideBeforeFile)'!$D$20:$S$29,MATCH(C70,'For Bill Impact(HideBeforeFile)'!$C$62:$C$71,0),MATCH($O84,'For Bill Impact(HideBeforeFile)'!$D$61:$S$61,0)) -> 0.4355195776 | J84: =INDEX('For Bill Impact(HideBeforeFile)'!$D$34:$S$43,MATCH(C70,'For Bill Impact(HideBeforeFile)'!$C$62:$C$71,0),MATCH($O84,'For Bill Impact(HideBeforeFile)'!$D$61:$S$61,0)) -> 813.1926829 | O84: =O24 -> PGTVA
C85: =INDEX('For Bill Impact(HideBeforeFile)'!$D$48:$S$57,MATCH(C70,'For Bill Impact(HideBeforeFile)'!$C$62:$C$71,0),MATCH($O85,'For Bill Impact(HideBeforeFile)'!$D$61:$S$61,0)) -> ADVADA | D85: =INDEX('For Bill Impact(HideBeforeFile)'!$D$62:$S$71,MATCH(C70,'For Bill Impact(HideBeforeFile)'!$C$62:$C$71,0),MATCH($O85,'For Bill Impact(HideBeforeFile)'!$D$61:$S$61,0)) -> cents / m3 | F85: =INDEX('For Bill Impact(HideBeforeFile)'!$D$6:$S$15,MATCH(C70,'For Bill Impact(HideBeforeFile)'!$C$62:$C$71,0),MATCH($O85,'For Bill Impact(HideBeforeFile)'!$D$61:$S$61,0)) -> 0 | H85: =INDEX('For Bill Impact(HideBeforeFile)'!$D$20:$S$29,MATCH(C70,'For Bill Impact(HideBeforeFile)'!$C$62:$C$71,0),MATCH($O85,'For Bill Impact(HideBeforeFile)'!$D$61:$S$61,0)) -> 0 | J85: =INDEX('For Bill Impact(HideBeforeFile)'!$D$34:$S$43,MATCH(C70,'For Bill Impact(HideBeforeFile)'!$C$62:$C$71,0),MATCH($O85,'For Bill Impact(HideBeforeFile)'!$D$61:$S$61,0)) -> 813.1926829 | O85: =O25 -> ADVADA
C86: =INDEX('For Bill Impact(HideBeforeFile)'!$D$48:$S$57,MATCH(C70,'For Bill Impact(HideBeforeFile)'!$C$62:$C$71,0),MATCH($O86,'For Bill Impact(HideBeforeFile)'!$D$61:$S$61,0)) -> LDMDA | D86: =INDEX('For Bill Impact(HideBeforeFile)'!$D$62:$S$71,MATCH(C70,'For Bill Impact(HideBeforeFile)'!$C$62:$C$71,0),MATCH($O86,'For Bill Impact(HideBeforeFile)'!$D$61:$S$61,0)) -> $ / month | F86: =INDEX('For Bill Impact(HideBeforeFile)'!$D$6:$S$15,MATCH(C70,'For Bill Impact(HideBeforeFile)'!$C$62:$C$71,0),MATCH($O86,'For Bill Impact(HideBeforeFile)'!$D$61:$S$61,0)) -> 0 | H86: =INDEX('For Bill Impact(HideBeforeFile)'!$D$20:$S$29,MATCH(C70,'For Bill Impact(HideBeforeFile)'!$C$62:$C$71,0),MATCH($O86,'For Bill Impact(HideBeforeFile)'!$D$61:$S$61,0)) -> 0 | J86: =INDEX('For Bill Impact(HideBeforeFile)'!$D$34:$S$43,MATCH(C70,'For Bill Impact(HideBeforeFile)'!$C$62:$C$71,0),MATCH($O86,'For Bill Impact(HideBeforeFile)'!$D$61:$S$61,0)) -> 3 | O86: =O26 -> LDMDA
C87: =INDEX('For Bill Impact(HideBeforeFile)'!$D$48:$S$57,MATCH(C70,'For Bill Impact(HideBeforeFile)'!$C$62:$C$71,0),MATCH($O87,'For Bill Impact(HideBeforeFile)'!$D$61:$S$61,0)) -> SICDA | D87: =INDEX('For Bill Impact(HideBeforeFile)'!$D$62:$S$71,MATCH(C70,'For Bill Impact(HideBeforeFile)'!$C$62:$C$71,0),MATCH($O87,'For Bill Impact(HideBeforeFile)'!$D$61:$S$61,0)) -> cents / m3 | F87: =INDEX('For Bill Impact(HideBeforeFile)'!$D$6:$S$15,MATCH(C70,'For Bill Impact(HideBeforeFile)'!$C$62:$C$71,0),MATCH($O87,'For Bill Impact(HideBeforeFile)'!$D$61:$S$61,0)) -> 0.0814 | H87: =INDEX('For Bill Impact(HideBeforeFile)'!$D$20:$S$29,MATCH(C70,'For Bill Impact(HideBeforeFile)'!$C$62:$C$71,0),MATCH($O87,'For Bill Impact(HideBeforeFile)'!$D$61:$S$61,0)) -> 0 | J87: =INDEX('For Bill Impact(HideBeforeFile)'!$D$34:$S$43,MATCH(C70,'For Bill Impact(HideBeforeFile)'!$C$62:$C$71,0),MATCH($O87,'For Bill Impact(HideBeforeFile)'!$D$61:$S$61,0)) -> 813.1926829 | O87: =O27 -> SICDA
C88: =INDEX('For Bill Impact(HideBeforeFile)'!$D$48:$S$57,MATCH(C70,'For Bill Impact(HideBeforeFile)'!$C$62:$C$71,0),MATCH($O88,'For Bill Impact(HideBeforeFile)'!$D$61:$S$61,0)) -> FCCVA | D88: =INDEX('For Bill Impact(HideBeforeFile)'!$D$62:$S$71,MATCH(C70,'For Bill Impact(HideBeforeFile)'!$C$62:$C$71,0),MATCH($O88,'For Bill Impact(HideBeforeFile)'!$D$61:$S$61,0)) -> $ / month | F88: =INDEX('For Bill Impact(HideBeforeFile)'!$D$6:$S$15,MATCH(C70,'For Bill Impact(HideBeforeFile)'!$C$62:$C$71,0),MATCH($O88,'For Bill Impact(HideBeforeFile)'!$D$61:$S$61,0)) -> 0.03 | H88: =INDEX('For Bill Impact(HideBeforeFile)'!$D$20:$S$29,MATCH(C70,'For Bill Impact(HideBeforeFile)'!$C$62:$C$71,0),MATCH($O88,'For Bill Impact(HideBeforeFile)'!$D$61:$S$61,0)) -> 0.03 | J88: =INDEX('For Bill Impact(HideBeforeFile)'!$D$34:$S$43,MATCH(C70,'For Bill Impact(HideBeforeFile)'!$C$62:$C$71,0),MATCH($O88,'For Bill Impact(HideBeforeFile)'!$D$61:$S$61,0)) -> 3 | O88: FCCVA
C89: =INDEX('For Bill Impact(HideBeforeFile)'!$D$48:$S$57,MATCH(C70,'For Bill Impact(HideBeforeFile)'!$C$62:$C$71,0),MATCH($O89,'For Bill Impact(HideBeforeFile)'!$D$61:$S$61,0)) -> GGEADA | D89: =INDEX('For Bill Impact(HideBeforeFile)'!$D$62:$S$71,MATCH(C70,'For Bill Impact(HideBeforeFile)'!$C$62:$C$71,0),MATCH($O89,'For Bill Impact(HideBeforeFile)'!$D$61:$S$61,0)) -> $ / month | F89: =INDEX('For Bill Impact(HideBeforeFile)'!$D$6:$S$15,MATCH(C70,'For Bill Impact(HideBeforeFile)'!$C$62:$C$71,0),MATCH($O89,'For Bill Impact(HideBeforeFile)'!$D$61:$S$61,0)) -> 0.03 | H89: =INDEX('For Bill Impact(HideBeforeFile)'!$D$20:$S$29,MATCH(C70,'For Bill Impact(HideBeforeFile)'!$C$62:$C$71,0),MATCH($O89,'For Bill Impact(HideBeforeFile)'!$D$61:$S$61,0)) -> 0.03 | J89: =INDEX('For Bill Impact(HideBeforeFile)'!$D$34:$S$43,MATCH(C70,'For Bill Impact(HideBeforeFile)'!$C$62:$C$71,0),MATCH($O89,'For Bill Impact(HideBeforeFile)'!$D$61:$S$61,0)) -> 3 | O89: GGEADA
C91: =INDEX('For Bill Impact(HideBeforeFile)'!$D$48:$S$57,MATCH(C70,'For Bill Impact(HideBeforeFile)'!$C$62:$C$71,0),MATCH($O91,'For Bill Impact(HideBeforeFile)'!$D$61:$S$61,0)) -> Federal Carbon | D91: =INDEX('For Bill Impact(HideBeforeFile)'!$D$62:$S$71,MATCH(C70,'For Bill Impact(HideBeforeFile)'!$C$62:$C$71,0),MATCH($O91,'For Bill Impact(HideBeforeFile)'!$D$61:$S$61,0)) -> cents / m3 | F91: =INDEX('For Bill Impact(HideBeforeFile)'!$D$6:$S$15,MATCH(C70,'For Bill Impact(HideBeforeFile)'!$C$62:$C$71,0),MATCH($O91,'For Bill Impact(HideBeforeFile)'!$D$61:$S$61,0)) -> 9.79 | H91: =INDEX('For Bill Impact(HideBeforeFile)'!$D$20:$S$29,MATCH(C70,'For Bill Impact(HideBeforeFile)'!$C$62:$C$71,0),MATCH($O91,'For Bill Impact(HideBeforeFile)'!$D$61:$S$61,0)) -> 9.79 | J91: =INDEX('For Bill Impact(HideBeforeFile)'!$D$34:$S$43,MATCH(C70,'For Bill Impact(HideBeforeFile)'!$C$62:$C$71,0),MATCH($O91,'For Bill Impact(HideBeforeFile)'!$D$61:$S$61,0)) -> 813.1926829 | O91: ='For Bill Impact(HideBeforeFile)'!$M$5 -> Federal Carbon
C92: =INDEX('For Bill Impact(HideBeforeFile)'!$D$48:$S$57,MATCH(C70,'For Bill Impact(HideBeforeFile)'!$C$62:$C$71,0),MATCH($O92,'For Bill Impact(HideBeforeFile)'!$D$61:$S$61,0)) -> Facility Carbon | D92: =INDEX('For Bill Impact(HideBeforeFile)'!$D$62:$S$71,MATCH(C70,'For Bill Impact(HideBeforeFile)'!$C$62:$C$71,0),MATCH($O92,'For Bill Impact(HideBeforeFile)'!$D$61:$S$61,0)) -> cents / m3 | F92: =INDEX('For Bill Impact(HideBeforeFile)'!$D$6:$S$15,MATCH(C70,'For Bill Impact(HideBeforeFile)'!$C$62:$C$71,0),MATCH($O92,'For Bill Impact(HideBeforeFile)'!$D$61:$S$61,0)) -> 0.0034 | H92: =INDEX('For Bill Impact(HideBeforeFile)'!$D$20:$S$29,MATCH(C70,'For Bill Impact(HideBeforeFile)'!$C$62:$C$71,0),MATCH($O92,'For Bill Impact(HideBeforeFile)'!$D$61:$S$61,0)) -> 0.0034 | J92: =INDEX('For Bill Impact(HideBeforeFile)'!$D$34:$S$43,MATCH(C70,'For Bill Impact(HideBeforeFile)'!$C$62:$C$71,0),MATCH($O92,'For Bill Impact(HideBeforeFile)'!$D$61:$S$61,0)) -> 813.1926829 | O92: ='For Bill Impact(HideBeforeFile)'!$N$5 -> Facility Carbon
C95: Commodity | F95: Current | H95: Proposed | J95: Change $ | L95: Change %
F96: =F74*$J74/100 -> 245.6346082 | H96: =H74*$J74/100 -> 245.6346082 | J96: =H96-F96 -> 0 | L96: =IFERROR(J96/F96,"") -> 0
C98: Delivery | F98: Current Rate | H98: Proposed Rate | J98: Change $ | L98: Change %
C99: =IF(C76<>"",C76,"") -> Customer (excl. Bill 32) | F99: =F76*$J76 -> 60 | H99: =H76*$J76 -> 64.92541356 | J99: =IFERROR(H99-F99,"") -> 4.92541356 | L99: =IFERROR(J99/F99,"") -> 0.082090226
C100: Bill 32 | F100: =J76 -> 3 | H100: =J76 -> 3 | J100: =IFERROR(H100-F100,"") -> 0 | L100: =IFERROR(J100/F100,"") -> 0
C101: =IF(C77<>"",C77,"") -> Block 1 (First 1,000 m3 per month) | F101: =IFERROR(F77*$J77/100,"") -> 126.8844559 | H101: =IFERROR(H77*$J77/100,"") -> 128.5761883 | J101: =IFERROR(H101-F101,"") -> 1.691732442 | L101: =IFERROR(J101/F101,"") -> 0.01333285807
C102: =IF(C78<>"",C78,"") -> Block 2 (Over 1,000 m3 per month) | F102: =IFERROR(F78*$J78/100,"") -> 58.29326024 | H102: =IFERROR(H78*$J78/100,"") -> 59.0702301 | J102: 0.7769698646 | L102: 0.01332863973
C103: =IF(C79<>"",C79,"") ->  | F103: =IFERROR(F79*$J79/100,"") ->  | H103: =IFERROR(H79*$J79/100,"") -> 
C104: =IF(C80<>"",C80,"") ->  | F104: =IFERROR(F80*$J80/100,"") ->  | H104: =IFERROR(H80*$J80/100,"") -> 
C105: =IF(C81<>"",C81,"") -> System Gas Charge | F105: =IFERROR(F81*$J81/100,"") -> 0.3537388171 | H105: =IFERROR(H81*$J81/100,"") -> 0.3537388171 | J105: 0 | L105: 0
C106: Total Delivery | F106: =SUM(F99:F105) -> 248.5314549 | H106: =SUM(H99:H105) -> 255.9255708 | J106: =H106-F106 -> 7.394115866 | L106: =IF(ISERROR(J106/F106),0,J106/F106) -> 0.02975122754
C108: Rate Riders
C110: Rate Riders | F110: Current Rate | H110: Proposed Rate | J110: Change $ | L110: Change %
C111: =C83 -> REDA | F111: =F83*$J83 -> 0.99 | H111: =H83*$J83 -> 0.06 | J111: =IFERROR(H111-F111,"") -> -0.93 | L111: =IFERROR(J111/F111,"") -> -0.9393939394
C112: PGTVA | F112: =IFERROR(F84*$J84/100,"") -> 2.598150622 | H112: =IFERROR(H84*$J84/100,"") -> 3.541613338 | J112: =IFERROR(H112-F112,"") -> 0.9434627161 | L112: =IFERROR(J112/F112,"") -> 0.3631285685
C113: ADVADA | F113: =IFERROR(F85*$J85/100,"") -> 0 | H113: =IFERROR(H85*$J85/100,"") -> 0 | J113: 0
C114: LDMDA | F114: =F86*$J86 -> 0 | H114: =H86*$J86 -> 0 | J114: 0
C115: SICDA | F115: =IFERROR(F87*$J87/100,"") -> 0.6619388439 | H115: =IFERROR(H87*$J87/100,"") -> 0 | J115: -0.6619388439 | L115: -1
C116: FCCVA | F116: =F88*$J88 -> 0.09 | H116: =H88*$J88 -> 0.09 | J116: 0 | L116: 0
C117: GGEADA | F117: 0.09 | H117: 0.09 | J117: 0 | L117: 0
C118: Total Rate Riders | F118: =SUM(F111:F117) -> 4.430089466 | H118: =SUM(H111:H117) -> 3.781613338 | J118: =SUM(J111:J117) -> -0.6484761278 | L118: =IF(ISERROR(J118/F118),0,J118/F118) -> -0.1463799169
C120: Carbon Tax
C121: Federal Carbon | F121: =F91*$J91/100 -> 79.61156366 | H121: =H91*$J91/100 -> 79.61156366 | J121: =IFERROR(H121-F121,"") -> 0 | L121: =IFERROR(J121/F121,"") -> 0
C122: Facility Carbon | F122: =F92*$J92/100 -> 0.02764855122 | H122: =H92*$J92/100 -> 0.02764855122 | J122: =IFERROR(H122-F122,"") -> 0 | L122: 0
C123: Total Carbon Tax | F123: =SUM(F121:F122) -> 79.63921221 | H123: =SUM(H121:H122) -> 79.63921221 | J123: =SUM(J121:J122) -> 0 | L123: =IF(ISERROR(J123/F123),0,J123/F123) -> 0
C125: Total Bill Impact | F125: =SUM(F96,F106,F118,F123) -> 578.2353648 | H125: =SUM(H96,H106,H118,H123) -> 584.9810045 | J125: =SUM(J96,J106,J118,J123) -> 6.745639739 | L125: =IFERROR(J125/F125,"") -> 0.01166590657
C128: =MID(CELL("filename",A61),FIND("]",CELL("filename",A61))+1,255) -> G1.4 Rate 4 Bill Impact
C130: RATE 4 - General Service Peaking - Annual
C132: Commodity | F132: Current | H132: Proposed | J132: Change $ | L132: Change %
F133: =F36+F96 -> 12721.12085 | H133: =H36+H96 -> 12721.12085 | J133: =H133-F133 -> 0 | L133: =IFERROR(J133/F133,"") -> 0
C135: Delivery | F135: Current Rate | H135: Proposed Rate | J135: Change $ | L135: Change %
C136: =C39 -> Customer (excl. Bill 32) | F136: =IFERROR(F39+F99,"") -> 240 | H136: =IFERROR(H39+H99,"") -> 259.7016542 | J136: =IFERROR(H136-F136,"") -> 19.70165424 | L136: =IFERROR(J136/F136,"") -> 0.082090226
C137: Bill 32 | F137: 12 | H137: 12 | J137: =IFERROR(H137-F137,"") -> 0 | L137: =IFERROR(J137/F137,"") -> 0
C138: =C41 -> Block 1 (First 1,000 m3 per month) | F138: 651.481252 | H138: 660.1706561 | J138: =IFERROR(H138-F138,"") -> 8.689404047 | L138: =IFERROR(J138/F138,"") -> 0.01333791881
C139: =C42 -> Block 2 (Over 1,000 m3 per month) | F139: 4678.507409 | H139: 4740.899505 | J139: 62.39209536 | L139: 0.01333589752
C140: =C43 -> 
C141: =C44 -> 
C142: =C45 -> System Gas Charge | F142: 18.31970777 | H142: 18.31970777 | J142: 0 | L142: 0
C143: Total Delivery | F143: =SUM(F136:F142) -> 5600.308369 | H143: =SUM(H136:H142) -> 5691.091523 | J143: =H143-F143 -> 90.78315365 | L143: =IF(ISERROR(J143/F143),0,J143/F143) -> 0.0162103848
C145: Rate Riders
C147: Rate Riders | F147: Current Rate | H147: Proposed Rate | J147: Change $ | L147: Change %
C148: =C111 -> REDA | F148: =IFERROR(F51+F111,"") -> 3.96 | H148: =IFERROR(H51+H111,"") -> 0.24 | J148: =IFERROR(H148-F148,"") -> -3.72 | L148: =IFERROR(J148/F148,"") -> -0.9393939394
C149: PGTVA | F149: 134.555095 | H149: 183.415894 | J149: =IFERROR(H149-F149,"") -> 48.86079903 | L149: =IFERROR(J149/F149,"") -> 0.3631285685
C150: ADVADA | F150: 0 | H150: 0 | J150: 0
C151: LDMDA | F151: 0 | H151: 0 | J151: 0
C152: SICDA | F152: 34.28101638 | H152: 0 | J152: -34.28101638 | L152: -1
C153: FCCVA | F153: 0.36 | H153: 0.36 | J153: 0 | L153: =IFERROR(J153/F153,"") -> 0
C154: GGEADA | F154: 0.36 | H154: 0.36 | J154: 0 | L154: 0
C155: Total Rate Riders | F155: =SUM(F148:F154) -> 173.5161114 | H155: =SUM(H148:H154) -> 184.375894 | J155: =SUM(J148:J154) -> 10.85978265 | L155: =IF(ISERROR(J155/F155),0,J155/F155) -> 0.06258659538
C157: Carbon Tax
C158: Federal Carbon | F158: =IFERROR(F61+F121,"") -> 4122.987105 | H158: =IFERROR(H61+H121,"") -> 4122.987105 | J158: =IFERROR(H158-F158,"") -> 0 | L158: =IFERROR(J158/F158,"") -> 0
C159: Facility Carbon | F159: =IFERROR(F62+F122,"") -> 1.431885205 | H159: =IFERROR(H62+H122,"") -> 1.431885205 | J159: =IFERROR(H159-F159,"") -> 0 | L159: 0
C160: Total Carbon Tax | F160: =SUM(F158:F159) -> 4124.41899 | H160: =SUM(H158:H159) -> 4124.41899 | J160: =SUM(J158:J159) -> 0 | L160: =IF(ISERROR(J160/F160),0,J160/F160) -> 0
C162: Total Bill Impact | F162: =SUM(F133,F143,F155,F160) -> 22619.36432 | H162: =SUM(H133,H143,H155,H160) -> 22721.00725 | J162: =SUM(J133,J143,J155,J160) -> 101.6429363 | L162: =IFERROR(J162/F162,"") -> 0.004493624794
C165: =MID(CELL("filename",A121),FIND("]",CELL("filename",A121))+1,255) -> G1.4 Rate 4 Bill Impact

Sheet G1.5 Rate 5 Bill Impact
C2: ='A1.1 Distributor Information'!C3 -> Name of LDC: EPCOR Natural Gas Limited Partnership
C3: ='A1.1 Distributor Information'!C4 -> OEB Application Number: EB-2022-0183 Exhibit A - 2023 IRM Application
C7: Rate 5 Delivery Bill Impact
C10: ='For Bill Impact(HideBeforeFile)'!C14 -> RATE 5 - Interruptible Peaking Contract Rate | F10: Current | H10: Proposed | J10: Bill Determinant | O10: Look-up
C14: =INDEX('For Bill Impact(HideBeforeFile)'!$D$48:$S$57,MATCH(C10,'For Bill Impact(HideBeforeFile)'!$C$62:$C$71,0),MATCH($O14,'For Bill Impact(HideBeforeFile)'!$D$61:$S$61,0)) -> Commodity | D14: =INDEX('For Bill Impact(HideBeforeFile)'!$D$62:$S$71,MATCH(C10,'For Bill Impact(HideBeforeFile)'!$C$62:$C$71,0),MATCH($O14,'For Bill Impact(HideBeforeFile)'!$D$61:$S$61,0)) -> cents / m3 | F14: =INDEX('For Bill Impact(HideBeforeFile)'!$D$6:$S$15,MATCH(C10,'For Bill Impact(HideBeforeFile)'!$C$62:$C$71,0),MATCH($O14,'For Bill Impact(HideBeforeFile)'!$D$61:$S$61,0)) -> 30.2062 | H14: =INDEX('For Bill Impact(HideBeforeFile)'!$D$20:$S$29,MATCH(C10,'For Bill Impact(HideBeforeFile)'!$C$62:$C$71,0),MATCH($O14,'For Bill Impact(HideBeforeFile)'!$D$61:$S$61,0)) -> 30.2062 | J14: =INDEX('For Bill Impact(HideBeforeFile)'!$D$34:$S$43,MATCH(C10,'For Bill Impact(HideBeforeFile)'!$C$62:$C$71,0),MATCH($O14,'For Bill Impact(HideBeforeFile)'!$D$61:$S$61,0)) -> 194037.125 | O14: ='For Bill Impact(HideBeforeFile)'!$D$5 -> Commodity
C16: =INDEX('For Bill Impact(HideBeforeFile)'!$D$48:$S$57,MATCH(C10,'For Bill Impact(HideBeforeFile)'!$C$62:$C$71,0),MATCH($O16,'For Bill Impact(HideBeforeFile)'!$D$61:$S$61,0)) -> Customer (excl. Bill 32) | D16: =INDEX('For Bill Impact(HideBeforeFile)'!$D$62:$S$71,MATCH(C10,'For Bill Impact(HideBeforeFile)'!$C$62:$C$71,0),MATCH($O16,'For Bill Impact(HideBeforeFile)'!$D$61:$S$61,0)) -> $ / month | F16: =INDEX('For Bill Impact(HideBeforeFile)'!$D$6:$S$15,MATCH(C10,'For Bill Impact(HideBeforeFile)'!$C$62:$C$71,0),MATCH($O16,'For Bill Impact(HideBeforeFile)'!$D$61:$S$61,0)) -> 190 | H16: =INDEX('For Bill Impact(HideBeforeFile)'!$D$20:$S$29,MATCH(C10,'For Bill Impact(HideBeforeFile)'!$C$62:$C$71,0),MATCH($O16,'For Bill Impact(HideBeforeFile)'!$D$61:$S$61,0)) -> 205.5971429 | J16: =INDEX('For Bill Impact(HideBeforeFile)'!$D$34:$S$43,MATCH(C10,'For Bill Impact(HideBeforeFile)'!$C$62:$C$71,0),MATCH($O16,'For Bill Impact(HideBeforeFile)'!$D$61:$S$61,0)) -> 12 | O16: ='For Bill Impact(HideBeforeFile)'!$O$5 -> Dist. Customer Rate
C17: =INDEX('For Bill Impact(HideBeforeFile)'!$D$48:$S$57,MATCH(C10,'For Bill Impact(HideBeforeFile)'!$C$62:$C$71,0),MATCH($O17,'For Bill Impact(HideBeforeFile)'!$D$61:$S$61,0)) -> Delivery - Firm | D17: =INDEX('For Bill Impact(HideBeforeFile)'!$D$62:$S$71,MATCH(C10,'For Bill Impact(HideBeforeFile)'!$C$62:$C$71,0),MATCH($O17,'For Bill Impact(HideBeforeFile)'!$D$61:$S$61,0)) -> cents / m3 | F17: =INDEX('For Bill Impact(HideBeforeFile)'!$D$6:$S$15,MATCH(C10,'For Bill Impact(HideBeforeFile)'!$C$62:$C$71,0),MATCH($O17,'For Bill Impact(HideBeforeFile)'!$D$61:$S$61,0)) -> 8.060590841 | H17: =INDEX('For Bill Impact(HideBeforeFile)'!$D$20:$S$29,MATCH(C10,'For Bill Impact(HideBeforeFile)'!$C$62:$C$71,0),MATCH($O17,'For Bill Impact(HideBeforeFile)'!$D$61:$S$61,0)) -> 8.248232748 | J17: =INDEX('For Bill Impact(HideBeforeFile)'!$D$34:$S$43,MATCH(C10,'For Bill Impact(HideBeforeFile)'!$C$62:$C$71,0),MATCH($O17,'For Bill Impact(HideBeforeFile)'!$D$61:$S$61,0)) -> 194037.125 | O17: ='For Bill Impact(HideBeforeFile)'!$P$5 -> Dist. Vol. Rate Tier 1
C18: =INDEX('For Bill Impact(HideBeforeFile)'!$D$48:$S$57,MATCH(C10,'For Bill Impact(HideBeforeFile)'!$C$62:$C$71,0),MATCH($O18,'For Bill Impact(HideBeforeFile)'!$D$61:$S$61,0)) ->  | D18: =INDEX('For Bill Impact(HideBeforeFile)'!$D$62:$S$71,MATCH(C10,'For Bill Impact(HideBeforeFile)'!$C$62:$C$71,0),MATCH($O18,'For Bill Impact(HideBeforeFile)'!$D$61:$S$61,0)) ->  | F18: =INDEX('For Bill Impact(HideBeforeFile)'!$D$6:$S$15,MATCH(C10,'For Bill Impact(HideBeforeFile)'!$C$62:$C$71,0),MATCH($O18,'For Bill Impact(HideBeforeFile)'!$D$61:$S$61,0)) ->  | H18: =INDEX('For Bill Impact(HideBeforeFile)'!$D$20:$S$29,MATCH(C10,'For Bill Impact(HideBeforeFile)'!$C$62:$C$71,0),MATCH($O18,'For Bill Impact(HideBeforeFile)'!$D$61:$S$61,0)) ->  | J18: =INDEX('For Bill Impact(HideBeforeFile)'!$D$34:$S$43,MATCH(C10,'For Bill Impact(HideBeforeFile)'!$C$62:$C$71,0),MATCH($O18,'For Bill Impact(HideBeforeFile)'!$D$61:$S$61,0)) ->  | O18: ='For Bill Impact(HideBeforeFile)'!$Q$5 -> Dist. Vol. Rate Tier 2
C19: =INDEX('For Bill Impact(HideBeforeFile)'!$D$48:$S$57,MATCH(C10,'For Bill Impact(HideBeforeFile)'!$C$62:$C$71,0),MATCH($O19,'For Bill Impact(HideBeforeFile)'!$D$61:$S$61,0)) ->  | D19: =INDEX('For Bill Impact(HideBeforeFile)'!$D$62:$S$71,MATCH(C10,'For Bill Impact(HideBeforeFile)'!$C$62:$C$71,0),MATCH($O19,'For Bill Impact(HideBeforeFile)'!$D$61:$S$61,0)) ->  | F19: =INDEX('For Bill Impact(HideBeforeFile)'!$D$6:$S$15,MATCH(C10,'For Bill Impact(HideBeforeFile)'!$C$62:$C$71,0),MATCH($O19,'For Bill Impact(HideBeforeFile)'!$D$61:$S$61,0)) ->  | H19: =INDEX('For Bill Impact(HideBeforeFile)'!$D$20:$S$29,MATCH(C10,'For Bill Impact(HideBeforeFile)'!$C$62:$C$71,0),MATCH($O19,'For Bill Impact(HideBeforeFile)'!$D$61:$S$61,0)) ->  | J19: =INDEX('For Bill Impact(HideBeforeFile)'!$D$34:$S$43,MATCH(C10,'For Bill Impact(HideBeforeFile)'!$C$62:$C$71,0),MATCH($O19,'For Bill Impact(HideBeforeFile)'!$D$61:$S$61,0)) ->  | O19: ='For Bill Impact(HideBeforeFile)'!$R$5 -> Dist. Vol. Rate Tier 3
C20: =INDEX('For Bill Impact(HideBeforeFile)'!$D$48:$S$57,MATCH(C10,'For Bill Impact(HideBeforeFile)'!$C$62:$C$71,0),MATCH($O20,'For Bill Impact(HideBeforeFile)'!$D$61:$S$61,0)) ->  | D20: =INDEX('For Bill Impact(HideBeforeFile)'!$D$62:$S$71,MATCH(C10,'For Bill Impact(HideBeforeFile)'!$C$62:$C$71,0),MATCH($O20,'For Bill Impact(HideBeforeFile)'!$D$61:$S$61,0)) ->  | F20: =INDEX('For Bill Impact(HideBeforeFile)'!$D$6:$S$15,MATCH(C10,'For Bill Impact(HideBeforeFile)'!$C$62:$C$71,0),MATCH($O20,'For Bill Impact(HideBeforeFile)'!$D$61:$S$61,0)) ->  | H20: =INDEX('For Bill Impact(HideBeforeFile)'!$D$20:$S$29,MATCH(C10,'For Bill Impact(HideBeforeFile)'!$C$62:$C$71,0),MATCH($O20,'For Bill Impact(HideBeforeFile)'!$D$61:$S$61,0)) ->  | J20: =INDEX('For Bill Impact(HideBeforeFile)'!$D$34:$S$43,MATCH(C10,'For Bill Impact(HideBeforeFile)'!$C$62:$C$71,0),MATCH($O20,'For Bill Impact(HideBeforeFile)'!$D$61:$S$61,0)) ->  | O20: ='For Bill Impact(HideBeforeFile)'!$S$5 -> Dist. Capacity Rate
C21: =INDEX('For Bill Impact(HideBeforeFile)'!$D$48:$S$57,MATCH(C10,'For Bill Impact(HideBeforeFile)'!$C$62:$C$71,0),MATCH($O21,'For Bill Impact(HideBeforeFile)'!$D$61:$S$61,0)) -> System Gas Charge | D21: =INDEX('For Bill Impact(HideBeforeFile)'!$D$62:$S$71,MATCH(C10,'For Bill Impact(HideBeforeFile)'!$C$62:$C$71,0),MATCH($O21,'For Bill Impact(HideBeforeFile)'!$D$61:$S$61,0)) -> cents / m3 | F21: =INDEX('For Bill Impact(HideBeforeFile)'!$D$6:$S$15,MATCH(C10,'For Bill Impact(HideBeforeFile)'!$C$62:$C$71,0),MATCH($O21,'For Bill Impact(HideBeforeFile)'!$D$61:$S$61,0)) -> 0.0435 | H21: =INDEX('For Bill Impact(HideBeforeFile)'!$D$20:$S$29,MATCH(C10,'For Bill Impact(HideBeforeFile)'!$C$62:$C$71,0),MATCH($O21,'For Bill Impact(HideBeforeFile)'!$D$61:$S$61,0)) -> 0.0435 | J21: =INDEX('For Bill Impact(HideBeforeFile)'!$D$34:$S$43,MATCH(C10,'For Bill Impact(HideBeforeFile)'!$C$62:$C$71,0),MATCH($O21,'For Bill Impact(HideBeforeFile)'!$D$61:$S$61,0)) -> 194037.125 | O21: ='For Bill Impact(HideBeforeFile)'!$E$5 -> System Gas
C23: =INDEX('For Bill Impact(HideBeforeFile)'!$D$48:$S$57,MATCH(C10,'For Bill Impact(HideBeforeFile)'!$C$62:$C$71,0),MATCH($O23,'For Bill Impact(HideBeforeFile)'!$D$61:$S$61,0)) -> REDA | D23: =INDEX('For Bill Impact(HideBeforeFile)'!$D$62:$S$71,MATCH(C10,'For Bill Impact(HideBeforeFile)'!$C$62:$C$71,0),MATCH($O23,'For Bill Impact(HideBeforeFile)'!$D$61:$S$61,0)) -> $ / month | F23: =INDEX('For Bill Impact(HideBeforeFile)'!$D$6:$S$15,MATCH(C10,'For Bill Impact(HideBeforeFile)'!$C$62:$C$71,0),MATCH($O23,'For Bill Impact(HideBeforeFile)'!$D$61:$S$61,0)) -> 0.33 | H23: =INDEX('For Bill Impact(HideBeforeFile)'!$D$20:$S$29,MATCH(C10,'For Bill Impact(HideBeforeFile)'!$C$62:$C$71,0),MATCH($O23,'For Bill Impact(HideBeforeFile)'!$D$61:$S$61,0)) -> 0.02 | J23: =INDEX('For Bill Impact(HideBeforeFile)'!$D$34:$S$43,MATCH(C10,'For Bill Impact(HideBeforeFile)'!$C$62:$C$71,0),MATCH($O23,'For Bill Impact(HideBeforeFile)'!$D$61:$S$61,0)) -> 12 | O23: ='For Bill Impact(HideBeforeFile)'!$F$5 -> REDA
C24: =INDEX('For Bill Impact(HideBeforeFile)'!$D$48:$S$57,MATCH(C10,'For Bill Impact(HideBeforeFile)'!$C$62:$C$71,0),MATCH($O24,'For Bill Impact(HideBeforeFile)'!$D$61:$S$61,0)) -> PGTVA | D24: =INDEX('For Bill Impact(HideBeforeFile)'!$D$62:$S$71,MATCH(C10,'For Bill Impact(HideBeforeFile)'!$C$62:$C$71,0),MATCH($O24,'For Bill Impact(HideBeforeFile)'!$D$61:$S$61,0)) -> cents / m3 | F24: =INDEX('For Bill Impact(HideBeforeFile)'!$D$6:$S$15,MATCH(C10,'For Bill Impact(HideBeforeFile)'!$C$62:$C$71,0),MATCH($O24,'For Bill Impact(HideBeforeFile)'!$D$61:$S$61,0)) -> 0.3195 | H24: =INDEX('For Bill Impact(HideBeforeFile)'!$D$20:$S$29,MATCH(C10,'For Bill Impact(HideBeforeFile)'!$C$62:$C$71,0),MATCH($O24,'For Bill Impact(HideBeforeFile)'!$D$61:$S$61,0)) -> 0.4355195776 | J24: =INDEX('For Bill Impact(HideBeforeFile)'!$D$34:$S$43,MATCH(C10,'For Bill Impact(HideBeforeFile)'!$C$62:$C$71,0),MATCH($O24,'For Bill Impact(HideBeforeFile)'!$D$61:$S$61,0)) -> 194037.125 | O24: ='For Bill Impact(HideBeforeFile)'!$G$5 -> PGTVA
C25: =INDEX('For Bill Impact(HideBeforeFile)'!$D$48:$S$57,MATCH(C10,'For Bill Impact(HideBeforeFile)'!$C$62:$C$71,0),MATCH($O25,'For Bill Impact(HideBeforeFile)'!$D$61:$S$61,0)) -> ADVADA | D25: =INDEX('For Bill Impact(HideBeforeFile)'!$D$62:$S$71,MATCH(C10,'For Bill Impact(HideBeforeFile)'!$C$62:$C$71,0),MATCH($O25,'For Bill Impact(HideBeforeFile)'!$D$61:$S$61,0)) -> cents / m3 | F25: =INDEX('For Bill Impact(HideBeforeFile)'!$D$6:$S$15,MATCH(C10,'For Bill Impact(HideBeforeFile)'!$C$62:$C$71,0),MATCH($O25,'For Bill Impact(HideBeforeFile)'!$D$61:$S$61,0)) -> 0 | H25: =INDEX('For Bill Impact(HideBeforeFile)'!$D$20:$S$29,MATCH(C10,'For Bill Impact(HideBeforeFile)'!$C$62:$C$71,0),MATCH($O25,'For Bill Impact(HideBeforeFile)'!$D$61:$S$61,0)) -> 0 | J25: =INDEX('For Bill Impact(HideBeforeFile)'!$D$34:$S$43,MATCH(C10,'For Bill Impact(HideBeforeFile)'!$C$62:$C$71,0),MATCH($O25,'For Bill Impact(HideBeforeFile)'!$D$61:$S$61,0)) -> 194037.125 | O25: ='For Bill Impact(HideBeforeFile)'!$H$5 -> ADVADA
C26: =INDEX('For Bill Impact(HideBeforeFile)'!$D$48:$S$57,MATCH(C10,'For Bill Impact(HideBeforeFile)'!$C$62:$C$71,0),MATCH($O26,'For Bill Impact(HideBeforeFile)'!$D$61:$S$61,0)) -> LDMDA | D26: =INDEX('For Bill Impact(HideBeforeFile)'!$D$62:$S$71,MATCH(C10,'For Bill Impact(HideBeforeFile)'!$C$62:$C$71,0),MATCH($O26,'For Bill Impact(HideBeforeFile)'!$D$61:$S$61,0)) -> $ / month | F26: =INDEX('For Bill Impact(HideBeforeFile)'!$D$6:$S$15,MATCH(C10,'For Bill Impact(HideBeforeFile)'!$C$62:$C$71,0),MATCH($O26,'For Bill Impact(HideBeforeFile)'!$D$61:$S$61,0)) -> 0 | H26: =INDEX('For Bill Impact(HideBeforeFile)'!$D$20:$S$29,MATCH(C10,'For Bill Impact(HideBeforeFile)'!$C$62:$C$71,0),MATCH($O26,'For Bill Impact(HideBeforeFile)'!$D$61:$S$61,0)) -> 0 | J26: =INDEX('For Bill Impact(HideBeforeFile)'!$D$34:$S$43,MATCH(C10,'For Bill Impact(HideBeforeFile)'!$C$62:$C$71,0),MATCH($O26,'For Bill Impact(HideBeforeFile)'!$D$61:$S$61,0)) -> 12 | O26: LDMDA
C27: =INDEX('For Bill Impact(HideBeforeFile)'!$D$48:$S$57,MATCH(C10,'For Bill Impact(HideBeforeFile)'!$C$62:$C$71,0),MATCH($O27,'For Bill Impact(HideBeforeFile)'!$D$61:$S$61,0)) -> SICDA | D27: =INDEX('For Bill Impact(HideBeforeFile)'!$D$62:$S$71,MATCH(C10,'For Bill Impact(HideBeforeFile)'!$C$62:$C$71,0),MATCH($O27,'For Bill Impact(HideBeforeFile)'!$D$61:$S$61,0)) -> cents / m3 | F27: =INDEX('For Bill Impact(HideBeforeFile)'!$D$6:$S$15,MATCH(C10,'For Bill Impact(HideBeforeFile)'!$C$62:$C$71,0),MATCH($O27,'For Bill Impact(HideBeforeFile)'!$D$61:$S$61,0)) -> 0.0238 | H27: =INDEX('For Bill Impact(HideBeforeFile)'!$D$20:$S$29,MATCH(C10,'For Bill Impact(HideBeforeFile)'!$C$62:$C$71,0),MATCH($O27,'For Bill Impact(HideBeforeFile)'!$D$61:$S$61,0)) -> 0 | J27: =INDEX('For Bill Impact(HideBeforeFile)'!$D$34:$S$43,MATCH(C10,'For Bill Impact(HideBeforeFile)'!$C$62:$C$71,0),MATCH($O27,'For Bill Impact(HideBeforeFile)'!$D$61:$S$61,0)) -> 194037.125 | O27: SICDA
C28: =INDEX('For Bill Impact(HideBeforeFile)'!$D$48:$S$57,MATCH(C10,'For Bill Impact(HideBeforeFile)'!$C$62:$C$71,0),MATCH($O28,'For Bill Impact(HideBeforeFile)'!$D$61:$S$61,0)) -> FCCVA | D28: =INDEX('For Bill Impact(HideBeforeFile)'!$D$62:$S$71,MATCH(C10,'For Bill Impact(HideBeforeFile)'!$C$62:$C$71,0),MATCH($O28,'For Bill Impact(HideBeforeFile)'!$D$61:$S$61,0)) -> $ / month | F28: =INDEX('For Bill Impact(HideBeforeFile)'!$D$6:$S$15,MATCH(C10,'For Bill Impact(HideBeforeFile)'!$C$62:$C$71,0),MATCH($O28,'For Bill Impact(HideBeforeFile)'!$D$61:$S$61,0)) -> 0.03 | H28: =INDEX('For Bill Impact(HideBeforeFile)'!$D$20:$S$29,MATCH(C10,'For Bill Impact(HideBeforeFile)'!$C$62:$C$71,0),MATCH($O28,'For Bill Impact(HideBeforeFile)'!$D$61:$S$61,0)) -> 0.03 | J28: =INDEX('For Bill Impact(HideBeforeFile)'!$D$34:$S$43,MATCH(C10,'For Bill Impact(HideBeforeFile)'!$C$62:$C$71,0),MATCH($O28,'For Bill Impact(HideBeforeFile)'!$D$61:$S$61,0)) -> 12 | O28: FCCVA
C29: =INDEX('For Bill Impact(HideBeforeFile)'!$D$48:$S$57,MATCH(C10,'For Bill Impact(HideBeforeFile)'!$C$62:$C$71,0),MATCH($O29,'For Bill Impact(HideBeforeFile)'!$D$61:$S$61,0)) -> GGEADA | D29: =INDEX('For Bill Impact(HideBeforeFile)'!$D$62:$S$71,MATCH(C10,'For Bill Impact(HideBeforeFile)'!$C$62:$C$71,0),MATCH($O29,'For Bill Impact(HideBeforeFile)'!$D$61:$S$61,0)) -> $ / month | F29: =INDEX('For Bill Impact(HideBeforeFile)'!$D$6:$S$15,MATCH(C10,'For Bill Impact(HideBeforeFile)'!$C$62:$C$71,0),MATCH($O29,'For Bill Impact(HideBeforeFile)'!$D$61:$S$61,0)) -> 0.03 | H29: =INDEX('For Bill Impact(HideBeforeFile)'!$D$20:$S$29,MATCH(C10,'For Bill Impact(HideBeforeFile)'!$C$62:$C$71,0),MATCH($O29,'For Bill Impact(HideBeforeFile)'!$D$61:$S$61,0)) -> 0.03 | J29: =INDEX('For Bill Impact(HideBeforeFile)'!$D$34:$S$43,MATCH(C10,'For Bill Impact(HideBeforeFile)'!$C$62:$C$71,0),MATCH($O29,'For Bill Impact(HideBeforeFile)'!$D$61:$S$61,0)) -> 12 | O29: GGEADA
C31: =INDEX('For Bill Impact(HideBeforeFile)'!$D$48:$S$57,MATCH(C10,'For Bill Impact(HideBeforeFile)'!$C$62:$C$71,0),MATCH($O31,'For Bill Impact(HideBeforeFile)'!$D$61:$S$61,0)) -> Federal Carbon | D31: =INDEX('For Bill Impact(HideBeforeFile)'!$D$62:$S$71,MATCH(C10,'For Bill Impact(HideBeforeFile)'!$C$62:$C$71,0),MATCH($O31,'For Bill Impact(HideBeforeFile)'!$D$61:$S$61,0)) -> cents / m3 | F31: =INDEX('For Bill Impact(HideBeforeFile)'!$D$6:$S$15,MATCH(C10,'For Bill Impact(HideBeforeFile)'!$C$62:$C$71,0),MATCH($O31,'For Bill Impact(HideBeforeFile)'!$D$61:$S$61,0)) -> 9.79 | H31: =INDEX('For Bill Impact(HideBeforeFile)'!$D$20:$S$29,MATCH(C10,'For Bill Impact(HideBeforeFile)'!$C$62:$C$71,0),MATCH($O31,'For Bill Impact(HideBeforeFile)'!$D$61:$S$61,0)) -> 9.79 | J31: =INDEX('For Bill Impact(HideBeforeFile)'!$D$34:$S$43,MATCH(C10,'For Bill Impact(HideBeforeFile)'!$C$62:$C$71,0),MATCH($O31,'For Bill Impact(HideBeforeFile)'!$D$61:$S$61,0)) -> 194037.125 | O31: ='For Bill Impact(HideBeforeFile)'!$M$5 -> Federal Carbon
C32: =INDEX('For Bill Impact(HideBeforeFile)'!$D$48:$S$57,MATCH(C10,'For Bill Impact(HideBeforeFile)'!$C$62:$C$71,0),MATCH($O32,'For Bill Impact(HideBeforeFile)'!$D$61:$S$61,0)) -> Facility Carbon | D32: =INDEX('For Bill Impact(HideBeforeFile)'!$D$62:$S$71,MATCH(C10,'For Bill Impact(HideBeforeFile)'!$C$62:$C$71,0),MATCH($O32,'For Bill Impact(HideBeforeFile)'!$D$61:$S$61,0)) -> cents / m3 | F32: =INDEX('For Bill Impact(HideBeforeFile)'!$D$6:$S$15,MATCH(C10,'For Bill Impact(HideBeforeFile)'!$C$62:$C$71,0),MATCH($O32,'For Bill Impact(HideBeforeFile)'!$D$61:$S$61,0)) -> 0.0034 | H32: =INDEX('For Bill Impact(HideBeforeFile)'!$D$20:$S$29,MATCH(C10,'For Bill Impact(HideBeforeFile)'!$C$62:$C$71,0),MATCH($O32,'For Bill Impact(HideBeforeFile)'!$D$61:$S$61,0)) -> 0.0034 | J32: =INDEX('For Bill Impact(HideBeforeFile)'!$D$34:$S$43,MATCH(C10,'For Bill Impact(HideBeforeFile)'!$C$62:$C$71,0),MATCH($O32,'For Bill Impact(HideBeforeFile)'!$D$61:$S$61,0)) -> 194037.125 | O32: ='For Bill Impact(HideBeforeFile)'!$N$5 -> Facility Carbon
C35: Commodity | F35: Current | H35: Proposed | J35: Change $ | L35: Change %
F36: =F14*$J14/100 -> 58611.24205 | H36: =H14*$J14/100 -> 58611.24205 | J36: =H36-F36 -> 0 | L36: =IFERROR(J36/F36,"") -> 0 | O36: ='For Bill Impact(HideBeforeFile)'!$D$5 -> Commodity
C38: Delivery | F38: Current Rate | H38: Proposed Rate | J38: Change $ | L38: Change %
C39: =IF(C16<>"",C16,"") -> Customer (excl. Bill 32) | F39: =F16*$J16 -> 2280 | H39: =H16*$J16 -> 2467.165715 | J39: =IFERROR(H39-F39,"") -> 187.1657153 | L39: =IFERROR(J39/F39,"") -> 0.082090226 | O39: ='For Bill Impact(HideBeforeFile)'!$O$5 -> Dist. Customer Rate
C40: Bill 32 | F40: 12 | H40: 12 | J40: =IFERROR(H40-F40,"") -> 0 | L40: =IFERROR(J40/F40,"") -> 0
C41: =IF(C17<>"",C17,"") -> Delivery - Firm | F41: =IFERROR(F17*$J17/100,"") -> 15640.53873 | H41: =IFERROR(H17*$J17/100,"") -> 16004.63369 | J41: =IFERROR(H41-F41,"") -> 364.0949614 | L41: =IFERROR(J41/F41,"") -> 0.02327892714 | O41: ='For Bill Impact(HideBeforeFile)'!$P$5 -> Dist. Vol. Rate Tier 1
C42: =IF(C18<>"",C18,"") ->  | F42: =IFERROR(F18*$J18/100,"") ->  | H42: =IFERROR(H18*$J18/100,"") ->  | O42: ='For Bill Impact(HideBeforeFile)'!$Q$5 -> Dist. Vol. Rate Tier 2
C43: =IF(C19<>"",C19,"") ->  | F43: =IFERROR(F19*$J19/100,"") ->  | H43: =IFERROR(H19*$J19/100,"") ->  | O43: ='For Bill Impact(HideBeforeFile)'!$R$5 -> Dist. Vol. Rate Tier 3
C44: =IF(C20<>"",C20,"") ->  | F44: =IFERROR(F20*$J20/100,"") ->  | H44: =IFERROR(H20*$J20/100,"") ->  | O44: ='For Bill Impact(HideBeforeFile)'!$S$5 -> Dist. Capacity Rate
C45: =IF(C21<>"",C21,"") -> System Gas Charge | F45: =IFERROR(F21*$J21/100,"") -> 84.40614937 | H45: =IFERROR(H21*$J21/100,"") -> 84.40614937 | J45: 0 | L45: 0 | O45: ='For Bill Impact(HideBeforeFile)'!$E$5 -> System Gas
C46: Total Delivery | F46: =SUM(F39:F45) -> 18016.94487 | H46: =SUM(H39:H45) -> 18568.20555 | J46: =H46-F46 -> 551.2606767 | L46: =IF(ISERROR(J46/F46),0,J46/F46) -> 0.03059678989
C48: Rate Riders
C50: Rate Riders | F50: Current Rate | H50: Proposed Rate | J50: Change $ | L50: Change %
C51: =C23 -> REDA | F51: =F23*$J23 -> 3.96 | H51: =H23*$J23 -> 0.24 | J51: =IFERROR(H51-F51,"") -> -3.72 | L51: =IFERROR(J51/F51,"") -> -0.9393939394 | O51: ='For Bill Impact(HideBeforeFile)'!$F$5 -> REDA
C52: PGTVA | F52: =IFERROR(F24*$J24/100,"") -> 619.9486144 | H52: =IFERROR(H24*$J24/100,"") -> 845.0696673 | J52: =IFERROR(H52-F52,"") -> 225.1210529 | L52: =IFERROR(J52/F52,"") -> 0.3631285685 | O52: ='For Bill Impact(HideBeforeFile)'!$G$5 -> PGTVA
C53: ADVADA | F53: =IFERROR(F25*$J25/100,"") -> 0 | H53: =IFERROR(H25*$J25/100,"") -> 0 | J53: 0 | O53: ='For Bill Impact(HideBeforeFile)'!$H$5 -> ADVADA
C54: LDMDA | F54: =F26*$J26 -> 0 | H54: =H26*$J26 -> 0 | J54: 0 | O54: ='For Bill Impact(HideBeforeFile)'!$I$5 -> LDMDA
C55: SICDA | F55: =IFERROR(F27*$J27/100,"") -> 46.18083575 | H55: =IFERROR(H27*$J27/100,"") -> 0 | J55: -46.18083575 | L55: -1 | O55: ='For Bill Impact(HideBeforeFile)'!$J$5 -> SICDA
C56: FCCVA | F56: =F28*$J28 -> 0.36 | H56: =H28*$J28 -> 0.36 | J56: 0 | L56: 0 | O56: ='For Bill Impact(HideBeforeFile)'!$I$5 -> LDMDA
C57: GGEADA | F57: 0.36 | H57: 0.36 | J57: 0 | L57: 0 | O57: ='For Bill Impact(HideBeforeFile)'!$J$5 -> SICDA
C58: Total Rate Riders | F58: =SUM(F51:F57) -> 670.8094501 | H58: =SUM(H51:H57) -> 846.0296673 | J58: =SUM(J51:J57) -> 175.2202171 | L58: =IF(ISERROR(J58/F58),0,J58/F58) -> 0.2612071388
C60: Carbon Tax
C61: Federal Carbon | F61: =F31*$J31/100 -> 18996.23454 | H61: =H31*$J31/100 -> 18996.23454 | J61: =IFERROR(H61-F61,"") -> 0 | L61: =IFERROR(J61/F61,"") -> 0
C62: Facility Carbon | F62: =F32*$J32/100 -> 6.59726225 | H62: =H32*$J32/100 -> 6.59726225 | J62: =IFERROR(H62-F62,"") -> 0 | L62: 0
C63: Total Carbon Tax | F63: =SUM(F61:F62) -> 19002.8318 | H63: =SUM(H61:H62) -> 19002.8318 | J63: =SUM(J61:J62) -> 0 | L63: =IF(ISERROR(J63/F63),0,J63/F63) -> 0
C65: Total Bill Impact | F65: =SUM(F36,F46,F58,F63) -> 96301.82818 | H65: =SUM(H36,H46,H58,H63) -> 97028.30907 | J65: =SUM(J36,J46,J58,J63) -> 726.4808939 | L65: =IFERROR(J65/F65,"") -> 0.007543791303
C68: =MID(CELL("filename",A1),FIND("]",CELL("filename",A1))+1,255) -> G1.5 Rate 5 Bill Impact

Sheet G1.6 Rate 6 Bill Impact
C2: ='A1.1 Distributor Information'!C3 -> Name of LDC: EPCOR Natural Gas Limited Partnership
C3: ='A1.1 Distributor Information'!C4 -> OEB Application Number: EB-2022-0183 Exhibit A - 2023 IRM Application
C7: Rate 6 Delivery Bill Impact
C10: ='For Bill Impact(HideBeforeFile)'!C15 -> RATE 6 - Integrated Grain Processors Co-Operative Aylmer Ethanol Production Facility | F10: Current | H10: Proposed | J10: Bill Determinant | O10: Look-up
C14: =INDEX('For Bill Impact(HideBeforeFile)'!$D$48:$S$57,MATCH(C10,'For Bill Impact(HideBeforeFile)'!$C$62:$C$71,0),MATCH($O14,'For Bill Impact(HideBeforeFile)'!$D$61:$S$61,0)) ->  | D14: =INDEX('For Bill Impact(HideBeforeFile)'!$D$62:$S$71,MATCH(C10,'For Bill Impact(HideBeforeFile)'!$C$62:$C$71,0),MATCH($O14,'For Bill Impact(HideBeforeFile)'!$D$61:$S$61,0)) ->  | F14: =INDEX('For Bill Impact(HideBeforeFile)'!$D$6:$S$15,MATCH(C10,'For Bill Impact(HideBeforeFile)'!$C$62:$C$71,0),MATCH($O14,'For Bill Impact(HideBeforeFile)'!$D$61:$S$61,0)) ->  | H14: =INDEX('For Bill Impact(HideBeforeFile)'!$D$20:$S$29,MATCH(C10,'For Bill Impact(HideBeforeFile)'!$C$62:$C$71,0),MATCH($O14,'For Bill Impact(HideBeforeFile)'!$D$61:$S$61,0)) ->  | J14: =INDEX('For Bill Impact(HideBeforeFile)'!$D$34:$S$43,MATCH(C10,'For Bill Impact(HideBeforeFile)'!$C$62:$C$71,0),MATCH($O14,'For Bill Impact(HideBeforeFile)'!$D$61:$S$61,0)) ->  | O14: ='For Bill Impact(HideBeforeFile)'!$D$5 -> Commodity
C16: =INDEX('For Bill Impact(HideBeforeFile)'!$D$48:$S$57,MATCH(C10,'For Bill Impact(HideBeforeFile)'!$C$62:$C$71,0),MATCH($O16,'For Bill Impact(HideBeforeFile)'!$D$61:$S$61,0)) -> Customer (excl. Bill 32) | D16: =INDEX('For Bill Impact(HideBeforeFile)'!$D$62:$S$71,MATCH(C10,'For Bill Impact(HideBeforeFile)'!$C$62:$C$71,0),MATCH($O16,'For Bill Impact(HideBeforeFile)'!$D$61:$S$61,0)) -> $ / month | F16: =INDEX('For Bill Impact(HideBeforeFile)'!$D$6:$S$15,MATCH(C10,'For Bill Impact(HideBeforeFile)'!$C$62:$C$71,0),MATCH($O16,'For Bill Impact(HideBeforeFile)'!$D$61:$S$61,0)) -> 64139.69 | H16: =INDEX('For Bill Impact(HideBeforeFile)'!$D$20:$S$29,MATCH(C10,'For Bill Impact(HideBeforeFile)'!$C$62:$C$71,0),MATCH($O16,'For Bill Impact(HideBeforeFile)'!$D$61:$S$61,0)) -> 66256.29977 | J16: =INDEX('For Bill Impact(HideBeforeFile)'!$D$34:$S$43,MATCH(C10,'For Bill Impact(HideBeforeFile)'!$C$62:$C$71,0),MATCH($O16,'For Bill Impact(HideBeforeFile)'!$D$61:$S$61,0)) -> 12 | O16: ='For Bill Impact(HideBeforeFile)'!$O$5 -> Dist. Customer Rate
C17: =INDEX('For Bill Impact(HideBeforeFile)'!$D$48:$S$57,MATCH(C10,'For Bill Impact(HideBeforeFile)'!$C$62:$C$71,0),MATCH($O17,'For Bill Impact(HideBeforeFile)'!$D$61:$S$61,0)) ->  | D17: =INDEX('For Bill Impact(HideBeforeFile)'!$D$62:$S$71,MATCH(C10,'For Bill Impact(HideBeforeFile)'!$C$62:$C$71,0),MATCH($O17,'For Bill Impact(HideBeforeFile)'!$D$61:$S$61,0)) ->  | F17: =INDEX('For Bill Impact(HideBeforeFile)'!$D$6:$S$15,MATCH(C10,'For Bill Impact(HideBeforeFile)'!$C$62:$C$71,0),MATCH($O17,'For Bill Impact(HideBeforeFile)'!$D$61:$S$61,0)) ->  | H17: =INDEX('For Bill Impact(HideBeforeFile)'!$D$20:$S$29,MATCH(C10,'For Bill Impact(HideBeforeFile)'!$C$62:$C$71,0),MATCH($O17,'For Bill Impact(HideBeforeFile)'!$D$61:$S$61,0)) ->  | J17: =INDEX('For Bill Impact(HideBeforeFile)'!$D$34:$S$43,MATCH(C10,'For Bill Impact(HideBeforeFile)'!$C$62:$C$71,0),MATCH($O17,'For Bill Impact(HideBeforeFile)'!$D$61:$S$61,0)) ->  | O17: ='For Bill Impact(HideBeforeFile)'!$P$5 -> Dist. Vol. Rate Tier 1
C18: =INDEX('For Bill Impact(HideBeforeFile)'!$D$48:$S$57,MATCH(C10,'For Bill Impact(HideBeforeFile)'!$C$62:$C$71,0),MATCH($O18,'For Bill Impact(HideBeforeFile)'!$D$61:$S$61,0)) ->  | D18: =INDEX('For Bill Impact(HideBeforeFile)'!$D$62:$S$71,MATCH(C10,'For Bill Impact(HideBeforeFile)'!$C$62:$C$71,0),MATCH($O18,'For Bill Impact(HideBeforeFile)'!$D$61:$S$61,0)) ->  | F18: =INDEX('For Bill Impact(HideBeforeFile)'!$D$6:$S$15,MATCH(C10,'For Bill Impact(HideBeforeFile)'!$C$62:$C$71,0),MATCH($O18,'For Bill Impact(HideBeforeFile)'!$D$61:$S$61,0)) ->  | H18: =INDEX('For Bill Impact(HideBeforeFile)'!$D$20:$S$29,MATCH(C10,'For Bill Impact(HideBeforeFile)'!$C$62:$C$71,0),MATCH($O18,'For Bill Impact(HideBeforeFile)'!$D$61:$S$61,0)) ->  | J18: =INDEX('For Bill Impact(HideBeforeFile)'!$D$34:$S$43,MATCH(C10,'For Bill Impact(HideBeforeFile)'!$C$62:$C$71,0),MATCH($O18,'For Bill Impact(HideBeforeFile)'!$D$61:$S$61,0)) ->  | O18: ='For Bill Impact(HideBeforeFile)'!$Q$5 -> Dist. Vol. Rate Tier 2
C19: =INDEX('For Bill Impact(HideBeforeFile)'!$D$48:$S$57,MATCH(C10,'For Bill Impact(HideBeforeFile)'!$C$62:$C$71,0),MATCH($O19,'For Bill Impact(HideBeforeFile)'!$D$61:$S$61,0)) ->  | D19: =INDEX('For Bill Impact(HideBeforeFile)'!$D$62:$S$71,MATCH(C10,'For Bill Impact(HideBeforeFile)'!$C$62:$C$71,0),MATCH($O19,'For Bill Impact(HideBeforeFile)'!$D$61:$S$61,0)) ->  | F19: =INDEX('For Bill Impact(HideBeforeFile)'!$D$6:$S$15,MATCH(C10,'For Bill Impact(HideBeforeFile)'!$C$62:$C$71,0),MATCH($O19,'For Bill Impact(HideBeforeFile)'!$D$61:$S$61,0)) ->  | H19: =INDEX('For Bill Impact(HideBeforeFile)'!$D$20:$S$29,MATCH(C10,'For Bill Impact(HideBeforeFile)'!$C$62:$C$71,0),MATCH($O19,'For Bill Impact(HideBeforeFile)'!$D$61:$S$61,0)) ->  | J19: =INDEX('For Bill Impact(HideBeforeFile)'!$D$34:$S$43,MATCH(C10,'For Bill Impact(HideBeforeFile)'!$C$62:$C$71,0),MATCH($O19,'For Bill Impact(HideBeforeFile)'!$D$61:$S$61,0)) ->  | O19: ='For Bill Impact(HideBeforeFile)'!$R$5 -> Dist. Vol. Rate Tier 3
C20: =INDEX('For Bill Impact(HideBeforeFile)'!$D$48:$S$57,MATCH(C10,'For Bill Impact(HideBeforeFile)'!$C$62:$C$71,0),MATCH($O20,'For Bill Impact(HideBeforeFile)'!$D$61:$S$61,0)) ->  | D20: =INDEX('For Bill Impact(HideBeforeFile)'!$D$62:$S$71,MATCH(C10,'For Bill Impact(HideBeforeFile)'!$C$62:$C$71,0),MATCH($O20,'For Bill Impact(HideBeforeFile)'!$D$61:$S$61,0)) ->  | F20: =INDEX('For Bill Impact(HideBeforeFile)'!$D$6:$S$15,MATCH(C10,'For Bill Impact(HideBeforeFile)'!$C$62:$C$71,0),MATCH($O20,'For Bill Impact(HideBeforeFile)'!$D$61:$S$61,0)) ->  | H20: =INDEX('For Bill Impact(HideBeforeFile)'!$D$20:$S$29,MATCH(C10,'For Bill Impact(HideBeforeFile)'!$C$62:$C$71,0),MATCH($O20,'For Bill Impact(HideBeforeFile)'!$D$61:$S$61,0)) ->  | J20: =INDEX('For Bill Impact(HideBeforeFile)'!$D$34:$S$43,MATCH(C10,'For Bill Impact(HideBeforeFile)'!$C$62:$C$71,0),MATCH($O20,'For Bill Impact(HideBeforeFile)'!$D$61:$S$61,0)) ->  | O20: ='For Bill Impact(HideBeforeFile)'!$S$5 -> Dist. Capacity Rate
C21: =INDEX('For Bill Impact(HideBeforeFile)'!$D$48:$S$57,MATCH(C10,'For Bill Impact(HideBeforeFile)'!$C$62:$C$71,0),MATCH($O21,'For Bill Impact(HideBeforeFile)'!$D$61:$S$61,0)) ->  | D21: =INDEX('For Bill Impact(HideBeforeFile)'!$D$62:$S$71,MATCH(C10,'For Bill Impact(HideBeforeFile)'!$C$62:$C$71,0),MATCH($O21,'For Bill Impact(HideBeforeFile)'!$D$61:$S$61,0)) ->  | F21: =INDEX('For Bill Impact(HideBeforeFile)'!$D$6:$S$15,MATCH(C10,'For Bill Impact(HideBeforeFile)'!$C$62:$C$71,0),MATCH($O21,'For Bill Impact(HideBeforeFile)'!$D$61:$S$61,0)) ->  | H21: =INDEX('For Bill Impact(HideBeforeFile)'!$D$20:$S$29,MATCH(C10,'For Bill Impact(HideBeforeFile)'!$C$62:$C$71,0),MATCH($O21,'For Bill Impact(HideBeforeFile)'!$D$61:$S$61,0)) ->  | J21: =INDEX('For Bill Impact(HideBeforeFile)'!$D$34:$S$43,MATCH(C10,'For Bill Impact(HideBeforeFile)'!$C$62:$C$71,0),MATCH($O21,'For Bill Impact(HideBeforeFile)'!$D$61:$S$61,0)) ->  | O21: ='For Bill Impact(HideBeforeFile)'!$E$5 -> System Gas
C23: =INDEX('For Bill Impact(HideBeforeFile)'!$D$48:$S$57,MATCH(C10,'For Bill Impact(HideBeforeFile)'!$C$62:$C$71,0),MATCH($O23,'For Bill Impact(HideBeforeFile)'!$D$61:$S$61,0)) -> REDA | D23: =INDEX('For Bill Impact(HideBeforeFile)'!$D$62:$S$71,MATCH(C10,'For Bill Impact(HideBeforeFile)'!$C$62:$C$71,0),MATCH($O23,'For Bill Impact(HideBeforeFile)'!$D$61:$S$61,0)) -> $ / month | F23: =INDEX('For Bill Impact(HideBeforeFile)'!$D$6:$S$15,MATCH(C10,'For Bill Impact(HideBeforeFile)'!$C$62:$C$71,0),MATCH($O23,'For Bill Impact(HideBeforeFile)'!$D$61:$S$61,0)) -> 0.27 | H23: =INDEX('For Bill Impact(HideBeforeFile)'!$D$20:$S$29,MATCH(C10,'For Bill Impact(HideBeforeFile)'!$C$62:$C$71,0),MATCH($O23,'For Bill Impact(HideBeforeFile)'!$D$61:$S$61,0)) -> 0 | J23: =INDEX('For Bill Impact(HideBeforeFile)'!$D$34:$S$43,MATCH(C10,'For Bill Impact(HideBeforeFile)'!$C$62:$C$71,0),MATCH($O23,'For Bill Impact(HideBeforeFile)'!$D$61:$S$61,0)) -> 12 | O23: ='For Bill Impact(HideBeforeFile)'!$F$5 -> REDA
C24: =INDEX('For Bill Impact(HideBeforeFile)'!$D$48:$S$57,MATCH(C10,'For Bill Impact(HideBeforeFile)'!$C$62:$C$71,0),MATCH($O24,'For Bill Impact(HideBeforeFile)'!$D$61:$S$61,0)) -> PGTVA | D24: =INDEX('For Bill Impact(HideBeforeFile)'!$D$62:$S$71,MATCH(C10,'For Bill Impact(HideBeforeFile)'!$C$62:$C$71,0),MATCH($O24,'For Bill Impact(HideBeforeFile)'!$D$61:$S$61,0)) -> $ / month | F24: =INDEX('For Bill Impact(HideBeforeFile)'!$D$6:$S$15,MATCH(C10,'For Bill Impact(HideBeforeFile)'!$C$62:$C$71,0),MATCH($O24,'For Bill Impact(HideBeforeFile)'!$D$61:$S$61,0)) -> 0 | H24: 0 | J24: =INDEX('For Bill Impact(HideBeforeFile)'!$D$34:$S$43,MATCH(C10,'For Bill Impact(HideBeforeFile)'!$C$62:$C$71,0),MATCH($O24,'For Bill Impact(HideBeforeFile)'!$D$61:$S$61,0)) -> 12 | O24: ='For Bill Impact(HideBeforeFile)'!$G$5 -> PGTVA
C25: =INDEX('For Bill Impact(HideBeforeFile)'!$D$48:$S$57,MATCH(C10,'For Bill Impact(HideBeforeFile)'!$C$62:$C$71,0),MATCH($O25,'For Bill Impact(HideBeforeFile)'!$D$61:$S$61,0)) -> ADVADA | D25: =INDEX('For Bill Impact(HideBeforeFile)'!$D$62:$S$71,MATCH(C10,'For Bill Impact(HideBeforeFile)'!$C$62:$C$71,0),MATCH($O25,'For Bill Impact(HideBeforeFile)'!$D$61:$S$61,0)) -> $ / month | F25: =INDEX('For Bill Impact(HideBeforeFile)'!$D$6:$S$15,MATCH(C10,'For Bill Impact(HideBeforeFile)'!$C$62:$C$71,0),MATCH($O25,'For Bill Impact(HideBeforeFile)'!$D$61:$S$61,0)) -> 0 | H25: 0 | J25: =INDEX('For Bill Impact(HideBeforeFile)'!$D$34:$S$43,MATCH(C10,'For Bill Impact(HideBeforeFile)'!$C$62:$C$71,0),MATCH($O25,'For Bill Impact(HideBeforeFile)'!$D$61:$S$61,0)) -> 12 | O25: ='For Bill Impact(HideBeforeFile)'!$H$5 -> ADVADA
C26: =INDEX('For Bill Impact(HideBeforeFile)'!$D$48:$S$57,MATCH(C10,'For Bill Impact(HideBeforeFile)'!$C$62:$C$71,0),MATCH($O26,'For Bill Impact(HideBeforeFile)'!$D$61:$S$61,0)) -> LDMDA | D26: =INDEX('For Bill Impact(HideBeforeFile)'!$D$62:$S$71,MATCH(C10,'For Bill Impact(HideBeforeFile)'!$C$62:$C$71,0),MATCH($O26,'For Bill Impact(HideBeforeFile)'!$D$61:$S$61,0)) -> $ / month | F26: =INDEX('For Bill Impact(HideBeforeFile)'!$D$6:$S$15,MATCH(C10,'For Bill Impact(HideBeforeFile)'!$C$62:$C$71,0),MATCH($O26,'For Bill Impact(HideBeforeFile)'!$D$61:$S$61,0)) -> 0 | H26: 0 | J26: =INDEX('For Bill Impact(HideBeforeFile)'!$D$34:$S$43,MATCH(C10,'For Bill Impact(HideBeforeFile)'!$C$62:$C$71,0),MATCH($O26,'For Bill Impact(HideBeforeFile)'!$D$61:$S$61,0)) -> 12 | O26: LDMDA
C27: =INDEX('For Bill Impact(HideBeforeFile)'!$D$48:$S$57,MATCH(C10,'For Bill Impact(HideBeforeFile)'!$C$62:$C$71,0),MATCH($O27,'For Bill Impact(HideBeforeFile)'!$D$61:$S$61,0)) -> SICDA | D27: =INDEX('For Bill Impact(HideBeforeFile)'!$D$62:$S$71,MATCH(C10,'For Bill Impact(HideBeforeFile)'!$C$62:$C$71,0),MATCH($O27,'For Bill Impact(HideBeforeFile)'!$D$61:$S$61,0)) -> cents / m3 | F27: =INDEX('For Bill Impact(HideBeforeFile)'!$D$6:$S$15,MATCH(C10,'For Bill Impact(HideBeforeFile)'!$C$62:$C$71,0),MATCH($O27,'For Bill Impact(HideBeforeFile)'!$D$61:$S$61,0)) -> 0 | H27: 0 | J27: =INDEX('For Bill Impact(HideBeforeFile)'!$D$34:$S$43,MATCH(C10,'For Bill Impact(HideBeforeFile)'!$C$62:$C$71,0),MATCH($O27,'For Bill Impact(HideBeforeFile)'!$D$61:$S$61,0)) -> 12 | O27: SICDA
C28: =INDEX('For Bill Impact(HideBeforeFile)'!$D$48:$S$57,MATCH(C10,'For Bill Impact(HideBeforeFile)'!$C$62:$C$71,0),MATCH($O28,'For Bill Impact(HideBeforeFile)'!$D$61:$S$61,0)) -> FCCVA | D28: =INDEX('For Bill Impact(HideBeforeFile)'!$D$62:$S$71,MATCH(C10,'For Bill Impact(HideBeforeFile)'!$C$62:$C$71,0),MATCH($O28,'For Bill Impact(HideBeforeFile)'!$D$61:$S$61,0)) -> $ / month | F28: =INDEX('For Bill Impact(HideBeforeFile)'!$D$6:$S$15,MATCH(C10,'For Bill Impact(HideBeforeFile)'!$C$62:$C$71,0),MATCH($O28,'For Bill Impact(HideBeforeFile)'!$D$61:$S$61,0)) -> 0 | H28: 0 | J28: =INDEX('For Bill Impact(HideBeforeFile)'!$D$34:$S$43,MATCH(C10,'For Bill Impact(HideBeforeFile)'!$C$62:$C$71,0),MATCH($O28,'For Bill Impact(HideBeforeFile)'!$D$61:$S$61,0)) -> 12 | O28: FCCVA
C29: =INDEX('For Bill Impact(HideBeforeFile)'!$D$48:$S$57,MATCH(C10,'For Bill Impact(HideBeforeFile)'!$C$62:$C$71,0),MATCH($O29,'For Bill Impact(HideBeforeFile)'!$D$61:$S$61,0)) -> GGEADA | D29: =INDEX('For Bill Impact(HideBeforeFile)'!$D$62:$S$71,MATCH(C10,'For Bill Impact(HideBeforeFile)'!$C$62:$C$71,0),MATCH($O29,'For Bill Impact(HideBeforeFile)'!$D$61:$S$61,0)) -> $ / month | F29: =INDEX('For Bill Impact(HideBeforeFile)'!$D$6:$S$15,MATCH(C10,'For Bill Impact(HideBeforeFile)'!$C$62:$C$71,0),MATCH($O29,'For Bill Impact(HideBeforeFile)'!$D$61:$S$61,0)) -> 0 | H29: 0 | J29: =INDEX('For Bill Impact(HideBeforeFile)'!$D$34:$S$43,MATCH(C10,'For Bill Impact(HideBeforeFile)'!$C$62:$C$71,0),MATCH($O29,'For Bill Impact(HideBeforeFile)'!$D$61:$S$61,0)) -> 12 | O29: GGEADA
C31: =INDEX('For Bill Impact(HideBeforeFile)'!$D$48:$S$57,MATCH(C10,'For Bill Impact(HideBeforeFile)'!$C$62:$C$71,0),MATCH($O31,'For Bill Impact(HideBeforeFile)'!$D$61:$S$61,0)) ->  | D31: =INDEX('For Bill Impact(HideBeforeFile)'!$D$62:$S$71,MATCH(C10,'For Bill Impact(HideBeforeFile)'!$C$62:$C$71,0),MATCH($O31,'For Bill Impact(HideBeforeFile)'!$D$61:$S$61,0)) ->  | F31: =INDEX('For Bill Impact(HideBeforeFile)'!$D$6:$S$15,MATCH(C10,'For Bill Impact(HideBeforeFile)'!$C$62:$C$71,0),MATCH($O31,'For Bill Impact(HideBeforeFile)'!$D$61:$S$61,0)) ->  | H31: =INDEX('For Bill Impact(HideBeforeFile)'!$D$20:$S$29,MATCH(C10,'For Bill Impact(HideBeforeFile)'!$C$62:$C$71,0),MATCH($O31,'For Bill Impact(HideBeforeFile)'!$D$61:$S$61,0)) ->  | J31: =INDEX('For Bill Impact(HideBeforeFile)'!$D$34:$S$43,MATCH(C10,'For Bill Impact(HideBeforeFile)'!$C$62:$C$71,0),MATCH($O31,'For Bill Impact(HideBeforeFile)'!$D$61:$S$61,0)) ->  | O31: ='For Bill Impact(HideBeforeFile)'!$M$5 -> Federal Carbon
C32: =INDEX('For Bill Impact(HideBeforeFile)'!$D$48:$S$57,MATCH(C10,'For Bill Impact(HideBeforeFile)'!$C$62:$C$71,0),MATCH($O32,'For Bill Impact(HideBeforeFile)'!$D$61:$S$61,0)) -> Facility Carbon | D32: =INDEX('For Bill Impact(HideBeforeFile)'!$D$62:$S$71,MATCH(C10,'For Bill Impact(HideBeforeFile)'!$C$62:$C$71,0),MATCH($O32,'For Bill Impact(HideBeforeFile)'!$D$61:$S$61,0)) -> cents / m3 | F32: =INDEX('For Bill Impact(HideBeforeFile)'!$D$6:$S$15,MATCH(C10,'For Bill Impact(HideBeforeFile)'!$C$62:$C$71,0),MATCH($O32,'For Bill Impact(HideBeforeFile)'!$D$61:$S$61,0)) -> 0.0034 | H32: =INDEX('For Bill Impact(HideBeforeFile)'!$D$20:$S$29,MATCH(C10,'For Bill Impact(HideBeforeFile)'!$C$62:$C$71,0),MATCH($O32,'For Bill Impact(HideBeforeFile)'!$D$61:$S$61,0)) -> 0.0034 | J32: =INDEX('For Bill Impact(HideBeforeFile)'!$D$34:$S$43,MATCH(C10,'For Bill Impact(HideBeforeFile)'!$C$62:$C$71,0),MATCH($O32,'For Bill Impact(HideBeforeFile)'!$D$61:$S$61,0)) -> 60162513.4 | O32: ='For Bill Impact(HideBeforeFile)'!$N$5 -> Facility Carbon
C35: Commodity | F35: Current | H35: Proposed | J35: Change $ | L35: Change %
F36: =IFERROR(F14*$J14/100,"") ->  | H36: =IFERROR(H14*$J14/100,"") ->  | J36: =IFERROR(H36-F36,"") ->  | L36: =IFERROR(J36/F36,"") ->  | O36: ='For Bill Impact(HideBeforeFile)'!$D$5 -> Commodity
C38: Delivery | F38: Current Rate | H38: Proposed Rate | J38: Change $ | L38: Change %
C39: =IF(C16<>"",C16,"") -> Customer (excl. Bill 32) | F39: =F16*$J16 -> 769676.28 | H39: =H16*$J16 -> 795075.5972 | J39: =IFERROR(H39-F39,"") -> 25399.31724 | L39: =IFERROR(J39/F39,"") -> 0.033 | O39: ='For Bill Impact(HideBeforeFile)'!$O$5 -> Dist. Customer Rate
C40: Bill 32 | F40: 12 | H40: 12 | J40: =IFERROR(H40-F40,"") -> 0 | L40: =IFERROR(J40/F40,"") -> 0
C41: =IF(C17<>"",C17,"") ->  | F41: =IFERROR(F17*$J17/100,"") ->  | H41: =IFERROR(H17*$J17/100,"") ->  | J41: =IFERROR(H41-F41,"") ->  | L41: =IFERROR(J41/F41,"") ->  | O41: ='For Bill Impact(HideBeforeFile)'!$P$5 -> Dist. Vol. Rate Tier 1
C42: =IF(C18<>"",C18,"") ->  | F42: =IFERROR(F18*$J18/100,"") ->  | H42: =IFERROR(H18*$J18/100,"") ->  | O42: ='For Bill Impact(HideBeforeFile)'!$Q$5 -> Dist. Vol. Rate Tier 2
C43: =IF(C19<>"",C19,"") ->  | F43: =IFERROR(F19*$J19/100,"") ->  | H43: =IFERROR(H19*$J19/100,"") ->  | O43: ='For Bill Impact(HideBeforeFile)'!$R$5 -> Dist. Vol. Rate Tier 3
C44: =IF(C20<>"",C20,"") ->  | F44: =IFERROR(F20*$J20/100,"") ->  | H44: =IFERROR(H20*$J20/100,"") ->  | O44: ='For Bill Impact(HideBeforeFile)'!$S$5 -> Dist. Capacity Rate
C45: =IF(C21<>"",C21,"") ->  | F45: =IFERROR(F21*$J21/100,"") ->  | H45: =IFERROR(H21*$J21/100,"") ->  | O45: ='For Bill Impact(HideBeforeFile)'!$E$5 -> System Gas
C46: Total Delivery | F46: =SUM(F39:F45) -> 769688.28 | H46: =SUM(H39:H45) -> 795087.5972 | J46: =H46-F46 -> 25399.31724 | L46: =IF(ISERROR(J46/F46),0,J46/F46) -> 0.03299948551
C48: Rate Riders
C50: Rate Riders | F50: Current Rate | H50: Proposed Rate | J50: Change $ | L50: Change %
C51: =C23 -> REDA | F51: =F23*$J23 -> 3.24 | H51: =H23*$J23 -> 0 | J51: =IFERROR(H51-F51,"") -> -3.24 | L51: =IFERROR(J51/F51,"") -> -1 | O51: ='For Bill Impact(HideBeforeFile)'!$F$5 -> REDA
C52: PGTVA | F52: =IFERROR(F24*$J24/100,"") -> 0 | H52: =IFERROR(H24*$J24/100,"") -> 0 | J52: =IFERROR(H52-F52,"") -> 0 | L52: =IFERROR(J52/F52,"") ->  | O52: ='For Bill Impact(HideBeforeFile)'!$G$5 -> PGTVA
C53: ADVADA | F53: =IFERROR(F25*$J25/100,"") -> 0 | H53: =IFERROR(H25*$J25/100,"") -> 0 | J53: 0 | O53: ='For Bill Impact(HideBeforeFile)'!$H$5 -> ADVADA
C54: LDMDA | F54: =F26*$J26 -> 0 | H54: =H26*$J26 -> 0 | J54: 0 | O54: ='For Bill Impact(HideBeforeFile)'!$I$5 -> LDMDA
C55: SICDA | F55: =IFERROR(F27*$J27/100,"") -> 0 | H55: =IFERROR(H27*$J27/100,"") -> 0 | J55: 0 | O55: ='For Bill Impact(HideBeforeFile)'!$J$5 -> SICDA
C56: FCCVA | F56: =F28*$J28 -> 0 | H56: =H28*$J28 -> 0 | J56: 0 | O56: ='For Bill Impact(HideBeforeFile)'!$I$5 -> LDMDA
C57: GGEADA | F57: 0 | H57: 0 | J57: 0 | O57: ='For Bill Impact(HideBeforeFile)'!$J$5 -> SICDA
C58: Total Rate Riders | F58: =SUM(F51:F57) -> 3.24 | H58: =SUM(H51:H57) -> 0 | J58: =SUM(J51:J55) -> -3.24 | L58: =IF(ISERROR(J58/F58),0,J58/F58) -> -1
C60: Carbon Tax
C61: Federal Carbon | F61: =IFERROR(F31*$J31/100,"") ->  | H61: =IFERROR(H31*$J31/100,"") ->  | J61: =IFERROR(H61-F61,"") ->  | L61: =IFERROR(J61/F61,"") -> 
C62: Facility Carbon | F62: =F32*$J32/100 -> 2045.525456 | H62: =H32*$J32/100 -> 2045.525456 | J62: =IFERROR(H62-F62,"") -> 0 | L62: 0
C63: Total Carbon Tax | F63: =SUM(F61:F62) -> 2045.525456 | H63: =SUM(H61:H62) -> 2045.525456 | J63: =SUM(J61:J62) -> 0 | L63: =IF(ISERROR(J63/F63),0,J63/F63) -> 0
C65: Total Bill Impact | F65: =SUM(F36,F46,F58,F63) -> 771737.0455 | H65: =SUM(H36,H46,H58,H63) -> 797133.1227 | J65: =SUM(J36,J46,J58,J63) -> 25396.07724 | L65: =IFERROR(J65/F65,"") -> 0.03290768195
C68: =MID(CELL("filename",A1),FIND("]",CELL("filename",A1))+1,255) -> G1.6 Rate 6 Bill Impact

Sheet G1.7 Summary of Bill Impacts
C2: ='A1.1 Distributor Information'!C3 -> Name of LDC: EPCOR Natural Gas Limited Partnership
C3: ='A1.1 Distributor Information'!C4 -> OEB Application Number: EB-2022-0183 Exhibit A - 2023 IRM Application
C5: Summary of Bill Impacts
C7: Rate Class | D7: Change in Delivery Charge ($ / year / customer) | E7: Change in Delivery Charge (%) | F7: Change in Rate Riders ($ / year / customer) | G7: Change in Rate Riders (%) | H7: Change in Total Bill ($ / year / customer) | I7: Change in Total Bill (%) | L7: CHECK
C9: ='G1.1 Rate 1 Bill Impact'!C10 -> RATE 1 - General Service Rate - Residential | D9: ='G1.1 Rate 1 Bill Impact'!J46 -> 16.99941753 | E9: ='G1.1 Rate 1 Bill Impact'!L46 -> 0.03428044719 | F9: ='G1.1 Rate 1 Bill Impact'!J58 -> -22.82415665 | G9: ='G1.1 Rate 1 Bill Impact'!L58 -> -0.7112545293 | H9: ='G1.1 Rate 1 Bill Impact'!J65 -> -5.824739121 | I9: ='G1.1 Rate 1 Bill Impact'!L65 -> -0.004512435773 | L9: =H9-F9-D9 -> 0
C10: ='G1.1 Rate 1 Bill Impact'!C70 -> RATE 1 - General Service Rate - Commercial | D10: ='G1.1 Rate 1 Bill Impact'!J106 -> 34.05761968 | E10: ='G1.1 Rate 1 Bill Impact'!L106 -> 0.02450387874 | F10: ='G1.1 Rate 1 Bill Impact'!J118 -> -34.15850115 | G10: ='G1.1 Rate 1 Bill Impact'!L118 -> -0.4503998781 | H10: ='G1.1 Rate 1 Bill Impact'!J125 -> -0.1008814725 | I10: ='G1.1 Rate 1 Bill Impact'!L125 -> -1.937880305e-05 | L10: =H10-F10-D10 -> 0
C11: ='G1.1 Rate 1 Bill Impact'!C130 -> RATE 1 - General Service Rate - Industrial | D11: ='G1.1 Rate 1 Bill Impact'!J166 -> 78.95894818 | E11: ='G1.1 Rate 1 Bill Impact'!L166 -> 0.02109149607 | F11: ='G1.1 Rate 1 Bill Impact'!J178 -> -65.8906677 | G11: ='G1.1 Rate 1 Bill Impact'!L178 -> -0.3322340651 | H11: ='G1.1 Rate 1 Bill Impact'!J185 -> 13.06828048 | I11: ='G1.1 Rate 1 Bill Impact'!L185 -> 0.0008158949811 | L11: 0
C13: ='G1.2 Rate 2 Bill Impact'!C10 -> RATE 2 - Seasonal Service - Apr to Oct | D13: ='G1.2 Rate 2 Bill Impact'!J46 -> 27.24513237 | E13: ='G1.2 Rate 2 Bill Impact'!L46 -> 0.02311017623 | F13: ='G1.2 Rate 2 Bill Impact'!J58 -> -14.04233589 | G13: ='G1.2 Rate 2 Bill Impact'!L58 -> -0.2407915822 | H13: ='G1.2 Rate 2 Bill Impact'!J65 -> 13.20279648 | I13: ='G1.2 Rate 2 Bill Impact'!L65 -> 0.00251377454 | L13: 0
C14: ='G1.2 Rate 2 Bill Impact'!C70 -> RATE 2 - Seasonal Service - Nov to Mar | D14: ='G1.2 Rate 2 Bill Impact'!J106 -> 25.37097127 | E14: ='G1.2 Rate 2 Bill Impact'!L106 -> 0.02034559136 | F14: ='G1.2 Rate 2 Bill Impact'!J118 -> -9.67026089 | G14: ='G1.2 Rate 2 Bill Impact'!L118 -> -0.2419390595 | H14: ='G1.2 Rate 2 Bill Impact'!J125 -> 15.70071038 | I14: ='G1.2 Rate 2 Bill Impact'!L125 -> 0.003893013434 | L14: 0
C15: ='G1.2 Rate 2 Bill Impact'!C130 -> RATE 2 - Seasonal Service - Annual | D15: ='G1.2 Rate 2 Bill Impact'!J143 -> 52.61610363 | E15: ='G1.2 Rate 2 Bill Impact'!L143 -> 0.02168909332 | F15: ='G1.2 Rate 2 Bill Impact'!J155 -> -23.71259678 | G15: ='G1.2 Rate 2 Bill Impact'!L155 -> -0.2412582193 | H15: ='G1.2 Rate 2 Bill Impact'!J162 -> 28.90350685 | I15: ='G1.2 Rate 2 Bill Impact'!L162 -> 0.003112848327 | L15: 0
C17: ='G1.3 Rate 3 Bill Impact'!C10 -> RATE 3 - Special Large Volume Contract Rate | D17: ='G1.3 Rate 3 Bill Impact'!J46 -> 170.1110411 | E17: ='G1.3 Rate 3 Bill Impact'!L46 -> 0.007553004148 | F17: ='G1.3 Rate 3 Bill Impact'!J58 -> 214.8304679 | G17: ='G1.3 Rate 3 Bill Impact'!L58 -> 0.284091735 | H17: ='G1.3 Rate 3 Bill Impact'!J65 -> 384.9415091 | I17: ='G1.3 Rate 3 Bill Impact'!L65 -> 0.003425564141 | L17: 0
C19: ='G1.4 Rate 4 Bill Impact'!C10 -> RATE 4 - General Service Peaking - Apr to Dec | D19: ='G1.4 Rate 4 Bill Impact'!J46 -> 83.38903778 | E19: ='G1.4 Rate 4 Bill Impact'!L46 -> 0.01558156088 | F19: ='G1.4 Rate 4 Bill Impact'!J58 -> 11.50825878 | G19: ='G1.4 Rate 4 Bill Impact'!L58 -> 0.06806156211 | H19: ='G1.4 Rate 4 Bill Impact'!J65 -> 94.89729657 | I19: ='G1.4 Rate 4 Bill Impact'!L65 -> 0.004305464424 | L19: 0
C20: ='G1.4 Rate 4 Bill Impact'!C70 -> RATE 4 - General Service Peaking - Jan to Mar | D20: ='G1.4 Rate 4 Bill Impact'!J106 -> 7.394115866 | E20: ='G1.4 Rate 4 Bill Impact'!L106 -> 0.02975122754 | F20: ='G1.4 Rate 4 Bill Impact'!J118 -> -0.6484761278 | G20: ='G1.4 Rate 4 Bill Impact'!L118 -> -0.1463799169 | H20: ='G1.4 Rate 4 Bill Impact'!J125 -> 6.745639739 | I20: ='G1.4 Rate 4 Bill Impact'!L125 -> 0.01166590657 | L20: 0
C21: ='G1.4 Rate 4 Bill Impact'!C130 -> RATE 4 - General Service Peaking - Annual | D21: ='G1.4 Rate 4 Bill Impact'!J143 -> 90.78315365 | E21: ='G1.4 Rate 4 Bill Impact'!L143 -> 0.0162103848 | F21: ='G1.4 Rate 4 Bill Impact'!J155 -> 10.85978265 | G21: ='G1.4 Rate 4 Bill Impact'!L155 -> 0.06258659538 | H21: ='G1.4 Rate 4 Bill Impact'!J162 -> 101.6429363 | I21: ='G1.4 Rate 4 Bill Impact'!L162 -> 0.004493624794 | L21: 0
C23: ='G1.5 Rate 5 Bill Impact'!C10 -> RATE 5 - Interruptible Peaking Contract Rate | D23: ='G1.5 Rate 5 Bill Impact'!J46 -> 551.2606767 | E23: ='G1.5 Rate 5 Bill Impact'!L46 -> 0.03059678989 | F23: ='G1.5 Rate 5 Bill Impact'!J58 -> 175.2202171 | G23: ='G1.5 Rate 5 Bill Impact'!L58 -> 0.2612071388 | H23: ='G1.5 Rate 5 Bill Impact'!J65 -> 726.4808939 | I23: ='G1.5 Rate 5 Bill Impact'!L65 -> 0.007543791303 | L23: 0
C25: ='G1.6 Rate 6 Bill Impact'!C10 -> RATE 6 - Integrated Grain Processors Co-Operative Aylmer Ethanol Production Facility | D25: ='G1.6 Rate 6 Bill Impact'!J46 -> 25399.31724 | E25: ='G1.6 Rate 6 Bill Impact'!L46 -> 0.03299948551 | F25: ='G1.6 Rate 6 Bill Impact'!J58 -> -3.24 | G25: ='G1.6 Rate 6 Bill Impact'!L58 -> -1 | H25: ='G1.6 Rate 6 Bill Impact'!J65 -> 25396.07724 | I25: ='G1.6 Rate 6 Bill Impact'!L65 -> 0.03290768195 | L25: 0
C30: =MID(CELL("filename",A1),FIND("]",CELL("filename",A1))+1,255) -> G1.7 Summary of Bill Impacts
A49: REDA | C49: $='G1.1 Rate 1 Bill Impact'!J47 | D49: $='G1.1 Rate 1 Bill Impact'!J99 | E49: $='G1.1 Rate 1 Bill Impact'!J151 | G49: $='G1.2 Rate 2 Bill Impact'!J47 | I49: $='G1.4 Rate 4 Bill Impact'!J47 | J49: $='G1.4 Rate 4 Bill Impact'!J99 | K49: $='G1.4 Rate 4 Bill Impact'!J132 | M49: $='G1.5 Rate 5 Bill Impact'!J47 | O49: $='G1.6 Rate 6 Bill Impact'!J47
A50: PGTVA | C50: $='G1.1 Rate 1 Bill Impact'!J48 | D50: $='G1.1 Rate 1 Bill Impact'!J100 | E50: $='G1.1 Rate 1 Bill Impact'!J152 | G50: $='G1.2 Rate 2 Bill Impact'!J48 | I50: $='G1.4 Rate 4 Bill Impact'!J48 | J50: $='G1.4 Rate 4 Bill Impact'!J100 | K50: $='G1.4 Rate 4 Bill Impact'!J133 | M50: $='G1.5 Rate 5 Bill Impact'!J48 | O50: $='G1.6 Rate 6 Bill Impact'!J48
A51: AVDADA | C51: $='G1.1 Rate 1 Bill Impact'!J49 | D51: $='G1.1 Rate 1 Bill Impact'!J101 | E51: $='G1.1 Rate 1 Bill Impact'!J153 | G51: $='G1.2 Rate 2 Bill Impact'!J49 | I51: $='G1.4 Rate 4 Bill Impact'!J49 | J51: $='G1.4 Rate 4 Bill Impact'!J101 | K51: $='G1.4 Rate 4 Bill Impact'!J134 | M51: $='G1.5 Rate 5 Bill Impact'!J49 | O51: $='G1.6 Rate 6 Bill Impact'!J49
A52: Total | C52: $='G1.1 Rate 1 Bill Impact'!J50 | D52: $='G1.1 Rate 1 Bill Impact'!J102 | E52: $='G1.1 Rate 1 Bill Impact'!J154 | G52: $='G1.2 Rate 2 Bill Impact'!J50 | I52: $='G1.4 Rate 4 Bill Impact'!J50 | J52: $='G1.4 Rate 4 Bill Impact'!J102 | K52: $='G1.4 Rate 4 Bill Impact'!J135 | M52: $='G1.5 Rate 5 Bill Impact'!J50 | O52: $='G1.6 Rate 6 Bill Impact'!J50
A55: REDA | C55: $='G1.1 Rate 1 Bill Impact'!L47 | D55: $='G1.1 Rate 1 Bill Impact'!L99 | E55: $='G1.1 Rate 1 Bill Impact'!L151 | G55: $='G1.2 Rate 2 Bill Impact'!L47 | I55: $='G1.4 Rate 4 Bill Impact'!L47 | J55: $='G1.4 Rate 4 Bill Impact'!L99 | K55: $='G1.4 Rate 4 Bill Impact'!L132 | M55: $='G1.5 Rate 5 Bill Impact'!L47 | O55: $='G1.6 Rate 6 Bill Impact'!L47
